Workbook

Sheet BOM SUMMARY
B2: PRICE REGION
B3: West
A5: DESIGN RATE PER FOOT | B5: 1.3 | C5: SET THESE FIELDS BEFORE RUNNING BUILD SUMMARY
A6: CONTINGENCY % | B6: 0.2
D7: 1 | K7: 0 | R7: =SUM(D7,K7) -> 1
A8: OVERALL TOTAL | B8: Backbone | I8: Distribution | P8: Overall
A9: DESIGN | B9: Total | C9: Buried | D9: Aerial | E9: Rate/Ft | F9: Total Design | G9: PE Stamp Pgs/Cost | I9: Total | J9: Buried | K9: Aerial | L9: Rate/Ft | M9: Total Design | N9: PE Stamp Pgs/Cost | P9: Total | Q9: Buried | R9: Aerial | S9: Rate/Ft | T9: Total Design | U9: PE Stamp Pgs/Cost
A10: Footage | B10: =SUM(C10:D10) -> 225000 | C10: 175000 | D10: 50000 | E10: =$B$5 -> 1.3 | F10: 292500 | G10: 329 | I10: =SUM(J10:K10) -> 0 | J10: 0 | K10: 0 | L10: =$B$5 -> 1.3 | M10: 0 | N10: 0 | P10: =SUM(B10,I10) -> 225000 | Q10: 175000 | R10: 50000 | S10: =$B$5 -> 1.3 | T10: =SUM(F10,M10) -> 292500 | U10: =SUM(G10,N10) -> 329
A11: Mileage | B11: =SUM(C11:D11) -> 42.61 | C11: =ROUND(C10/5280,2) -> 33.14 | D11: =ROUND(D10/5280,2) -> 9.47 | G11: 49750 | I11: =SUM(J11:K11) -> 0 | J11: =ROUND(J10/5280,2) -> 0 | K11: =ROUND(K10/5280,2) -> 0 | N11: 0 | P11: 42.61 | Q11: 33.14 | R11: 9.47 | U11: =SUM(G11,N11) -> 49750
A13: PREMISES | B13: =SUM(B14:B16) -> 0 | I13: =SUM(I14:I16) -> 0 | P13: =SUM(B13,I13) -> 0
A14: Residential | B14: 0 | I14: 0 | P14: =SUM(B14,I14) -> 0
A15: Business | B15: 0 | I15: 0 | P15: =SUM(B15,I15) -> 0
A16: Anchors | B16: 0 | I16: 0 | P16: =SUM(B16,I16) -> 0
A18: UNDERGROUND - BURIED LABOR TOTAL | B18: 11401443.38 | I18: 0 | P18: =SUM(B18,I18) -> 11401443.38
A19: AERIAL -STRAND/LASH LABOR TOTAL | B19: 354222 | I19: 0 | P19: 354222
A20: AERIAL - ADSS LABOR TOTAL | B20: 0 | I20: 0 | P20: 0
A21: WIRELESS LABOR TOTAL | B21: 0 | I21: 0 | P21: 0
A22: SPLICING LABOR TOTAL | B22: 1007676 | I22: 0 | P22: 1007676
A23: PATCH PANELS AND CABINETS LABOR TOTAL | B23: 2000 | I23: 0 | P23: 2000
A24: GENERAL LABOR TOTAL | B24: 0 | I24: 0 | P24: 0
A25: LABOR TOTAL | B25: 12765341.38 | I25: 0 | P25: 12765341.38
A26: FIBER MATERIAL TOTAL | B26: 509302.5 | I26: 0 | P26: 509302.5
A27: UNDERGROUND MATERIAL TOTAL | B27: 922605 | I27: 0 | P27: 922605
A28: CLOSURES MATERIAL TOTAL | B28: 50600 | I28: 0 | P28: 50600
A29: MST MATERIAL TOTAL | B29: 0 | I29: 0 | P29: 0
A30: PATCH PANELS AND CABINETS MATERIAL TOTAL | B30: 42400 | I30: 0 | P30: 42400
A31: AERIAL MATERIAL TOTAL | B31: 10170 | I31: 0 | P31: 10170
A32: AERIAL - STRAND/LASH MATERIAL TOTAL | B32: 18010 | I32: 0 | P32: 18010
A33: AERIAL - ADSS MATERIAL TOTAL | B33: 0 | I33: 0 | P33: 0
A34: WIRELESS MATERIAL TOTAL | B34: 0 | I34: 0 | P34: 0
A35: MATERIAL TOTAL | B35: 1553087.5 | C35: Cost Per Foot | D35: Cost Per Mile | E35: w/ Design/Stamp | I35: 0 | J35: Cost Per Foot | K35: Cost Per Mile | L35: w/ Design/Stamp | P35: 1553087.5 | Q35: Cost Per Foot | R35: Cost Per Mile | S35: w/ Design/Stamp
A36: TOTAL BID | B36: 14318428.88 | C36: =ROUND(IFERROR(B36/B10,0),2) -> 63.64 | D36: =ROUND(IFERROR(B36/B11,0),2) -> 336034.47 | E36: =B36+F10+G11 -> 14660678.88 | I36: 0 | J36: =ROUND(IFERROR(I36/I10,0),2) -> 0 | K36: =ROUND(IFERROR(I36/I11,0),2) -> 0 | L36: =I36+M10+N11 -> 0 | P36: 14318428.88 | Q36: =ROUND(IFERROR(P36/P10,0),2) -> 63.64 | R36: =ROUND(IFERROR(P36/P11,0),2) -> 336034.47 | S36: =SUM(E36,L36) -> 14660678.88
A37: ="WITH " & TEXT(B6, "0%") & " CONTINGENCY" -> WITH 20% CONTINGENCY | B37: =ROUND(B36*(1+$B$6),2) -> 17182114.66 | C37: =ROUND(IFERROR(B37/B10,0),2) -> 76.36 | D37: =ROUND(IFERROR(B37/B11,0),2) -> 403241.37 | E37: =B37+F10+G11 -> 17524364.66 | I37: =ROUND(I36*(1+$B$6),2) -> 0 | J37: =ROUND(IFERROR(I37/I10,0),2) -> 0 | K37: =ROUND(IFERROR(I37/I11,0),2) -> 0 | L37: =I37+M10+N11 -> 0 | P37: 17182114.66 | Q37: =ROUND(IFERROR(P37/P10,0),2) -> 76.36 | R37: =ROUND(IFERROR(P37/P11,0),2) -> 403241.37 | S37: =SUM(E37,L37) -> 17524364.66
A40: BB-TEST
A41: DESIGN | B41: Total | C41: Buried | D41: Aerial | E41: Rate/Ft | F41: Total Design | G41: PE Stamp Pgs/Cost
A42: Footage | B42: 225000 | C42: 175000 | D42: 50000 | E42: 1.3 | F42: =ROUND(B42 * E10, 0) -> 292500 | G42: =ROUNDUP(B42 / 684.15, 0) -> 329
A43: Mileage | B43: 42.61 | C43: 33.14 | D43: 9.47 | G43: =IF(G42 > 20, 3400+((G42-20)*150), IF(G42 > 10, 1800+((G42-10)*160), G42 * 180)) -> 49750
A45: PREMISES | B45: 0
A46: Residential | B46: 0
A47: Business | B47: 0
A48: Anchor | B48: 0
A50: UNDERGROUND - BURIED LABOR TOTAL | B50: 11401443.38
A51: AERIAL -STRAND/LASH LABOR TOTAL | B51: 354222
A52: AERIAL - ADSS LABOR TOTAL | B52: 0
A53: WIRELESS LABOR TOTAL | B53: 0
A54: SPLICING LABOR TOTAL | B54: 1007676
A55: PATCH PANELS AND CABINETS LABOR TOTAL | B55: 2000
A56: GENERAL LABOR TOTAL | B56: 0
A57: LABOR TOTAL | B57: 12765341.38
A58: FIBER MATERIAL TOTAL | B58: 509302.5
A59: UNDERGROUND MATERIAL TOTAL | B59: 922605
A60: CLOSURES MATERIAL TOTAL | B60: 50600
A61: MST MATERIAL TOTAL | B61: 0
A62: PATCH PANELS AND CABINETS MATERIAL TOTAL | B62: 42400
A63: AERIAL MATERIAL TOTAL | B63: 10170
A64: AERIAL - STRAND/LASH MATERIAL TOTAL | B64: 18010
A65: AERIAL - ADSS MATERIAL TOTAL | B65: 0
A66: WIRELESS MATERIAL TOTAL | B66: 0
A67: MATERIAL TOTAL | B67: 1553087.5 | C67: Cost Per Foot | D67: Cost Per Mile | E67: w/Design/Stamp
A68: TOTAL BID | B68: 14318428.88 | C68: 63.64 | D68: 336034.47 | E68: 14660678.88
A69: WITH 20% CONTINGENCY | B69: 17182114.66 | C69: 76.36 | D69: 403241.37 | E69: 17524364.66

Sheet BOM PHASE SUMMARY

Sheet BOM TEMPLATE
A1: [CLIENT NAME] - FIBER CONSTRUCTION PROJECT - ATTACHMENT X: PRICING PROPOSAL FORM
B2: Contractor: | I2: =IFERROR(IF(D14>=0,D14,0),0) -> 0 | J2: =1+(L2) -> 1 | L2: =IF(I2<10,I2,0) -> 0
B3: Contact Name/Position: | I3: 0.3 | J3: =IF($D$14="Urban",$K$3,0.01) -> 0.01 | K3: 0.15 | L3: =IF($F$14="Prevailing Wage",I3,0) -> 0
B4: Email:
B5: Phone: | I5: ADSS | J5: =IFERROR(IF($F$14="ADSS",1,0),0) -> 0
I6: Strand/Lash | J6: =IF($J$5=0,1,0) -> 1
A7: Items with listed quantities are included in the current design, but [CLIENT NAME] requests costs for all the items should the item be needed due to design alterations. All proposed unit costs must be guaranteed for the term of the project unless expressly agreed upon by [CLIENT NAME].
C8: BB, Lateral, PON (This is for HLD estimates, this does not matter for LLD): | D8: BB | E8: Mileage | F8: =SUM(F9:F11) -> 0 | G8: Total Passings
C9: Total Design with underground overbuild % (F12) Footage/Miles: | D9: =D11+(D10*(1+F12)) -> 0 | E9: =ROUND(D9/5280,2) -> 0 | F9: 0 | G9: Residential
C10: Buried: | D10: 0 | E10: =ROUND(D10/5280,2) -> 0 | F10: 0 | G10: Business
C11: Aerial: | D11: 0 | E11: =ROUND(D11/5280,2) -> 0 | F11: 0 | G11: Anchor
C12: Region for unit pricing | D12: West | E12: Actual Buried | F12: 0.75 | G12: Underground overbuild percentage (If using centerline for PON assume 75%)
C13: Use MST's? (Only changes PON estimates) | D13: No MST | E13: =D10*(1+F12) -> 0 | F13: 0 | G13: Rock Percentage
C14: Labor Rate Adjustment (Use this if you want to add additional costs to wage i.e. prevailing wage ~30%) | D14: 0 | E14: =ROUND(E13/5280,2) -> 0 | F14: Strand and Lash | G14: Aerial (Strand and Lash or ADSS)
A15: UNIT PRICING | J15: HLD estimates
A16: LABOR PRICING. All work includes traffic control plans, setup, maintenance and breakdown, compacted backfill, stormwater and erosion control setup, maintenance and breakdown, safety compliance and soft surface restoration. All cells shown in green shall be completed by the Contractor. All other cells are protected in this form. | I16: Percentage | J16: BB | K16: Lateral | L16: GPON
A17: Item # | B17: Description | C17: Estimated Quantity | D17: Unit | E17: Unit Price | F17: Total | G17: Notes | N17: micro | O17: 1" | P17: 1.25" | Q17: 2" | R17: 4" | S17: 6" | T17: 8" | V17: =CONCATENATE(N17," len") -> micro len | W17: =CONCATENATE(O17," len") -> 1" len | X17: 1.25" len | Y17: 2" len | Z17: 4" len | AA17: 6" len | AB17: 8" len
B18: UNDERGROUND - BURIED | V18: =SUM(V19:V50) -> 0 | W18: =SUM(W19:W50) -> 0 | X18: 0 | Y18: 0 | Z18: 0 | AA18: 0 | AB18: 0
A19: 1 | B19: Directional Bore (1) 1" | C19: =_xlfn.SWITCH($D$8,"Lateral",K19,"PON",L19,J19) -> 0 | D19: LF | E19: =INDEX('UNIT PRICE TABLE'!$A$1:$G$58,MATCH(B19,'UNIT PRICE TABLE'!$A$1:$A$58,0),MATCH($D$12,Region,0)+1)*$J$2 -> 45 | F19: =ROUND(IFERROR(C19*E19,0),2) -> 0 | G19: *Get updated pricing from Clayton first* Total Underground lengths. BB and Lateral add 5% for variance, PON may need to update variance in cell F12 | I19: 0 | J19: =ROUNDUP($D$10*(1+$F$12)*$I19,0) -> 0 | K19: =$J19 -> 0 | L19: =$J19 -> 0 | N19: 0 | O19: 1 | P19: 0 | Q19: 0 | R19: 0 | S19: 0 | T19: 0 | V19: =N19*$J19 -> 0 | W19: =O19*$J19 -> 0 | X19: =P19*$J19 -> 0 | Y19: =Q19*$J19 -> 0 | Z19: =R19*$J19 -> 0 | AA19: =S19*$J19 -> 0 | AB19: =T19*$J19 -> 0
A20: =A19+1 -> 2 | B20: Directional Bore (2) 1" | C20: =_xlfn.SWITCH($D$8,"Lateral",K20,"PON",L20,J20) -> 0 | D20: LF | E20: =INDEX('UNIT PRICE TABLE'!$A$1:$G$58,MATCH(B20,'UNIT PRICE TABLE'!$A$1:$A$58,0),MATCH($D$12,Region,0)+1)*$J$2 -> 48.08 | F20: 0 | G20: *Get updated pricing from Clayton first* Total Underground lengths. BB and Lateral add 5% for variance, PON may need to update variance in cell F12 | I20: 0 | J20: =ROUNDUP($D$10*(1+$F$12)*$I20,0) -> 0 | K20: =$J20 -> 0 | L20: 0 | N20: 0 | O20: 2 | P20: 0 | Q20: 0 | R20: 0 | S20: 0 | T20: 0 | V20: =N20*$J20 -> 0 | W20: 0 | X20: 0 | Y20: 0 | Z20: 0 | AA20: 0 | AB20: 0
A21: =A20+1 -> 3 | B21: Directional Bore (1) 2" | C21: =_xlfn.SWITCH($D$8,"Lateral",K21,"PON",L21,J21) -> 0 | D21: LF | E21: =INDEX('UNIT PRICE TABLE'!$A$1:$G$58,MATCH(B21,'UNIT PRICE TABLE'!$A$1:$A$58,0),MATCH($D$12,Region,0)+1)*$J$2 -> 48.08 | F21: 0 | G21: *Get updated pricing from Clayton first* Total Underground lengths. BB and Lateral add 5% for variance, PON may need to update variance in cell F12 | I21: 0 | J21: 0 | K21: 0 | L21: 0 | N21: 0 | O21: 0 | P21: 0 | Q21: 1 | R21: 0 | S21: 0 | T21: 0 | V21: 0 | W21: 0 | X21: 0 | Y21: 0 | Z21: 0 | AA21: 0 | AB21: 0
A22: 4 | B22: Directional Bore (1) 2" and (1) 1" | C22: =_xlfn.SWITCH($D$8,"Lateral",K22,"PON",L22,J22) -> 0 | D22: LF | E22: =INDEX('UNIT PRICE TABLE'!$A$1:$G$58,MATCH(B22,'UNIT PRICE TABLE'!$A$1:$A$58,0),MATCH($D$12,Region,0)+1)*$J$2 -> 50.9 | F22: 0 | G22: *Get updated pricing from Clayton first* Total Underground lengths. BB and Lateral add 5% for variance, PON may need to update variance in cell F12 | I22: 0 | J22: 0 | K22: 0 | L22: 0 | N22: 0 | O22: 1 | P22: 0 | Q22: 1 | R22: 0 | S22: 0 | T22: 0 | V22: 0 | W22: 0 | X22: 0 | Y22: 0 | Z22: 0 | AA22: 0 | AB22: 0
A23: 5 | B23: Directional Bore (1) 2" and (2) 1" | C23: =_xlfn.SWITCH($D$8,"Lateral",K23,"PON",L23,J23) -> 0 | D23: LF | E23: =INDEX('UNIT PRICE TABLE'!$A$1:$G$58,MATCH(B23,'UNIT PRICE TABLE'!$A$1:$A$58,0),MATCH($D$12,Region,0)+1)*$J$2 -> 50.9 | F23: 0 | G23: *Get updated pricing from Clayton first* Total Underground lengths. BB and Lateral add 5% for variance, PON may need to update variance in cell F12 | I23: 0 | J23: 0 | K23: 0 | L23: 0 | N23: 0 | O23: 2 | P23: 0 | Q23: 1 | R23: 0 | S23: 0 | T23: 0 | V23: 0 | W23: 0 | X23: 0 | Y23: 0 | Z23: 0 | AA23: 0 | AB23: 0
A24: 6 | B24: Directional Bore (2) 2" | C24: =_xlfn.SWITCH($D$8,"Lateral",K24,"PON",L24,J24) -> 0 | D24: LF | E24: =INDEX('UNIT PRICE TABLE'!$A$1:$G$58,MATCH(B24,'UNIT PRICE TABLE'!$A$1:$A$58,0),MATCH($D$12,Region,0)+1)*$J$2 -> 50.9 | F24: 0 | G24: *Get updated pricing from Clayton first* Total Underground lengths. BB and Lateral add 5% for variance, PON may need to update variance in cell F12 | I24: 1 | J24: 0 | K24: 0 | L24: 0 | N24: 0 | O24: 0 | P24: 0 | Q24: 2 | R24: 0 | S24: 0 | T24: 0 | V24: 0 | W24: 0 | X24: 0 | Y24: 0 | Z24: 0 | AA24: 0 | AB24: 0
A25: 7 | B25: Directional Bore (2) 2" and (1) 1" | C25: =_xlfn.SWITCH($D$8,"Lateral",K25,"PON",L25,J25) -> 0 | D25: LF | E25: =INDEX('UNIT PRICE TABLE'!$A$1:$G$58,MATCH(B25,'UNIT PRICE TABLE'!$A$1:$A$58,0),MATCH($D$12,Region,0)+1)*$J$2 -> 60 | F25: 0 | G25: *Get updated pricing from Clayton first* Total Underground lengths. BB and Lateral add 5% for variance, PON may need to update variance in cell F12 | I25: 0 | J25: 0 | K25: 0 | L25: 0 | N25: 0 | O25: 1 | P25: 0 | Q25: 2 | R25: 0 | S25: 0 | T25: 0 | V25: 0 | W25: 0 | X25: 0 | Y25: 0 | Z25: 0 | AA25: 0 | AB25: 0
A26: 8 | B26: Directional Bore (3) 2" | C26: =_xlfn.SWITCH($D$8,"Lateral",K26,"PON",L26,J26) -> 0 | D26: LF | E26: =INDEX('UNIT PRICE TABLE'!$A$1:$G$58,MATCH(B26,'UNIT PRICE TABLE'!$A$1:$A$58,0),MATCH($D$12,Region,0)+1)*$J$2 -> 65 | F26: 0 | G26: *Get updated pricing from Clayton first* Total Underground lengths. BB and Lateral add 5% for variance, PON may need to update variance in cell F12 | I26: 0 | J26: 0 | K26: 0 | L26: 0 | N26: 0 | O26: 0 | P26: 0 | Q26: 3 | R26: 0 | S26: 0 | T26: 0 | V26: 0 | W26: 0 | X26: 0 | Y26: 0 | Z26: 0 | AA26: 0 | AB26: 0
A27: 9 | B27: Directional Bore (3) 2" and (1) 1" | C27: =_xlfn.SWITCH($D$8,"Lateral",K27,"PON",L27,J27) -> 0 | D27: LF | E27: =INDEX('UNIT PRICE TABLE'!$A$1:$G$58,MATCH(B27,'UNIT PRICE TABLE'!$A$1:$A$58,0),MATCH($D$12,Region,0)+1)*$J$2 -> 65 | F27: 0 | G27: *Get updated pricing from Clayton first* Total Underground lengths. BB and Lateral add 5% for variance, PON may need to update variance in cell F12 | I27: 0 | J27: 0 | K27: 0 | L27: 0 | N27: 0 | O27: 1 | P27: 0 | Q27: 3 | R27: 0 | S27: 0 | T27: 0 | V27: 0 | W27: 0 | X27: 0 | Y27: 0 | Z27: 0 | AA27: 0 | AB27: 0
A28: 10 | B28: Directional Bore (3) 2" and (2) 1" | C28: =_xlfn.SWITCH($D$8,"Lateral",K28,"PON",L28,J28) -> 0 | D28: LF | E28: =INDEX('UNIT PRICE TABLE'!$A$1:$G$58,MATCH(B28,'UNIT PRICE TABLE'!$A$1:$A$58,0),MATCH($D$12,Region,0)+1)*$J$2 -> 65 | F28: 0 | G28: *Get updated pricing from Clayton first* Total Underground lengths. BB and Lateral add 5% for variance, PON may need to update variance in cell F12 | I28: 0 | J28: 0 | K28: 0 | L28: 0 | N28: 0 | O28: 2 | P28: 0 | Q28: 3 | R28: 0 | S28: 0 | T28: 0 | V28: 0 | W28: 0 | X28: 0 | Y28: 0 | Z28: 0 | AA28: 0 | AB28: 0
A29: 11 | B29: Directional Bore (4) 2" | C29: =_xlfn.SWITCH($D$8,"Lateral",K29,"PON",L29,J29) -> 0 | D29: LF | E29: =INDEX('UNIT PRICE TABLE'!$A$1:$G$58,MATCH(B29,'UNIT PRICE TABLE'!$A$1:$A$58,0),MATCH($D$12,Region,0)+1)*$J$2 -> 70 | F29: 0 | G29: *Get updated pricing from Clayton first* Total Underground lengths. BB and Lateral add 5% for variance, PON may need to update variance in cell F12 | I29: 0 | J29: 0 | K29: 0 | L29: 0 | N29: 0 | O29: 0 | P29: 0 | Q29: 4 | R29: 0 | S29: 0 | T29: 0 | V29: 0 | W29: 0 | X29: 0 | Y29: 0 | Z29: 0 | AA29: 0 | AB29: 0
A30: 12 | B30: Directional Bore (1) 4" | C30: =_xlfn.SWITCH($D$8,"Lateral",K30,"PON",L30,J30) -> 0 | D30: LF | E30: =INDEX('UNIT PRICE TABLE'!$A$1:$G$58,MATCH(B30,'UNIT PRICE TABLE'!$A$1:$A$58,0),MATCH($D$12,Region,0)+1)*$J$2 -> 48 | F30: 0 | G30: *Get updated pricing from Clayton first* Total Underground lengths. BB and Lateral add 5% for variance, PON may need to update variance in cell F12 | I30: 0 | J30: 0 | K30: 0 | L30: 0 | N30: 0 | O30: 0 | P30: 0 | Q30: 0 | R30: 1 | S30: 0 | T30: 0 | V30: 0 | W30: 0 | X30: 0 | Y30: 0 | Z30: 0 | AA30: 0 | AB30: 0
A31: 13 | B31: Directional Bore (1) 1 1/4" | C31: =_xlfn.SWITCH($D$8,"Lateral",K31,"PON",L31,J31) -> 0 | D31: LF | E31: =INDEX('UNIT PRICE TABLE'!$A$1:$G$58,MATCH(B31,'UNIT PRICE TABLE'!$A$1:$A$58,0),MATCH($D$12,Region,0)+1)*$J$2 -> 48.08 | F31: 0 | G31: *Get updated pricing from Clayton first* Total Underground lengths. BB and Lateral add 5% for variance, PON may need to update variance in cell F12 | I31: 0 | J31: 0 | K31: 0 | L31: 0 | N31: 0 | O31: 0 | P31: 1 | Q31: 0 | R31: 0 | S31: 0 | T31: 0 | V31: 0 | W31: 0 | X31: 0 | Y31: 0 | Z31: 0 | AA31: 0 | AB31: 0
A32: 14 | B32: Directional Bore (2) 1 1/4" | C32: =_xlfn.SWITCH($D$8,"Lateral",K32,"PON",L32,J32) -> 0 | D32: LF | E32: =INDEX('UNIT PRICE TABLE'!$A$1:$G$58,MATCH(B32,'UNIT PRICE TABLE'!$A$1:$A$58,0),MATCH($D$12,Region,0)+1)*$J$2 -> 53 | F32: 0 | G32: *Get updated pricing from Clayton first* Total Underground lengths. BB and Lateral add 5% for variance, PON may need to update variance in cell F12 | I32: 0 | J32: 0 | K32: 0 | L32: 0 | N32: 0 | O32: 0 | P32: 2 | Q32: 0 | R32: 0 | S32: 0 | T32: 0 | V32: 0 | W32: 0 | X32: 0 | Y32: 0 | Z32: 0 | AA32: 0 | AB32: 0
A33: 15 | B33: Directional Bore (3) 1 1/4" | C33: =_xlfn.SWITCH($D$8,"Lateral",K33,"PON",L33,J33) -> 0 | D33: LF | E33: =INDEX('UNIT PRICE TABLE'!$A$1:$G$58,MATCH(B33,'UNIT PRICE TABLE'!$A$1:$A$58,0),MATCH($D$12,Region,0)+1)*$J$2 -> 58.3 | F33: 0 | G33: *Get updated pricing from Clayton first* Total Underground lengths. BB and Lateral add 5% for variance, PON may need to update variance in cell F12 | I33: 0 | J33: 0 | K33: 0 | L33: 0 | N33: 0 | O33: 0 | P33: 3 | Q33: 0 | R33: 0 | S33: 0 | T33: 0 | V33: 0 | W33: 0 | X33: 0 | Y33: 0 | Z33: 0 | AA33: 0 | AB33: 0
A34: 16 | B34: Directional Bore (4) 1 1/4" | C34: =_xlfn.SWITCH($D$8,"Lateral",K34,"PON",L34,J34) -> 0 | D34: LF | E34: =INDEX('UNIT PRICE TABLE'!$A$1:$G$58,MATCH(B34,'UNIT PRICE TABLE'!$A$1:$A$58,0),MATCH($D$12,Region,0)+1)*$J$2 -> 65 | F34: 0 | G34: *Get updated pricing from Clayton first* Total Underground lengths. BB and Lateral add 5% for variance, PON may need to update variance in cell F12 | I34: 0 | J34: 0 | K34: 0 | L34: 0 | N34: 0 | O34: 0 | P34: 4 | Q34: 0 | R34: 0 | S34: 0 | T34: 0 | V34: 0 | W34: 0 | X34: 0 | Y34: 0 | Z34: 0 | AA34: 0 | AB34: 0
A35: 17 | B35: Microtrenching (Narrow Band Trenching) upto 12" deep | C35: =_xlfn.SWITCH($D$8,"Lateral",K35,"PON",L35,J35) -> 0 | D35: LF | E35: =$J$2*11.54 -> 11.54 | F35: =ROUND(IFERROR(C35*E35,0),2) -> 0 | G35: Add 5% for variance | I35: 0 | J35: 0 | K35: 0 | L35: 0 | N35: 1 | O35: 0 | P35: 0 | Q35: 0 | R35: 0 | S35: 0 | T35: 0 | V35: 0 | W35: 0 | X35: 0 | Y35: 0 | Z35: 0 | AA35: 0 | AB35: 0
A36: 18 | B36: Microtrenching (Narrow Band Trenching) upto 18" deep | C36: =_xlfn.SWITCH($D$8,"Lateral",K36,"PON",L36,J36) -> 0 | D36: LF | E36: =$J$2*13.85 -> 13.85 | F36: 0 | G36: Add 5% for variance | I36: 0 | J36: 0 | K36: 0 | L36: 0 | N36: 1 | O36: 0 | P36: 0 | Q36: 0 | R36: 0 | S36: 0 | T36: 0 | V36: 0 | W36: 0 | X36: 0 | Y36: 0 | Z36: 0 | AA36: 0 | AB36: 0
A37: 19 | B37: Microtrenching (Narrow Band Trenching) upto 24" deep | C37: =_xlfn.SWITCH($D$8,"Lateral",K37,"PON",L37,J37) -> 0 | D37: LF | E37: =$J$2*18.46 -> 18.46 | F37: 0 | G37: Add 5% for variance | I37: 0 | J37: 0 | K37: 0 | L37: 0 | N37: 1 | O37: 0 | P37: 0 | Q37: 0 | R37: 0 | S37: 0 | T37: 0 | V37: 0 | W37: 0 | X37: 0 | Y37: 0 | Z37: 0 | AA37: 0 | AB37: 0
A38: 20 | B38: Vibratory Plow 4' deep (1) 2" | C38: =_xlfn.SWITCH($D$8,"Lateral",K38,"PON",L38,J38) -> 0 | D38: LF | E38: =$J$2*75 -> 75 | F38: 0 | G38: Add 5% for variance | I38: 0 | J38: 0 | K38: 0 | L38: 0 | N38: 0 | O38: 0 | P38: 0 | Q38: 1 | R38: 0 | S38: 0 | T38: 0 | V38: 0 | W38: 0 | X38: 0 | Y38: 0 | Z38: 0 | AA38: 0 | AB38: 0
A39: 21 | B39: Vibratory Plow 4' deep (2) 2" | C39: =_xlfn.SWITCH($D$8,"Lateral",K39,"PON",L39,J39) -> 0 | D39: LF | E39: =$J$2*75 -> 75 | F39: 0 | G39: Add 5% for variance | I39: 0 | J39: 0 | K39: 0 | L39: 0 | N39: 0 | O39: 0 | P39: 0 | Q39: 2 | R39: 0 | S39: 0 | T39: 0 | V39: 0 | W39: 0 | X39: 0 | Y39: 0 | Z39: 0 | AA39: 0 | AB39: 0
A40: 22 | B40: Open Cut & Trench (1) 2" at 30" Minimum Depth of Cover | C40: =_xlfn.SWITCH($D$8,"Lateral",K40,"PON",L40,J40) -> 0 | D40: LF | E40: =$J$2*60 -> 60 | F40: 0 | G40: Add 5% for variance | I40: 0 | J40: 0 | K40: 0 | L40: 0 | N40: 0 | O40: 0 | P40: 0 | Q40: 1 | R40: 0 | S40: 0 | T40: 0 | V40: 0 | W40: 0 | X40: 0 | Y40: 0 | Z40: 0 | AA40: 0 | AB40: 0
A41: 23 | B41: Open Cut & Trench (2) 2" at 30" Minimum Depth of Cover | C41: =_xlfn.SWITCH($D$8,"Lateral",K41,"PON",L41,J41) -> 0 | D41: LF | E41: =$J$2*65 -> 65 | F41: 0 | G41: Add 5% for variance | I41: 0 | J41: 0 | K41: 0 | L41: 0 | N41: 0 | O41: 0 | P41: 0 | Q41: 2 | R41: 0 | S41: 0 | T41: 0 | V41: 0 | W41: 0 | X41: 0 | Y41: 0 | Z41: 0 | AA41: 0 | AB41: 0
A42: 24 | B42: Open Cut & Trench (3) 2" at 30" Minimum Depth of Cover | C42: =_xlfn.SWITCH($D$8,"Lateral",K42,"PON",L42,J42) -> 0 | D42: LF | E42: =$J$2*70 -> 70 | F42: 0 | G42: Add 5% for variance | I42: 0 | J42: 0 | K42: 0 | L42: 0 | N42: 0 | O42: 0 | P42: 0 | Q42: 3 | R42: 0 | S42: 0 | T42: 0 | V42: 0 | W42: 0 | X42: 0 | Y42: 0 | Z42: 0 | AA42: 0 | AB42: 0
A43: 25 | B43: Open Cut & Trench (4) 2" at 30" Minimum Depth of Cover | C43: =_xlfn.SWITCH($D$8,"Lateral",K43,"PON",L43,J43) -> 0 | D43: LF | E43: =$J$2*75 -> 75 | F43: 0 | G43: Add 5% for variance | I43: 0 | J43: 0 | K43: 0 | L43: 0 | N43: 0 | O43: 0 | P43: 0 | Q43: 4 | R43: 0 | S43: 0 | T43: 0 | V43: 0 | W43: 0 | X43: 0 | Y43: 0 | Z43: 0 | AA43: 0 | AB43: 0
A44: 26 | B44: Sleeve existing 4" conduit (3) 1 1/4" | C44: =_xlfn.SWITCH($D$8,"Lateral",K44,"PON",L44,J44) -> 0 | D44: LF | E44: =$J$2*11.96 -> 11.96 | F44: 0 | G44: Dependent on build | I44: 0 | J44: 0 | K44: 0 | L44: 0 | N44: 0 | O44: 0 | P44: 3 | Q44: 0 | R44: 0 | S44: 0 | T44: 0 | V44: 0 | W44: 0 | X44: 0 | Y44: 0 | Z44: 0 | AA44: 0 | AB44: 0
A45: 27 | B45: Pull (4) 2" sdr 11 conduits in 8" casing | C45: =_xlfn.SWITCH($D$8,"Lateral",K45,"PON",L45,J45) -> 0 | D45: FT | E45: =$J$2*15 -> 15 | F45: 0 | G45: Dependent on build (Some RR, DOT, and water crossings need steel casings) | I45: 0 | J45: 0 | K45: 0 | L45: 0 | N45: 0 | O45: 0 | P45: 0 | Q45: 4 | R45: 0 | S45: 0 | T45: 0 | V45: 0 | W45: 0 | X45: 0 | Y45: 0 | Z45: 0 | AA45: 0 | AB45: 0
A46: 28 | B46: Bore 6” Casing (Steel) | C46: =_xlfn.SWITCH($D$8,"Lateral",K46,"PON",L46,J46) -> 0 | D46: LF | E46: =$J$2*125 -> 125 | F46: =ROUND(IFERROR(C46*E46,0),2) -> 0 | G46: This would be for RR, DOT, Waterway or other crossing. Estimate is 0.025% of Buried total. | J46: =ROUNDUP(0.00025*$D$10,0) -> 0 | K46: =ROUNDUP(0.00025*$D$10,0) -> 0 | L46: 0 | N46: 0 | O46: 0 | P46: 0 | Q46: 0 | R46: 0 | S46: 0 | T46: 1 | V46: =N46*$J46 -> 0 | W46: 0 | X46: 0 | Y46: 0 | Z46: 0 | AA46: 0 | AB46: 0
A47: 29 | B47: Bore 6” Casing (PVC) | C47: =_xlfn.SWITCH($D$8,"Lateral",K47,"PON",L47,J47) -> 0 | D47: LF | E47: =$J$2*100 -> 100 | F47: =ROUND(IFERROR(C47*E47,0),2) -> 0 | G47: This would be for RR, DOT, Waterway or other crossing. Estimate is 0.025% of Buried total. | J47: =ROUNDUP(0.00025*$D$10,0) -> 0 | K47: 0 | L47: 0 | N47: 0 | O47: 0 | P47: 0 | Q47: 0 | R47: 0 | S47: 1 | T47: 0 | V47: 0 | W47: 0 | X47: 0 | Y47: 0 | Z47: 0 | AA47: 0 | AB47: 0
A48: 30 | B48: Bore 8” Casing (Steel) | C48: =_xlfn.SWITCH($D$8,"Lateral",K48,"PON",L48,J48) -> 0 | D48: LF | E48: =$J$2*125 -> 125 | F48: =ROUND(IFERROR(C48*E48,0),2) -> 0 | G48: This would be for RR, DOT, Waterway or other crossing. Estimate is 0.025% of Buried total. | J48: 0 | K48: 0 | L48: 0 | N48: 0 | O48: 0 | P48: 0 | Q48: 0 | R48: 0 | S48: 0 | T48: 1 | V48: 0 | W48: 0 | X48: 0 | Y48: 0 | Z48: 0 | AA48: 0 | AB48: 0
A49: 31 | B49: Bore 8” Casing (PVC) | C49: =_xlfn.SWITCH($D$8,"Lateral",K49,"PON",L49,J49) -> 0 | D49: LF | E49: =$J$2*100 -> 100 | F49: =ROUND(IFERROR(C49*E49,0),2) -> 0 | G49: This would be for RR, DOT, Waterway or other crossing. Estimate is 0.025% of Buried total. | J49: 0 | K49: 0 | L49: 0 | N49: 0 | O49: 0 | P49: 0 | Q49: 0 | R49: 0 | S49: 1 | T49: 0 | V49: 0 | W49: 0 | X49: 0 | Y49: 0 | Z49: 0 | AA49: 0 | AB49: 0
A50: 32 | B50: Deep Bore - Water Crossing | C50: =_xlfn.SWITCH($D$8,"Lateral",K50,"PON",L50,J50) -> 0 | D50: LF | E50: =$J$2*350 -> 350 | F50: =ROUND(IFERROR(C50*E50,0),2) -> 0 | G50: Dependent on build | J50: 0 | K50: 0 | L50: 0 | N50: 0 | O50: 0 | P50: 0 | Q50: 0 | R50: 0 | S50: 0 | T50: 0 | V50: 0 | W50: 0 | X50: 0 | Y50: 0 | Z50: 0 | AA50: 0 | AB50: 0
A51: 33 | B51: Install Muletape in New Conduit | C51: =_xlfn.SWITCH($D$8,"Lateral",K51,"PON",L51,J51) -> 0 | D51: FT | E51: =$J$2*0.33 -> 0.33 | F51: 0 | G51: Should match length of empty conduits (BB and PON twice as much as URD footage) | J51: =SUM($V$18:$AB$18) -> 0 | K51: =SUM($V$18:$AB$18) -> 0 | L51: =SUM($V$18:$AB$18) -> 0
A52: 34 | B52: Bore Rock Adder | C52: =_xlfn.SWITCH($D$8,"Lateral",K52,"PON",L52,J52) -> 0 | D52: LF | E52: =INDEX('UNIT PRICE TABLE'!$A$1:$G$58,MATCH(B52,'UNIT PRICE TABLE'!$A$1:$A$58,0),MATCH($D$12,Region,0)+1)*$J$2 -> 75 | F52: 0 | G52: *Get updated pricing from Clayton first* Dependent on build, Question for customer in data collection | J52: =ROUNDUP($F$13*$D$10,0) -> 0 | K52: =ROUNDUP($F$13*$D$10,0) -> 0 | L52: =ROUNDUP($F$13*$D$10,0) -> 0
A53: 35 | B53: Trench Rock Adder | C53: =_xlfn.SWITCH($D$8,"Lateral",K53,"PON",L53,J53) -> 0 | D53: LF | E53: =$J$2*53.85 -> 53.85 | F53: 0 | G53: Dependent on build, Question for customer in data collection | J53: 0 | K53: 0 | L53: 0
A54: 36 | B54: Install #12 AWG Insulated Tracer Wire | C54: =_xlfn.SWITCH($D$8,"Lateral",K54,"PON",L54,J54) -> 0 | D54: LF | E54: =INDEX('UNIT PRICE TABLE'!$A$1:$G$58,MATCH(B54,'UNIT PRICE TABLE'!$A$1:$A$58,0),MATCH($D$12,Region,0)+1)*$J$2 -> 0.77 | F54: 0 | G54: should equal underground footage | J54: =ROUNDUP($D$10*(1+$F$12),0) -> 0 | K54: =ROUNDUP($D$10*(1+$F$12),0) -> 0 | L54: =ROUNDUP($D$10*(1+$F$12),0) -> 0
A55: 37 | B55: Install 5/8"x8' Copper Clad Ground Rod | C55: =_xlfn.SWITCH($D$8,"Lateral",K55,"PON",L55,J55) -> 0 | D55: EA | E55: =$J$2*25 -> 25 | F55: 0 | G55: Get qtys from design, if not specified assume 1 ever 2,000ft | J55: =ROUNDUP(($D$10*(1+$F$12))/2000,0) -> 0 | K55: =ROUNDUP(($D$10*(1+$F$12))/2000,0) -> 0 | L55: =ROUNDUP(($D$10*(1+$F$12))/2000,0) -> 0
A56: 38 | B56: Install 3.5" Dia PVC Round Marker Posts with Orange Dome Top | C56: =_xlfn.SWITCH($D$8,"Lateral",K56,"PON",L56,J56) -> 0 | D56: EA | E56: =INDEX('UNIT PRICE TABLE'!$A$1:$G$58,MATCH(B56,'UNIT PRICE TABLE'!$A$1:$A$58,0),MATCH($D$12,Region,0)+1)*$J$2 -> 67.08 | F56: 0 | G56: Get qtys from design, can estimate 75% of handholes | J56: =ROUNDUP(J70*0.75,0) -> 0 | K56: =ROUNDUP(K69*0.75,0) -> 0 | L56: =ROUNDUP(L69*0.75,0) -> 0
A57: 39 | B57: Install 3.5" Dia PVC Round Marker Posts with Orange Dome Top with Test Station | C57: =_xlfn.SWITCH($D$8,"Lateral",K57,"PON",L57,J57) -> 0 | D57: EA | E57: =INDEX('UNIT PRICE TABLE'!$A$1:$G$58,MATCH(B57,'UNIT PRICE TABLE'!$A$1:$A$58,0),MATCH($D$12,Region,0)+1)*$J$2 -> 96.15 | F57: 0 | G57: Get qtys from design, can estimate 25% of handholes | J57: =ROUNDUP(J70*0.25,0) -> 0 | K57: =ROUNDUP(K69*0.25,0) -> 0 | L57: =ROUNDUP(L69*0.25,0) -> 0
A58: 40 | B58: Install RFID Ball/Peg Markers | C58: =_xlfn.SWITCH($D$8,"Lateral",K58,"PON",L58,J58) -> 0 | D58: EA | E58: =$J$2*30 -> 30 | F58: 0 | G58: Dependent on build, Question for customer in data collection | J58: 0 | K58: 0 | L58: 0
A59: 41 | B59: Install RFID Rope | C59: =_xlfn.SWITCH($D$8,"Lateral",K59,"PON",L59,J59) -> 0 | D59: LF | E59: =$J$2*1.5 -> 1.5 | F59: 0 | G59: Dependent on build, Question for customer in data collection | J59: 0 | K59: 0 | L59: 0
A60: 42 | B60: Proof Existing Conduit - any size | C60: =_xlfn.SWITCH($D$8,"Lateral",K60,"PON",L60,J60) -> 0 | D60: LF | E60: =$J$2*1.54 -> 1.54 | F60: 0 | G60: Dependent on build, Question for customer in data collection | J60: 0 | K60: 0 | L60: 0
A61: 43 | B61: Rod Existing Conduit and Install Pull Tape | C61: =_xlfn.SWITCH($D$8,"Lateral",K61,"PON",L61,J61) -> 0 | D61: LF | E61: =$J$2*1.15 -> 1.15 | F61: 0 | G61: Dependent on build, Question for customer in data collection | J61: 0 | K61: 0 | L61: 0
A62: 44 | B62: Remove existing cable - i.e. coax/twisted pair in street light conduits to replace with fiber | C62: =_xlfn.SWITCH($D$8,"Lateral",K62,"PON",L62,J62) -> 0 | D62: LF | E62: =$J$2*1.92 -> 1.92 | F62: 0 | G62: Dependent on build, Question for customer in data collection | J62: 0 | K62: 0 | L62: 0
A63: 45 | B63: Installation, Underground Fiber Cable - Including Slack (2ct Fiber) | C63: =_xlfn.SWITCH($D$8,"Lateral",K63,"PON",L63,J63) -> 0 | D63: LF | E63: =$J$2*1 -> 1 | F63: 0 | G63: Add 5% for variance | J63: 0 | K63: 0 | L63: 0
A64: 46 | B64: Installation, Underground Fiber Cable - Including Slack (All other fiber) | C64: =_xlfn.SWITCH($D$8,"Lateral",K64,"PON",L64,J64) -> 0 | D64: LF | E64: =INDEX('UNIT PRICE TABLE'!$A$1:$G$58,MATCH(B64,'UNIT PRICE TABLE'!$A$1:$A$58,0),MATCH($D$12,Region,0)+1)*$J$2 -> 1.3 | F64: 0 | G64: *Get updated pricing from Clayton first* underground footage & 100' slack from Ring Cuts and 55' for Butt splices (Estimated as URD footage + 75' per HH) | J64: =ROUNDUP(($D$10*(1+$F$12))+(J70*75),0) -> 0 | K64: =ROUNDUP(($D$10*(1+$F$12))+(K69*75),0) -> 0 | L64: =ROUNDUP(($D$10*(1+$F$12))+(L69*75),0) -> 0
A65: 47 | B65: Installation, MST in Pedestal | C65: =_xlfn.SWITCH($D$8,"Lateral",K65,"PON",L65,J65) -> 0 | D65: EA | E65: =$J$2*50 -> 50 | F65: 0 | G65: Get qtys from design | J65: 0 | K65: 0 | L65: =$L$303 -> 0
A66: 48 | B66: Installation, Pedestal | C66: =_xlfn.SWITCH($D$8,"Lateral",K66,"PON",L66,J66) -> 0 | D66: EA | E66: =$J$2*60 -> 60 | F66: 0 | G66: Get qtys from design | J66: 0 | K66: 0 | L66: =$L$303 -> 0
A67: 49 | B67: Installation, Drop Vault, 12" X 12" | C67: =_xlfn.SWITCH($D$8,"Lateral",K67,"PON",L67,J67) -> 0 | D67: EA | E67: =ROUNDUP($E$69*0.75,0) -> 720 | F67: 0 | G67: Get qtys from design (AKA "Flowerpots") | J67: 0 | K67: 0 | L67: =IFERROR(ROUNDUP((($D$10/($D$10+$D$11))*$F$8)/4,0),0) -> 0
A68: 50 | B68: Installation, Small Vault, 17” x 30” | C68: =_xlfn.SWITCH($D$8,"Lateral",K68,"PON",L68,J68) -> 0 | D68: EA | E68: =$E$69 -> 960 | F68: 0 | G68: Get qtys from design | J68: 0 | K68: 0 | L68: 0
A69: 51 | B69: Installation, Vault 24" x 36" | C69: =_xlfn.SWITCH($D$8,"Lateral",K69,"PON",L69,J69) -> 0 | D69: EA | E69: =INDEX('UNIT PRICE TABLE'!$A$1:$G$58,MATCH(B69,'UNIT PRICE TABLE'!$A$1:$A$58,0),MATCH($D$12,Region,0)+1)*$J$2 -> 960 | F69: 0 | G69: *Get updated pricing from Clayton first* BB every 600', Lateral every 400', PON every 250' | J69: 0 | K69: =ROUNDUP($D$10/400,0) -> 0 | L69: =ROUNDUP(($D$10*(1+$F$12))/250,0) -> 0
A70: 52 | B70: Installation, Large Vault 30" x 48" | C70: =_xlfn.SWITCH($D$8,"Lateral",K70,"PON",L70,J70) -> 0 | D70: EA | E70: =INDEX('UNIT PRICE TABLE'!$A$1:$G$58,MATCH(B70,'UNIT PRICE TABLE'!$A$1:$A$58,0),MATCH($D$12,Region,0)+1)*$J$2 -> 1200 | F70: 0 | G70: *Get updated pricing from Clayton first* Get qtys from design | J70: =ROUNDUP($D$10/600,0) -> 0 | K70: 0 | L70: 0
A71: 53 | B71: Installation, Extra Large Vault 48" x 60" | C71: =_xlfn.SWITCH($D$8,"Lateral",K71,"PON",L71,J71) -> 0 | D71: EA | E71: =$J$2*1750 -> 1750 | F71: 0 | G71: Get qtys from design | J71: 0 | K71: 0 | L71: 0
A72: 54 | B72: Install 4'x4'x4' Split Concrete Manhole | C72: =_xlfn.SWITCH($D$8,"Lateral",K72,"PON",L72,J72) -> 0 | D72: EA | E72: =$J$2*6500 -> 6500 | F72: 0 | G72: Get qtys from design | J72: 0 | K72: 0 | L72: 0
A73: 55 | B73: Remove and Replace Handhole - including fixing sweeps into HH | C73: =_xlfn.SWITCH($D$8,"Lateral",K73,"PON",L73,J73) -> 0 | D73: EA | E73: =$J$2*3461.54 -> 3461.54 | G73: Get qtys from design
A74: 56 | B74: Prep and Pour Concrete Pad for POP Site | C74: =_xlfn.SWITCH($D$8,"Lateral",K74,"PON",L74,J74) -> 0 | D74: EA | E74: =$J$2*10000 -> 10000 | F74: 0 | G74: Get qtys from design | J74: 0 | K74: 0 | L74: 0
A75: 57 | B75: Sawcut, Remove and Replace Asphalt 6" Thick | C75: =_xlfn.SWITCH($D$8,"Lateral",K75,"PON",L75,J75) -> 0 | D75: SqrFt | E75: =$J$2*23.08 -> 23.08 | F75: =ROUND(IFERROR(C75*E75,0),2) -> 0 | G75: Use Col I to adjust percentage. 15% for Urban areas and 1% for rural are good high level estimates | I75: 0.15 | J75: =ROUNDUP(($D$10*(1+$F$12))*$I$75,0) -> 0 | K75: =ROUNDUP(($D$10*(1+$F$12))*$I$75,0) -> 0 | L75: 0
A76: 58 | B76: Sawcut, Remove and Replace Concrete 6" Thick | C76: =_xlfn.SWITCH($D$8,"Lateral",K76,"PON",L76,J76) -> 0 | D76: SqrFt | E76: =$J$2*26.69 -> 26.69 | F76: 0 | G76: Use Col I to adjust percentage. 25% for Urban areas and 1% for rural are good high level estimates | I76: 0.25 | J76: =ROUNDUP(($D$10*(1+$F$12))*$I$76,0) -> 0 | K76: =ROUNDUP(($D$10*(1+$F$12))*$I$76,0) -> 0 | L76: =ROUNDUP(($D$10*(1+$F$12))*$I$76,0) -> 0
A77: 59 | B77: Remove and Replace Brick Pavers | C77: =_xlfn.SWITCH($D$8,"Lateral",K77,"PON",L77,J77) -> 0 | D77: SqrFt | E77: =$J$2*38.46 -> 38.46 | F77: 0 | G77: Get qtys from design | J77: 0 | K77: 0 | L77: 0
A78: 60 | C78: 0 | F78: 0
A79: 61 | C79: 0 | F79: 0
A80: 62 | C80: 0 | F80: 0
A81: 63 | C81: 0 | F81: 0
A82: 64 | C82: 0 | F82: 0
A83: 65 | C83: 0 | F83: 0
A84: 66 | C84: 0 | F84: 0
A85: =A84+1 -> 67 | C85: 0 | F85: 0
B86: =B18 & " LABOR TOTAL" -> UNDERGROUND - BURIED LABOR TOTAL | F86: =SUM(F19:F85) -> 0
B88: AERIAL -STRAND/LASH
A89: =A85+1 -> 68 | B89: Lash/Mount Closure | C89: =_xlfn.SWITCH($D$8,"Lateral",K89,"PON",L89,J89) -> 0 | D89: EA | E89: =$J$2*175 -> 175 | F89: =ROUND(IFERROR(C89*E89,0),2) -> 0 | G89: One per closure | J89: =IFERROR(ROUNDUP(J$157*($D$11/($D$10+$D$11)),0),0) -> 0 | K89: =IFERROR(ROUNDUP(K$157*($D$11/($D$10+$D$11)),0),0) -> 0 | L89: 0
A90: =A89+1 -> 69 | B90: Bond Strand/Guy to pole ground + materials | C90: =_xlfn.SWITCH($D$8,"Lateral",K90,"PON",L90,J90) -> 0 | D90: EA | E90: =$J$2*250 -> 250 | F90: 0 | G90: Bonding will be done at the first, every 5th, last poles, and all poles with a vertical. (Unless power company uses other standard). Estimated as total aerial footage / 180 / 4 | J90: =ROUNDUP(($D$11/180)/4,0)*$J$6 -> 0 | K90: =ROUNDUP(($D$11/180)/4,0)*$J$6 -> 0 | L90: =ROUNDUP(($D$11/180)/4,0)*$J$6 -> 0
A91: 70 | B91: Install Strand | C91: =_xlfn.SWITCH($D$8,"Lateral",K91,"PON",L91,J91) -> 0 | D91: FT | E91: =INDEX('UNIT PRICE TABLE'!$A$1:$G$58,MATCH(B91,'UNIT PRICE TABLE'!$A$1:$A$58,0),MATCH($D$12,Region,0)+1)*$J$2 -> 2.15 | F91: 0 | G91: *Get updated pricing from Clayton first* Match aerial footage - quote from contractor shall include attachement hardware | J91: =$D$11*$J$6 -> 0 | K91: =$D$11*$J$6 -> 0 | L91: =$D$11*$J$6 -> 0
A92: 71 | B92: Install Snow Shoes | C92: =_xlfn.SWITCH($D$8,"Lateral",K92,"PON",L92,J92) -> 0 | D92: EA | E92: =$J$2*160 -> 160 | F92: 0 | G92: formula is for 2 for every slack location | J92: =ROUNDUP((J93/100)*2,0) -> 0 | K92: =ROUNDUP((K93/100)*2,0) -> 0 | L92: =ROUNDUP((L93/100)*2,0) -> 0
A93: 72 | B93: Install Aerial Slack | C93: =_xlfn.SWITCH($D$8,"Lateral",K93,"PON",L93,J93) -> 0 | D93: EA | E93: =$E$94 -> 2.69 | F93: 0 | G93: in this model - it assumes 100' of slack for every 1000' of aerial installation | J93: =ROUNDUP(($D$11/1000)*100,0) -> 0 | K93: =ROUNDUP(($D$11/1000)*100,0) -> 0 | L93: =ROUNDUP(($D$11/1000)*100,0) -> 0
A94: 73 | B94: Install / Lash Aerial Cable | C94: =_xlfn.SWITCH($D$8,"Lateral",K94,"PON",L94,J94) -> 0 | D94: FT | E94: =INDEX('UNIT PRICE TABLE'!$A$1:$G$58,MATCH(B94,'UNIT PRICE TABLE'!$A$1:$A$58,0),MATCH($D$12,Region,0)+1)*$J$2 -> 2.69 | F94: 0 | G94: *Get updated pricing from Clayton first* Match aerial footage | J94: =$D$11*$J$6 -> 0 | K94: =$D$11*$J$6 -> 0 | L94: =$D$11*$J$6 -> 0
A95: 74 | B95: Tree Trimming | C95: =_xlfn.SWITCH($D$8,"Lateral",K95,"PON",L95,J95) -> 0 | D95: FT | E95: =INDEX('UNIT PRICE TABLE'!$A$1:$G$58,MATCH(B95,'UNIT PRICE TABLE'!$A$1:$A$58,0),MATCH($D$12,Region,0)+1)*$J$2 -> 6.75 | F95: 0 | G95: *Get updated pricing from Clayton first* Try and ID percentage. If unknown assume 10% of route needs tree trimming | J95: =ROUNDUP($D$11*0.1,0) -> 0 | K95: =ROUNDUP($D$11*0.1,0) -> 0 | L95: =ROUNDUP($D$11*0.1,0) -> 0
A96: 75 | B96: Install Pole Risers | C96: =_xlfn.SWITCH($D$8,"Lateral",K96,"PON",L96,J96) -> 0 | D96: EA | E96: =$J$2*308 -> 308 | F96: 0 | G96: assume 5% of poles - adjust as needed | J96: =ROUNDUP(($D$11/180)*0.05,0) -> 0 | K96: =ROUNDUP(($D$11/180)*0.05,0) -> 0 | L96: =ROUNDUP(($D$11/180)*0.05,0) -> 0
A97: 76 | B97: Install Down Guy & Anchors | C97: =_xlfn.SWITCH($D$8,"Lateral",K97,"PON",L97,J97) -> 0 | D97: EA | E97: =$J$2*385 -> 385 | F97: 0 | G97: assume 15% of poles - adjust as needed | J97: =ROUNDUP(($D$11/180)*0.15,0) -> 0 | K97: =ROUNDUP(($D$11/180)*0.15,0) -> 0 | L97: =ROUNDUP(($D$11/180)*0.15,0) -> 0
A98: 77 | B98: Pole Transfer / Make Ready (Straight Through) | C98: =_xlfn.SWITCH($D$8,"Lateral",K98,"PON",L98,J98) -> 0 | D98: EA | E98: =$J$2*193 -> 193 | F98: 0 | G98: assume 3% of poles - adjust as needed - This would be cost from MRE to move existing Comm. Price will vary depending on who is doing transfers/moves | J98: =ROUNDUP(($D$11/180)*0.033,0) -> 0 | K98: 0 | L98: 0
A99: 78 | B99: Pole Transfer / Make Ready (Dead-end) | C99: =_xlfn.SWITCH($D$8,"Lateral",K99,"PON",L99,J99) -> 0 | D99: EA | E99: =$J$2*170 -> 170 | F99: 0 | G99: assume 3% of poles - adjust as needed - This would be cost from MRE to move existing Comm. Price will vary depending on who is doing transfers/moves | J99: 0 | K99: 0 | L99: 0
A100: 79 | B100: Pole Transfer / Make Ready (Double Dead-end) | C100: =_xlfn.SWITCH($D$8,"Lateral",K100,"PON",L100,J100) -> 0 | D100: EA | E100: =$J$2*461 -> 461 | F100: 0 | G100: assume 3% of poles - adjust as needed - This would be cost from MRE to move existing Comm. Price will vary depending on who is doing transfers/moves | J100: 0 | K100: 0 | L100: 0
A101: 80 | C101: 0 | F101: 0
A102: 81 | C102: 0 | F102: 0
A103: 82 | C103: 0 | F103: 0
A104: 83 | C104: 0 | F104: 0
A105: 84 | C105: 0 | F105: 0
A106: 85 | C106: 0 | F106: 0
A107: 86 | C107: 0 | F107: 0
A108: 87 | C108: 0 | F108: 0
A109: 88 | C109: 0 | F109: 0
A110: 89 | C110: 0 | F110: 0
B111: =B88 & " LABOR TOTAL" -> AERIAL -STRAND/LASH LABOR TOTAL | F111: =SUM(F89:F110) -> 0
B113: AERIAL - ADSS
A114: =A110+1 -> 90 | B114: Install Fiber (ADSS) | C114: =_xlfn.SWITCH($D$8,"Lateral",K114,"PON",L114,J114) -> 0 | D114: FT | E114: =INDEX('UNIT PRICE TABLE'!$A$1:$G$58,MATCH(B114,'UNIT PRICE TABLE'!$A$1:$A$58,0),MATCH($D$12,Region,0)+1)*$J$2 -> 3.45 | F114: =ROUND(IFERROR(C114*E114,0),2) -> 0 | G114: *Get updated pricing from Clayton first* Get qtys from design | J114: =$D$11*$J$5 -> 0 | K114: =$D$11*$J$5 -> 0 | L114: =$D$11*1.25*$J$5 -> 0
A115: =A114+1 -> 91 | B115: Pole attachment hardware (H bracket) | C115: =_xlfn.SWITCH($D$8,"Lateral",K115,"PON",L115,J115) -> 0 | D115: EA | E115: =$J$2*104 -> 104 | F115: 0 | G115: Assumes one per Closure | J115: =IFERROR(ROUNDUP(J$157*($D$11/($D$10+$D$11)),0)*$J$5,0) -> 0 | K115: =IFERROR(ROUNDUP(K$157*($D$11/($D$10+$D$11)),0)*$J$5,0) -> 0 | L115: =IFERROR(ROUNDUP(L$157*($D$11/($D$10+$D$11)),0)*$J$5,0) -> 0
A116: =A115+1 -> 92 | B116: Pole attachment hardware (Dead-end) | C116: =_xlfn.SWITCH($D$8,"Lateral",K116,"PON",L116,J116) -> 0 | D116: EA | E116: =$J$2*104 -> 104 | F116: 0 | G116: BB&Lat Assumes 25% poles with a 20% extra, PON Assumes 40% with 36% extra | J116: =ROUNDUP(((($D$11/300)*0.25)*1.2)*2,0)*$J$5 -> 0 | K116: =ROUNDUP(((($D$11/300)*0.25)*1.2)*2,0)*$J$5 -> 0 | L116: =ROUNDUP(((($D$11/300)*0.4)*1.36)*2,0)*$J$5 -> 0
A117: 93 | B117: Pole attachment hardware (Tangent) | C117: =_xlfn.SWITCH($D$8,"Lateral",K117,"PON",L117,J117) -> 0 | D117: EA | E117: =$J$2*104 -> 104 | F117: 0 | G117: BB&Lat Assumes 75% poles with a 20% extra, PON Assumes 60% with 36% extra | J117: =ROUNDUP(((($D$11/300)*0.75)*1.2),0)*$J$5 -> 0 | K117: =ROUNDUP(((($D$11/300)*0.75)*1.2),0)*$J$5 -> 0 | L117: =ROUNDUP(((($D$11/300)*0.6)*1.36),0)*$J$5 -> 0
A118: 94 | B118: Install U-guard for pole mounted enclosure | C118: =_xlfn.SWITCH($D$8,"Lateral",K118,"PON",L118,J118) -> 0 | D118: EA | E118: =$J$2*50 -> 50 | F118: 0 | G118: Assumes one per Closure | J118: =IFERROR(ROUNDUP(J$157*($D$11/($D$10+$D$11)),0)*$J$5,0) -> 0 | K118: =IFERROR(ROUNDUP(K$157*($D$11/($D$10+$D$11)),0)*$J$5,0) -> 0 | L118: =IFERROR(ROUNDUP(L$157*($D$11/($D$10+$D$11)),0)*$J$5,0) -> 0
A119: 95 | C119: 0 | F119: 0
A120: 96 | C120: 0 | F120: 0
A121: 97 | C121: 0 | F121: 0
A122: 98 | C122: 0 | F122: 0
A123: 99 | C123: 0 | F123: 0
A124: 100 | C124: 0 | F124: 0
A125: 101 | C125: 0 | F125: 0
A126: 102 | C126: 0 | F126: 0
A127: 103 | C127: 0 | F127: 0
A128: 104 | C128: 0 | F128: 0
B129: =B113 & " LABOR TOTAL" -> AERIAL - ADSS LABOR TOTAL | F129: =SUM(F114:F128) -> 0
B131: WIRELESS
A132: =A128+1 -> 105 | C132: 0 | D132: EA | F132: =ROUND(IFERROR(C132*E132,0),2) -> 0
A133: =A132+1 -> 106 | C133: 0 | D133: EA | F133: 0
A134: =A133+1 -> 107 | C134: 0 | D134: EA | F134: 0
A135: 108 | C135: 0 | D135: EA | F135: 0
A136: 109 | C136: 0 | D136: EA | F136: 0
A137: 110 | C137: 0 | D137: EA | F137: 0
A138: 111 | C138: 0 | D138: EA | F138: 0
A139: 112 | C139: 0 | D139: EA | F139: 0
A140: 113 | C140: 0 | D140: EA | F140: 0
A141: 114 | C141: 0 | D141: EA | F141: 0
A142: 115 | C142: 0 | D142: EA | F142: 0
A143: 116 | C143: 0 | D143: EA | F143: 0
A144: 117 | C144: 0 | F144: 0
A145: 118 | C145: 0 | F145: 0
A146: 119 | C146: 0 | F146: 0
A147: 120 | C147: 0 | F147: 0
A148: 121 | C148: 0 | F148: 0
A149: 122 | C149: 0 | F149: 0
A150: 123 | C150: 0 | F150: 0
A151: 124 | C151: 0 | F151: 0
A152: 125 | C152: 0 | F152: 0
A153: 126 | C153: 0 | F153: 0
B154: =B131 & " LABOR TOTAL" -> WIRELESS LABOR TOTAL | F154: =SUM(F132:F153) -> 0
B156: SPLICING
A157: =A153+1 -> 127 | B157: Install New Splice Case & Prep Cable | C157: =_xlfn.SWITCH($D$8,"Lateral",K157,"PON",L157,J157) -> 0 | D157: EA | E157: =INDEX('UNIT PRICE TABLE'!$A$1:$G$58,MATCH(B157,'UNIT PRICE TABLE'!$A$1:$A$58,0),MATCH($D$12,Region,0)+1)*$J$2 -> 400 | F157: =ROUND(IFERROR(C157*E157,0),2) -> 0 | G157: *Get updated pricing from Clayton first* BB and Laterals estimate one every 5000', PON one every 8 customers | J157: =ROUNDUP((($D$10*(1+$F$12))+$D$11+J$93)/5000,0) -> 0 | K157: =ROUNDUP((($D$10*(1+$F$12))+$D$11+K$93)/5000,0) -> 0 | L157: =ROUNDUP($F$8/8,0) -> 0
A158: =A157+1 -> 128 | B158: Re-enter splice closure | C158: =_xlfn.SWITCH($D$8,"Lateral",K158,"PON",L158,J158) -> 0 | D158: EA | E158: =$J$2*200 -> 200 | F158: 0 | G158: Get qtys from design | J158: 0 | K158: 0 | L158: 0
A159: =A158+1 -> 129 | B159: Ground Splice Case + Materials | C159: =_xlfn.SWITCH($D$8,"Lateral",K159,"PON",L159,J159) -> 0 | D159: EA | E159: =$J$2*50 -> 50 | F159: 0 | G159: If using armored cable all splice cases must be grounded. Dielectric no need grounding. For HLD estimates assume each needs grounding | J159: =J157 -> 0 | K159: =K157 -> 0 | L159: =L157 -> 0
A160: 130 | B160: Splicing, Fusion, Single Fiber | C160: =_xlfn.SWITCH($D$8,"Lateral",K160,"PON",L160,J160) -> 0 | D160: EA | E160: =INDEX('UNIT PRICE TABLE'!$A$1:$G$58,MATCH(B160,'UNIT PRICE TABLE'!$A$1:$A$58,0),MATCH($D$12,Region,0)+1)*$J$2 -> 45 | F160: 0 | G160: *Get updated pricing from Clayton first* BB/Lateral assume butt splice per closure using AVG cable size, PON 2x number of premise + cabinets fully spliced + MST splices. | I160: 1 | J160: =(J159*$N$218)*I160 -> 0 | K160: =(K159*$N$218)*I160 -> 0 | L160: =($F$8*2)+(L179*(288+24))+($L$302*$F$8) -> 0
A161: 131 | B161: Splicing Fusion, Single fiber Pigtail at panel | C161: =_xlfn.SWITCH($D$8,"Lateral",K161,"PON",L161,J161) -> 0 | D161: EA | E161: =E160 -> 45 | F161: 0 | G161: Assume Patch Panels fully spliced. Laterals assume 2 splices per panel | J161: =(J181*$N$218) -> 0 | K161: =$F$8*2 -> 0 | L161: =(L181*$N$218) -> 0
A162: 132 | B162: Splicing, Mass Fusion, 12 Fiber Ribbon | C162: =_xlfn.SWITCH($D$8,"Lateral",K162,"PON",L162,J162) -> 0 | D162: RIBBON | E162: =$J$2*200 -> 200 | F162: 0 | G162: Can use single splice estimate if Ribbon fiber is being used. Calcs assume no ribbon | J162: 0 | K162: 0 | L162: 0
A163: 133 | B163: Testing, OTDR, Uni-Directional, Power Meter Testing | C163: =_xlfn.SWITCH($D$8,"Lateral",K163,"PON",L163,J163) -> 0 | D163: EA | E163: =INDEX('UNIT PRICE TABLE'!$A$1:$G$58,MATCH(B163,'UNIT PRICE TABLE'!$A$1:$A$58,0),MATCH($D$12,Region,0)+1)*$J$2 -> 10 | F163: 0 | G163: *Get updated pricing from Clayton first* None for BB, Laterals 24 per panel, PON one test per cabinet port | J163: 0 | K163: =$N$218 -> 288 | L163: =L179*(288+24) -> 0
A164: 134 | B164: Testing, OTDR, Bi-Directional, Power Meter Testing | C164: =_xlfn.SWITCH($D$8,"Lateral",K164,"PON",L164,J164) -> 0 | D164: EA | E164: =INDEX('UNIT PRICE TABLE'!$A$1:$G$58,MATCH(B164,'UNIT PRICE TABLE'!$A$1:$A$58,0),MATCH($D$12,Region,0)+1)*$J$2 -> 13 | F164: 0 | G164: *Get updated pricing from Clayton first* None for Laterals, BB and PON assume Panels * 432 | J164: =$N$218*J181 -> 0 | K164: 0 | L164: =$N$218*L181 -> 0
A165: 135 | B165: Testing existing cables Bi-Directional | C165: 0 | D165: EA | E165: =$J$2*20 -> 20 | F165: 0
A166: 136 | B166: Document existing splicing | C166: 0 | D166: EA | E166: =$J$2*27 -> 27 | F166: 0
A167: 137 | B167: Reel testing | C167: =_xlfn.SWITCH($D$8,"Lateral",K167,"PON",L167,J167) -> 0 | D167: EA | E167: =E160 -> 45 | F167: 0 | G167: Assumes 10,000ft reels and uses breakdown of fiber counds in material below. Fully tests all fibers in reels | J167: =P218 -> 0 | K167: =Q218 -> 0 | L167: =R218 -> 0
A168: 138 | C168: 0 | F168: 0
A169: 139 | C169: 0 | F169: 0
A170: 140 | C170: 0 | F170: 0
A171: 141 | C171: 0 | F171: 0
A172: 142 | C172: 0 | F172: 0
A173: 143 | C173: 0 | F173: 0
A174: 144 | C174: 0 | F174: 0
B175: =B156 & " LABOR TOTAL" -> SPLICING LABOR TOTAL | F175: =SUM(F157:F174) -> 0
B177: PATCH PANELS AND CABINETS
A178: =A174+1 -> 145 | B178: Install Outdoor Powered Cabinet + Site prep and Concrete Pad | C178: =_xlfn.SWITCH($D$8,"Lateral",K178,"PON",L178,J178) -> 0 | D178: EA | E178: =$J$2*6000 -> 6000 | F178: =ROUND(IFERROR(C178*E178,0),2) -> 0 | G178: Only added for PON deployments, assumes 1 small active cabinet per 3000 HHP | J178: 0 | K178: 0 | L178: =ROUNDDOWN($F$8/3000,0)+1 -> 1
A179: =A178+1 -> 146 | B179: Install Pad mounted FDH Splitter Cabinet + Site prep and Prefab Vault | C179: =_xlfn.SWITCH($D$8,"Lateral",K179,"PON",L179,J179) -> 0 | D179: EA | E179: 2500 | F179: 0 | G179: None for BB and Lateral, PON assume one per 200 Customers | J179: 0 | K179: 0 | L179: =ROUNDUP(SUM(F9:F11)/200,0) -> 0
A180: =A179+1 -> 147 | B180: Install Pole mounted FDH Splitter Cabinet | C180: =_xlfn.SWITCH($D$8,"Lateral",K180,"PON",L180,J180) -> 0 | D180: EA | E180: 2500 | F180: 0 | G180: Can match regular if using pole mount cabinets | J180: 0 | K180: 0 | L180: 0
A181: 148 | B181: Install rack mounted patch panel (Any Size) and tails | C181: =_xlfn.SWITCH($D$8,"Lateral",K181,"PON",L181,J181) -> 0 | D181: EA | E181: =$J$2*500 -> 500 | F181: 0 | G181: Assumes (2) pannels per 25miles on BB, (1) pannel customer on Lateral, and (2) pannels per 10,000 customers on PON | J181: =ROUNDUP(($D$10+$D$11)/132000,0)*2 -> 0 | K181: =$F$8 -> 0 | L181: =ROUNDUP($F$8/10000,0)*2 -> 0
A182: 149 | B182: Install Wall Mount Fiber Enclosure | C182: =_xlfn.SWITCH($D$8,"Lateral",K182,"PON",L182,J182) -> 0 | D182: EA | E182: =$J$2*500 -> 500 | F182: 0 | G182: Get qtys from design | J182: 0 | K182: 0 | L182: 0
A183: 150 | B183: Install 7ft Rack for patch panels | C183: =_xlfn.SWITCH($D$8,"Lateral",K183,"PON",L183,J183) -> 0 | D183: EA | E183: =$J$2*1000 -> 1000 | F183: 0 | G183: Get qtys from design | J183: 0 | K183: 0 | L183: 0
A184: 151 | C184: 0 | F184: 0
A185: 152 | C185: 0 | F185: 0
A186: 153 | C186: 0 | F186: 0
A187: 154 | C187: 0 | F187: 0
A188: 155 | C188: 0 | F188: 0
A189: 156 | C189: 0 | F189: 0
A190: 157 | C190: 0 | F190: 0
A191: 158 | C191: 0 | F191: 0
A192: 159 | C192: 0 | F192: 0
A193: 160 | C193: 0 | F193: 0
B194: =B177 & " LABOR TOTAL" -> PATCH PANELS AND CABINETS LABOR TOTAL | F194: =SUM(F178:F193) -> 0
B196: GENERAL
A197: =A193+1 -> 161 | B197: Pull fiber through building | C197: =_xlfn.SWITCH($D$8,"Lateral",K197,"PON",L197,J197) -> 0 | D197: FT | E197: =$J$2*2.5 -> 2.5 | F197: =IFERROR(C197*E197,0) -> 0 | G197: Ft of fiber that needs to be pulled into a building. Qtys from design | K197: =$F$8*100 -> 0
A198: =A197+1 -> 162 | B198: Install 2" Electric Metal Tubing (EMT) | C198: =_xlfn.SWITCH($D$8,"Lateral",K198,"PON",L198,J198) -> 0 | D198: LF | E198: =$J$2*2.5 -> 2.5 | F198: =ROUND(IFERROR(C198*E198,0),2) -> 0 | G198: Used if any Electrical conduit needs to be installed
A199: =A198+1 -> 163 | B199: 4" Core Bore | C199: =_xlfn.SWITCH($D$8,"Lateral",K199,"PON",L199,J199) -> 0 | D199: EA | E199: =$J$2*450 -> 450 | F199: 0 | G199: If any buildings need to be drilled to for fiber/conduit entrance | K199: =$F$8 -> 0
A200: 164 | B200: 2" Building Riser with LB - Up to 10' | C200: =_xlfn.SWITCH($D$8,"Lateral",K200,"PON",L200,J200) -> 0 | D200: EA | E200: =$J$2*1000 -> 1000 | F200: 0 | G200: If any building entracnes needed | K200: =$F$8 -> 0
A201: 165 | B201: Install Nema Enclosure | C201: =_xlfn.SWITCH($D$8,"Lateral",K201,"PON",L201,J201) -> 0 | D201: EA | E201: =$J$2*600 -> 600 | F201: 0 | G201: If any generic enclosures are needed to be installed | K201: =$F$8 -> 0
A202: 166 | C202: 0 | F202: 0
A203: 167 | C203: 0 | F203: 0
A204: 168 | C204: 0 | F204: 0
A205: 169 | C205: 0 | F205: 0
A206: 170 | C206: 0 | F206: 0
... 285 more rows

Sheet DIST-001
A1: [CLIENT NAME] - FIBER CONSTRUCTION PROJECT - ATTACHMENT X: PRICING PROPOSAL FORM | I1: =MID(CELL("filename",A1),FIND("]",CELL("filename",A1))+1,256) -> DIST-001
B2: Contractor: | I2: =IFERROR(IF(D14>=0,D14,0),0) -> 0 | J2: =1+(L2) -> 1 | L2: =IF(I2<10,I2,0) -> 0
B3: Contact Name/Position: | I3: 0.3 | J3: =IF($D$14="Urban",$K$3,0.01) -> 0.01 | K3: 0.15 | L3: =IF($F$14="Prevailing Wage",I3,0) -> 0
B4: Email:
B5: Phone: | I5: ADSS | J5: =IFERROR(IF($F$14="ADSS",1,0),0) -> 0
I6: Strand/Lash | J6: =IF($J$5=0,1,0) -> 1
A7: Items with listed quantities are included in the current design, but [CLIENT NAME] requests costs for all the items should the item be needed due to design alterations. All proposed unit costs must be guaranteed for the term of the project unless expressly agreed upon by [CLIENT NAME].
C8: BB, Lateral, PON (This is for HLD estimates, this does not matter for LLD): | D8: PON | E8: Mileage | F8: =SUM(F9:F11) -> 231 | G8: Total Passings
C9: Total Design with underground overbuild % (F12) Footage/Miles: | D9: =D11+(D10*(1+F12)) -> 21100.45 | E9: =ROUND(D9/5280,2) -> 4 | F9: =INDEX(Summary!$B$1:$BA$15,4,MATCH($I$1,Summary!$1:$1,0)-1) -> 231 | G9: Residential
C10: Buried: | D10: =INDEX(Summary!$B$1:$BA$15,2,MATCH($I$1,Summary!$1:$1,0)-1) -> 19409 | E10: =ROUND(D10/5280,2) -> 3.68 | F10: =INDEX(Summary!$B$1:$BA$15,5,MATCH($I$1,Summary!$1:$1,0)-1) -> - | G10: Business
C11: Aerial: | D11: =INDEX(Summary!$B$1:$BA$15,3,MATCH($I$1,Summary!$1:$1,0)-1) -> 721 | E11: =ROUND(D11/5280,2) -> 0.14 | F11: =INDEX(Summary!$B$1:$BA$15,6,MATCH($I$1,Summary!$1:$1,0)-1) -> - | G11: Anchor
C12: Region for unit pricing | D12: MidWest | E12: Actual Buried | F12: 0.05 | G12: Underground overbuild percentage (If using centerline for PON assume 75%)
C13: Use MST's? (Only changes PON estimates) | D13: No MST | E13: =D10*(1+F12) -> 20379.45 | F13: 0 | G13: Rock Percentage
C14: Labor Rate Adjustment (Use this if you want to add additional costs to wage i.e. prevailing wage ~30%) | D14: 0 | E14: =ROUND(E13/5280,2) -> 3.86 | F14: Strand and Lash | G14: Aerial (Strand and Lash or ADSS)
A15: UNIT PRICING | J15: HLD estimates
A16: LABOR PRICING. All work includes traffic control plans, setup, maintenance and breakdown, compacted backfill, stormwater and erosion control setup, maintenance and breakdown, safety compliance and soft surface restoration. All cells shown in green shall be completed by the Contractor. All other cells are protected in this form. | I16: Percentage | J16: BB | K16: Lateral | L16: GPON
A17: Item # | B17: Description | C17: Estimated Quantity | D17: Unit | E17: Unit Price | F17: Total | G17: Notes | N17: micro | O17: 1" | P17: 1.25" | Q17: 2" | R17: 4" | S17: 6" | T17: 8" | V17: =CONCATENATE(N17," len") -> micro len | W17: =CONCATENATE(O17," len") -> 1" len | X17: 1.25" len | Y17: 2" len | Z17: 4" len | AA17: 6" len | AB17: 8" len
B18: UNDERGROUND - BURIED | V18: =SUM(V19:V50) -> 0 | W18: =SUM(W19:W50) -> 25475 | X18: 0 | Y18: 20380 | Z18: 0 | AA18: 10 | AB18: 10
A19: 1 | B19: Directional Bore (1) 1" | C19: =_xlfn.SWITCH($D$8,"Lateral",K19,"PON",L19,J19) -> 0 | D19: LF | E19: =INDEX('UNIT PRICE TABLE'!$A$1:$G$58,MATCH(B19,'UNIT PRICE TABLE'!$A$1:$A$58,0),MATCH($D$12,Region,0)+1)*$J$2 -> 10.25 | F19: =ROUND(IFERROR(C19*E19,0),2) -> 0 | G19: *Get updated pricing from Clayton first* Total Underground lengths. BB and Lateral add 5% for variance, PON may need to update variance in cell F12 | I19: 0 | J19: =ROUNDUP($D$10*(1+$F$12)*$I19,0) -> 0 | K19: =$J19 -> 0 | L19: =$J19 -> 0 | N19: 0 | O19: 1 | P19: 0 | Q19: 0 | R19: 0 | S19: 0 | T19: 0 | V19: =N19*$J19 -> 0 | W19: =O19*$J19 -> 0 | X19: 0 | Y19: 0 | Z19: 0 | AA19: 0 | AB19: 0
A20: =A19+1 -> 2 | B20: Directional Bore (2) 1" | C20: =_xlfn.SWITCH($D$8,"Lateral",K20,"PON",L20,J20) -> 0 | D20: LF | E20: =INDEX('UNIT PRICE TABLE'!$A$1:$G$58,MATCH(B20,'UNIT PRICE TABLE'!$A$1:$A$58,0),MATCH($D$12,Region,0)+1)*$J$2 -> 10.25 | F20: 0 | G20: *Get updated pricing from Clayton first* Total Underground lengths. BB and Lateral add 5% for variance, PON may need to update variance in cell F12 | I20: 0 | J20: =ROUNDUP($D$10*(1+$F$12)*$I20,0) -> 0 | K20: =$J20 -> 0 | L20: 0 | N20: 0 | O20: 2 | P20: 0 | Q20: 0 | R20: 0 | S20: 0 | T20: 0 | V20: =N20*$J20 -> 0 | W20: 0 | X20: 0 | Y20: 0 | Z20: 0 | AA20: 0 | AB20: 0
A21: =A20+1 -> 3 | B21: Directional Bore (1) 2" | C21: =_xlfn.SWITCH($D$8,"Lateral",K21,"PON",L21,J21) -> 0 | D21: LF | E21: =INDEX('UNIT PRICE TABLE'!$A$1:$G$58,MATCH(B21,'UNIT PRICE TABLE'!$A$1:$A$58,0),MATCH($D$12,Region,0)+1)*$J$2 -> 11.75 | F21: 0 | G21: *Get updated pricing from Clayton first* Total Underground lengths. BB and Lateral add 5% for variance, PON may need to update variance in cell F12 | I21: 0 | J21: 0 | K21: 0 | L21: 0 | N21: 0 | O21: 0 | P21: 0 | Q21: 1 | R21: 0 | S21: 0 | T21: 0 | V21: 0 | W21: 0 | X21: 0 | Y21: 0 | Z21: 0 | AA21: 0 | AB21: 0
A22: 4 | B22: Directional Bore (1) 2" and (1) 1" | C22: =_xlfn.SWITCH($D$8,"Lateral",K22,"PON",L22,J22) -> 15285 | D22: LF | E22: =INDEX('UNIT PRICE TABLE'!$A$1:$G$58,MATCH(B22,'UNIT PRICE TABLE'!$A$1:$A$58,0),MATCH($D$12,Region,0)+1)*$J$2 -> 11.75 | F22: 179598.75 | G22: *Get updated pricing from Clayton first* Total Underground lengths. BB and Lateral add 5% for variance, PON may need to update variance in cell F12 | I22: 0.75 | J22: 15285 | K22: 15285 | L22: 15285 | N22: 0 | O22: 1 | P22: 0 | Q22: 1 | R22: 0 | S22: 0 | T22: 0 | V22: 0 | W22: 15285 | X22: 0 | Y22: 15285 | Z22: 0 | AA22: 0 | AB22: 0
A23: 5 | B23: Directional Bore (1) 2" and (2) 1" | C23: =_xlfn.SWITCH($D$8,"Lateral",K23,"PON",L23,J23) -> 5095 | D23: LF | E23: =INDEX('UNIT PRICE TABLE'!$A$1:$G$58,MATCH(B23,'UNIT PRICE TABLE'!$A$1:$A$58,0),MATCH($D$12,Region,0)+1)*$J$2 -> 16.94 | F23: 86309.3 | G23: *Get updated pricing from Clayton first* Total Underground lengths. BB and Lateral add 5% for variance, PON may need to update variance in cell F12 | I23: 0.25 | J23: 5095 | K23: 5095 | L23: 5095 | N23: 0 | O23: 2 | P23: 0 | Q23: 1 | R23: 0 | S23: 0 | T23: 0 | V23: 0 | W23: 10190 | X23: 0 | Y23: 5095 | Z23: 0 | AA23: 0 | AB23: 0
A24: 6 | B24: Directional Bore (2) 2" | C24: =_xlfn.SWITCH($D$8,"Lateral",K24,"PON",L24,J24) -> 0 | D24: LF | E24: =INDEX('UNIT PRICE TABLE'!$A$1:$G$58,MATCH(B24,'UNIT PRICE TABLE'!$A$1:$A$58,0),MATCH($D$12,Region,0)+1)*$J$2 -> 16.94 | F24: 0 | G24: *Get updated pricing from Clayton first* Total Underground lengths. BB and Lateral add 5% for variance, PON may need to update variance in cell F12 | I24: 0 | J24: 0 | K24: 0 | L24: 0 | N24: 0 | O24: 0 | P24: 0 | Q24: 2 | R24: 0 | S24: 0 | T24: 0 | V24: 0 | W24: 0 | X24: 0 | Y24: 0 | Z24: 0 | AA24: 0 | AB24: 0
A25: 7 | B25: Directional Bore (2) 2" and (1) 1" | C25: =_xlfn.SWITCH($D$8,"Lateral",K25,"PON",L25,J25) -> 0 | D25: LF | E25: =INDEX('UNIT PRICE TABLE'!$A$1:$G$58,MATCH(B25,'UNIT PRICE TABLE'!$A$1:$A$58,0),MATCH($D$12,Region,0)+1)*$J$2 -> 18.66 | F25: 0 | G25: *Get updated pricing from Clayton first* Total Underground lengths. BB and Lateral add 5% for variance, PON may need to update variance in cell F12 | I25: 0 | J25: 0 | K25: 0 | L25: 0 | N25: 0 | O25: 1 | P25: 0 | Q25: 2 | R25: 0 | S25: 0 | T25: 0 | V25: 0 | W25: 0 | X25: 0 | Y25: 0 | Z25: 0 | AA25: 0 | AB25: 0
A26: 8 | B26: Directional Bore (3) 2" | C26: =_xlfn.SWITCH($D$8,"Lateral",K26,"PON",L26,J26) -> 0 | D26: LF | E26: =INDEX('UNIT PRICE TABLE'!$A$1:$G$58,MATCH(B26,'UNIT PRICE TABLE'!$A$1:$A$58,0),MATCH($D$12,Region,0)+1)*$J$2 -> 21.4 | F26: 0 | G26: *Get updated pricing from Clayton first* Total Underground lengths. BB and Lateral add 5% for variance, PON may need to update variance in cell F12 | I26: 0 | J26: 0 | K26: 0 | L26: 0 | N26: 0 | O26: 0 | P26: 0 | Q26: 3 | R26: 0 | S26: 0 | T26: 0 | V26: 0 | W26: 0 | X26: 0 | Y26: 0 | Z26: 0 | AA26: 0 | AB26: 0
A27: 9 | B27: Directional Bore (3) 2" and (1) 1" | C27: =_xlfn.SWITCH($D$8,"Lateral",K27,"PON",L27,J27) -> 0 | D27: LF | E27: =INDEX('UNIT PRICE TABLE'!$A$1:$G$58,MATCH(B27,'UNIT PRICE TABLE'!$A$1:$A$58,0),MATCH($D$12,Region,0)+1)*$J$2 -> 24.39 | F27: 0 | G27: *Get updated pricing from Clayton first* Total Underground lengths. BB and Lateral add 5% for variance, PON may need to update variance in cell F12 | I27: 0 | J27: 0 | K27: 0 | L27: 0 | N27: 0 | O27: 1 | P27: 0 | Q27: 3 | R27: 0 | S27: 0 | T27: 0 | V27: 0 | W27: 0 | X27: 0 | Y27: 0 | Z27: 0 | AA27: 0 | AB27: 0
A28: 10 | B28: Directional Bore (3) 2" and (2) 1" | C28: =_xlfn.SWITCH($D$8,"Lateral",K28,"PON",L28,J28) -> 0 | D28: LF | E28: =INDEX('UNIT PRICE TABLE'!$A$1:$G$58,MATCH(B28,'UNIT PRICE TABLE'!$A$1:$A$58,0),MATCH($D$12,Region,0)+1)*$J$2 -> 26.7 | F28: 0 | G28: *Get updated pricing from Clayton first* Total Underground lengths. BB and Lateral add 5% for variance, PON may need to update variance in cell F12 | I28: 0 | J28: 0 | K28: 0 | L28: 0 | N28: 0 | O28: 2 | P28: 0 | Q28: 3 | R28: 0 | S28: 0 | T28: 0 | V28: 0 | W28: 0 | X28: 0 | Y28: 0 | Z28: 0 | AA28: 0 | AB28: 0
A29: 11 | B29: Directional Bore (4) 2" | C29: =_xlfn.SWITCH($D$8,"Lateral",K29,"PON",L29,J29) -> 0 | D29: LF | E29: =INDEX('UNIT PRICE TABLE'!$A$1:$G$58,MATCH(B29,'UNIT PRICE TABLE'!$A$1:$A$58,0),MATCH($D$12,Region,0)+1)*$J$2 -> 28.93 | F29: 0 | G29: *Get updated pricing from Clayton first* Total Underground lengths. BB and Lateral add 5% for variance, PON may need to update variance in cell F12 | I29: 0 | J29: 0 | K29: 0 | L29: 0 | N29: 0 | O29: 0 | P29: 0 | Q29: 4 | R29: 0 | S29: 0 | T29: 0 | V29: 0 | W29: 0 | X29: 0 | Y29: 0 | Z29: 0 | AA29: 0 | AB29: 0
A30: 12 | B30: Directional Bore (1) 4" | C30: =_xlfn.SWITCH($D$8,"Lateral",K30,"PON",L30,J30) -> 0 | D30: LF | E30: =INDEX('UNIT PRICE TABLE'!$A$1:$G$58,MATCH(B30,'UNIT PRICE TABLE'!$A$1:$A$58,0),MATCH($D$12,Region,0)+1)*$J$2 -> 12 | F30: 0 | G30: *Get updated pricing from Clayton first* Total Underground lengths. BB and Lateral add 5% for variance, PON may need to update variance in cell F12 | I30: 0 | J30: 0 | K30: 0 | L30: 0 | N30: 0 | O30: 0 | P30: 0 | Q30: 0 | R30: 1 | S30: 0 | T30: 0 | V30: 0 | W30: 0 | X30: 0 | Y30: 0 | Z30: 0 | AA30: 0 | AB30: 0
A31: 13 | B31: Directional Bore (1) 1 1/4" | C31: =_xlfn.SWITCH($D$8,"Lateral",K31,"PON",L31,J31) -> 0 | D31: LF | E31: =INDEX('UNIT PRICE TABLE'!$A$1:$G$58,MATCH(B31,'UNIT PRICE TABLE'!$A$1:$A$58,0),MATCH($D$12,Region,0)+1)*$J$2 -> 12 | F31: 0 | G31: *Get updated pricing from Clayton first* Total Underground lengths. BB and Lateral add 5% for variance, PON may need to update variance in cell F12 | I31: 0 | J31: 0 | K31: 0 | L31: 0 | N31: 0 | O31: 0 | P31: 1 | Q31: 0 | R31: 0 | S31: 0 | T31: 0 | V31: 0 | W31: 0 | X31: 0 | Y31: 0 | Z31: 0 | AA31: 0 | AB31: 0
A32: 14 | B32: Directional Bore (2) 1 1/4" | C32: =_xlfn.SWITCH($D$8,"Lateral",K32,"PON",L32,J32) -> 0 | D32: LF | E32: =INDEX('UNIT PRICE TABLE'!$A$1:$G$58,MATCH(B32,'UNIT PRICE TABLE'!$A$1:$A$58,0),MATCH($D$12,Region,0)+1)*$J$2 -> 16 | F32: 0 | G32: *Get updated pricing from Clayton first* Total Underground lengths. BB and Lateral add 5% for variance, PON may need to update variance in cell F12 | I32: 0 | J32: 0 | K32: 0 | L32: 0 | N32: 0 | O32: 0 | P32: 2 | Q32: 0 | R32: 0 | S32: 0 | T32: 0 | V32: 0 | W32: 0 | X32: 0 | Y32: 0 | Z32: 0 | AA32: 0 | AB32: 0
A33: 15 | B33: Directional Bore (3) 1 1/4" | C33: =_xlfn.SWITCH($D$8,"Lateral",K33,"PON",L33,J33) -> 0 | D33: LF | E33: =INDEX('UNIT PRICE TABLE'!$A$1:$G$58,MATCH(B33,'UNIT PRICE TABLE'!$A$1:$A$58,0),MATCH($D$12,Region,0)+1)*$J$2 -> 18 | F33: 0 | G33: *Get updated pricing from Clayton first* Total Underground lengths. BB and Lateral add 5% for variance, PON may need to update variance in cell F12 | I33: 0 | J33: 0 | K33: 0 | L33: 0 | N33: 0 | O33: 0 | P33: 3 | Q33: 0 | R33: 0 | S33: 0 | T33: 0 | V33: 0 | W33: 0 | X33: 0 | Y33: 0 | Z33: 0 | AA33: 0 | AB33: 0
A34: 16 | B34: Directional Bore (4) 1 1/4" | C34: =_xlfn.SWITCH($D$8,"Lateral",K34,"PON",L34,J34) -> 0 | D34: LF | E34: =INDEX('UNIT PRICE TABLE'!$A$1:$G$58,MATCH(B34,'UNIT PRICE TABLE'!$A$1:$A$58,0),MATCH($D$12,Region,0)+1)*$J$2 -> 24 | F34: 0 | G34: *Get updated pricing from Clayton first* Total Underground lengths. BB and Lateral add 5% for variance, PON may need to update variance in cell F12 | I34: 0 | J34: 0 | K34: 0 | L34: 0 | N34: 0 | O34: 0 | P34: 4 | Q34: 0 | R34: 0 | S34: 0 | T34: 0 | V34: 0 | W34: 0 | X34: 0 | Y34: 0 | Z34: 0 | AA34: 0 | AB34: 0
A35: 17 | B35: Microtrenching (Narrow Band Trenching) upto 12" deep | C35: =_xlfn.SWITCH($D$8,"Lateral",K35,"PON",L35,J35) -> 0 | D35: LF | E35: =$J$2*11.54 -> 11.54 | F35: 0 | G35: Add 5% for variance | I35: 0 | J35: 0 | K35: 0 | L35: 0 | N35: 1 | O35: 0 | P35: 0 | Q35: 0 | R35: 0 | S35: 0 | T35: 0 | V35: 0 | W35: 0 | X35: 0 | Y35: 0 | Z35: 0 | AA35: 0 | AB35: 0
A36: 18 | B36: Microtrenching (Narrow Band Trenching) upto 18" deep | C36: =_xlfn.SWITCH($D$8,"Lateral",K36,"PON",L36,J36) -> 0 | D36: LF | E36: =$J$2*13.85 -> 13.85 | F36: 0 | G36: Add 5% for variance | I36: 0 | J36: 0 | K36: 0 | L36: 0 | N36: 1 | O36: 0 | P36: 0 | Q36: 0 | R36: 0 | S36: 0 | T36: 0 | V36: 0 | W36: 0 | X36: 0 | Y36: 0 | Z36: 0 | AA36: 0 | AB36: 0
A37: 19 | B37: Microtrenching (Narrow Band Trenching) upto 24" deep | C37: =_xlfn.SWITCH($D$8,"Lateral",K37,"PON",L37,J37) -> 0 | D37: LF | E37: =$J$2*18.46 -> 18.46 | F37: 0 | G37: Add 5% for variance | I37: 0 | J37: 0 | K37: 0 | L37: 0 | N37: 1 | O37: 0 | P37: 0 | Q37: 0 | R37: 0 | S37: 0 | T37: 0 | V37: 0 | W37: 0 | X37: 0 | Y37: 0 | Z37: 0 | AA37: 0 | AB37: 0
A38: 20 | B38: Vibratory Plow 4' deep (1) 2" | C38: =_xlfn.SWITCH($D$8,"Lateral",K38,"PON",L38,J38) -> 0 | D38: LF | E38: =$J$2*75 -> 75 | F38: 0 | G38: Add 5% for variance | I38: 0 | J38: 0 | K38: 0 | L38: 0 | N38: 0 | O38: 0 | P38: 0 | Q38: 1 | R38: 0 | S38: 0 | T38: 0 | V38: 0 | W38: 0 | X38: 0 | Y38: 0 | Z38: 0 | AA38: 0 | AB38: 0
A39: 21 | B39: Vibratory Plow 4' deep (2) 2" | C39: =_xlfn.SWITCH($D$8,"Lateral",K39,"PON",L39,J39) -> 0 | D39: LF | E39: =$J$2*75 -> 75 | F39: 0 | G39: Add 5% for variance | I39: 0 | J39: 0 | K39: 0 | L39: 0 | N39: 0 | O39: 0 | P39: 0 | Q39: 2 | R39: 0 | S39: 0 | T39: 0 | V39: 0 | W39: 0 | X39: 0 | Y39: 0 | Z39: 0 | AA39: 0 | AB39: 0
A40: 22 | B40: Open Cut & Trench (1) 2" at 30" Minimum Depth of Cover | C40: =_xlfn.SWITCH($D$8,"Lateral",K40,"PON",L40,J40) -> 0 | D40: LF | E40: =$J$2*60 -> 60 | F40: 0 | G40: Add 5% for variance | I40: 0 | J40: 0 | K40: 0 | L40: 0 | N40: 0 | O40: 0 | P40: 0 | Q40: 1 | R40: 0 | S40: 0 | T40: 0 | V40: 0 | W40: 0 | X40: 0 | Y40: 0 | Z40: 0 | AA40: 0 | AB40: 0
A41: 23 | B41: Open Cut & Trench (2) 2" at 30" Minimum Depth of Cover | C41: =_xlfn.SWITCH($D$8,"Lateral",K41,"PON",L41,J41) -> 0 | D41: LF | E41: =$J$2*65 -> 65 | F41: 0 | G41: Add 5% for variance | I41: 0 | J41: 0 | K41: 0 | L41: 0 | N41: 0 | O41: 0 | P41: 0 | Q41: 2 | R41: 0 | S41: 0 | T41: 0 | V41: 0 | W41: 0 | X41: 0 | Y41: 0 | Z41: 0 | AA41: 0 | AB41: 0
A42: 24 | B42: Open Cut & Trench (3) 2" at 30" Minimum Depth of Cover | C42: =_xlfn.SWITCH($D$8,"Lateral",K42,"PON",L42,J42) -> 0 | D42: LF | E42: =$J$2*70 -> 70 | F42: 0 | G42: Add 5% for variance | I42: 0 | J42: 0 | K42: 0 | L42: 0 | N42: 0 | O42: 0 | P42: 0 | Q42: 3 | R42: 0 | S42: 0 | T42: 0 | V42: 0 | W42: 0 | X42: 0 | Y42: 0 | Z42: 0 | AA42: 0 | AB42: 0
A43: 25 | B43: Open Cut & Trench (4) 2" at 30" Minimum Depth of Cover | C43: =_xlfn.SWITCH($D$8,"Lateral",K43,"PON",L43,J43) -> 0 | D43: LF | E43: =$J$2*75 -> 75 | F43: 0 | G43: Add 5% for variance | I43: 0 | J43: 0 | K43: 0 | L43: 0 | N43: 0 | O43: 0 | P43: 0 | Q43: 4 | R43: 0 | S43: 0 | T43: 0 | V43: 0 | W43: 0 | X43: 0 | Y43: 0 | Z43: 0 | AA43: 0 | AB43: 0
A44: 26 | B44: Sleeve existing 4" conduit (3) 1 1/4" | C44: =_xlfn.SWITCH($D$8,"Lateral",K44,"PON",L44,J44) -> 0 | D44: LF | E44: =$J$2*11.96 -> 11.96 | F44: 0 | G44: Dependent on build | I44: 0 | J44: 0 | K44: 0 | L44: 0 | N44: 0 | O44: 0 | P44: 3 | Q44: 0 | R44: 0 | S44: 0 | T44: 0 | V44: 0 | W44: 0 | X44: 0 | Y44: 0 | Z44: 0 | AA44: 0 | AB44: 0
A45: 27 | B45: Pull (4) 2" sdr 11 conduits in 8" casing | C45: =_xlfn.SWITCH($D$8,"Lateral",K45,"PON",L45,J45) -> 0 | D45: FT | E45: =$J$2*15 -> 15 | F45: 0 | G45: Dependent on build (Some RR, DOT, and water crossings need steel casings) | I45: 0 | J45: 0 | K45: 0 | L45: 0 | N45: 0 | O45: 0 | P45: 0 | Q45: 4 | R45: 0 | S45: 0 | T45: 0 | V45: 0 | W45: 0 | X45: 0 | Y45: 0 | Z45: 0 | AA45: 0 | AB45: 0
A46: 28 | B46: Bore 6” Casing (Steel) | C46: =_xlfn.SWITCH($D$8,"Lateral",K46,"PON",L46,J46) -> 5 | D46: LF | E46: =$J$2*125 -> 125 | F46: =ROUND(IFERROR(C46*E46,0),2) -> 625 | G46: This would be for RR, DOT, Waterway or other crossing. Estimate is 0.025% of Buried total. | J46: =ROUNDUP(0.00025*$D$10,0) -> 5 | K46: =ROUNDUP(0.00025*$D$10,0) -> 5 | L46: 5 | N46: 0 | O46: 0 | P46: 0 | Q46: 0 | R46: 0 | S46: 0 | T46: 1 | V46: 0 | W46: 0 | X46: 0 | Y46: 0 | Z46: 0 | AA46: 0 | AB46: 5
A47: 29 | B47: Bore 6” Casing (PVC) | C47: =_xlfn.SWITCH($D$8,"Lateral",K47,"PON",L47,J47) -> 5 | D47: LF | E47: =$J$2*100 -> 100 | F47: =ROUND(IFERROR(C47*E47,0),2) -> 500 | G47: This would be for RR, DOT, Waterway or other crossing. Estimate is 0.025% of Buried total. | J47: =ROUNDUP(0.00025*$D$10,0) -> 5 | K47: 5 | L47: 5 | N47: 0 | O47: 0 | P47: 0 | Q47: 0 | R47: 0 | S47: 1 | T47: 0 | V47: =N47*$J47 -> 0 | W47: 0 | X47: 0 | Y47: 0 | Z47: 0 | AA47: 5 | AB47: 0
A48: 30 | B48: Bore 8” Casing (Steel) | C48: =_xlfn.SWITCH($D$8,"Lateral",K48,"PON",L48,J48) -> 5 | D48: LF | E48: =$J$2*125 -> 125 | F48: =ROUND(IFERROR(C48*E48,0),2) -> 625 | G48: This would be for RR, DOT, Waterway or other crossing. Estimate is 0.025% of Buried total. | J48: 5 | K48: 5 | L48: 5 | N48: 0 | O48: 0 | P48: 0 | Q48: 0 | R48: 0 | S48: 0 | T48: 1 | V48: 0 | W48: 0 | X48: 0 | Y48: 0 | Z48: 0 | AA48: 0 | AB48: 5
A49: 31 | B49: Bore 8” Casing (PVC) | C49: =_xlfn.SWITCH($D$8,"Lateral",K49,"PON",L49,J49) -> 5 | D49: LF | E49: =$J$2*100 -> 100 | F49: =ROUND(IFERROR(C49*E49,0),2) -> 500 | G49: This would be for RR, DOT, Waterway or other crossing. Estimate is 0.025% of Buried total. | J49: 5 | K49: 5 | L49: 5 | N49: 0 | O49: 0 | P49: 0 | Q49: 0 | R49: 0 | S49: 1 | T49: 0 | V49: 0 | W49: 0 | X49: 0 | Y49: 0 | Z49: 0 | AA49: 5 | AB49: 0
A50: 32 | B50: Deep Bore - Water Crossing | C50: =_xlfn.SWITCH($D$8,"Lateral",K50,"PON",L50,J50) -> 0 | D50: LF | E50: =$J$2*350 -> 350 | F50: =ROUND(IFERROR(C50*E50,0),2) -> 0 | G50: Dependent on build | J50: 0 | K50: 0 | L50: 0 | N50: 0 | O50: 0 | P50: 0 | Q50: 0 | R50: 0 | S50: 0 | T50: 0 | V50: 0 | W50: 0 | X50: 0 | Y50: 0 | Z50: 0 | AA50: 0 | AB50: 0
A51: 33 | B51: Install Muletape in New Conduit | C51: =_xlfn.SWITCH($D$8,"Lateral",K51,"PON",L51,J51) -> 45875 | D51: FT | E51: =$J$2*0.33 -> 0.33 | F51: =ROUND(IFERROR(C51*E51,0),2) -> 15138.75 | G51: Should match length of empty conduits (BB and PON twice as much as URD footage) | J51: =SUM($V$18:$AB$18) -> 45875 | K51: =SUM($V$18:$AB$18) -> 45875 | L51: =SUM($V$18:$AB$18) -> 45875
A52: 34 | B52: Bore Rock Adder | C52: =_xlfn.SWITCH($D$8,"Lateral",K52,"PON",L52,J52) -> 0 | D52: LF | E52: =INDEX('UNIT PRICE TABLE'!$A$1:$G$58,MATCH(B52,'UNIT PRICE TABLE'!$A$1:$A$58,0),MATCH($D$12,Region,0)+1)*$J$2 -> 58.5 | F52: 0 | G52: *Get updated pricing from Clayton first* Dependent on build, Question for customer in data collection | J52: =ROUNDUP($F$13*$D$10,0) -> 0 | K52: =ROUNDUP($F$13*$D$10,0) -> 0 | L52: =ROUNDUP($F$13*$D$10,0) -> 0
A53: 35 | B53: Trench Rock Adder | C53: =_xlfn.SWITCH($D$8,"Lateral",K53,"PON",L53,J53) -> 0 | D53: LF | E53: =$J$2*53.85 -> 53.85 | F53: 0 | G53: Dependent on build, Question for customer in data collection | J53: 0 | K53: 0 | L53: 0
A54: 36 | B54: Install #12 AWG Insulated Tracer Wire | C54: =_xlfn.SWITCH($D$8,"Lateral",K54,"PON",L54,J54) -> 20380 | D54: LF | E54: =INDEX('UNIT PRICE TABLE'!$A$1:$G$58,MATCH(B54,'UNIT PRICE TABLE'!$A$1:$A$58,0),MATCH($D$12,Region,0)+1)*$J$2 -> 0.33 | F54: 6725.4 | G54: should equal underground footage | J54: =ROUNDUP($D$10*(1+$F$12),0) -> 20380 | K54: =ROUNDUP($D$10*(1+$F$12),0) -> 20380 | L54: =ROUNDUP($D$10*(1+$F$12),0) -> 20380
A55: 37 | B55: Install 5/8"x8' Copper Clad Ground Rod | C55: =_xlfn.SWITCH($D$8,"Lateral",K55,"PON",L55,J55) -> 11 | D55: EA | E55: =$J$2*25 -> 25 | F55: 275 | G55: Get qtys from design, if not specified assume 1 ever 2,000ft | J55: =ROUNDUP(($D$10*(1+$F$12))/2000,0) -> 11 | K55: =ROUNDUP(($D$10*(1+$F$12))/2000,0) -> 11 | L55: =ROUNDUP(($D$10*(1+$F$12))/2000,0) -> 11
A56: 38 | B56: Install 3.5" Dia PVC Round Marker Posts with Orange Dome Top | C56: =_xlfn.SWITCH($D$8,"Lateral",K56,"PON",L56,J56) -> 62 | D56: EA | E56: =INDEX('UNIT PRICE TABLE'!$A$1:$G$58,MATCH(B56,'UNIT PRICE TABLE'!$A$1:$A$58,0),MATCH($D$12,Region,0)+1)*$J$2 -> 45 | F56: 2790 | G56: Get qtys from design, can estimate 75% of handholes | J56: =ROUNDUP(J70*0.75,0) -> 25 | K56: =ROUNDUP(K69*0.75,0) -> 37 | L56: =ROUNDUP(L69*0.75,0) -> 62
A57: 39 | B57: Install 3.5" Dia PVC Round Marker Posts with Orange Dome Top with Test Station | C57: =_xlfn.SWITCH($D$8,"Lateral",K57,"PON",L57,J57) -> 21 | D57: EA | E57: =INDEX('UNIT PRICE TABLE'!$A$1:$G$58,MATCH(B57,'UNIT PRICE TABLE'!$A$1:$A$58,0),MATCH($D$12,Region,0)+1)*$J$2 -> 65 | F57: 1365 | G57: Get qtys from design, can estimate 25% of handholes | J57: =ROUNDUP(J70*0.25,0) -> 9 | K57: =ROUNDUP(K69*0.25,0) -> 13 | L57: =ROUNDUP(L69*0.25,0) -> 21
A58: 40 | B58: Install RFID Ball/Peg Markers | C58: =_xlfn.SWITCH($D$8,"Lateral",K58,"PON",L58,J58) -> 0 | D58: EA | E58: =$J$2*30 -> 30 | F58: 0 | G58: Dependent on build, Question for customer in data collection | J58: 0 | K58: 0 | L58: 0
A59: 41 | B59: Install RFID Rope | C59: =_xlfn.SWITCH($D$8,"Lateral",K59,"PON",L59,J59) -> 0 | D59: LF | E59: =$J$2*1.5 -> 1.5 | F59: 0 | G59: Dependent on build, Question for customer in data collection | J59: 0 | K59: 0 | L59: 0
A60: 42 | B60: Proof Existing Conduit - any size | C60: =_xlfn.SWITCH($D$8,"Lateral",K60,"PON",L60,J60) -> 0 | D60: LF | E60: =$J$2*1.54 -> 1.54 | F60: 0 | G60: Dependent on build, Question for customer in data collection | J60: 0 | K60: 0 | L60: 0
A61: 43 | B61: Rod Existing Conduit and Install Pull Tape | C61: =_xlfn.SWITCH($D$8,"Lateral",K61,"PON",L61,J61) -> 0 | D61: LF | E61: =$J$2*1.15 -> 1.15 | F61: 0 | G61: Dependent on build, Question for customer in data collection | J61: 0 | K61: 0 | L61: 0
A62: 44 | B62: Remove existing cable - i.e. coax/twisted pair in street light conduits to replace with fiber | C62: =_xlfn.SWITCH($D$8,"Lateral",K62,"PON",L62,J62) -> 0 | D62: LF | E62: =$J$2*1.92 -> 1.92 | F62: 0 | G62: Dependent on build, Question for customer in data collection | J62: 0 | K62: 0 | L62: 0
A63: 45 | B63: Installation, Underground Fiber Cable - Including Slack (2ct Fiber) | C63: =_xlfn.SWITCH($D$8,"Lateral",K63,"PON",L63,J63) -> 0 | D63: LF | E63: =$J$2*1 -> 1 | F63: 0 | G63: Add 5% for variance | J63: 0 | K63: 0 | L63: 0
A64: 46 | B64: Installation, Underground Fiber Cable - Including Slack (All other fiber) | C64: =_xlfn.SWITCH($D$8,"Lateral",K64,"PON",L64,J64) -> 26530 | D64: LF | E64: =INDEX('UNIT PRICE TABLE'!$A$1:$G$58,MATCH(B64,'UNIT PRICE TABLE'!$A$1:$A$58,0),MATCH($D$12,Region,0)+1)*$J$2 -> 1.25 | F64: 33162.5 | G64: *Get updated pricing from Clayton first* underground footage & 100' slack from Ring Cuts and 55' for Butt splices (Estimated as URD footage + 75' per HH) | J64: =ROUNDUP(($D$10*(1+$F$12))+(J70*75),0) -> 22855 | K64: =ROUNDUP(($D$10*(1+$F$12))+(K69*75),0) -> 24055 | L64: =ROUNDUP(($D$10*(1+$F$12))+(L69*75),0) -> 26530
A65: 47 | B65: Installation, MST in Pedestal | C65: =_xlfn.SWITCH($D$8,"Lateral",K65,"PON",L65,J65) -> 0 | D65: EA | E65: =$J$2*50 -> 50 | F65: 0 | G65: Get qtys from design | J65: 0 | K65: 0 | L65: =$L$303 -> 0
A66: 48 | B66: Installation, Pedestal | C66: =_xlfn.SWITCH($D$8,"Lateral",K66,"PON",L66,J66) -> 0 | D66: EA | E66: =$J$2*60 -> 60 | F66: 0 | G66: Get qtys from design | J66: 0 | K66: 0 | L66: =$L$303 -> 0
A67: 49 | B67: Installation, Drop Vault, 12" X 12" | C67: =_xlfn.SWITCH($D$8,"Lateral",K67,"PON",L67,J67) -> 56 | D67: EA | E67: =ROUNDUP($E$69*0.75,0) -> 263 | F67: 14728 | G67: Get qtys from design (AKA "Flowerpots") | J67: 0 | K67: 0 | L67: =IFERROR(ROUNDUP((($D$10/($D$10+$D$11))*$F$8)/4,0),0) -> 56
A68: 50 | B68: Installation, Small Vault, 17” x 30” | C68: =_xlfn.SWITCH($D$8,"Lateral",K68,"PON",L68,J68) -> 0 | D68: EA | E68: =$E$69 -> 350 | F68: 0 | G68: Get qtys from design | J68: 0 | K68: 0 | L68: 0
A69: 51 | B69: Installation, Vault 24" x 36" | C69: =_xlfn.SWITCH($D$8,"Lateral",K69,"PON",L69,J69) -> 82 | D69: EA | E69: =INDEX('UNIT PRICE TABLE'!$A$1:$G$58,MATCH(B69,'UNIT PRICE TABLE'!$A$1:$A$58,0),MATCH($D$12,Region,0)+1)*$J$2 -> 350 | F69: 28700 | G69: *Get updated pricing from Clayton first* BB every 600', Lateral every 400', PON every 250' | J69: 0 | K69: =ROUNDUP($D$10/400,0) -> 49 | L69: =ROUNDUP(($D$10*(1+$F$12))/250,0) -> 82
A70: 52 | B70: Installation, Large Vault 30" x 48" | C70: =_xlfn.SWITCH($D$8,"Lateral",K70,"PON",L70,J70) -> 0 | D70: EA | E70: =INDEX('UNIT PRICE TABLE'!$A$1:$G$58,MATCH(B70,'UNIT PRICE TABLE'!$A$1:$A$58,0),MATCH($D$12,Region,0)+1)*$J$2 -> 500 | F70: 0 | G70: *Get updated pricing from Clayton first* Get qtys from design | J70: =ROUNDUP($D$10/600,0) -> 33 | K70: 0 | L70: 0
A71: 53 | B71: Installation, Extra Large Vault 48" x 60" | C71: =_xlfn.SWITCH($D$8,"Lateral",K71,"PON",L71,J71) -> 0 | D71: EA | E71: =$J$2*1750 -> 1750 | F71: 0 | G71: Get qtys from design | J71: 0 | K71: 0 | L71: 0
A72: 54 | B72: Install 4'x4'x4' Split Concrete Manhole | C72: =_xlfn.SWITCH($D$8,"Lateral",K72,"PON",L72,J72) -> 0 | D72: EA | E72: =$J$2*6500 -> 6500 | F72: 0 | G72: Get qtys from design | J72: 0 | K72: 0 | L72: 0
A73: 55 | B73: Remove and Replace Handhole - including fixing sweeps into HH | C73: =_xlfn.SWITCH($D$8,"Lateral",K73,"PON",L73,J73) -> 0 | D73: EA | E73: =$J$2*3461.54 -> 3461.54 | G73: Get qtys from design
A74: 56 | B74: Prep and Pour Concrete Pad for POP Site | C74: =_xlfn.SWITCH($D$8,"Lateral",K74,"PON",L74,J74) -> 0 | D74: EA | E74: =$J$2*10000 -> 10000 | F74: =ROUND(IFERROR(C74*E74,0),2) -> 0 | G74: Get qtys from design | J74: 0 | K74: 0 | L74: 0
A75: 57 | B75: Sawcut, Remove and Replace Asphalt 6" Thick | C75: =_xlfn.SWITCH($D$8,"Lateral",K75,"PON",L75,J75) -> 1019 | D75: SqrFt | E75: =$J$2*23.08 -> 23.08 | F75: =ROUND(IFERROR(C75*E75,0),2) -> 23518.52 | G75: Use Col I to adjust percentage. 15% for Urban areas and 1% for rural are good high level estimates | I75: 0.05 | J75: =ROUNDUP(($D$10*(1+$F$12))*$I$75,0) -> 1019 | K75: =ROUNDUP(($D$10*(1+$F$12))*$I$75,0) -> 1019 | L75: 1019
A76: 58 | B76: Sawcut, Remove and Replace Concrete 6" Thick | C76: =_xlfn.SWITCH($D$8,"Lateral",K76,"PON",L76,J76) -> 1019 | D76: SqrFt | E76: =$J$2*26.69 -> 26.69 | F76: =ROUND(IFERROR(C76*E76,0),2) -> 27197.11 | G76: Use Col I to adjust percentage. 25% for Urban areas and 1% for rural are good high level estimates | I76: 0.05 | J76: =ROUNDUP(($D$10*(1+$F$12))*$I$76,0) -> 1019 | K76: =ROUNDUP(($D$10*(1+$F$12))*$I$76,0) -> 1019 | L76: =ROUNDUP(($D$10*(1+$F$12))*$I$76,0) -> 1019
A77: 59 | B77: Remove and Replace Brick Pavers | C77: =_xlfn.SWITCH($D$8,"Lateral",K77,"PON",L77,J77) -> 0 | D77: SqrFt | E77: =$J$2*38.46 -> 38.46 | F77: 0 | G77: Get qtys from design | J77: 0 | K77: 0 | L77: 0
A78: 60 | C78: 0 | F78: 0
A79: 61 | C79: 0 | F79: 0
A80: 62 | C80: 0 | F80: 0
A81: 63 | C81: 0 | F81: 0
A82: 64 | C82: 0 | F82: 0
A83: 65 | C83: 0 | F83: 0
A84: 66 | C84: 0 | F84: 0
A85: =A84+1 -> 67 | C85: 0 | F85: 0
B86: =B18 & " LABOR TOTAL" -> UNDERGROUND - BURIED LABOR TOTAL | F86: =SUM(F19:F85) -> 421758.33
B88: AERIAL -STRAND/LASH
A89: =A85+1 -> 68 | B89: Lash/Mount Closure | C89: =_xlfn.SWITCH($D$8,"Lateral",K89,"PON",L89,J89) -> 2 | D89: EA | E89: =$J$2*175 -> 175 | F89: =ROUND(IFERROR(C89*E89,0),2) -> 350 | G89: One per closure | J89: =IFERROR(ROUNDUP(J$157*($D$11/($D$10+$D$11)),0),0) -> 1 | K89: =IFERROR(ROUNDUP(K$157*($D$11/($D$10+$D$11)),0),0) -> 1 | L89: 2
A90: =A89+1 -> 69 | B90: Bond Strand/Guy to pole ground + materials | C90: =_xlfn.SWITCH($D$8,"Lateral",K90,"PON",L90,J90) -> 2 | D90: EA | E90: =$J$2*250 -> 250 | F90: 500 | G90: Bonding will be done at the first, every 5th, last poles, and all poles with a vertical. (Unless power company uses other standard). Estimated as total aerial footage / 180 / 4 | J90: =ROUNDUP(($D$11/180)/4,0)*$J$6 -> 2 | K90: =ROUNDUP(($D$11/180)/4,0)*$J$6 -> 2 | L90: =ROUNDUP(($D$11/180)/4,0)*$J$6 -> 2
A91: 70 | B91: Install Strand | C91: =_xlfn.SWITCH($D$8,"Lateral",K91,"PON",L91,J91) -> 721 | D91: FT | E91: =INDEX('UNIT PRICE TABLE'!$A$1:$G$58,MATCH(B91,'UNIT PRICE TABLE'!$A$1:$A$58,0),MATCH($D$12,Region,0)+1)*$J$2 -> 1.8 | F91: 1297.8 | G91: *Get updated pricing from Clayton first* Match aerial footage - quote from contractor shall include attachement hardware | J91: =$D$11*$J$6 -> 721 | K91: =$D$11*$J$6 -> 721 | L91: =$D$11*$J$6 -> 721
A92: 71 | B92: Install Snow Shoes | C92: =_xlfn.SWITCH($D$8,"Lateral",K92,"PON",L92,J92) -> 2 | D92: EA | E92: =$J$2*160 -> 160 | F92: 320 | G92: formula is for 2 for every slack location | J92: =ROUNDUP((J93/100)*2,0) -> 2 | K92: =ROUNDUP((K93/100)*2,0) -> 2 | L92: =ROUNDUP((L93/100)*2,0) -> 2
A93: 72 | B93: Install Aerial Slack | C93: =_xlfn.SWITCH($D$8,"Lateral",K93,"PON",L93,J93) -> 73 | D93: EA | E93: =$E$94 -> 2.34 | F93: 170.82 | G93: in this model - it assumes 100' of slack for every 1000' of aerial installation | J93: =ROUNDUP(($D$11/1000)*100,0) -> 73 | K93: =ROUNDUP(($D$11/1000)*100,0) -> 73 | L93: =ROUNDUP(($D$11/1000)*100,0) -> 73
A94: 73 | B94: Install / Lash Aerial Cable | C94: =_xlfn.SWITCH($D$8,"Lateral",K94,"PON",L94,J94) -> 721 | D94: FT | E94: =INDEX('UNIT PRICE TABLE'!$A$1:$G$58,MATCH(B94,'UNIT PRICE TABLE'!$A$1:$A$58,0),MATCH($D$12,Region,0)+1)*$J$2 -> 2.34 | F94: 1687.14 | G94: *Get updated pricing from Clayton first* Match aerial footage | J94: =$D$11*$J$6 -> 721 | K94: =$D$11*$J$6 -> 721 | L94: =$D$11*$J$6 -> 721
A95: 74 | B95: Tree Trimming | C95: =_xlfn.SWITCH($D$8,"Lateral",K95,"PON",L95,J95) -> 73 | D95: FT | E95: =INDEX('UNIT PRICE TABLE'!$A$1:$G$58,MATCH(B95,'UNIT PRICE TABLE'!$A$1:$A$58,0),MATCH($D$12,Region,0)+1)*$J$2 -> 4.75 | F95: 346.75 | G95: *Get updated pricing from Clayton first* Try and ID percentage. If unknown assume 10% of route needs tree trimming | J95: =ROUNDUP($D$11*0.1,0) -> 73 | K95: =ROUNDUP($D$11*0.1,0) -> 73 | L95: =ROUNDUP($D$11*0.1,0) -> 73
A96: 75 | B96: Install Pole Risers | C96: =_xlfn.SWITCH($D$8,"Lateral",K96,"PON",L96,J96) -> 1 | D96: EA | E96: =$J$2*308 -> 308 | F96: 308 | G96: assume 5% of poles - adjust as needed | J96: =ROUNDUP(($D$11/180)*0.05,0) -> 1 | K96: =ROUNDUP(($D$11/180)*0.05,0) -> 1 | L96: =ROUNDUP(($D$11/180)*0.05,0) -> 1
A97: 76 | B97: Install Down Guy & Anchors | C97: =_xlfn.SWITCH($D$8,"Lateral",K97,"PON",L97,J97) -> 1 | D97: EA | E97: =$J$2*385 -> 385 | F97: 385 | G97: assume 15% of poles - adjust as needed | J97: =ROUNDUP(($D$11/180)*0.15,0) -> 1 | K97: =ROUNDUP(($D$11/180)*0.15,0) -> 1 | L97: =ROUNDUP(($D$11/180)*0.15,0) -> 1
A98: 77 | B98: Pole Transfer / Make Ready (Straight Through) | C98: =_xlfn.SWITCH($D$8,"Lateral",K98,"PON",L98,J98) -> 1 | D98: EA | E98: =$J$2*193 -> 193 | F98: 193 | G98: assume 3% of poles - adjust as needed - This would be cost from MRE to move existing Comm. Price will vary depending on who is doing transfers/moves | J98: =ROUNDUP(($D$11/180)*0.033,0) -> 1 | K98: 1 | L98: 1
A99: 78 | B99: Pole Transfer / Make Ready (Dead-end) | C99: =_xlfn.SWITCH($D$8,"Lateral",K99,"PON",L99,J99) -> 1 | D99: EA | E99: =$J$2*170 -> 170 | F99: 170 | G99: assume 3% of poles - adjust as needed - This would be cost from MRE to move existing Comm. Price will vary depending on who is doing transfers/moves | J99: 1 | K99: 1 | L99: 1
A100: 79 | B100: Pole Transfer / Make Ready (Double Dead-end) | C100: =_xlfn.SWITCH($D$8,"Lateral",K100,"PON",L100,J100) -> 1 | D100: EA | E100: =$J$2*461 -> 461 | F100: 461 | G100: assume 3% of poles - adjust as needed - This would be cost from MRE to move existing Comm. Price will vary depending on who is doing transfers/moves | J100: 1 | K100: 1 | L100: 1
A101: 80 | C101: 0 | F101: 0
A102: 81 | C102: 0 | F102: 0
A103: 82 | C103: 0 | F103: 0
A104: 83 | C104: 0 | F104: 0
A105: 84 | C105: 0 | F105: 0
A106: 85 | C106: 0 | F106: 0
A107: 86 | C107: 0 | F107: 0
A108: 87 | C108: 0 | F108: 0
A109: 88 | C109: 0 | F109: 0
A110: 89 | C110: 0 | F110: 0
B111: =B88 & " LABOR TOTAL" -> AERIAL -STRAND/LASH LABOR TOTAL | F111: =SUM(F89:F110) -> 6189.51
B113: AERIAL - ADSS
A114: =A110+1 -> 90 | B114: Install Fiber (ADSS) | C114: =_xlfn.SWITCH($D$8,"Lateral",K114,"PON",L114,J114) -> 0 | D114: FT | E114: =INDEX('UNIT PRICE TABLE'!$A$1:$G$58,MATCH(B114,'UNIT PRICE TABLE'!$A$1:$A$58,0),MATCH($D$12,Region,0)+1)*$J$2 -> 3.8 | F114: =ROUND(IFERROR(C114*E114,0),2) -> 0 | G114: *Get updated pricing from Clayton first* Get qtys from design | J114: =$D$11*$J$5 -> 0 | K114: =$D$11*$J$5 -> 0 | L114: =$D$11*1.25*$J$5 -> 0
A115: =A114+1 -> 91 | B115: Pole attachment hardware (H bracket) | C115: =_xlfn.SWITCH($D$8,"Lateral",K115,"PON",L115,J115) -> 0 | D115: EA | E115: =$J$2*104 -> 104 | F115: 0 | G115: Assumes one per Closure | J115: =IFERROR(ROUNDUP(J$157*($D$11/($D$10+$D$11)),0)*$J$5,0) -> 0 | K115: =IFERROR(ROUNDUP(K$157*($D$11/($D$10+$D$11)),0)*$J$5,0) -> 0 | L115: =IFERROR(ROUNDUP(L$157*($D$11/($D$10+$D$11)),0)*$J$5,0) -> 0
A116: =A115+1 -> 92 | B116: Pole attachment hardware (Dead-end) | C116: =_xlfn.SWITCH($D$8,"Lateral",K116,"PON",L116,J116) -> 0 | D116: EA | E116: =$J$2*104 -> 104 | F116: 0 | G116: BB&Lat Assumes 25% poles with a 20% extra, PON Assumes 40% with 36% extra | J116: =ROUNDUP(((($D$11/300)*0.25)*1.2)*2,0)*$J$5 -> 0 | K116: =ROUNDUP(((($D$11/300)*0.25)*1.2)*2,0)*$J$5 -> 0 | L116: =ROUNDUP(((($D$11/300)*0.4)*1.36)*2,0)*$J$5 -> 0
A117: 93 | B117: Pole attachment hardware (Tangent) | C117: =_xlfn.SWITCH($D$8,"Lateral",K117,"PON",L117,J117) -> 0 | D117: EA | E117: =$J$2*104 -> 104 | F117: 0 | G117: BB&Lat Assumes 75% poles with a 20% extra, PON Assumes 60% with 36% extra | J117: =ROUNDUP(((($D$11/300)*0.75)*1.2),0)*$J$5 -> 0 | K117: =ROUNDUP(((($D$11/300)*0.75)*1.2),0)*$J$5 -> 0 | L117: =ROUNDUP(((($D$11/300)*0.6)*1.36),0)*$J$5 -> 0
A118: 94 | B118: Install U-guard for pole mounted enclosure | C118: =_xlfn.SWITCH($D$8,"Lateral",K118,"PON",L118,J118) -> 0 | D118: EA | E118: =$J$2*50 -> 50 | F118: 0 | G118: Assumes one per Closure | J118: =IFERROR(ROUNDUP(J$157*($D$11/($D$10+$D$11)),0)*$J$5,0) -> 0 | K118: =IFERROR(ROUNDUP(K$157*($D$11/($D$10+$D$11)),0)*$J$5,0) -> 0 | L118: =IFERROR(ROUNDUP(L$157*($D$11/($D$10+$D$11)),0)*$J$5,0) -> 0
A119: 95 | C119: 0 | F119: 0
A120: 96 | C120: 0 | F120: 0
A121: 97 | C121: 0 | F121: 0
A122: 98 | C122: 0 | F122: 0
A123: 99 | C123: 0 | F123: 0
A124: 100 | C124: 0 | F124: 0
A125: 101 | C125: 0 | F125: 0
A126: 102 | C126: 0 | F126: 0
A127: 103 | C127: 0 | F127: 0
A128: 104 | C128: 0 | F128: 0
B129: =B113 & " LABOR TOTAL" -> AERIAL - ADSS LABOR TOTAL | F129: =SUM(F114:F128) -> 0
B131: WIRELESS
A132: =A128+1 -> 105 | C132: 0 | D132: EA | F132: =ROUND(IFERROR(C132*E132,0),2) -> 0
A133: =A132+1 -> 106 | C133: 0 | D133: EA | F133: 0
A134: =A133+1 -> 107 | C134: 0 | D134: EA | F134: 0
A135: 108 | C135: 0 | D135: EA | F135: 0
A136: 109 | C136: 0 | D136: EA | F136: 0
A137: 110 | C137: 0 | D137: EA | F137: 0
A138: 111 | C138: 0 | D138: EA | F138: 0
A139: 112 | C139: 0 | D139: EA | F139: 0
A140: 113 | C140: 0 | D140: EA | F140: 0
A141: 114 | C141: 0 | D141: EA | F141: 0
A142: 115 | C142: 0 | D142: EA | F142: 0
A143: 116 | C143: 0 | D143: EA | F143: 0
A144: 117 | C144: 0 | F144: 0
A145: 118 | C145: 0 | F145: 0
A146: 119 | C146: 0 | F146: 0
A147: 120 | C147: 0 | F147: 0
A148: 121 | C148: 0 | F148: 0
A149: 122 | C149: 0 | F149: 0
A150: 123 | C150: 0 | F150: 0
A151: 124 | C151: 0 | F151: 0
A152: 125 | C152: 0 | F152: 0
A153: 126 | C153: 0 | F153: 0
B154: =B131 & " LABOR TOTAL" -> WIRELESS LABOR TOTAL | F154: =SUM(F132:F153) -> 0
B156: SPLICING
A157: =A153+1 -> 127 | B157: Install New Splice Case & Prep Cable | C157: =_xlfn.SWITCH($D$8,"Lateral",K157,"PON",L157,J157) -> 29 | D157: EA | E157: =INDEX('UNIT PRICE TABLE'!$A$1:$G$58,MATCH(B157,'UNIT PRICE TABLE'!$A$1:$A$58,0),MATCH($D$12,Region,0)+1)*$J$2 -> 550 | F157: =ROUND(IFERROR(C157*E157,0),2) -> 15950 | G157: *Get updated pricing from Clayton first* BB and Laterals estimate one every 5000', PON one every 8 customers | J157: =ROUNDUP((($D$10*(1+$F$12))+$D$11+J$93)/5000,0) -> 5 | K157: =ROUNDUP((($D$10*(1+$F$12))+$D$11+K$93)/5000,0) -> 5 | L157: =ROUNDUP($F$8/8,0) -> 29
A158: =A157+1 -> 128 | B158: Re-enter splice closure | C158: =_xlfn.SWITCH($D$8,"Lateral",K158,"PON",L158,J158) -> 0 | D158: EA | E158: =$J$2*200 -> 200 | F158: 0 | G158: Get qtys from design | J158: 0 | K158: 0 | L158: 0
A159: =A158+1 -> 129 | B159: Ground Splice Case + Materials | C159: =_xlfn.SWITCH($D$8,"Lateral",K159,"PON",L159,J159) -> 29 | D159: EA | E159: =$J$2*50 -> 50 | F159: 1450 | G159: If using armored cable all splice cases must be grounded. Dielectric no need grounding. For HLD estimates assume each needs grounding | J159: =J157 -> 5 | K159: =K157 -> 5 | L159: =L157 -> 29
A160: 130 | B160: Splicing, Fusion, Single Fiber | C160: =_xlfn.SWITCH($D$8,"Lateral",K160,"PON",L160,J160) -> 1086 | D160: EA | E160: =INDEX('UNIT PRICE TABLE'!$A$1:$G$58,MATCH(B160,'UNIT PRICE TABLE'!$A$1:$A$58,0),MATCH($D$12,Region,0)+1)*$J$2 -> 26 | F160: 28236 | G160: *Get updated pricing from Clayton first* BB/Lateral assume butt splice per closure using AVG cable size, PON 2x number of premise + cabinets fully spliced + MST splices. | I160: 1 | J160: =(J159*$N$218)*I160 -> 540 | K160: =(K159*$N$218)*I160 -> 540 | L160: =($F$8*2)+(L179*(288+24))+($L$302*$F$8) -> 1086
A161: 131 | B161: Splicing Fusion, Single fiber Pigtail at panel | C161: =_xlfn.SWITCH($D$8,"Lateral",K161,"PON",L161,J161) -> 216 | D161: EA | E161: =E160 -> 26 | F161: 5616 | G161: Assume Patch Panels fully spliced. Laterals assume 2 splices per panel | J161: =(J181*$N$218) -> 216 | K161: =$F$8*2 -> 462 | L161: =(L181*$N$218) -> 216
A162: 132 | B162: Splicing, Mass Fusion, 12 Fiber Ribbon | C162: =_xlfn.SWITCH($D$8,"Lateral",K162,"PON",L162,J162) -> 0 | D162: RIBBON | E162: =$J$2*200 -> 200 | F162: 0 | G162: Can use single splice estimate if Ribbon fiber is being used. Calcs assume no ribbon | J162: 0 | K162: 0 | L162: 0
A163: 133 | B163: Testing, OTDR, Uni-Directional, Power Meter Testing | C163: =_xlfn.SWITCH($D$8,"Lateral",K163,"PON",L163,J163) -> 624 | D163: EA | E163: =INDEX('UNIT PRICE TABLE'!$A$1:$G$58,MATCH(B163,'UNIT PRICE TABLE'!$A$1:$A$58,0),MATCH($D$12,Region,0)+1)*$J$2 -> 7.5 | F163: 4680 | G163: *Get updated pricing from Clayton first* None for BB, Laterals 24 per panel, PON one test per cabinet port | J163: 0 | K163: =$N$218 -> 108 | L163: =L179*(288+24) -> 624
A164: 134 | B164: Testing, OTDR, Bi-Directional, Power Meter Testing | C164: =_xlfn.SWITCH($D$8,"Lateral",K164,"PON",L164,J164) -> 216 | D164: EA | E164: =INDEX('UNIT PRICE TABLE'!$A$1:$G$58,MATCH(B164,'UNIT PRICE TABLE'!$A$1:$A$58,0),MATCH($D$12,Region,0)+1)*$J$2 -> 10 | F164: 2160 | G164: *Get updated pricing from Clayton first* None for Laterals, BB and PON assume Panels * 432 | J164: =$N$218*J181 -> 216 | K164: 0 | L164: =$N$218*L181 -> 216
A165: 135 | B165: Testing existing cables Bi-Directional | C165: 0 | D165: EA | E165: =$J$2*20 -> 20 | F165: 0
A166: 136 | B166: Document existing splicing | C166: 0 | D166: EA | E166: =$J$2*27 -> 27 | F166: 0
A167: 137 | B167: Reel testing | C167: =_xlfn.SWITCH($D$8,"Lateral",K167,"PON",L167,J167) -> 432 | D167: EA | E167: =E160 -> 26 | F167: 11232 | G167: Assumes 10,000ft reels and uses breakdown of fiber counds in material below. Fully tests all fibers in reels | J167: =P218 -> 432 | K167: =Q218 -> 432 | L167: =R218 -> 432
A168: 138 | C168: 0 | F168: 0
A169: 139 | C169: 0 | F169: 0
A170: 140 | C170: 0 | F170: 0
A171: 141 | C171: 0 | F171: 0
A172: 142 | C172: 0 | F172: 0
A173: 143 | C173: 0 | F173: 0
A174: 144 | C174: 0 | F174: 0
B175: =B156 & " LABOR TOTAL" -> SPLICING LABOR TOTAL | F175: =SUM(F157:F174) -> 69324
B177: PATCH PANELS AND CABINETS
A178: =A174+1 -> 145 | B178: Install Outdoor Powered Cabinet + Site prep and Concrete Pad | C178: 0 | D178: EA | E178: =$J$2*6000 -> 6000 | F178: =ROUND(IFERROR(C178*E178,0),2) -> 0 | G178: Only added for PON deployments, assumes 1 small active cabinet per 3000 HHP | J178: 0 | K178: 0 | L178: =ROUNDDOWN($F$8/3000,0)+1 -> 1
A179: =A178+1 -> 146 | B179: Install Pad mounted FDH Splitter Cabinet + Site prep and Prefab Vault | C179: 1 | D179: EA | E179: 2500 | F179: 2500 | G179: None for BB and Lateral, PON assume one per 200 Customers | J179: 0 | K179: 0 | L179: =ROUNDUP(SUM(F9:F11)/200,0) -> 2
A180: =A179+1 -> 147 | B180: Install Pole mounted FDH Splitter Cabinet | C180: =_xlfn.SWITCH($D$8,"Lateral",K180,"PON",L180,J180) -> 0 | D180: EA | E180: 2500 | F180: 0 | G180: Can match regular if using pole mount cabinets | J180: 0 | K180: 0 | L180: 0
A181: 148 | B181: Install rack mounted patch panel (Any Size) and tails | C181: 0 | D181: EA | E181: =$J$2*500 -> 500 | F181: 0 | G181: Assumes (2) pannels per 25miles on BB, (1) pannel customer on Lateral, and (2) pannels per 10,000 customers on PON | J181: =ROUNDUP(($D$10+$D$11)/132000,0)*2 -> 2 | K181: =$F$8 -> 231 | L181: =ROUNDUP($F$8/10000,0)*2 -> 2
A182: 149 | B182: Install Wall Mount Fiber Enclosure | C182: =_xlfn.SWITCH($D$8,"Lateral",K182,"PON",L182,J182) -> 0 | D182: EA | E182: =$J$2*500 -> 500 | F182: 0 | G182: Get qtys from design | J182: 0 | K182: 0 | L182: 0
A183: 150 | B183: Install 7ft Rack for patch panels | C183: =_xlfn.SWITCH($D$8,"Lateral",K183,"PON",L183,J183) -> 0 | D183: EA | E183: =$J$2*1000 -> 1000 | F183: 0 | G183: Get qtys from design | J183: 0 | K183: 0 | L183: 0
A184: 151 | C184: 0 | F184: 0
A185: 152 | C185: 0 | F185: 0
A186: 153 | C186: 0 | F186: 0
A187: 154 | C187: 0 | F187: 0
A188: 155 | C188: 0 | F188: 0
A189: 156 | C189: 0 | F189: 0
A190: 157 | C190: 0 | F190: 0
A191: 158 | C191: 0 | F191: 0
A192: 159 | C192: 0 | F192: 0
A193: 160 | C193: 0 | F193: 0
B194: =B177 & " LABOR TOTAL" -> PATCH PANELS AND CABINETS LABOR TOTAL | F194: =SUM(F178:F193) -> 2500
B196: GENERAL
A197: =A193+1 -> 161 | B197: Pull fiber through building | C197: =_xlfn.SWITCH($D$8,"Lateral",K197,"PON",L197,J197) -> 0 | D197: FT | E197: =$J$2*2.5 -> 2.5 | F197: =IFERROR(C197*E197,0) -> 0 | G197: Ft of fiber that needs to be pulled into a building. Qtys from design | K197: =$F$8*100 -> 23100
A198: =A197+1 -> 162 | B198: Install 2" Electric Metal Tubing (EMT) | C198: =_xlfn.SWITCH($D$8,"Lateral",K198,"PON",L198,J198) -> 0 | D198: LF | E198: =$J$2*2.5 -> 2.5 | F198: =ROUND(IFERROR(C198*E198,0),2) -> 0 | G198: Used if any Electrical conduit needs to be installed
A199: =A198+1 -> 163 | B199: 4" Core Bore | C199: =_xlfn.SWITCH($D$8,"Lateral",K199,"PON",L199,J199) -> 0 | D199: EA | E199: =$J$2*450 -> 450 | F199: 0 | G199: If any buildings need to be drilled to for fiber/conduit entrance | K199: =$F$8 -> 231
A200: 164 | B200: 2" Building Riser with LB - Up to 10' | C200: =_xlfn.SWITCH($D$8,"Lateral",K200,"PON",L200,J200) -> 0 | D200: EA | E200: =$J$2*1000 -> 1000 | F200: 0 | G200: If any building entracnes needed | K200: =$F$8 -> 231
A201: 165 | B201: Install Nema Enclosure | C201: =_xlfn.SWITCH($D$8,"Lateral",K201,"PON",L201,J201) -> 0 | D201: EA | E201: =$J$2*600 -> 600 | F201: 0 | G201: If any generic enclosures are needed to be installed | K201: =$F$8 -> 231
A202: 166 | C202: 0 | F202: 0
A203: 167 | C203: 0 | F203: 0
A204: 168 | C204: 0 | F204: 0
A205: 169 | C205: 0 | F205: 0
A206: 170 | C206: 0 | F206: 0
... 285 more rows

Sheet DIST-002
A1: [CLIENT NAME] - FIBER CONSTRUCTION PROJECT - ATTACHMENT X: PRICING PROPOSAL FORM | I1: =MID(CELL("filename",A1),FIND("]",CELL("filename",A1))+1,256) -> DIST-002
B2: Contractor: | I2: =IFERROR(IF(D14>=0,D14,0),0) -> 0 | J2: =1+(L2) -> 1 | L2: =IF(I2<10,I2,0) -> 0
B3: Contact Name/Position: | I3: 0.3 | J3: =IF($D$14="Urban",$K$3,0.01) -> 0.01 | K3: 0.15 | L3: =IF($F$14="Prevailing Wage",I3,0) -> 0
B4: Email:
B5: Phone: | I5: ADSS | J5: =IFERROR(IF($F$14="ADSS",1,0),0) -> 0
I6: Strand/Lash | J6: =IF($J$5=0,1,0) -> 1
A7: Items with listed quantities are included in the current design, but [CLIENT NAME] requests costs for all the items should the item be needed due to design alterations. All proposed unit costs must be guaranteed for the term of the project unless expressly agreed upon by [CLIENT NAME].
C8: BB, Lateral, PON (This is for HLD estimates, this does not matter for LLD): | D8: PON | E8: Mileage | F8: =SUM(F9:F11) -> 243 | G8: Total Passings
C9: Total Design with underground overbuild % (F12) Footage/Miles: | D9: =D11+(D10*(1+F12)) -> 26147.5 | E9: =ROUND(D9/5280,2) -> 4.95 | F9: =INDEX(Summary!$B$1:$BA$15,4,MATCH($I$1,Summary!$1:$1,0)-1) -> 243 | G9: Residential
C10: Buried: | D10: =INDEX(Summary!$B$1:$BA$15,2,MATCH($I$1,Summary!$1:$1,0)-1) -> 23850 | E10: =ROUND(D10/5280,2) -> 4.52 | F10: =INDEX(Summary!$B$1:$BA$15,5,MATCH($I$1,Summary!$1:$1,0)-1) -> - | G10: Business
C11: Aerial: | D11: =INDEX(Summary!$B$1:$BA$15,3,MATCH($I$1,Summary!$1:$1,0)-1) -> 1105 | E11: =ROUND(D11/5280,2) -> 0.21 | F11: =INDEX(Summary!$B$1:$BA$15,6,MATCH($I$1,Summary!$1:$1,0)-1) -> - | G11: Anchor
C12: Region for unit pricing | D12: MidWest | E12: Actual Buried | F12: 0.05 | G12: Underground overbuild percentage (If using centerline for PON assume 75%)
C13: Use MST's? (Only changes PON estimates) | D13: No MST | E13: =D10*(1+F12) -> 25042.5 | F13: 0 | G13: Rock Percentage
C14: Labor Rate Adjustment (Use this if you want to add additional costs to wage i.e. prevailing wage ~30%) | D14: 0 | E14: =ROUND(E13/5280,2) -> 4.74 | F14: Strand and Lash | G14: Aerial (Strand and Lash or ADSS)
A15: UNIT PRICING | J15: HLD estimates
A16: LABOR PRICING. All work includes traffic control plans, setup, maintenance and breakdown, compacted backfill, stormwater and erosion control setup, maintenance and breakdown, safety compliance and soft surface restoration. All cells shown in green shall be completed by the Contractor. All other cells are protected in this form. | I16: Percentage | J16: BB | K16: Lateral | L16: GPON
A17: Item # | B17: Description | C17: Estimated Quantity | D17: Unit | E17: Unit Price | F17: Total | G17: Notes | N17: micro | O17: 1" | P17: 1.25" | Q17: 2" | R17: 4" | S17: 6" | T17: 8" | V17: =CONCATENATE(N17," len") -> micro len | W17: =CONCATENATE(O17," len") -> 1" len | X17: 1.25" len | Y17: 2" len | Z17: 4" len | AA17: 6" len | AB17: 8" len
B18: UNDERGROUND - BURIED | V18: =SUM(V19:V50) -> 0 | W18: =SUM(W19:W50) -> 31304 | X18: 0 | Y18: 25043 | Z18: 0 | AA18: 12 | AB18: 12
A19: 1 | B19: Directional Bore (1) 1" | C19: =_xlfn.SWITCH($D$8,"Lateral",K19,"PON",L19,J19) -> 0 | D19: LF | E19: =INDEX('UNIT PRICE TABLE'!$A$1:$G$58,MATCH(B19,'UNIT PRICE TABLE'!$A$1:$A$58,0),MATCH($D$12,Region,0)+1)*$J$2 -> 10.25 | F19: =ROUND(IFERROR(C19*E19,0),2) -> 0 | G19: *Get updated pricing from Clayton first* Total Underground lengths. BB and Lateral add 5% for variance, PON may need to update variance in cell F12 | I19: 0 | J19: =ROUNDUP($D$10*(1+$F$12)*$I19,0) -> 0 | K19: =$J19 -> 0 | L19: =$J19 -> 0 | N19: 0 | O19: 1 | P19: 0 | Q19: 0 | R19: 0 | S19: 0 | T19: 0 | V19: =N19*$J19 -> 0 | W19: =O19*$J19 -> 0 | X19: 0 | Y19: 0 | Z19: 0 | AA19: 0 | AB19: 0
A20: =A19+1 -> 2 | B20: Directional Bore (2) 1" | C20: =_xlfn.SWITCH($D$8,"Lateral",K20,"PON",L20,J20) -> 0 | D20: LF | E20: =INDEX('UNIT PRICE TABLE'!$A$1:$G$58,MATCH(B20,'UNIT PRICE TABLE'!$A$1:$A$58,0),MATCH($D$12,Region,0)+1)*$J$2 -> 10.25 | F20: 0 | G20: *Get updated pricing from Clayton first* Total Underground lengths. BB and Lateral add 5% for variance, PON may need to update variance in cell F12 | I20: 0 | J20: =ROUNDUP($D$10*(1+$F$12)*$I20,0) -> 0 | K20: =$J20 -> 0 | L20: 0 | N20: 0 | O20: 2 | P20: 0 | Q20: 0 | R20: 0 | S20: 0 | T20: 0 | V20: =N20*$J20 -> 0 | W20: 0 | X20: 0 | Y20: 0 | Z20: 0 | AA20: 0 | AB20: 0
A21: =A20+1 -> 3 | B21: Directional Bore (1) 2" | C21: =_xlfn.SWITCH($D$8,"Lateral",K21,"PON",L21,J21) -> 0 | D21: LF | E21: =INDEX('UNIT PRICE TABLE'!$A$1:$G$58,MATCH(B21,'UNIT PRICE TABLE'!$A$1:$A$58,0),MATCH($D$12,Region,0)+1)*$J$2 -> 11.75 | F21: 0 | G21: *Get updated pricing from Clayton first* Total Underground lengths. BB and Lateral add 5% for variance, PON may need to update variance in cell F12 | I21: 0 | J21: 0 | K21: 0 | L21: 0 | N21: 0 | O21: 0 | P21: 0 | Q21: 1 | R21: 0 | S21: 0 | T21: 0 | V21: 0 | W21: 0 | X21: 0 | Y21: 0 | Z21: 0 | AA21: 0 | AB21: 0
A22: 4 | B22: Directional Bore (1) 2" and (1) 1" | C22: =_xlfn.SWITCH($D$8,"Lateral",K22,"PON",L22,J22) -> 18782 | D22: LF | E22: =INDEX('UNIT PRICE TABLE'!$A$1:$G$58,MATCH(B22,'UNIT PRICE TABLE'!$A$1:$A$58,0),MATCH($D$12,Region,0)+1)*$J$2 -> 11.75 | F22: 220688.5 | G22: *Get updated pricing from Clayton first* Total Underground lengths. BB and Lateral add 5% for variance, PON may need to update variance in cell F12 | I22: 0.75 | J22: 18782 | K22: 18782 | L22: 18782 | N22: 0 | O22: 1 | P22: 0 | Q22: 1 | R22: 0 | S22: 0 | T22: 0 | V22: 0 | W22: 18782 | X22: 0 | Y22: 18782 | Z22: 0 | AA22: 0 | AB22: 0
A23: 5 | B23: Directional Bore (1) 2" and (2) 1" | C23: =_xlfn.SWITCH($D$8,"Lateral",K23,"PON",L23,J23) -> 6261 | D23: LF | E23: =INDEX('UNIT PRICE TABLE'!$A$1:$G$58,MATCH(B23,'UNIT PRICE TABLE'!$A$1:$A$58,0),MATCH($D$12,Region,0)+1)*$J$2 -> 16.94 | F23: 106061.34 | G23: *Get updated pricing from Clayton first* Total Underground lengths. BB and Lateral add 5% for variance, PON may need to update variance in cell F12 | I23: 0.25 | J23: 6261 | K23: 6261 | L23: 6261 | N23: 0 | O23: 2 | P23: 0 | Q23: 1 | R23: 0 | S23: 0 | T23: 0 | V23: 0 | W23: 12522 | X23: 0 | Y23: 6261 | Z23: 0 | AA23: 0 | AB23: 0
A24: 6 | B24: Directional Bore (2) 2" | C24: =_xlfn.SWITCH($D$8,"Lateral",K24,"PON",L24,J24) -> 0 | D24: LF | E24: =INDEX('UNIT PRICE TABLE'!$A$1:$G$58,MATCH(B24,'UNIT PRICE TABLE'!$A$1:$A$58,0),MATCH($D$12,Region,0)+1)*$J$2 -> 16.94 | F24: 0 | G24: *Get updated pricing from Clayton first* Total Underground lengths. BB and Lateral add 5% for variance, PON may need to update variance in cell F12 | I24: 0 | J24: 0 | K24: 0 | L24: 0 | N24: 0 | O24: 0 | P24: 0 | Q24: 2 | R24: 0 | S24: 0 | T24: 0 | V24: 0 | W24: 0 | X24: 0 | Y24: 0 | Z24: 0 | AA24: 0 | AB24: 0
A25: 7 | B25: Directional Bore (2) 2" and (1) 1" | C25: =_xlfn.SWITCH($D$8,"Lateral",K25,"PON",L25,J25) -> 0 | D25: LF | E25: =INDEX('UNIT PRICE TABLE'!$A$1:$G$58,MATCH(B25,'UNIT PRICE TABLE'!$A$1:$A$58,0),MATCH($D$12,Region,0)+1)*$J$2 -> 18.66 | F25: 0 | G25: *Get updated pricing from Clayton first* Total Underground lengths. BB and Lateral add 5% for variance, PON may need to update variance in cell F12 | I25: 0 | J25: 0 | K25: 0 | L25: 0 | N25: 0 | O25: 1 | P25: 0 | Q25: 2 | R25: 0 | S25: 0 | T25: 0 | V25: 0 | W25: 0 | X25: 0 | Y25: 0 | Z25: 0 | AA25: 0 | AB25: 0
A26: 8 | B26: Directional Bore (3) 2" | C26: =_xlfn.SWITCH($D$8,"Lateral",K26,"PON",L26,J26) -> 0 | D26: LF | E26: =INDEX('UNIT PRICE TABLE'!$A$1:$G$58,MATCH(B26,'UNIT PRICE TABLE'!$A$1:$A$58,0),MATCH($D$12,Region,0)+1)*$J$2 -> 21.4 | F26: 0 | G26: *Get updated pricing from Clayton first* Total Underground lengths. BB and Lateral add 5% for variance, PON may need to update variance in cell F12 | I26: 0 | J26: 0 | K26: 0 | L26: 0 | N26: 0 | O26: 0 | P26: 0 | Q26: 3 | R26: 0 | S26: 0 | T26: 0 | V26: 0 | W26: 0 | X26: 0 | Y26: 0 | Z26: 0 | AA26: 0 | AB26: 0
A27: 9 | B27: Directional Bore (3) 2" and (1) 1" | C27: =_xlfn.SWITCH($D$8,"Lateral",K27,"PON",L27,J27) -> 0 | D27: LF | E27: =INDEX('UNIT PRICE TABLE'!$A$1:$G$58,MATCH(B27,'UNIT PRICE TABLE'!$A$1:$A$58,0),MATCH($D$12,Region,0)+1)*$J$2 -> 24.39 | F27: 0 | G27: *Get updated pricing from Clayton first* Total Underground lengths. BB and Lateral add 5% for variance, PON may need to update variance in cell F12 | I27: 0 | J27: 0 | K27: 0 | L27: 0 | N27: 0 | O27: 1 | P27: 0 | Q27: 3 | R27: 0 | S27: 0 | T27: 0 | V27: 0 | W27: 0 | X27: 0 | Y27: 0 | Z27: 0 | AA27: 0 | AB27: 0
A28: 10 | B28: Directional Bore (3) 2" and (2) 1" | C28: =_xlfn.SWITCH($D$8,"Lateral",K28,"PON",L28,J28) -> 0 | D28: LF | E28: =INDEX('UNIT PRICE TABLE'!$A$1:$G$58,MATCH(B28,'UNIT PRICE TABLE'!$A$1:$A$58,0),MATCH($D$12,Region,0)+1)*$J$2 -> 26.7 | F28: 0 | G28: *Get updated pricing from Clayton first* Total Underground lengths. BB and Lateral add 5% for variance, PON may need to update variance in cell F12 | I28: 0 | J28: 0 | K28: 0 | L28: 0 | N28: 0 | O28: 2 | P28: 0 | Q28: 3 | R28: 0 | S28: 0 | T28: 0 | V28: 0 | W28: 0 | X28: 0 | Y28: 0 | Z28: 0 | AA28: 0 | AB28: 0
A29: 11 | B29: Directional Bore (4) 2" | C29: =_xlfn.SWITCH($D$8,"Lateral",K29,"PON",L29,J29) -> 0 | D29: LF | E29: =INDEX('UNIT PRICE TABLE'!$A$1:$G$58,MATCH(B29,'UNIT PRICE TABLE'!$A$1:$A$58,0),MATCH($D$12,Region,0)+1)*$J$2 -> 28.93 | F29: 0 | G29: *Get updated pricing from Clayton first* Total Underground lengths. BB and Lateral add 5% for variance, PON may need to update variance in cell F12 | I29: 0 | J29: 0 | K29: 0 | L29: 0 | N29: 0 | O29: 0 | P29: 0 | Q29: 4 | R29: 0 | S29: 0 | T29: 0 | V29: 0 | W29: 0 | X29: 0 | Y29: 0 | Z29: 0 | AA29: 0 | AB29: 0
A30: 12 | B30: Directional Bore (1) 4" | C30: =_xlfn.SWITCH($D$8,"Lateral",K30,"PON",L30,J30) -> 0 | D30: LF | E30: =INDEX('UNIT PRICE TABLE'!$A$1:$G$58,MATCH(B30,'UNIT PRICE TABLE'!$A$1:$A$58,0),MATCH($D$12,Region,0)+1)*$J$2 -> 12 | F30: 0 | G30: *Get updated pricing from Clayton first* Total Underground lengths. BB and Lateral add 5% for variance, PON may need to update variance in cell F12 | I30: 0 | J30: 0 | K30: 0 | L30: 0 | N30: 0 | O30: 0 | P30: 0 | Q30: 0 | R30: 1 | S30: 0 | T30: 0 | V30: 0 | W30: 0 | X30: 0 | Y30: 0 | Z30: 0 | AA30: 0 | AB30: 0
A31: 13 | B31: Directional Bore (1) 1 1/4" | C31: =_xlfn.SWITCH($D$8,"Lateral",K31,"PON",L31,J31) -> 0 | D31: LF | E31: =INDEX('UNIT PRICE TABLE'!$A$1:$G$58,MATCH(B31,'UNIT PRICE TABLE'!$A$1:$A$58,0),MATCH($D$12,Region,0)+1)*$J$2 -> 12 | F31: 0 | G31: *Get updated pricing from Clayton first* Total Underground lengths. BB and Lateral add 5% for variance, PON may need to update variance in cell F12 | I31: 0 | J31: 0 | K31: 0 | L31: 0 | N31: 0 | O31: 0 | P31: 1 | Q31: 0 | R31: 0 | S31: 0 | T31: 0 | V31: 0 | W31: 0 | X31: 0 | Y31: 0 | Z31: 0 | AA31: 0 | AB31: 0
A32: 14 | B32: Directional Bore (2) 1 1/4" | C32: =_xlfn.SWITCH($D$8,"Lateral",K32,"PON",L32,J32) -> 0 | D32: LF | E32: =INDEX('UNIT PRICE TABLE'!$A$1:$G$58,MATCH(B32,'UNIT PRICE TABLE'!$A$1:$A$58,0),MATCH($D$12,Region,0)+1)*$J$2 -> 16 | F32: 0 | G32: *Get updated pricing from Clayton first* Total Underground lengths. BB and Lateral add 5% for variance, PON may need to update variance in cell F12 | I32: 0 | J32: 0 | K32: 0 | L32: 0 | N32: 0 | O32: 0 | P32: 2 | Q32: 0 | R32: 0 | S32: 0 | T32: 0 | V32: 0 | W32: 0 | X32: 0 | Y32: 0 | Z32: 0 | AA32: 0 | AB32: 0
A33: 15 | B33: Directional Bore (3) 1 1/4" | C33: =_xlfn.SWITCH($D$8,"Lateral",K33,"PON",L33,J33) -> 0 | D33: LF | E33: =INDEX('UNIT PRICE TABLE'!$A$1:$G$58,MATCH(B33,'UNIT PRICE TABLE'!$A$1:$A$58,0),MATCH($D$12,Region,0)+1)*$J$2 -> 18 | F33: 0 | G33: *Get updated pricing from Clayton first* Total Underground lengths. BB and Lateral add 5% for variance, PON may need to update variance in cell F12 | I33: 0 | J33: 0 | K33: 0 | L33: 0 | N33: 0 | O33: 0 | P33: 3 | Q33: 0 | R33: 0 | S33: 0 | T33: 0 | V33: 0 | W33: 0 | X33: 0 | Y33: 0 | Z33: 0 | AA33: 0 | AB33: 0
A34: 16 | B34: Directional Bore (4) 1 1/4" | C34: =_xlfn.SWITCH($D$8,"Lateral",K34,"PON",L34,J34) -> 0 | D34: LF | E34: =INDEX('UNIT PRICE TABLE'!$A$1:$G$58,MATCH(B34,'UNIT PRICE TABLE'!$A$1:$A$58,0),MATCH($D$12,Region,0)+1)*$J$2 -> 24 | F34: 0 | G34: *Get updated pricing from Clayton first* Total Underground lengths. BB and Lateral add 5% for variance, PON may need to update variance in cell F12 | I34: 0 | J34: 0 | K34: 0 | L34: 0 | N34: 0 | O34: 0 | P34: 4 | Q34: 0 | R34: 0 | S34: 0 | T34: 0 | V34: 0 | W34: 0 | X34: 0 | Y34: 0 | Z34: 0 | AA34: 0 | AB34: 0
A35: 17 | B35: Microtrenching (Narrow Band Trenching) upto 12" deep | C35: =_xlfn.SWITCH($D$8,"Lateral",K35,"PON",L35,J35) -> 0 | D35: LF | E35: =$J$2*11.54 -> 11.54 | F35: 0 | G35: Add 5% for variance | I35: 0 | J35: 0 | K35: 0 | L35: 0 | N35: 1 | O35: 0 | P35: 0 | Q35: 0 | R35: 0 | S35: 0 | T35: 0 | V35: 0 | W35: 0 | X35: 0 | Y35: 0 | Z35: 0 | AA35: 0 | AB35: 0
A36: 18 | B36: Microtrenching (Narrow Band Trenching) upto 18" deep | C36: =_xlfn.SWITCH($D$8,"Lateral",K36,"PON",L36,J36) -> 0 | D36: LF | E36: =$J$2*13.85 -> 13.85 | F36: 0 | G36: Add 5% for variance | I36: 0 | J36: 0 | K36: 0 | L36: 0 | N36: 1 | O36: 0 | P36: 0 | Q36: 0 | R36: 0 | S36: 0 | T36: 0 | V36: 0 | W36: 0 | X36: 0 | Y36: 0 | Z36: 0 | AA36: 0 | AB36: 0
A37: 19 | B37: Microtrenching (Narrow Band Trenching) upto 24" deep | C37: =_xlfn.SWITCH($D$8,"Lateral",K37,"PON",L37,J37) -> 0 | D37: LF | E37: =$J$2*18.46 -> 18.46 | F37: 0 | G37: Add 5% for variance | I37: 0 | J37: 0 | K37: 0 | L37: 0 | N37: 1 | O37: 0 | P37: 0 | Q37: 0 | R37: 0 | S37: 0 | T37: 0 | V37: 0 | W37: 0 | X37: 0 | Y37: 0 | Z37: 0 | AA37: 0 | AB37: 0
A38: 20 | B38: Vibratory Plow 4' deep (1) 2" | C38: =_xlfn.SWITCH($D$8,"Lateral",K38,"PON",L38,J38) -> 0 | D38: LF | E38: =$J$2*75 -> 75 | F38: 0 | G38: Add 5% for variance | I38: 0 | J38: 0 | K38: 0 | L38: 0 | N38: 0 | O38: 0 | P38: 0 | Q38: 1 | R38: 0 | S38: 0 | T38: 0 | V38: 0 | W38: 0 | X38: 0 | Y38: 0 | Z38: 0 | AA38: 0 | AB38: 0
A39: 21 | B39: Vibratory Plow 4' deep (2) 2" | C39: =_xlfn.SWITCH($D$8,"Lateral",K39,"PON",L39,J39) -> 0 | D39: LF | E39: =$J$2*75 -> 75 | F39: 0 | G39: Add 5% for variance | I39: 0 | J39: 0 | K39: 0 | L39: 0 | N39: 0 | O39: 0 | P39: 0 | Q39: 2 | R39: 0 | S39: 0 | T39: 0 | V39: 0 | W39: 0 | X39: 0 | Y39: 0 | Z39: 0 | AA39: 0 | AB39: 0
A40: 22 | B40: Open Cut & Trench (1) 2" at 30" Minimum Depth of Cover | C40: =_xlfn.SWITCH($D$8,"Lateral",K40,"PON",L40,J40) -> 0 | D40: LF | E40: =$J$2*60 -> 60 | F40: 0 | G40: Add 5% for variance | I40: 0 | J40: 0 | K40: 0 | L40: 0 | N40: 0 | O40: 0 | P40: 0 | Q40: 1 | R40: 0 | S40: 0 | T40: 0 | V40: 0 | W40: 0 | X40: 0 | Y40: 0 | Z40: 0 | AA40: 0 | AB40: 0
A41: 23 | B41: Open Cut & Trench (2) 2" at 30" Minimum Depth of Cover | C41: =_xlfn.SWITCH($D$8,"Lateral",K41,"PON",L41,J41) -> 0 | D41: LF | E41: =$J$2*65 -> 65 | F41: 0 | G41: Add 5% for variance | I41: 0 | J41: 0 | K41: 0 | L41: 0 | N41: 0 | O41: 0 | P41: 0 | Q41: 2 | R41: 0 | S41: 0 | T41: 0 | V41: 0 | W41: 0 | X41: 0 | Y41: 0 | Z41: 0 | AA41: 0 | AB41: 0
A42: 24 | B42: Open Cut & Trench (3) 2" at 30" Minimum Depth of Cover | C42: =_xlfn.SWITCH($D$8,"Lateral",K42,"PON",L42,J42) -> 0 | D42: LF | E42: =$J$2*70 -> 70 | F42: 0 | G42: Add 5% for variance | I42: 0 | J42: 0 | K42: 0 | L42: 0 | N42: 0 | O42: 0 | P42: 0 | Q42: 3 | R42: 0 | S42: 0 | T42: 0 | V42: 0 | W42: 0 | X42: 0 | Y42: 0 | Z42: 0 | AA42: 0 | AB42: 0
A43: 25 | B43: Open Cut & Trench (4) 2" at 30" Minimum Depth of Cover | C43: =_xlfn.SWITCH($D$8,"Lateral",K43,"PON",L43,J43) -> 0 | D43: LF | E43: =$J$2*75 -> 75 | F43: 0 | G43: Add 5% for variance | I43: 0 | J43: 0 | K43: 0 | L43: 0 | N43: 0 | O43: 0 | P43: 0 | Q43: 4 | R43: 0 | S43: 0 | T43: 0 | V43: 0 | W43: 0 | X43: 0 | Y43: 0 | Z43: 0 | AA43: 0 | AB43: 0
A44: 26 | B44: Sleeve existing 4" conduit (3) 1 1/4" | C44: =_xlfn.SWITCH($D$8,"Lateral",K44,"PON",L44,J44) -> 0 | D44: LF | E44: =$J$2*11.96 -> 11.96 | F44: 0 | G44: Dependent on build | I44: 0 | J44: 0 | K44: 0 | L44: 0 | N44: 0 | O44: 0 | P44: 3 | Q44: 0 | R44: 0 | S44: 0 | T44: 0 | V44: 0 | W44: 0 | X44: 0 | Y44: 0 | Z44: 0 | AA44: 0 | AB44: 0
A45: 27 | B45: Pull (4) 2" sdr 11 conduits in 8" casing | C45: =_xlfn.SWITCH($D$8,"Lateral",K45,"PON",L45,J45) -> 0 | D45: FT | E45: =$J$2*15 -> 15 | F45: 0 | G45: Dependent on build (Some RR, DOT, and water crossings need steel casings) | I45: 0 | J45: 0 | K45: 0 | L45: 0 | N45: 0 | O45: 0 | P45: 0 | Q45: 4 | R45: 0 | S45: 0 | T45: 0 | V45: 0 | W45: 0 | X45: 0 | Y45: 0 | Z45: 0 | AA45: 0 | AB45: 0
A46: 28 | B46: Bore 6” Casing (Steel) | C46: =_xlfn.SWITCH($D$8,"Lateral",K46,"PON",L46,J46) -> 6 | D46: LF | E46: =$J$2*125 -> 125 | F46: =ROUND(IFERROR(C46*E46,0),2) -> 750 | G46: This would be for RR, DOT, Waterway or other crossing. Estimate is 0.025% of Buried total. | J46: =ROUNDUP(0.00025*$D$10,0) -> 6 | K46: =ROUNDUP(0.00025*$D$10,0) -> 6 | L46: 6 | N46: 0 | O46: 0 | P46: 0 | Q46: 0 | R46: 0 | S46: 0 | T46: 1 | V46: 0 | W46: 0 | X46: 0 | Y46: 0 | Z46: 0 | AA46: 0 | AB46: 6
A47: 29 | B47: Bore 6” Casing (PVC) | C47: =_xlfn.SWITCH($D$8,"Lateral",K47,"PON",L47,J47) -> 6 | D47: LF | E47: =$J$2*100 -> 100 | F47: =ROUND(IFERROR(C47*E47,0),2) -> 600 | G47: This would be for RR, DOT, Waterway or other crossing. Estimate is 0.025% of Buried total. | J47: =ROUNDUP(0.00025*$D$10,0) -> 6 | K47: 6 | L47: 6 | N47: 0 | O47: 0 | P47: 0 | Q47: 0 | R47: 0 | S47: 1 | T47: 0 | V47: =N47*$J47 -> 0 | W47: 0 | X47: 0 | Y47: 0 | Z47: 0 | AA47: 6 | AB47: 0
A48: 30 | B48: Bore 8” Casing (Steel) | C48: =_xlfn.SWITCH($D$8,"Lateral",K48,"PON",L48,J48) -> 6 | D48: LF | E48: =$J$2*125 -> 125 | F48: =ROUND(IFERROR(C48*E48,0),2) -> 750 | G48: This would be for RR, DOT, Waterway or other crossing. Estimate is 0.025% of Buried total. | J48: 6 | K48: 6 | L48: 6 | N48: 0 | O48: 0 | P48: 0 | Q48: 0 | R48: 0 | S48: 0 | T48: 1 | V48: 0 | W48: 0 | X48: 0 | Y48: 0 | Z48: 0 | AA48: 0 | AB48: 6
A49: 31 | B49: Bore 8” Casing (PVC) | C49: =_xlfn.SWITCH($D$8,"Lateral",K49,"PON",L49,J49) -> 6 | D49: LF | E49: =$J$2*100 -> 100 | F49: =ROUND(IFERROR(C49*E49,0),2) -> 600 | G49: This would be for RR, DOT, Waterway or other crossing. Estimate is 0.025% of Buried total. | J49: 6 | K49: 6 | L49: 6 | N49: 0 | O49: 0 | P49: 0 | Q49: 0 | R49: 0 | S49: 1 | T49: 0 | V49: 0 | W49: 0 | X49: 0 | Y49: 0 | Z49: 0 | AA49: 6 | AB49: 0
A50: 32 | B50: Deep Bore - Water Crossing | C50: =_xlfn.SWITCH($D$8,"Lateral",K50,"PON",L50,J50) -> 0 | D50: LF | E50: =$J$2*350 -> 350 | F50: =ROUND(IFERROR(C50*E50,0),2) -> 0 | G50: Dependent on build | J50: 0 | K50: 0 | L50: 0 | N50: 0 | O50: 0 | P50: 0 | Q50: 0 | R50: 0 | S50: 0 | T50: 0 | V50: 0 | W50: 0 | X50: 0 | Y50: 0 | Z50: 0 | AA50: 0 | AB50: 0
A51: 33 | B51: Install Muletape in New Conduit | C51: =_xlfn.SWITCH($D$8,"Lateral",K51,"PON",L51,J51) -> 56371 | D51: FT | E51: =$J$2*0.33 -> 0.33 | F51: =ROUND(IFERROR(C51*E51,0),2) -> 18602.43 | G51: Should match length of empty conduits (BB and PON twice as much as URD footage) | J51: =SUM($V$18:$AB$18) -> 56371 | K51: =SUM($V$18:$AB$18) -> 56371 | L51: =SUM($V$18:$AB$18) -> 56371
A52: 34 | B52: Bore Rock Adder | C52: =_xlfn.SWITCH($D$8,"Lateral",K52,"PON",L52,J52) -> 0 | D52: LF | E52: =INDEX('UNIT PRICE TABLE'!$A$1:$G$58,MATCH(B52,'UNIT PRICE TABLE'!$A$1:$A$58,0),MATCH($D$12,Region,0)+1)*$J$2 -> 58.5 | F52: 0 | G52: *Get updated pricing from Clayton first* Dependent on build, Question for customer in data collection | J52: =ROUNDUP($F$13*$D$10,0) -> 0 | K52: =ROUNDUP($F$13*$D$10,0) -> 0 | L52: =ROUNDUP($F$13*$D$10,0) -> 0
A53: 35 | B53: Trench Rock Adder | C53: =_xlfn.SWITCH($D$8,"Lateral",K53,"PON",L53,J53) -> 0 | D53: LF | E53: =$J$2*53.85 -> 53.85 | F53: 0 | G53: Dependent on build, Question for customer in data collection | J53: 0 | K53: 0 | L53: 0
A54: 36 | B54: Install #12 AWG Insulated Tracer Wire | C54: =_xlfn.SWITCH($D$8,"Lateral",K54,"PON",L54,J54) -> 25043 | D54: LF | E54: =INDEX('UNIT PRICE TABLE'!$A$1:$G$58,MATCH(B54,'UNIT PRICE TABLE'!$A$1:$A$58,0),MATCH($D$12,Region,0)+1)*$J$2 -> 0.33 | F54: 8264.19 | G54: should equal underground footage | J54: =ROUNDUP($D$10*(1+$F$12),0) -> 25043 | K54: =ROUNDUP($D$10*(1+$F$12),0) -> 25043 | L54: =ROUNDUP($D$10*(1+$F$12),0) -> 25043
A55: 37 | B55: Install 5/8"x8' Copper Clad Ground Rod | C55: =_xlfn.SWITCH($D$8,"Lateral",K55,"PON",L55,J55) -> 13 | D55: EA | E55: =$J$2*25 -> 25 | F55: 325 | G55: Get qtys from design, if not specified assume 1 ever 2,000ft | J55: =ROUNDUP(($D$10*(1+$F$12))/2000,0) -> 13 | K55: =ROUNDUP(($D$10*(1+$F$12))/2000,0) -> 13 | L55: =ROUNDUP(($D$10*(1+$F$12))/2000,0) -> 13
A56: 38 | B56: Install 3.5" Dia PVC Round Marker Posts with Orange Dome Top | C56: =_xlfn.SWITCH($D$8,"Lateral",K56,"PON",L56,J56) -> 76 | D56: EA | E56: =INDEX('UNIT PRICE TABLE'!$A$1:$G$58,MATCH(B56,'UNIT PRICE TABLE'!$A$1:$A$58,0),MATCH($D$12,Region,0)+1)*$J$2 -> 45 | F56: 3420 | G56: Get qtys from design, can estimate 75% of handholes | J56: =ROUNDUP(J70*0.75,0) -> 30 | K56: =ROUNDUP(K69*0.75,0) -> 45 | L56: =ROUNDUP(L69*0.75,0) -> 76
A57: 39 | B57: Install 3.5" Dia PVC Round Marker Posts with Orange Dome Top with Test Station | C57: =_xlfn.SWITCH($D$8,"Lateral",K57,"PON",L57,J57) -> 26 | D57: EA | E57: =INDEX('UNIT PRICE TABLE'!$A$1:$G$58,MATCH(B57,'UNIT PRICE TABLE'!$A$1:$A$58,0),MATCH($D$12,Region,0)+1)*$J$2 -> 65 | F57: 1690 | G57: Get qtys from design, can estimate 25% of handholes | J57: =ROUNDUP(J70*0.25,0) -> 10 | K57: =ROUNDUP(K69*0.25,0) -> 15 | L57: =ROUNDUP(L69*0.25,0) -> 26
A58: 40 | B58: Install RFID Ball/Peg Markers | C58: =_xlfn.SWITCH($D$8,"Lateral",K58,"PON",L58,J58) -> 0 | D58: EA | E58: =$J$2*30 -> 30 | F58: 0 | G58: Dependent on build, Question for customer in data collection | J58: 0 | K58: 0 | L58: 0
A59: 41 | B59: Install RFID Rope | C59: =_xlfn.SWITCH($D$8,"Lateral",K59,"PON",L59,J59) -> 0 | D59: LF | E59: =$J$2*1.5 -> 1.5 | F59: 0 | G59: Dependent on build, Question for customer in data collection | J59: 0 | K59: 0 | L59: 0
A60: 42 | B60: Proof Existing Conduit - any size | C60: =_xlfn.SWITCH($D$8,"Lateral",K60,"PON",L60,J60) -> 0 | D60: LF | E60: =$J$2*1.54 -> 1.54 | F60: 0 | G60: Dependent on build, Question for customer in data collection | J60: 0 | K60: 0 | L60: 0
A61: 43 | B61: Rod Existing Conduit and Install Pull Tape | C61: =_xlfn.SWITCH($D$8,"Lateral",K61,"PON",L61,J61) -> 0 | D61: LF | E61: =$J$2*1.15 -> 1.15 | F61: 0 | G61: Dependent on build, Question for customer in data collection | J61: 0 | K61: 0 | L61: 0
A62: 44 | B62: Remove existing cable - i.e. coax/twisted pair in street light conduits to replace with fiber | C62: =_xlfn.SWITCH($D$8,"Lateral",K62,"PON",L62,J62) -> 0 | D62: LF | E62: =$J$2*1.92 -> 1.92 | F62: 0 | G62: Dependent on build, Question for customer in data collection | J62: 0 | K62: 0 | L62: 0
A63: 45 | B63: Installation, Underground Fiber Cable - Including Slack (2ct Fiber) | C63: =_xlfn.SWITCH($D$8,"Lateral",K63,"PON",L63,J63) -> 0 | D63: LF | E63: =$J$2*1 -> 1 | F63: 0 | G63: Add 5% for variance | J63: 0 | K63: 0 | L63: 0
A64: 46 | B64: Installation, Underground Fiber Cable - Including Slack (All other fiber) | C64: =_xlfn.SWITCH($D$8,"Lateral",K64,"PON",L64,J64) -> 32618 | D64: LF | E64: =INDEX('UNIT PRICE TABLE'!$A$1:$G$58,MATCH(B64,'UNIT PRICE TABLE'!$A$1:$A$58,0),MATCH($D$12,Region,0)+1)*$J$2 -> 1.25 | F64: 40772.5 | G64: *Get updated pricing from Clayton first* underground footage & 100' slack from Ring Cuts and 55' for Butt splices (Estimated as URD footage + 75' per HH) | J64: =ROUNDUP(($D$10*(1+$F$12))+(J70*75),0) -> 28043 | K64: =ROUNDUP(($D$10*(1+$F$12))+(K69*75),0) -> 29543 | L64: =ROUNDUP(($D$10*(1+$F$12))+(L69*75),0) -> 32618
A65: 47 | B65: Installation, MST in Pedestal | C65: =_xlfn.SWITCH($D$8,"Lateral",K65,"PON",L65,J65) -> 0 | D65: EA | E65: =$J$2*50 -> 50 | F65: 0 | G65: Get qtys from design | J65: 0 | K65: 0 | L65: =$L$303 -> 0
A66: 48 | B66: Installation, Pedestal | C66: =_xlfn.SWITCH($D$8,"Lateral",K66,"PON",L66,J66) -> 0 | D66: EA | E66: =$J$2*60 -> 60 | F66: 0 | G66: Get qtys from design | J66: 0 | K66: 0 | L66: =$L$303 -> 0
A67: 49 | B67: Installation, Drop Vault, 12" X 12" | C67: =_xlfn.SWITCH($D$8,"Lateral",K67,"PON",L67,J67) -> 59 | D67: EA | E67: =ROUNDUP($E$69*0.75,0) -> 263 | F67: 15517 | G67: Get qtys from design (AKA "Flowerpots") | J67: 0 | K67: 0 | L67: =IFERROR(ROUNDUP((($D$10/($D$10+$D$11))*$F$8)/4,0),0) -> 59
A68: 50 | B68: Installation, Small Vault, 17” x 30” | C68: =_xlfn.SWITCH($D$8,"Lateral",K68,"PON",L68,J68) -> 0 | D68: EA | E68: =$E$69 -> 350 | F68: 0 | G68: Get qtys from design | J68: 0 | K68: 0 | L68: 0
A69: 51 | B69: Installation, Vault 24" x 36" | C69: =_xlfn.SWITCH($D$8,"Lateral",K69,"PON",L69,J69) -> 101 | D69: EA | E69: =INDEX('UNIT PRICE TABLE'!$A$1:$G$58,MATCH(B69,'UNIT PRICE TABLE'!$A$1:$A$58,0),MATCH($D$12,Region,0)+1)*$J$2 -> 350 | F69: 35350 | G69: *Get updated pricing from Clayton first* BB every 600', Lateral every 400', PON every 250' | J69: 0 | K69: =ROUNDUP($D$10/400,0) -> 60 | L69: =ROUNDUP(($D$10*(1+$F$12))/250,0) -> 101
A70: 52 | B70: Installation, Large Vault 30" x 48" | C70: =_xlfn.SWITCH($D$8,"Lateral",K70,"PON",L70,J70) -> 0 | D70: EA | E70: =INDEX('UNIT PRICE TABLE'!$A$1:$G$58,MATCH(B70,'UNIT PRICE TABLE'!$A$1:$A$58,0),MATCH($D$12,Region,0)+1)*$J$2 -> 500 | F70: 0 | G70: *Get updated pricing from Clayton first* Get qtys from design | J70: =ROUNDUP($D$10/600,0) -> 40 | K70: 0 | L70: 0
A71: 53 | B71: Installation, Extra Large Vault 48" x 60" | C71: =_xlfn.SWITCH($D$8,"Lateral",K71,"PON",L71,J71) -> 0 | D71: EA | E71: =$J$2*1750 -> 1750 | F71: 0 | G71: Get qtys from design | J71: 0 | K71: 0 | L71: 0
A72: 54 | B72: Install 4'x4'x4' Split Concrete Manhole | C72: =_xlfn.SWITCH($D$8,"Lateral",K72,"PON",L72,J72) -> 0 | D72: EA | E72: =$J$2*6500 -> 6500 | F72: 0 | G72: Get qtys from design | J72: 0 | K72: 0 | L72: 0
A73: 55 | B73: Remove and Replace Handhole - including fixing sweeps into HH | C73: =_xlfn.SWITCH($D$8,"Lateral",K73,"PON",L73,J73) -> 0 | D73: EA | E73: =$J$2*3461.54 -> 3461.54 | G73: Get qtys from design
A74: 56 | B74: Prep and Pour Concrete Pad for POP Site | C74: =_xlfn.SWITCH($D$8,"Lateral",K74,"PON",L74,J74) -> 0 | D74: EA | E74: =$J$2*10000 -> 10000 | F74: =ROUND(IFERROR(C74*E74,0),2) -> 0 | G74: Get qtys from design | J74: 0 | K74: 0 | L74: 0
A75: 57 | B75: Sawcut, Remove and Replace Asphalt 6" Thick | C75: =_xlfn.SWITCH($D$8,"Lateral",K75,"PON",L75,J75) -> 1253 | D75: SqrFt | E75: =$J$2*23.08 -> 23.08 | F75: =ROUND(IFERROR(C75*E75,0),2) -> 28919.24 | G75: Use Col I to adjust percentage. 15% for Urban areas and 1% for rural are good high level estimates | I75: 0.05 | J75: =ROUNDUP(($D$10*(1+$F$12))*$I$75,0) -> 1253 | K75: =ROUNDUP(($D$10*(1+$F$12))*$I$75,0) -> 1253 | L75: 1253
A76: 58 | B76: Sawcut, Remove and Replace Concrete 6" Thick | C76: =_xlfn.SWITCH($D$8,"Lateral",K76,"PON",L76,J76) -> 1253 | D76: SqrFt | E76: =$J$2*26.69 -> 26.69 | F76: =ROUND(IFERROR(C76*E76,0),2) -> 33442.57 | G76: Use Col I to adjust percentage. 25% for Urban areas and 1% for rural are good high level estimates | I76: 0.05 | J76: =ROUNDUP(($D$10*(1+$F$12))*$I$76,0) -> 1253 | K76: =ROUNDUP(($D$10*(1+$F$12))*$I$76,0) -> 1253 | L76: =ROUNDUP(($D$10*(1+$F$12))*$I$76,0) -> 1253
A77: 59 | B77: Remove and Replace Brick Pavers | C77: =_xlfn.SWITCH($D$8,"Lateral",K77,"PON",L77,J77) -> 0 | D77: SqrFt | E77: =$J$2*38.46 -> 38.46 | F77: 0 | G77: Get qtys from design | J77: 0 | K77: 0 | L77: 0
A78: 60 | C78: 0 | F78: 0
A79: 61 | C79: 0 | F79: 0
A80: 62 | C80: 0 | F80: 0
A81: 63 | C81: 0 | F81: 0
A82: 64 | C82: 0 | F82: 0
A83: 65 | C83: 0 | F83: 0
A84: 66 | C84: 0 | F84: 0
A85: =A84+1 -> 67 | C85: 0 | F85: 0
B86: =B18 & " LABOR TOTAL" -> UNDERGROUND - BURIED LABOR TOTAL | F86: =SUM(F19:F85) -> 515752.77
B88: AERIAL -STRAND/LASH
A89: =A85+1 -> 68 | B89: Lash/Mount Closure | C89: =_xlfn.SWITCH($D$8,"Lateral",K89,"PON",L89,J89) -> 2 | D89: EA | E89: =$J$2*175 -> 175 | F89: =ROUND(IFERROR(C89*E89,0),2) -> 350 | G89: One per closure | J89: =IFERROR(ROUNDUP(J$157*($D$11/($D$10+$D$11)),0),0) -> 1 | K89: =IFERROR(ROUNDUP(K$157*($D$11/($D$10+$D$11)),0),0) -> 1 | L89: 2
A90: =A89+1 -> 69 | B90: Bond Strand/Guy to pole ground + materials | C90: =_xlfn.SWITCH($D$8,"Lateral",K90,"PON",L90,J90) -> 2 | D90: EA | E90: =$J$2*250 -> 250 | F90: 500 | G90: Bonding will be done at the first, every 5th, last poles, and all poles with a vertical. (Unless power company uses other standard). Estimated as total aerial footage / 180 / 4 | J90: =ROUNDUP(($D$11/180)/4,0)*$J$6 -> 2 | K90: =ROUNDUP(($D$11/180)/4,0)*$J$6 -> 2 | L90: =ROUNDUP(($D$11/180)/4,0)*$J$6 -> 2
A91: 70 | B91: Install Strand | C91: =_xlfn.SWITCH($D$8,"Lateral",K91,"PON",L91,J91) -> 1105 | D91: FT | E91: =INDEX('UNIT PRICE TABLE'!$A$1:$G$58,MATCH(B91,'UNIT PRICE TABLE'!$A$1:$A$58,0),MATCH($D$12,Region,0)+1)*$J$2 -> 1.8 | F91: 1989 | G91: *Get updated pricing from Clayton first* Match aerial footage - quote from contractor shall include attachement hardware | J91: =$D$11*$J$6 -> 1105 | K91: =$D$11*$J$6 -> 1105 | L91: =$D$11*$J$6 -> 1105
A92: 71 | B92: Install Snow Shoes | C92: =_xlfn.SWITCH($D$8,"Lateral",K92,"PON",L92,J92) -> 3 | D92: EA | E92: =$J$2*160 -> 160 | F92: 480 | G92: formula is for 2 for every slack location | J92: =ROUNDUP((J93/100)*2,0) -> 3 | K92: =ROUNDUP((K93/100)*2,0) -> 3 | L92: =ROUNDUP((L93/100)*2,0) -> 3
A93: 72 | B93: Install Aerial Slack | C93: =_xlfn.SWITCH($D$8,"Lateral",K93,"PON",L93,J93) -> 111 | D93: EA | E93: =$E$94 -> 2.34 | F93: 259.74 | G93: in this model - it assumes 100' of slack for every 1000' of aerial installation | J93: =ROUNDUP(($D$11/1000)*100,0) -> 111 | K93: =ROUNDUP(($D$11/1000)*100,0) -> 111 | L93: =ROUNDUP(($D$11/1000)*100,0) -> 111
A94: 73 | B94: Install / Lash Aerial Cable | C94: =_xlfn.SWITCH($D$8,"Lateral",K94,"PON",L94,J94) -> 1105 | D94: FT | E94: =INDEX('UNIT PRICE TABLE'!$A$1:$G$58,MATCH(B94,'UNIT PRICE TABLE'!$A$1:$A$58,0),MATCH($D$12,Region,0)+1)*$J$2 -> 2.34 | F94: 2585.7 | G94: *Get updated pricing from Clayton first* Match aerial footage | J94: =$D$11*$J$6 -> 1105 | K94: =$D$11*$J$6 -> 1105 | L94: =$D$11*$J$6 -> 1105
A95: 74 | B95: Tree Trimming | C95: =_xlfn.SWITCH($D$8,"Lateral",K95,"PON",L95,J95) -> 111 | D95: FT | E95: =INDEX('UNIT PRICE TABLE'!$A$1:$G$58,MATCH(B95,'UNIT PRICE TABLE'!$A$1:$A$58,0),MATCH($D$12,Region,0)+1)*$J$2 -> 4.75 | F95: 527.25 | G95: *Get updated pricing from Clayton first* Try and ID percentage. If unknown assume 10% of route needs tree trimming | J95: =ROUNDUP($D$11*0.1,0) -> 111 | K95: =ROUNDUP($D$11*0.1,0) -> 111 | L95: =ROUNDUP($D$11*0.1,0) -> 111
A96: 75 | B96: Install Pole Risers | C96: =_xlfn.SWITCH($D$8,"Lateral",K96,"PON",L96,J96) -> 1 | D96: EA | E96: =$J$2*308 -> 308 | F96: 308 | G96: assume 5% of poles - adjust as needed | J96: =ROUNDUP(($D$11/180)*0.05,0) -> 1 | K96: =ROUNDUP(($D$11/180)*0.05,0) -> 1 | L96: =ROUNDUP(($D$11/180)*0.05,0) -> 1
A97: 76 | B97: Install Down Guy & Anchors | C97: =_xlfn.SWITCH($D$8,"Lateral",K97,"PON",L97,J97) -> 1 | D97: EA | E97: =$J$2*385 -> 385 | F97: 385 | G97: assume 15% of poles - adjust as needed | J97: =ROUNDUP(($D$11/180)*0.15,0) -> 1 | K97: =ROUNDUP(($D$11/180)*0.15,0) -> 1 | L97: =ROUNDUP(($D$11/180)*0.15,0) -> 1
A98: 77 | B98: Pole Transfer / Make Ready (Straight Through) | C98: =_xlfn.SWITCH($D$8,"Lateral",K98,"PON",L98,J98) -> 1 | D98: EA | E98: =$J$2*193 -> 193 | F98: 193 | G98: assume 3% of poles - adjust as needed - This would be cost from MRE to move existing Comm. Price will vary depending on who is doing transfers/moves | J98: =ROUNDUP(($D$11/180)*0.033,0) -> 1 | K98: 1 | L98: 1
A99: 78 | B99: Pole Transfer / Make Ready (Dead-end) | C99: =_xlfn.SWITCH($D$8,"Lateral",K99,"PON",L99,J99) -> 1 | D99: EA | E99: =$J$2*170 -> 170 | F99: 170 | G99: assume 3% of poles - adjust as needed - This would be cost from MRE to move existing Comm. Price will vary depending on who is doing transfers/moves | J99: 1 | K99: 1 | L99: 1
A100: 79 | B100: Pole Transfer / Make Ready (Double Dead-end) | C100: =_xlfn.SWITCH($D$8,"Lateral",K100,"PON",L100,J100) -> 1 | D100: EA | E100: =$J$2*461 -> 461 | F100: 461 | G100: assume 3% of poles - adjust as needed - This would be cost from MRE to move existing Comm. Price will vary depending on who is doing transfers/moves | J100: 1 | K100: 1 | L100: 1
A101: 80 | C101: 0 | F101: 0
A102: 81 | C102: 0 | F102: 0
A103: 82 | C103: 0 | F103: 0
A104: 83 | C104: 0 | F104: 0
A105: 84 | C105: 0 | F105: 0
A106: 85 | C106: 0 | F106: 0
A107: 86 | C107: 0 | F107: 0
A108: 87 | C108: 0 | F108: 0
A109: 88 | C109: 0 | F109: 0
A110: 89 | C110: 0 | F110: 0
B111: =B88 & " LABOR TOTAL" -> AERIAL -STRAND/LASH LABOR TOTAL | F111: =SUM(F89:F110) -> 8208.69
B113: AERIAL - ADSS
A114: =A110+1 -> 90 | B114: Install Fiber (ADSS) | C114: =_xlfn.SWITCH($D$8,"Lateral",K114,"PON",L114,J114) -> 0 | D114: FT | E114: =INDEX('UNIT PRICE TABLE'!$A$1:$G$58,MATCH(B114,'UNIT PRICE TABLE'!$A$1:$A$58,0),MATCH($D$12,Region,0)+1)*$J$2 -> 3.8 | F114: =ROUND(IFERROR(C114*E114,0),2) -> 0 | G114: *Get updated pricing from Clayton first* Get qtys from design | J114: =$D$11*$J$5 -> 0 | K114: =$D$11*$J$5 -> 0 | L114: =$D$11*1.25*$J$5 -> 0
A115: =A114+1 -> 91 | B115: Pole attachment hardware (H bracket) | C115: =_xlfn.SWITCH($D$8,"Lateral",K115,"PON",L115,J115) -> 0 | D115: EA | E115: =$J$2*104 -> 104 | F115: 0 | G115: Assumes one per Closure | J115: =IFERROR(ROUNDUP(J$157*($D$11/($D$10+$D$11)),0)*$J$5,0) -> 0 | K115: =IFERROR(ROUNDUP(K$157*($D$11/($D$10+$D$11)),0)*$J$5,0) -> 0 | L115: =IFERROR(ROUNDUP(L$157*($D$11/($D$10+$D$11)),0)*$J$5,0) -> 0
A116: =A115+1 -> 92 | B116: Pole attachment hardware (Dead-end) | C116: =_xlfn.SWITCH($D$8,"Lateral",K116,"PON",L116,J116) -> 0 | D116: EA | E116: =$J$2*104 -> 104 | F116: 0 | G116: BB&Lat Assumes 25% poles with a 20% extra, PON Assumes 40% with 36% extra | J116: =ROUNDUP(((($D$11/300)*0.25)*1.2)*2,0)*$J$5 -> 0 | K116: =ROUNDUP(((($D$11/300)*0.25)*1.2)*2,0)*$J$5 -> 0 | L116: =ROUNDUP(((($D$11/300)*0.4)*1.36)*2,0)*$J$5 -> 0
A117: 93 | B117: Pole attachment hardware (Tangent) | C117: =_xlfn.SWITCH($D$8,"Lateral",K117,"PON",L117,J117) -> 0 | D117: EA | E117: =$J$2*104 -> 104 | F117: 0 | G117: BB&Lat Assumes 75% poles with a 20% extra, PON Assumes 60% with 36% extra | J117: =ROUNDUP(((($D$11/300)*0.75)*1.2),0)*$J$5 -> 0 | K117: =ROUNDUP(((($D$11/300)*0.75)*1.2),0)*$J$5 -> 0 | L117: =ROUNDUP(((($D$11/300)*0.6)*1.36),0)*$J$5 -> 0
A118: 94 | B118: Install U-guard for pole mounted enclosure | C118: =_xlfn.SWITCH($D$8,"Lateral",K118,"PON",L118,J118) -> 0 | D118: EA | E118: =$J$2*50 -> 50 | F118: 0 | G118: Assumes one per Closure | J118: =IFERROR(ROUNDUP(J$157*($D$11/($D$10+$D$11)),0)*$J$5,0) -> 0 | K118: =IFERROR(ROUNDUP(K$157*($D$11/($D$10+$D$11)),0)*$J$5,0) -> 0 | L118: =IFERROR(ROUNDUP(L$157*($D$11/($D$10+$D$11)),0)*$J$5,0) -> 0
A119: 95 | C119: 0 | F119: 0
A120: 96 | C120: 0 | F120: 0
A121: 97 | C121: 0 | F121: 0
A122: 98 | C122: 0 | F122: 0
A123: 99 | C123: 0 | F123: 0
A124: 100 | C124: 0 | F124: 0
A125: 101 | C125: 0 | F125: 0
A126: 102 | C126: 0 | F126: 0
A127: 103 | C127: 0 | F127: 0
A128: 104 | C128: 0 | F128: 0
B129: =B113 & " LABOR TOTAL" -> AERIAL - ADSS LABOR TOTAL | F129: =SUM(F114:F128) -> 0
B131: WIRELESS
A132: =A128+1 -> 105 | C132: 0 | D132: EA | F132: =ROUND(IFERROR(C132*E132,0),2) -> 0
A133: =A132+1 -> 106 | C133: 0 | D133: EA | F133: 0
A134: =A133+1 -> 107 | C134: 0 | D134: EA | F134: 0
A135: 108 | C135: 0 | D135: EA | F135: 0
A136: 109 | C136: 0 | D136: EA | F136: 0
A137: 110 | C137: 0 | D137: EA | F137: 0
A138: 111 | C138: 0 | D138: EA | F138: 0
A139: 112 | C139: 0 | D139: EA | F139: 0
A140: 113 | C140: 0 | D140: EA | F140: 0
A141: 114 | C141: 0 | D141: EA | F141: 0
A142: 115 | C142: 0 | D142: EA | F142: 0
A143: 116 | C143: 0 | D143: EA | F143: 0
A144: 117 | C144: 0 | F144: 0
A145: 118 | C145: 0 | F145: 0
A146: 119 | C146: 0 | F146: 0
A147: 120 | C147: 0 | F147: 0
A148: 121 | C148: 0 | F148: 0
A149: 122 | C149: 0 | F149: 0
A150: 123 | C150: 0 | F150: 0
A151: 124 | C151: 0 | F151: 0
A152: 125 | C152: 0 | F152: 0
A153: 126 | C153: 0 | F153: 0
B154: =B131 & " LABOR TOTAL" -> WIRELESS LABOR TOTAL | F154: =SUM(F132:F153) -> 0
B156: SPLICING
A157: =A153+1 -> 127 | B157: Install New Splice Case & Prep Cable | C157: =_xlfn.SWITCH($D$8,"Lateral",K157,"PON",L157,J157) -> 31 | D157: EA | E157: =INDEX('UNIT PRICE TABLE'!$A$1:$G$58,MATCH(B157,'UNIT PRICE TABLE'!$A$1:$A$58,0),MATCH($D$12,Region,0)+1)*$J$2 -> 550 | F157: =ROUND(IFERROR(C157*E157,0),2) -> 17050 | G157: *Get updated pricing from Clayton first* BB and Laterals estimate one every 5000', PON one every 8 customers | J157: =ROUNDUP((($D$10*(1+$F$12))+$D$11+J$93)/5000,0) -> 6 | K157: =ROUNDUP((($D$10*(1+$F$12))+$D$11+K$93)/5000,0) -> 6 | L157: =ROUNDUP($F$8/8,0) -> 31
A158: =A157+1 -> 128 | B158: Re-enter splice closure | C158: =_xlfn.SWITCH($D$8,"Lateral",K158,"PON",L158,J158) -> 0 | D158: EA | E158: =$J$2*200 -> 200 | F158: 0 | G158: Get qtys from design | J158: 0 | K158: 0 | L158: 0
A159: =A158+1 -> 129 | B159: Ground Splice Case + Materials | C159: =_xlfn.SWITCH($D$8,"Lateral",K159,"PON",L159,J159) -> 31 | D159: EA | E159: =$J$2*50 -> 50 | F159: 1550 | G159: If using armored cable all splice cases must be grounded. Dielectric no need grounding. For HLD estimates assume each needs grounding | J159: =J157 -> 6 | K159: =K157 -> 6 | L159: =L157 -> 31
A160: 130 | B160: Splicing, Fusion, Single Fiber | C160: =_xlfn.SWITCH($D$8,"Lateral",K160,"PON",L160,J160) -> 1110 | D160: EA | E160: =INDEX('UNIT PRICE TABLE'!$A$1:$G$58,MATCH(B160,'UNIT PRICE TABLE'!$A$1:$A$58,0),MATCH($D$12,Region,0)+1)*$J$2 -> 26 | F160: 28860 | G160: *Get updated pricing from Clayton first* BB/Lateral assume butt splice per closure using AVG cable size, PON 2x number of premise + cabinets fully spliced + MST splices. | I160: 1 | J160: =(J159*$N$218)*I160 -> 648 | K160: =(K159*$N$218)*I160 -> 648 | L160: =($F$8*2)+(L179*(288+24))+($L$302*$F$8) -> 1110
A161: 131 | B161: Splicing Fusion, Single fiber Pigtail at panel | C161: =_xlfn.SWITCH($D$8,"Lateral",K161,"PON",L161,J161) -> 216 | D161: EA | E161: =E160 -> 26 | F161: 5616 | G161: Assume Patch Panels fully spliced. Laterals assume 2 splices per panel | J161: =(J181*$N$218) -> 216 | K161: =$F$8*2 -> 486 | L161: =(L181*$N$218) -> 216
A162: 132 | B162: Splicing, Mass Fusion, 12 Fiber Ribbon | C162: =_xlfn.SWITCH($D$8,"Lateral",K162,"PON",L162,J162) -> 0 | D162: RIBBON | E162: =$J$2*200 -> 200 | F162: 0 | G162: Can use single splice estimate if Ribbon fiber is being used. Calcs assume no ribbon | J162: 0 | K162: 0 | L162: 0
A163: 133 | B163: Testing, OTDR, Uni-Directional, Power Meter Testing | C163: =_xlfn.SWITCH($D$8,"Lateral",K163,"PON",L163,J163) -> 624 | D163: EA | E163: =INDEX('UNIT PRICE TABLE'!$A$1:$G$58,MATCH(B163,'UNIT PRICE TABLE'!$A$1:$A$58,0),MATCH($D$12,Region,0)+1)*$J$2 -> 7.5 | F163: 4680 | G163: *Get updated pricing from Clayton first* None for BB, Laterals 24 per panel, PON one test per cabinet port | J163: 0 | K163: =$N$218 -> 108 | L163: =L179*(288+24) -> 624
A164: 134 | B164: Testing, OTDR, Bi-Directional, Power Meter Testing | C164: =_xlfn.SWITCH($D$8,"Lateral",K164,"PON",L164,J164) -> 216 | D164: EA | E164: =INDEX('UNIT PRICE TABLE'!$A$1:$G$58,MATCH(B164,'UNIT PRICE TABLE'!$A$1:$A$58,0),MATCH($D$12,Region,0)+1)*$J$2 -> 10 | F164: 2160 | G164: *Get updated pricing from Clayton first* None for Laterals, BB and PON assume Panels * 432 | J164: =$N$218*J181 -> 216 | K164: 0 | L164: =$N$218*L181 -> 216
A165: 135 | B165: Testing existing cables Bi-Directional | C165: 0 | D165: EA | E165: =$J$2*20 -> 20 | F165: 0
A166: 136 | B166: Document existing splicing | C166: 0 | D166: EA | E166: =$J$2*27 -> 27 | F166: 0
A167: 137 | B167: Reel testing | C167: =_xlfn.SWITCH($D$8,"Lateral",K167,"PON",L167,J167) -> 432 | D167: EA | E167: =E160 -> 26 | F167: 11232 | G167: Assumes 10,000ft reels and uses breakdown of fiber counds in material below. Fully tests all fibers in reels | J167: =P218 -> 432 | K167: =Q218 -> 432 | L167: =R218 -> 432
A168: 138 | C168: 0 | F168: 0
A169: 139 | C169: 0 | F169: 0
A170: 140 | C170: 0 | F170: 0
A171: 141 | C171: 0 | F171: 0
A172: 142 | C172: 0 | F172: 0
A173: 143 | C173: 0 | F173: 0
A174: 144 | C174: 0 | F174: 0
B175: =B156 & " LABOR TOTAL" -> SPLICING LABOR TOTAL | F175: =SUM(F157:F174) -> 71148
B177: PATCH PANELS AND CABINETS
A178: =A174+1 -> 145 | B178: Install Outdoor Powered Cabinet + Site prep and Concrete Pad | C178: 0 | D178: EA | E178: =$J$2*6000 -> 6000 | F178: =ROUND(IFERROR(C178*E178,0),2) -> 0 | G178: Only added for PON deployments, assumes 1 small active cabinet per 3000 HHP | J178: 0 | K178: 0 | L178: =ROUNDDOWN($F$8/3000,0)+1 -> 1
A179: =A178+1 -> 146 | B179: Install Pad mounted FDH Splitter Cabinet + Site prep and Prefab Vault | C179: 1 | D179: EA | E179: 2500 | F179: 2500 | G179: None for BB and Lateral, PON assume one per 200 Customers | J179: 0 | K179: 0 | L179: =ROUNDUP(SUM(F9:F11)/200,0) -> 2
A180: =A179+1 -> 147 | B180: Install Pole mounted FDH Splitter Cabinet | C180: =_xlfn.SWITCH($D$8,"Lateral",K180,"PON",L180,J180) -> 0 | D180: EA | E180: 2500 | F180: 0 | G180: Can match regular if using pole mount cabinets | J180: 0 | K180: 0 | L180: 0
A181: 148 | B181: Install rack mounted patch panel (Any Size) and tails | C181: 0 | D181: EA | E181: =$J$2*500 -> 500 | F181: 0 | G181: Assumes (2) pannels per 25miles on BB, (1) pannel customer on Lateral, and (2) pannels per 10,000 customers on PON | J181: =ROUNDUP(($D$10+$D$11)/132000,0)*2 -> 2 | K181: =$F$8 -> 243 | L181: =ROUNDUP($F$8/10000,0)*2 -> 2
A182: 149 | B182: Install Wall Mount Fiber Enclosure | C182: =_xlfn.SWITCH($D$8,"Lateral",K182,"PON",L182,J182) -> 0 | D182: EA | E182: =$J$2*500 -> 500 | F182: 0 | G182: Get qtys from design | J182: 0 | K182: 0 | L182: 0
A183: 150 | B183: Install 7ft Rack for patch panels | C183: =_xlfn.SWITCH($D$8,"Lateral",K183,"PON",L183,J183) -> 0 | D183: EA | E183: =$J$2*1000 -> 1000 | F183: 0 | G183: Get qtys from design | J183: 0 | K183: 0 | L183: 0
A184: 151 | C184: 0 | F184: 0
A185: 152 | C185: 0 | F185: 0
A186: 153 | C186: 0 | F186: 0
A187: 154 | C187: 0 | F187: 0
A188: 155 | C188: 0 | F188: 0
A189: 156 | C189: 0 | F189: 0
A190: 157 | C190: 0 | F190: 0
A191: 158 | C191: 0 | F191: 0
A192: 159 | C192: 0 | F192: 0
A193: 160 | C193: 0 | F193: 0
B194: =B177 & " LABOR TOTAL" -> PATCH PANELS AND CABINETS LABOR TOTAL | F194: =SUM(F178:F193) -> 2500
B196: GENERAL
A197: =A193+1 -> 161 | B197: Pull fiber through building | C197: =_xlfn.SWITCH($D$8,"Lateral",K197,"PON",L197,J197) -> 0 | D197: FT | E197: =$J$2*2.5 -> 2.5 | F197: =IFERROR(C197*E197,0) -> 0 | G197: Ft of fiber that needs to be pulled into a building. Qtys from design | K197: =$F$8*100 -> 24300
A198: =A197+1 -> 162 | B198: Install 2" Electric Metal Tubing (EMT) | C198: =_xlfn.SWITCH($D$8,"Lateral",K198,"PON",L198,J198) -> 0 | D198: LF | E198: =$J$2*2.5 -> 2.5 | F198: =ROUND(IFERROR(C198*E198,0),2) -> 0 | G198: Used if any Electrical conduit needs to be installed
A199: =A198+1 -> 163 | B199: 4" Core Bore | C199: =_xlfn.SWITCH($D$8,"Lateral",K199,"PON",L199,J199) -> 0 | D199: EA | E199: =$J$2*450 -> 450 | F199: 0 | G199: If any buildings need to be drilled to for fiber/conduit entrance | K199: =$F$8 -> 243
A200: 164 | B200: 2" Building Riser with LB - Up to 10' | C200: =_xlfn.SWITCH($D$8,"Lateral",K200,"PON",L200,J200) -> 0 | D200: EA | E200: =$J$2*1000 -> 1000 | F200: 0 | G200: If any building entracnes needed | K200: =$F$8 -> 243
A201: 165 | B201: Install Nema Enclosure | C201: =_xlfn.SWITCH($D$8,"Lateral",K201,"PON",L201,J201) -> 0 | D201: EA | E201: =$J$2*600 -> 600 | F201: 0 | G201: If any generic enclosures are needed to be installed | K201: =$F$8 -> 243
A202: 166 | C202: 0 | F202: 0
A203: 167 | C203: 0 | F203: 0
A204: 168 | C204: 0 | F204: 0
A205: 169 | C205: 0 | F205: 0
A206: 170 | C206: 0 | F206: 0
... 285 more rows

Sheet DIST-003
A1: [CLIENT NAME] - FIBER CONSTRUCTION PROJECT - ATTACHMENT X: PRICING PROPOSAL FORM | I1: =MID(CELL("filename",A1),FIND("]",CELL("filename",A1))+1,256) -> DIST-003
B2: Contractor: | I2: =IFERROR(IF(D14>=0,D14,0),0) -> 0 | J2: =1+(L2) -> 1 | L2: =IF(I2<10,I2,0) -> 0
B3: Contact Name/Position: | I3: 0.3 | J3: =IF($D$14="Urban",$K$3,0.01) -> 0.01 | K3: 0.15 | L3: =IF($F$14="Prevailing Wage",I3,0) -> 0
B4: Email:
B5: Phone: | I5: ADSS | J5: =IFERROR(IF($F$14="ADSS",1,0),0) -> 0
I6: Strand/Lash | J6: =IF($J$5=0,1,0) -> 1
A7: Items with listed quantities are included in the current design, but [CLIENT NAME] requests costs for all the items should the item be needed due to design alterations. All proposed unit costs must be guaranteed for the term of the project unless expressly agreed upon by [CLIENT NAME].
C8: BB, Lateral, PON (This is for HLD estimates, this does not matter for LLD): | D8: PON | E8: Mileage | F8: =SUM(F9:F11) -> 107 | G8: Total Passings
C9: Total Design with underground overbuild % (F12) Footage/Miles: | D9: =D11+(D10*(1+F12)) -> 20492.4 | E9: =ROUND(D9/5280,2) -> 3.88 | F9: =INDEX(Summary!$B$1:$BA$15,4,MATCH($I$1,Summary!$1:$1,0)-1) -> 107 | G9: Residential
C10: Buried: | D10: =INDEX(Summary!$B$1:$BA$15,2,MATCH($I$1,Summary!$1:$1,0)-1) -> 17328 | E10: =ROUND(D10/5280,2) -> 3.28 | F10: =INDEX(Summary!$B$1:$BA$15,5,MATCH($I$1,Summary!$1:$1,0)-1) -> - | G10: Business
C11: Aerial: | D11: =INDEX(Summary!$B$1:$BA$15,3,MATCH($I$1,Summary!$1:$1,0)-1) -> 2298 | E11: =ROUND(D11/5280,2) -> 0.44 | F11: =INDEX(Summary!$B$1:$BA$15,6,MATCH($I$1,Summary!$1:$1,0)-1) -> - | G11: Anchor
C12: Region for unit pricing | D12: MidWest | E12: Actual Buried | F12: 0.05 | G12: Underground overbuild percentage (If using centerline for PON assume 75%)
C13: Use MST's? (Only changes PON estimates) | D13: No MST | E13: =D10*(1+F12) -> 18194.4 | F13: 0 | G13: Rock Percentage
C14: Labor Rate Adjustment (Use this if you want to add additional costs to wage i.e. prevailing wage ~30%) | D14: 0 | E14: =ROUND(E13/5280,2) -> 3.45 | F14: Strand and Lash | G14: Aerial (Strand and Lash or ADSS)
A15: UNIT PRICING | J15: HLD estimates
A16: LABOR PRICING. All work includes traffic control plans, setup, maintenance and breakdown, compacted backfill, stormwater and erosion control setup, maintenance and breakdown, safety compliance and soft surface restoration. All cells shown in green shall be completed by the Contractor. All other cells are protected in this form. | I16: Percentage | J16: BB | K16: Lateral | L16: GPON
A17: Item # | B17: Description | C17: Estimated Quantity | D17: Unit | E17: Unit Price | F17: Total | G17: Notes | N17: micro | O17: 1" | P17: 1.25" | Q17: 2" | R17: 4" | S17: 6" | T17: 8" | V17: =CONCATENATE(N17," len") -> micro len | W17: =CONCATENATE(O17," len") -> 1" len | X17: 1.25" len | Y17: 2" len | Z17: 4" len | AA17: 6" len | AB17: 8" len
B18: UNDERGROUND - BURIED | V18: =SUM(V19:V50) -> 0 | W18: =SUM(W19:W50) -> 22744 | X18: 0 | Y18: 18195 | Z18: 0 | AA18: 10 | AB18: 10
A19: 1 | B19: Directional Bore (1) 1" | C19: =_xlfn.SWITCH($D$8,"Lateral",K19,"PON",L19,J19) -> 0 | D19: LF | E19: =INDEX('UNIT PRICE TABLE'!$A$1:$G$58,MATCH(B19,'UNIT PRICE TABLE'!$A$1:$A$58,0),MATCH($D$12,Region,0)+1)*$J$2 -> 10.25 | F19: =ROUND(IFERROR(C19*E19,0),2) -> 0 | G19: *Get updated pricing from Clayton first* Total Underground lengths. BB and Lateral add 5% for variance, PON may need to update variance in cell F12 | I19: 0 | J19: =ROUNDUP($D$10*(1+$F$12)*$I19,0) -> 0 | K19: =$J19 -> 0 | L19: =$J19 -> 0 | N19: 0 | O19: 1 | P19: 0 | Q19: 0 | R19: 0 | S19: 0 | T19: 0 | V19: =N19*$J19 -> 0 | W19: =O19*$J19 -> 0 | X19: 0 | Y19: 0 | Z19: 0 | AA19: 0 | AB19: 0
A20: =A19+1 -> 2 | B20: Directional Bore (2) 1" | C20: =_xlfn.SWITCH($D$8,"Lateral",K20,"PON",L20,J20) -> 0 | D20: LF | E20: =INDEX('UNIT PRICE TABLE'!$A$1:$G$58,MATCH(B20,'UNIT PRICE TABLE'!$A$1:$A$58,0),MATCH($D$12,Region,0)+1)*$J$2 -> 10.25 | F20: 0 | G20: *Get updated pricing from Clayton first* Total Underground lengths. BB and Lateral add 5% for variance, PON may need to update variance in cell F12 | I20: 0 | J20: =ROUNDUP($D$10*(1+$F$12)*$I20,0) -> 0 | K20: =$J20 -> 0 | L20: 0 | N20: 0 | O20: 2 | P20: 0 | Q20: 0 | R20: 0 | S20: 0 | T20: 0 | V20: =N20*$J20 -> 0 | W20: 0 | X20: 0 | Y20: 0 | Z20: 0 | AA20: 0 | AB20: 0
A21: =A20+1 -> 3 | B21: Directional Bore (1) 2" | C21: =_xlfn.SWITCH($D$8,"Lateral",K21,"PON",L21,J21) -> 0 | D21: LF | E21: =INDEX('UNIT PRICE TABLE'!$A$1:$G$58,MATCH(B21,'UNIT PRICE TABLE'!$A$1:$A$58,0),MATCH($D$12,Region,0)+1)*$J$2 -> 11.75 | F21: 0 | G21: *Get updated pricing from Clayton first* Total Underground lengths. BB and Lateral add 5% for variance, PON may need to update variance in cell F12 | I21: 0 | J21: 0 | K21: 0 | L21: 0 | N21: 0 | O21: 0 | P21: 0 | Q21: 1 | R21: 0 | S21: 0 | T21: 0 | V21: 0 | W21: 0 | X21: 0 | Y21: 0 | Z21: 0 | AA21: 0 | AB21: 0
A22: 4 | B22: Directional Bore (1) 2" and (1) 1" | C22: =_xlfn.SWITCH($D$8,"Lateral",K22,"PON",L22,J22) -> 13646 | D22: LF | E22: =INDEX('UNIT PRICE TABLE'!$A$1:$G$58,MATCH(B22,'UNIT PRICE TABLE'!$A$1:$A$58,0),MATCH($D$12,Region,0)+1)*$J$2 -> 11.75 | F22: 160340.5 | G22: *Get updated pricing from Clayton first* Total Underground lengths. BB and Lateral add 5% for variance, PON may need to update variance in cell F12 | I22: 0.75 | J22: 13646 | K22: 13646 | L22: 13646 | N22: 0 | O22: 1 | P22: 0 | Q22: 1 | R22: 0 | S22: 0 | T22: 0 | V22: 0 | W22: 13646 | X22: 0 | Y22: 13646 | Z22: 0 | AA22: 0 | AB22: 0
A23: 5 | B23: Directional Bore (1) 2" and (2) 1" | C23: =_xlfn.SWITCH($D$8,"Lateral",K23,"PON",L23,J23) -> 4549 | D23: LF | E23: =INDEX('UNIT PRICE TABLE'!$A$1:$G$58,MATCH(B23,'UNIT PRICE TABLE'!$A$1:$A$58,0),MATCH($D$12,Region,0)+1)*$J$2 -> 16.94 | F23: 77060.06 | G23: *Get updated pricing from Clayton first* Total Underground lengths. BB and Lateral add 5% for variance, PON may need to update variance in cell F12 | I23: 0.25 | J23: 4549 | K23: 4549 | L23: 4549 | N23: 0 | O23: 2 | P23: 0 | Q23: 1 | R23: 0 | S23: 0 | T23: 0 | V23: 0 | W23: 9098 | X23: 0 | Y23: 4549 | Z23: 0 | AA23: 0 | AB23: 0
A24: 6 | B24: Directional Bore (2) 2" | C24: =_xlfn.SWITCH($D$8,"Lateral",K24,"PON",L24,J24) -> 0 | D24: LF | E24: =INDEX('UNIT PRICE TABLE'!$A$1:$G$58,MATCH(B24,'UNIT PRICE TABLE'!$A$1:$A$58,0),MATCH($D$12,Region,0)+1)*$J$2 -> 16.94 | F24: 0 | G24: *Get updated pricing from Clayton first* Total Underground lengths. BB and Lateral add 5% for variance, PON may need to update variance in cell F12 | I24: 0 | J24: 0 | K24: 0 | L24: 0 | N24: 0 | O24: 0 | P24: 0 | Q24: 2 | R24: 0 | S24: 0 | T24: 0 | V24: 0 | W24: 0 | X24: 0 | Y24: 0 | Z24: 0 | AA24: 0 | AB24: 0
A25: 7 | B25: Directional Bore (2) 2" and (1) 1" | C25: =_xlfn.SWITCH($D$8,"Lateral",K25,"PON",L25,J25) -> 0 | D25: LF | E25: =INDEX('UNIT PRICE TABLE'!$A$1:$G$58,MATCH(B25,'UNIT PRICE TABLE'!$A$1:$A$58,0),MATCH($D$12,Region,0)+1)*$J$2 -> 18.66 | F25: 0 | G25: *Get updated pricing from Clayton first* Total Underground lengths. BB and Lateral add 5% for variance, PON may need to update variance in cell F12 | I25: 0 | J25: 0 | K25: 0 | L25: 0 | N25: 0 | O25: 1 | P25: 0 | Q25: 2 | R25: 0 | S25: 0 | T25: 0 | V25: 0 | W25: 0 | X25: 0 | Y25: 0 | Z25: 0 | AA25: 0 | AB25: 0
A26: 8 | B26: Directional Bore (3) 2" | C26: =_xlfn.SWITCH($D$8,"Lateral",K26,"PON",L26,J26) -> 0 | D26: LF | E26: =INDEX('UNIT PRICE TABLE'!$A$1:$G$58,MATCH(B26,'UNIT PRICE TABLE'!$A$1:$A$58,0),MATCH($D$12,Region,0)+1)*$J$2 -> 21.4 | F26: 0 | G26: *Get updated pricing from Clayton first* Total Underground lengths. BB and Lateral add 5% for variance, PON may need to update variance in cell F12 | I26: 0 | J26: 0 | K26: 0 | L26: 0 | N26: 0 | O26: 0 | P26: 0 | Q26: 3 | R26: 0 | S26: 0 | T26: 0 | V26: 0 | W26: 0 | X26: 0 | Y26: 0 | Z26: 0 | AA26: 0 | AB26: 0
A27: 9 | B27: Directional Bore (3) 2" and (1) 1" | C27: =_xlfn.SWITCH($D$8,"Lateral",K27,"PON",L27,J27) -> 0 | D27: LF | E27: =INDEX('UNIT PRICE TABLE'!$A$1:$G$58,MATCH(B27,'UNIT PRICE TABLE'!$A$1:$A$58,0),MATCH($D$12,Region,0)+1)*$J$2 -> 24.39 | F27: 0 | G27: *Get updated pricing from Clayton first* Total Underground lengths. BB and Lateral add 5% for variance, PON may need to update variance in cell F12 | I27: 0 | J27: 0 | K27: 0 | L27: 0 | N27: 0 | O27: 1 | P27: 0 | Q27: 3 | R27: 0 | S27: 0 | T27: 0 | V27: 0 | W27: 0 | X27: 0 | Y27: 0 | Z27: 0 | AA27: 0 | AB27: 0
A28: 10 | B28: Directional Bore (3) 2" and (2) 1" | C28: =_xlfn.SWITCH($D$8,"Lateral",K28,"PON",L28,J28) -> 0 | D28: LF | E28: =INDEX('UNIT PRICE TABLE'!$A$1:$G$58,MATCH(B28,'UNIT PRICE TABLE'!$A$1:$A$58,0),MATCH($D$12,Region,0)+1)*$J$2 -> 26.7 | F28: 0 | G28: *Get updated pricing from Clayton first* Total Underground lengths. BB and Lateral add 5% for variance, PON may need to update variance in cell F12 | I28: 0 | J28: 0 | K28: 0 | L28: 0 | N28: 0 | O28: 2 | P28: 0 | Q28: 3 | R28: 0 | S28: 0 | T28: 0 | V28: 0 | W28: 0 | X28: 0 | Y28: 0 | Z28: 0 | AA28: 0 | AB28: 0
A29: 11 | B29: Directional Bore (4) 2" | C29: =_xlfn.SWITCH($D$8,"Lateral",K29,"PON",L29,J29) -> 0 | D29: LF | E29: =INDEX('UNIT PRICE TABLE'!$A$1:$G$58,MATCH(B29,'UNIT PRICE TABLE'!$A$1:$A$58,0),MATCH($D$12,Region,0)+1)*$J$2 -> 28.93 | F29: 0 | G29: *Get updated pricing from Clayton first* Total Underground lengths. BB and Lateral add 5% for variance, PON may need to update variance in cell F12 | I29: 0 | J29: 0 | K29: 0 | L29: 0 | N29: 0 | O29: 0 | P29: 0 | Q29: 4 | R29: 0 | S29: 0 | T29: 0 | V29: 0 | W29: 0 | X29: 0 | Y29: 0 | Z29: 0 | AA29: 0 | AB29: 0
A30: 12 | B30: Directional Bore (1) 4" | C30: =_xlfn.SWITCH($D$8,"Lateral",K30,"PON",L30,J30) -> 0 | D30: LF | E30: =INDEX('UNIT PRICE TABLE'!$A$1:$G$58,MATCH(B30,'UNIT PRICE TABLE'!$A$1:$A$58,0),MATCH($D$12,Region,0)+1)*$J$2 -> 12 | F30: 0 | G30: *Get updated pricing from Clayton first* Total Underground lengths. BB and Lateral add 5% for variance, PON may need to update variance in cell F12 | I30: 0 | J30: 0 | K30: 0 | L30: 0 | N30: 0 | O30: 0 | P30: 0 | Q30: 0 | R30: 1 | S30: 0 | T30: 0 | V30: 0 | W30: 0 | X30: 0 | Y30: 0 | Z30: 0 | AA30: 0 | AB30: 0
A31: 13 | B31: Directional Bore (1) 1 1/4" | C31: =_xlfn.SWITCH($D$8,"Lateral",K31,"PON",L31,J31) -> 0 | D31: LF | E31: =INDEX('UNIT PRICE TABLE'!$A$1:$G$58,MATCH(B31,'UNIT PRICE TABLE'!$A$1:$A$58,0),MATCH($D$12,Region,0)+1)*$J$2 -> 12 | F31: 0 | G31: *Get updated pricing from Clayton first* Total Underground lengths. BB and Lateral add 5% for variance, PON may need to update variance in cell F12 | I31: 0 | J31: 0 | K31: 0 | L31: 0 | N31: 0 | O31: 0 | P31: 1 | Q31: 0 | R31: 0 | S31: 0 | T31: 0 | V31: 0 | W31: 0 | X31: 0 | Y31: 0 | Z31: 0 | AA31: 0 | AB31: 0
A32: 14 | B32: Directional Bore (2) 1 1/4" | C32: =_xlfn.SWITCH($D$8,"Lateral",K32,"PON",L32,J32) -> 0 | D32: LF | E32: =INDEX('UNIT PRICE TABLE'!$A$1:$G$58,MATCH(B32,'UNIT PRICE TABLE'!$A$1:$A$58,0),MATCH($D$12,Region,0)+1)*$J$2 -> 16 | F32: 0 | G32: *Get updated pricing from Clayton first* Total Underground lengths. BB and Lateral add 5% for variance, PON may need to update variance in cell F12 | I32: 0 | J32: 0 | K32: 0 | L32: 0 | N32: 0 | O32: 0 | P32: 2 | Q32: 0 | R32: 0 | S32: 0 | T32: 0 | V32: 0 | W32: 0 | X32: 0 | Y32: 0 | Z32: 0 | AA32: 0 | AB32: 0
A33: 15 | B33: Directional Bore (3) 1 1/4" | C33: =_xlfn.SWITCH($D$8,"Lateral",K33,"PON",L33,J33) -> 0 | D33: LF | E33: =INDEX('UNIT PRICE TABLE'!$A$1:$G$58,MATCH(B33,'UNIT PRICE TABLE'!$A$1:$A$58,0),MATCH($D$12,Region,0)+1)*$J$2 -> 18 | F33: 0 | G33: *Get updated pricing from Clayton first* Total Underground lengths. BB and Lateral add 5% for variance, PON may need to update variance in cell F12 | I33: 0 | J33: 0 | K33: 0 | L33: 0 | N33: 0 | O33: 0 | P33: 3 | Q33: 0 | R33: 0 | S33: 0 | T33: 0 | V33: 0 | W33: 0 | X33: 0 | Y33: 0 | Z33: 0 | AA33: 0 | AB33: 0
A34: 16 | B34: Directional Bore (4) 1 1/4" | C34: =_xlfn.SWITCH($D$8,"Lateral",K34,"PON",L34,J34) -> 0 | D34: LF | E34: =INDEX('UNIT PRICE TABLE'!$A$1:$G$58,MATCH(B34,'UNIT PRICE TABLE'!$A$1:$A$58,0),MATCH($D$12,Region,0)+1)*$J$2 -> 24 | F34: 0 | G34: *Get updated pricing from Clayton first* Total Underground lengths. BB and Lateral add 5% for variance, PON may need to update variance in cell F12 | I34: 0 | J34: 0 | K34: 0 | L34: 0 | N34: 0 | O34: 0 | P34: 4 | Q34: 0 | R34: 0 | S34: 0 | T34: 0 | V34: 0 | W34: 0 | X34: 0 | Y34: 0 | Z34: 0 | AA34: 0 | AB34: 0
A35: 17 | B35: Microtrenching (Narrow Band Trenching) upto 12" deep | C35: =_xlfn.SWITCH($D$8,"Lateral",K35,"PON",L35,J35) -> 0 | D35: LF | E35: =$J$2*11.54 -> 11.54 | F35: 0 | G35: Add 5% for variance | I35: 0 | J35: 0 | K35: 0 | L35: 0 | N35: 1 | O35: 0 | P35: 0 | Q35: 0 | R35: 0 | S35: 0 | T35: 0 | V35: 0 | W35: 0 | X35: 0 | Y35: 0 | Z35: 0 | AA35: 0 | AB35: 0
A36: 18 | B36: Microtrenching (Narrow Band Trenching) upto 18" deep | C36: =_xlfn.SWITCH($D$8,"Lateral",K36,"PON",L36,J36) -> 0 | D36: LF | E36: =$J$2*13.85 -> 13.85 | F36: 0 | G36: Add 5% for variance | I36: 0 | J36: 0 | K36: 0 | L36: 0 | N36: 1 | O36: 0 | P36: 0 | Q36: 0 | R36: 0 | S36: 0 | T36: 0 | V36: 0 | W36: 0 | X36: 0 | Y36: 0 | Z36: 0 | AA36: 0 | AB36: 0
A37: 19 | B37: Microtrenching (Narrow Band Trenching) upto 24" deep | C37: =_xlfn.SWITCH($D$8,"Lateral",K37,"PON",L37,J37) -> 0 | D37: LF | E37: =$J$2*18.46 -> 18.46 | F37: 0 | G37: Add 5% for variance | I37: 0 | J37: 0 | K37: 0 | L37: 0 | N37: 1 | O37: 0 | P37: 0 | Q37: 0 | R37: 0 | S37: 0 | T37: 0 | V37: 0 | W37: 0 | X37: 0 | Y37: 0 | Z37: 0 | AA37: 0 | AB37: 0
A38: 20 | B38: Vibratory Plow 4' deep (1) 2" | C38: =_xlfn.SWITCH($D$8,"Lateral",K38,"PON",L38,J38) -> 0 | D38: LF | E38: =$J$2*75 -> 75 | F38: 0 | G38: Add 5% for variance | I38: 0 | J38: 0 | K38: 0 | L38: 0 | N38: 0 | O38: 0 | P38: 0 | Q38: 1 | R38: 0 | S38: 0 | T38: 0 | V38: 0 | W38: 0 | X38: 0 | Y38: 0 | Z38: 0 | AA38: 0 | AB38: 0
A39: 21 | B39: Vibratory Plow 4' deep (2) 2" | C39: =_xlfn.SWITCH($D$8,"Lateral",K39,"PON",L39,J39) -> 0 | D39: LF | E39: =$J$2*75 -> 75 | F39: 0 | G39: Add 5% for variance | I39: 0 | J39: 0 | K39: 0 | L39: 0 | N39: 0 | O39: 0 | P39: 0 | Q39: 2 | R39: 0 | S39: 0 | T39: 0 | V39: 0 | W39: 0 | X39: 0 | Y39: 0 | Z39: 0 | AA39: 0 | AB39: 0
A40: 22 | B40: Open Cut & Trench (1) 2" at 30" Minimum Depth of Cover | C40: =_xlfn.SWITCH($D$8,"Lateral",K40,"PON",L40,J40) -> 0 | D40: LF | E40: =$J$2*60 -> 60 | F40: 0 | G40: Add 5% for variance | I40: 0 | J40: 0 | K40: 0 | L40: 0 | N40: 0 | O40: 0 | P40: 0 | Q40: 1 | R40: 0 | S40: 0 | T40: 0 | V40: 0 | W40: 0 | X40: 0 | Y40: 0 | Z40: 0 | AA40: 0 | AB40: 0
A41: 23 | B41: Open Cut & Trench (2) 2" at 30" Minimum Depth of Cover | C41: =_xlfn.SWITCH($D$8,"Lateral",K41,"PON",L41,J41) -> 0 | D41: LF | E41: =$J$2*65 -> 65 | F41: 0 | G41: Add 5% for variance | I41: 0 | J41: 0 | K41: 0 | L41: 0 | N41: 0 | O41: 0 | P41: 0 | Q41: 2 | R41: 0 | S41: 0 | T41: 0 | V41: 0 | W41: 0 | X41: 0 | Y41: 0 | Z41: 0 | AA41: 0 | AB41: 0
A42: 24 | B42: Open Cut & Trench (3) 2" at 30" Minimum Depth of Cover | C42: =_xlfn.SWITCH($D$8,"Lateral",K42,"PON",L42,J42) -> 0 | D42: LF | E42: =$J$2*70 -> 70 | F42: 0 | G42: Add 5% for variance | I42: 0 | J42: 0 | K42: 0 | L42: 0 | N42: 0 | O42: 0 | P42: 0 | Q42: 3 | R42: 0 | S42: 0 | T42: 0 | V42: 0 | W42: 0 | X42: 0 | Y42: 0 | Z42: 0 | AA42: 0 | AB42: 0
A43: 25 | B43: Open Cut & Trench (4) 2" at 30" Minimum Depth of Cover | C43: =_xlfn.SWITCH($D$8,"Lateral",K43,"PON",L43,J43) -> 0 | D43: LF | E43: =$J$2*75 -> 75 | F43: 0 | G43: Add 5% for variance | I43: 0 | J43: 0 | K43: 0 | L43: 0 | N43: 0 | O43: 0 | P43: 0 | Q43: 4 | R43: 0 | S43: 0 | T43: 0 | V43: 0 | W43: 0 | X43: 0 | Y43: 0 | Z43: 0 | AA43: 0 | AB43: 0
A44: 26 | B44: Sleeve existing 4" conduit (3) 1 1/4" | C44: =_xlfn.SWITCH($D$8,"Lateral",K44,"PON",L44,J44) -> 0 | D44: LF | E44: =$J$2*11.96 -> 11.96 | F44: 0 | G44: Dependent on build | I44: 0 | J44: 0 | K44: 0 | L44: 0 | N44: 0 | O44: 0 | P44: 3 | Q44: 0 | R44: 0 | S44: 0 | T44: 0 | V44: 0 | W44: 0 | X44: 0 | Y44: 0 | Z44: 0 | AA44: 0 | AB44: 0
A45: 27 | B45: Pull (4) 2" sdr 11 conduits in 8" casing | C45: =_xlfn.SWITCH($D$8,"Lateral",K45,"PON",L45,J45) -> 0 | D45: FT | E45: =$J$2*15 -> 15 | F45: 0 | G45: Dependent on build (Some RR, DOT, and water crossings need steel casings) | I45: 0 | J45: 0 | K45: 0 | L45: 0 | N45: 0 | O45: 0 | P45: 0 | Q45: 4 | R45: 0 | S45: 0 | T45: 0 | V45: 0 | W45: 0 | X45: 0 | Y45: 0 | Z45: 0 | AA45: 0 | AB45: 0
A46: 28 | B46: Bore 6” Casing (Steel) | C46: =_xlfn.SWITCH($D$8,"Lateral",K46,"PON",L46,J46) -> 5 | D46: LF | E46: =$J$2*125 -> 125 | F46: =ROUND(IFERROR(C46*E46,0),2) -> 625 | G46: This would be for RR, DOT, Waterway or other crossing. Estimate is 0.025% of Buried total. | J46: =ROUNDUP(0.00025*$D$10,0) -> 5 | K46: =ROUNDUP(0.00025*$D$10,0) -> 5 | L46: 5 | N46: 0 | O46: 0 | P46: 0 | Q46: 0 | R46: 0 | S46: 0 | T46: 1 | V46: 0 | W46: 0 | X46: 0 | Y46: 0 | Z46: 0 | AA46: 0 | AB46: 5
A47: 29 | B47: Bore 6” Casing (PVC) | C47: =_xlfn.SWITCH($D$8,"Lateral",K47,"PON",L47,J47) -> 5 | D47: LF | E47: =$J$2*100 -> 100 | F47: =ROUND(IFERROR(C47*E47,0),2) -> 500 | G47: This would be for RR, DOT, Waterway or other crossing. Estimate is 0.025% of Buried total. | J47: =ROUNDUP(0.00025*$D$10,0) -> 5 | K47: 5 | L47: 5 | N47: 0 | O47: 0 | P47: 0 | Q47: 0 | R47: 0 | S47: 1 | T47: 0 | V47: =N47*$J47 -> 0 | W47: 0 | X47: 0 | Y47: 0 | Z47: 0 | AA47: 5 | AB47: 0
A48: 30 | B48: Bore 8” Casing (Steel) | C48: =_xlfn.SWITCH($D$8,"Lateral",K48,"PON",L48,J48) -> 5 | D48: LF | E48: =$J$2*125 -> 125 | F48: =ROUND(IFERROR(C48*E48,0),2) -> 625 | G48: This would be for RR, DOT, Waterway or other crossing. Estimate is 0.025% of Buried total. | J48: 5 | K48: 5 | L48: 5 | N48: 0 | O48: 0 | P48: 0 | Q48: 0 | R48: 0 | S48: 0 | T48: 1 | V48: 0 | W48: 0 | X48: 0 | Y48: 0 | Z48: 0 | AA48: 0 | AB48: 5
A49: 31 | B49: Bore 8” Casing (PVC) | C49: =_xlfn.SWITCH($D$8,"Lateral",K49,"PON",L49,J49) -> 5 | D49: LF | E49: =$J$2*100 -> 100 | F49: =ROUND(IFERROR(C49*E49,0),2) -> 500 | G49: This would be for RR, DOT, Waterway or other crossing. Estimate is 0.025% of Buried total. | J49: 5 | K49: 5 | L49: 5 | N49: 0 | O49: 0 | P49: 0 | Q49: 0 | R49: 0 | S49: 1 | T49: 0 | V49: 0 | W49: 0 | X49: 0 | Y49: 0 | Z49: 0 | AA49: 5 | AB49: 0
A50: 32 | B50: Deep Bore - Water Crossing | C50: =_xlfn.SWITCH($D$8,"Lateral",K50,"PON",L50,J50) -> 0 | D50: LF | E50: =$J$2*350 -> 350 | F50: =ROUND(IFERROR(C50*E50,0),2) -> 0 | G50: Dependent on build | J50: 0 | K50: 0 | L50: 0 | N50: 0 | O50: 0 | P50: 0 | Q50: 0 | R50: 0 | S50: 0 | T50: 0 | V50: 0 | W50: 0 | X50: 0 | Y50: 0 | Z50: 0 | AA50: 0 | AB50: 0
A51: 33 | B51: Install Muletape in New Conduit | C51: =_xlfn.SWITCH($D$8,"Lateral",K51,"PON",L51,J51) -> 40959 | D51: FT | E51: =$J$2*0.33 -> 0.33 | F51: =ROUND(IFERROR(C51*E51,0),2) -> 13516.47 | G51: Should match length of empty conduits (BB and PON twice as much as URD footage) | J51: =SUM($V$18:$AB$18) -> 40959 | K51: =SUM($V$18:$AB$18) -> 40959 | L51: =SUM($V$18:$AB$18) -> 40959
A52: 34 | B52: Bore Rock Adder | C52: =_xlfn.SWITCH($D$8,"Lateral",K52,"PON",L52,J52) -> 0 | D52: LF | E52: =INDEX('UNIT PRICE TABLE'!$A$1:$G$58,MATCH(B52,'UNIT PRICE TABLE'!$A$1:$A$58,0),MATCH($D$12,Region,0)+1)*$J$2 -> 58.5 | F52: 0 | G52: *Get updated pricing from Clayton first* Dependent on build, Question for customer in data collection | J52: =ROUNDUP($F$13*$D$10,0) -> 0 | K52: =ROUNDUP($F$13*$D$10,0) -> 0 | L52: =ROUNDUP($F$13*$D$10,0) -> 0
A53: 35 | B53: Trench Rock Adder | C53: =_xlfn.SWITCH($D$8,"Lateral",K53,"PON",L53,J53) -> 0 | D53: LF | E53: =$J$2*53.85 -> 53.85 | F53: 0 | G53: Dependent on build, Question for customer in data collection | J53: 0 | K53: 0 | L53: 0
A54: 36 | B54: Install #12 AWG Insulated Tracer Wire | C54: =_xlfn.SWITCH($D$8,"Lateral",K54,"PON",L54,J54) -> 18195 | D54: LF | E54: =INDEX('UNIT PRICE TABLE'!$A$1:$G$58,MATCH(B54,'UNIT PRICE TABLE'!$A$1:$A$58,0),MATCH($D$12,Region,0)+1)*$J$2 -> 0.33 | F54: 6004.35 | G54: should equal underground footage | J54: =ROUNDUP($D$10*(1+$F$12),0) -> 18195 | K54: =ROUNDUP($D$10*(1+$F$12),0) -> 18195 | L54: =ROUNDUP($D$10*(1+$F$12),0) -> 18195
A55: 37 | B55: Install 5/8"x8' Copper Clad Ground Rod | C55: =_xlfn.SWITCH($D$8,"Lateral",K55,"PON",L55,J55) -> 10 | D55: EA | E55: =$J$2*25 -> 25 | F55: 250 | G55: Get qtys from design, if not specified assume 1 ever 2,000ft | J55: =ROUNDUP(($D$10*(1+$F$12))/2000,0) -> 10 | K55: =ROUNDUP(($D$10*(1+$F$12))/2000,0) -> 10 | L55: =ROUNDUP(($D$10*(1+$F$12))/2000,0) -> 10
A56: 38 | B56: Install 3.5" Dia PVC Round Marker Posts with Orange Dome Top | C56: =_xlfn.SWITCH($D$8,"Lateral",K56,"PON",L56,J56) -> 55 | D56: EA | E56: =INDEX('UNIT PRICE TABLE'!$A$1:$G$58,MATCH(B56,'UNIT PRICE TABLE'!$A$1:$A$58,0),MATCH($D$12,Region,0)+1)*$J$2 -> 45 | F56: 2475 | G56: Get qtys from design, can estimate 75% of handholes | J56: =ROUNDUP(J70*0.75,0) -> 22 | K56: =ROUNDUP(K69*0.75,0) -> 33 | L56: =ROUNDUP(L69*0.75,0) -> 55
A57: 39 | B57: Install 3.5" Dia PVC Round Marker Posts with Orange Dome Top with Test Station | C57: =_xlfn.SWITCH($D$8,"Lateral",K57,"PON",L57,J57) -> 19 | D57: EA | E57: =INDEX('UNIT PRICE TABLE'!$A$1:$G$58,MATCH(B57,'UNIT PRICE TABLE'!$A$1:$A$58,0),MATCH($D$12,Region,0)+1)*$J$2 -> 65 | F57: 1235 | G57: Get qtys from design, can estimate 25% of handholes | J57: =ROUNDUP(J70*0.25,0) -> 8 | K57: =ROUNDUP(K69*0.25,0) -> 11 | L57: =ROUNDUP(L69*0.25,0) -> 19
A58: 40 | B58: Install RFID Ball/Peg Markers | C58: =_xlfn.SWITCH($D$8,"Lateral",K58,"PON",L58,J58) -> 0 | D58: EA | E58: =$J$2*30 -> 30 | F58: 0 | G58: Dependent on build, Question for customer in data collection | J58: 0 | K58: 0 | L58: 0
A59: 41 | B59: Install RFID Rope | C59: =_xlfn.SWITCH($D$8,"Lateral",K59,"PON",L59,J59) -> 0 | D59: LF | E59: =$J$2*1.5 -> 1.5 | F59: 0 | G59: Dependent on build, Question for customer in data collection | J59: 0 | K59: 0 | L59: 0
A60: 42 | B60: Proof Existing Conduit - any size | C60: =_xlfn.SWITCH($D$8,"Lateral",K60,"PON",L60,J60) -> 0 | D60: LF | E60: =$J$2*1.54 -> 1.54 | F60: 0 | G60: Dependent on build, Question for customer in data collection | J60: 0 | K60: 0 | L60: 0
A61: 43 | B61: Rod Existing Conduit and Install Pull Tape | C61: =_xlfn.SWITCH($D$8,"Lateral",K61,"PON",L61,J61) -> 0 | D61: LF | E61: =$J$2*1.15 -> 1.15 | F61: 0 | G61: Dependent on build, Question for customer in data collection | J61: 0 | K61: 0 | L61: 0
A62: 44 | B62: Remove existing cable - i.e. coax/twisted pair in street light conduits to replace with fiber | C62: =_xlfn.SWITCH($D$8,"Lateral",K62,"PON",L62,J62) -> 0 | D62: LF | E62: =$J$2*1.92 -> 1.92 | F62: 0 | G62: Dependent on build, Question for customer in data collection | J62: 0 | K62: 0 | L62: 0
A63: 45 | B63: Installation, Underground Fiber Cable - Including Slack (2ct Fiber) | C63: =_xlfn.SWITCH($D$8,"Lateral",K63,"PON",L63,J63) -> 0 | D63: LF | E63: =$J$2*1 -> 1 | F63: 0 | G63: Add 5% for variance | J63: 0 | K63: 0 | L63: 0
A64: 46 | B64: Installation, Underground Fiber Cable - Including Slack (All other fiber) | C64: =_xlfn.SWITCH($D$8,"Lateral",K64,"PON",L64,J64) -> 23670 | D64: LF | E64: =INDEX('UNIT PRICE TABLE'!$A$1:$G$58,MATCH(B64,'UNIT PRICE TABLE'!$A$1:$A$58,0),MATCH($D$12,Region,0)+1)*$J$2 -> 1.25 | F64: 29587.5 | G64: *Get updated pricing from Clayton first* underground footage & 100' slack from Ring Cuts and 55' for Butt splices (Estimated as URD footage + 75' per HH) | J64: =ROUNDUP(($D$10*(1+$F$12))+(J70*75),0) -> 20370 | K64: =ROUNDUP(($D$10*(1+$F$12))+(K69*75),0) -> 21495 | L64: =ROUNDUP(($D$10*(1+$F$12))+(L69*75),0) -> 23670
A65: 47 | B65: Installation, MST in Pedestal | C65: =_xlfn.SWITCH($D$8,"Lateral",K65,"PON",L65,J65) -> 0 | D65: EA | E65: =$J$2*50 -> 50 | F65: 0 | G65: Get qtys from design | J65: 0 | K65: 0 | L65: =$L$303 -> 0
A66: 48 | B66: Installation, Pedestal | C66: =_xlfn.SWITCH($D$8,"Lateral",K66,"PON",L66,J66) -> 0 | D66: EA | E66: =$J$2*60 -> 60 | F66: 0 | G66: Get qtys from design | J66: 0 | K66: 0 | L66: =$L$303 -> 0
A67: 49 | B67: Installation, Drop Vault, 12" X 12" | C67: =_xlfn.SWITCH($D$8,"Lateral",K67,"PON",L67,J67) -> 24 | D67: EA | E67: =ROUNDUP($E$69*0.75,0) -> 263 | F67: 6312 | G67: Get qtys from design (AKA "Flowerpots") | J67: 0 | K67: 0 | L67: =IFERROR(ROUNDUP((($D$10/($D$10+$D$11))*$F$8)/4,0),0) -> 24
A68: 50 | B68: Installation, Small Vault, 17” x 30” | C68: =_xlfn.SWITCH($D$8,"Lateral",K68,"PON",L68,J68) -> 0 | D68: EA | E68: =$E$69 -> 350 | F68: 0 | G68: Get qtys from design | J68: 0 | K68: 0 | L68: 0
A69: 51 | B69: Installation, Vault 24" x 36" | C69: =_xlfn.SWITCH($D$8,"Lateral",K69,"PON",L69,J69) -> 73 | D69: EA | E69: =INDEX('UNIT PRICE TABLE'!$A$1:$G$58,MATCH(B69,'UNIT PRICE TABLE'!$A$1:$A$58,0),MATCH($D$12,Region,0)+1)*$J$2 -> 350 | F69: 25550 | G69: *Get updated pricing from Clayton first* BB every 600', Lateral every 400', PON every 250' | J69: 0 | K69: =ROUNDUP($D$10/400,0) -> 44 | L69: =ROUNDUP(($D$10*(1+$F$12))/250,0) -> 73
A70: 52 | B70: Installation, Large Vault 30" x 48" | C70: =_xlfn.SWITCH($D$8,"Lateral",K70,"PON",L70,J70) -> 0 | D70: EA | E70: =INDEX('UNIT PRICE TABLE'!$A$1:$G$58,MATCH(B70,'UNIT PRICE TABLE'!$A$1:$A$58,0),MATCH($D$12,Region,0)+1)*$J$2 -> 500 | F70: 0 | G70: *Get updated pricing from Clayton first* Get qtys from design | J70: =ROUNDUP($D$10/600,0) -> 29 | K70: 0 | L70: 0
A71: 53 | B71: Installation, Extra Large Vault 48" x 60" | C71: =_xlfn.SWITCH($D$8,"Lateral",K71,"PON",L71,J71) -> 0 | D71: EA | E71: =$J$2*1750 -> 1750 | F71: 0 | G71: Get qtys from design | J71: 0 | K71: 0 | L71: 0
A72: 54 | B72: Install 4'x4'x4' Split Concrete Manhole | C72: =_xlfn.SWITCH($D$8,"Lateral",K72,"PON",L72,J72) -> 0 | D72: EA | E72: =$J$2*6500 -> 6500 | F72: 0 | G72: Get qtys from design | J72: 0 | K72: 0 | L72: 0
A73: 55 | B73: Remove and Replace Handhole - including fixing sweeps into HH | C73: =_xlfn.SWITCH($D$8,"Lateral",K73,"PON",L73,J73) -> 0 | D73: EA | E73: =$J$2*3461.54 -> 3461.54 | G73: Get qtys from design
A74: 56 | B74: Prep and Pour Concrete Pad for POP Site | C74: =_xlfn.SWITCH($D$8,"Lateral",K74,"PON",L74,J74) -> 0 | D74: EA | E74: =$J$2*10000 -> 10000 | F74: =ROUND(IFERROR(C74*E74,0),2) -> 0 | G74: Get qtys from design | J74: 0 | K74: 0 | L74: 0
A75: 57 | B75: Sawcut, Remove and Replace Asphalt 6" Thick | C75: =_xlfn.SWITCH($D$8,"Lateral",K75,"PON",L75,J75) -> 910 | D75: SqrFt | E75: =$J$2*23.08 -> 23.08 | F75: =ROUND(IFERROR(C75*E75,0),2) -> 21002.8 | G75: Use Col I to adjust percentage. 15% for Urban areas and 1% for rural are good high level estimates | I75: 0.05 | J75: =ROUNDUP(($D$10*(1+$F$12))*$I$75,0) -> 910 | K75: =ROUNDUP(($D$10*(1+$F$12))*$I$75,0) -> 910 | L75: 910
A76: 58 | B76: Sawcut, Remove and Replace Concrete 6" Thick | C76: =_xlfn.SWITCH($D$8,"Lateral",K76,"PON",L76,J76) -> 910 | D76: SqrFt | E76: =$J$2*26.69 -> 26.69 | F76: =ROUND(IFERROR(C76*E76,0),2) -> 24287.9 | G76: Use Col I to adjust percentage. 25% for Urban areas and 1% for rural are good high level estimates | I76: 0.05 | J76: =ROUNDUP(($D$10*(1+$F$12))*$I$76,0) -> 910 | K76: =ROUNDUP(($D$10*(1+$F$12))*$I$76,0) -> 910 | L76: =ROUNDUP(($D$10*(1+$F$12))*$I$76,0) -> 910
A77: 59 | B77: Remove and Replace Brick Pavers | C77: =_xlfn.SWITCH($D$8,"Lateral",K77,"PON",L77,J77) -> 0 | D77: SqrFt | E77: =$J$2*38.46 -> 38.46 | F77: 0 | G77: Get qtys from design | J77: 0 | K77: 0 | L77: 0
A78: 60 | C78: 0 | F78: 0
A79: 61 | C79: 0 | F79: 0
A80: 62 | C80: 0 | F80: 0
A81: 63 | C81: 0 | F81: 0
A82: 64 | C82: 0 | F82: 0
A83: 65 | C83: 0 | F83: 0
A84: 66 | C84: 0 | F84: 0
A85: =A84+1 -> 67 | C85: 0 | F85: 0
B86: =B18 & " LABOR TOTAL" -> UNDERGROUND - BURIED LABOR TOTAL | F86: =SUM(F19:F85) -> 369871.58
B88: AERIAL -STRAND/LASH
A89: =A85+1 -> 68 | B89: Lash/Mount Closure | C89: =_xlfn.SWITCH($D$8,"Lateral",K89,"PON",L89,J89) -> 2 | D89: EA | E89: =$J$2*175 -> 175 | F89: =ROUND(IFERROR(C89*E89,0),2) -> 350 | G89: One per closure | J89: =IFERROR(ROUNDUP(J$157*($D$11/($D$10+$D$11)),0),0) -> 1 | K89: =IFERROR(ROUNDUP(K$157*($D$11/($D$10+$D$11)),0),0) -> 1 | L89: 2
A90: =A89+1 -> 69 | B90: Bond Strand/Guy to pole ground + materials | C90: =_xlfn.SWITCH($D$8,"Lateral",K90,"PON",L90,J90) -> 4 | D90: EA | E90: =$J$2*250 -> 250 | F90: 1000 | G90: Bonding will be done at the first, every 5th, last poles, and all poles with a vertical. (Unless power company uses other standard). Estimated as total aerial footage / 180 / 4 | J90: =ROUNDUP(($D$11/180)/4,0)*$J$6 -> 4 | K90: =ROUNDUP(($D$11/180)/4,0)*$J$6 -> 4 | L90: =ROUNDUP(($D$11/180)/4,0)*$J$6 -> 4
A91: 70 | B91: Install Strand | C91: =_xlfn.SWITCH($D$8,"Lateral",K91,"PON",L91,J91) -> 2298 | D91: FT | E91: =INDEX('UNIT PRICE TABLE'!$A$1:$G$58,MATCH(B91,'UNIT PRICE TABLE'!$A$1:$A$58,0),MATCH($D$12,Region,0)+1)*$J$2 -> 1.8 | F91: 4136.4 | G91: *Get updated pricing from Clayton first* Match aerial footage - quote from contractor shall include attachement hardware | J91: =$D$11*$J$6 -> 2298 | K91: =$D$11*$J$6 -> 2298 | L91: =$D$11*$J$6 -> 2298
A92: 71 | B92: Install Snow Shoes | C92: =_xlfn.SWITCH($D$8,"Lateral",K92,"PON",L92,J92) -> 5 | D92: EA | E92: =$J$2*160 -> 160 | F92: 800 | G92: formula is for 2 for every slack location | J92: =ROUNDUP((J93/100)*2,0) -> 5 | K92: =ROUNDUP((K93/100)*2,0) -> 5 | L92: =ROUNDUP((L93/100)*2,0) -> 5
A93: 72 | B93: Install Aerial Slack | C93: =_xlfn.SWITCH($D$8,"Lateral",K93,"PON",L93,J93) -> 230 | D93: EA | E93: =$E$94 -> 2.34 | F93: 538.2 | G93: in this model - it assumes 100' of slack for every 1000' of aerial installation | J93: =ROUNDUP(($D$11/1000)*100,0) -> 230 | K93: =ROUNDUP(($D$11/1000)*100,0) -> 230 | L93: =ROUNDUP(($D$11/1000)*100,0) -> 230
A94: 73 | B94: Install / Lash Aerial Cable | C94: =_xlfn.SWITCH($D$8,"Lateral",K94,"PON",L94,J94) -> 2298 | D94: FT | E94: =INDEX('UNIT PRICE TABLE'!$A$1:$G$58,MATCH(B94,'UNIT PRICE TABLE'!$A$1:$A$58,0),MATCH($D$12,Region,0)+1)*$J$2 -> 2.34 | F94: 5377.32 | G94: *Get updated pricing from Clayton first* Match aerial footage | J94: =$D$11*$J$6 -> 2298 | K94: =$D$11*$J$6 -> 2298 | L94: =$D$11*$J$6 -> 2298
A95: 74 | B95: Tree Trimming | C95: =_xlfn.SWITCH($D$8,"Lateral",K95,"PON",L95,J95) -> 230 | D95: FT | E95: =INDEX('UNIT PRICE TABLE'!$A$1:$G$58,MATCH(B95,'UNIT PRICE TABLE'!$A$1:$A$58,0),MATCH($D$12,Region,0)+1)*$J$2 -> 4.75 | F95: 1092.5 | G95: *Get updated pricing from Clayton first* Try and ID percentage. If unknown assume 10% of route needs tree trimming | J95: =ROUNDUP($D$11*0.1,0) -> 230 | K95: =ROUNDUP($D$11*0.1,0) -> 230 | L95: =ROUNDUP($D$11*0.1,0) -> 230
A96: 75 | B96: Install Pole Risers | C96: =_xlfn.SWITCH($D$8,"Lateral",K96,"PON",L96,J96) -> 1 | D96: EA | E96: =$J$2*308 -> 308 | F96: 308 | G96: assume 5% of poles - adjust as needed | J96: =ROUNDUP(($D$11/180)*0.05,0) -> 1 | K96: =ROUNDUP(($D$11/180)*0.05,0) -> 1 | L96: =ROUNDUP(($D$11/180)*0.05,0) -> 1
A97: 76 | B97: Install Down Guy & Anchors | C97: =_xlfn.SWITCH($D$8,"Lateral",K97,"PON",L97,J97) -> 2 | D97: EA | E97: =$J$2*385 -> 385 | F97: 770 | G97: assume 15% of poles - adjust as needed | J97: =ROUNDUP(($D$11/180)*0.15,0) -> 2 | K97: =ROUNDUP(($D$11/180)*0.15,0) -> 2 | L97: =ROUNDUP(($D$11/180)*0.15,0) -> 2
A98: 77 | B98: Pole Transfer / Make Ready (Straight Through) | C98: =_xlfn.SWITCH($D$8,"Lateral",K98,"PON",L98,J98) -> 1 | D98: EA | E98: =$J$2*193 -> 193 | F98: 193 | G98: assume 3% of poles - adjust as needed - This would be cost from MRE to move existing Comm. Price will vary depending on who is doing transfers/moves | J98: =ROUNDUP(($D$11/180)*0.033,0) -> 1 | K98: 1 | L98: 1
A99: 78 | B99: Pole Transfer / Make Ready (Dead-end) | C99: =_xlfn.SWITCH($D$8,"Lateral",K99,"PON",L99,J99) -> 1 | D99: EA | E99: =$J$2*170 -> 170 | F99: 170 | G99: assume 3% of poles - adjust as needed - This would be cost from MRE to move existing Comm. Price will vary depending on who is doing transfers/moves | J99: 1 | K99: 1 | L99: 1
A100: 79 | B100: Pole Transfer / Make Ready (Double Dead-end) | C100: =_xlfn.SWITCH($D$8,"Lateral",K100,"PON",L100,J100) -> 1 | D100: EA | E100: =$J$2*461 -> 461 | F100: 461 | G100: assume 3% of poles - adjust as needed - This would be cost from MRE to move existing Comm. Price will vary depending on who is doing transfers/moves | J100: 1 | K100: 1 | L100: 1
A101: 80 | C101: 0 | F101: 0
A102: 81 | C102: 0 | F102: 0
A103: 82 | C103: 0 | F103: 0
A104: 83 | C104: 0 | F104: 0
A105: 84 | C105: 0 | F105: 0
A106: 85 | C106: 0 | F106: 0
A107: 86 | C107: 0 | F107: 0
A108: 87 | C108: 0 | F108: 0
A109: 88 | C109: 0 | F109: 0
A110: 89 | C110: 0 | F110: 0
B111: =B88 & " LABOR TOTAL" -> AERIAL -STRAND/LASH LABOR TOTAL | F111: =SUM(F89:F110) -> 15196.42
B113: AERIAL - ADSS
A114: =A110+1 -> 90 | B114: Install Fiber (ADSS) | C114: =_xlfn.SWITCH($D$8,"Lateral",K114,"PON",L114,J114) -> 0 | D114: FT | E114: =INDEX('UNIT PRICE TABLE'!$A$1:$G$58,MATCH(B114,'UNIT PRICE TABLE'!$A$1:$A$58,0),MATCH($D$12,Region,0)+1)*$J$2 -> 3.8 | F114: =ROUND(IFERROR(C114*E114,0),2) -> 0 | G114: *Get updated pricing from Clayton first* Get qtys from design | J114: =$D$11*$J$5 -> 0 | K114: =$D$11*$J$5 -> 0 | L114: =$D$11*1.25*$J$5 -> 0
A115: =A114+1 -> 91 | B115: Pole attachment hardware (H bracket) | C115: =_xlfn.SWITCH($D$8,"Lateral",K115,"PON",L115,J115) -> 0 | D115: EA | E115: =$J$2*104 -> 104 | F115: 0 | G115: Assumes one per Closure | J115: =IFERROR(ROUNDUP(J$157*($D$11/($D$10+$D$11)),0)*$J$5,0) -> 0 | K115: =IFERROR(ROUNDUP(K$157*($D$11/($D$10+$D$11)),0)*$J$5,0) -> 0 | L115: =IFERROR(ROUNDUP(L$157*($D$11/($D$10+$D$11)),0)*$J$5,0) -> 0
A116: =A115+1 -> 92 | B116: Pole attachment hardware (Dead-end) | C116: =_xlfn.SWITCH($D$8,"Lateral",K116,"PON",L116,J116) -> 0 | D116: EA | E116: =$J$2*104 -> 104 | F116: 0 | G116: BB&Lat Assumes 25% poles with a 20% extra, PON Assumes 40% with 36% extra | J116: =ROUNDUP(((($D$11/300)*0.25)*1.2)*2,0)*$J$5 -> 0 | K116: =ROUNDUP(((($D$11/300)*0.25)*1.2)*2,0)*$J$5 -> 0 | L116: =ROUNDUP(((($D$11/300)*0.4)*1.36)*2,0)*$J$5 -> 0
A117: 93 | B117: Pole attachment hardware (Tangent) | C117: =_xlfn.SWITCH($D$8,"Lateral",K117,"PON",L117,J117) -> 0 | D117: EA | E117: =$J$2*104 -> 104 | F117: 0 | G117: BB&Lat Assumes 75% poles with a 20% extra, PON Assumes 60% with 36% extra | J117: =ROUNDUP(((($D$11/300)*0.75)*1.2),0)*$J$5 -> 0 | K117: =ROUNDUP(((($D$11/300)*0.75)*1.2),0)*$J$5 -> 0 | L117: =ROUNDUP(((($D$11/300)*0.6)*1.36),0)*$J$5 -> 0
A118: 94 | B118: Install U-guard for pole mounted enclosure | C118: =_xlfn.SWITCH($D$8,"Lateral",K118,"PON",L118,J118) -> 0 | D118: EA | E118: =$J$2*50 -> 50 | F118: 0 | G118: Assumes one per Closure | J118: =IFERROR(ROUNDUP(J$157*($D$11/($D$10+$D$11)),0)*$J$5,0) -> 0 | K118: =IFERROR(ROUNDUP(K$157*($D$11/($D$10+$D$11)),0)*$J$5,0) -> 0 | L118: =IFERROR(ROUNDUP(L$157*($D$11/($D$10+$D$11)),0)*$J$5,0) -> 0
A119: 95 | C119: 0 | F119: 0
A120: 96 | C120: 0 | F120: 0
A121: 97 | C121: 0 | F121: 0
A122: 98 | C122: 0 | F122: 0
A123: 99 | C123: 0 | F123: 0
A124: 100 | C124: 0 | F124: 0
A125: 101 | C125: 0 | F125: 0
A126: 102 | C126: 0 | F126: 0
A127: 103 | C127: 0 | F127: 0
A128: 104 | C128: 0 | F128: 0
B129: =B113 & " LABOR TOTAL" -> AERIAL - ADSS LABOR TOTAL | F129: =SUM(F114:F128) -> 0
B131: WIRELESS
A132: =A128+1 -> 105 | C132: 0 | D132: EA | F132: =ROUND(IFERROR(C132*E132,0),2) -> 0
A133: =A132+1 -> 106 | C133: 0 | D133: EA | F133: 0
A134: =A133+1 -> 107 | C134: 0 | D134: EA | F134: 0
A135: 108 | C135: 0 | D135: EA | F135: 0
A136: 109 | C136: 0 | D136: EA | F136: 0
A137: 110 | C137: 0 | D137: EA | F137: 0
A138: 111 | C138: 0 | D138: EA | F138: 0
A139: 112 | C139: 0 | D139: EA | F139: 0
A140: 113 | C140: 0 | D140: EA | F140: 0
A141: 114 | C141: 0 | D141: EA | F141: 0
A142: 115 | C142: 0 | D142: EA | F142: 0
A143: 116 | C143: 0 | D143: EA | F143: 0
A144: 117 | C144: 0 | F144: 0
A145: 118 | C145: 0 | F145: 0
A146: 119 | C146: 0 | F146: 0
A147: 120 | C147: 0 | F147: 0
A148: 121 | C148: 0 | F148: 0
A149: 122 | C149: 0 | F149: 0
A150: 123 | C150: 0 | F150: 0
A151: 124 | C151: 0 | F151: 0
A152: 125 | C152: 0 | F152: 0
A153: 126 | C153: 0 | F153: 0
B154: =B131 & " LABOR TOTAL" -> WIRELESS LABOR TOTAL | F154: =SUM(F132:F153) -> 0
B156: SPLICING
A157: =A153+1 -> 127 | B157: Install New Splice Case & Prep Cable | C157: =_xlfn.SWITCH($D$8,"Lateral",K157,"PON",L157,J157) -> 14 | D157: EA | E157: =INDEX('UNIT PRICE TABLE'!$A$1:$G$58,MATCH(B157,'UNIT PRICE TABLE'!$A$1:$A$58,0),MATCH($D$12,Region,0)+1)*$J$2 -> 550 | F157: =ROUND(IFERROR(C157*E157,0),2) -> 7700 | G157: *Get updated pricing from Clayton first* BB and Laterals estimate one every 5000', PON one every 8 customers | J157: =ROUNDUP((($D$10*(1+$F$12))+$D$11+J$93)/5000,0) -> 5 | K157: =ROUNDUP((($D$10*(1+$F$12))+$D$11+K$93)/5000,0) -> 5 | L157: =ROUNDUP($F$8/8,0) -> 14
A158: =A157+1 -> 128 | B158: Re-enter splice closure | C158: =_xlfn.SWITCH($D$8,"Lateral",K158,"PON",L158,J158) -> 0 | D158: EA | E158: =$J$2*200 -> 200 | F158: 0 | G158: Get qtys from design | J158: 0 | K158: 0 | L158: 0
A159: =A158+1 -> 129 | B159: Ground Splice Case + Materials | C159: =_xlfn.SWITCH($D$8,"Lateral",K159,"PON",L159,J159) -> 14 | D159: EA | E159: =$J$2*50 -> 50 | F159: 700 | G159: If using armored cable all splice cases must be grounded. Dielectric no need grounding. For HLD estimates assume each needs grounding | J159: =J157 -> 5 | K159: =K157 -> 5 | L159: =L157 -> 14
A160: 130 | B160: Splicing, Fusion, Single Fiber | C160: =_xlfn.SWITCH($D$8,"Lateral",K160,"PON",L160,J160) -> 526 | D160: EA | E160: =INDEX('UNIT PRICE TABLE'!$A$1:$G$58,MATCH(B160,'UNIT PRICE TABLE'!$A$1:$A$58,0),MATCH($D$12,Region,0)+1)*$J$2 -> 26 | F160: 13676 | G160: *Get updated pricing from Clayton first* BB/Lateral assume butt splice per closure using AVG cable size, PON 2x number of premise + cabinets fully spliced + MST splices. | I160: 1 | J160: =(J159*$N$218)*I160 -> 540 | K160: =(K159*$N$218)*I160 -> 540 | L160: =($F$8*2)+(L179*(288+24))+($L$302*$F$8) -> 526
A161: 131 | B161: Splicing Fusion, Single fiber Pigtail at panel | C161: =_xlfn.SWITCH($D$8,"Lateral",K161,"PON",L161,J161) -> 216 | D161: EA | E161: =E160 -> 26 | F161: 5616 | G161: Assume Patch Panels fully spliced. Laterals assume 2 splices per panel | J161: =(J181*$N$218) -> 216 | K161: =$F$8*2 -> 214 | L161: =(L181*$N$218) -> 216
A162: 132 | B162: Splicing, Mass Fusion, 12 Fiber Ribbon | C162: =_xlfn.SWITCH($D$8,"Lateral",K162,"PON",L162,J162) -> 0 | D162: RIBBON | E162: =$J$2*200 -> 200 | F162: 0 | G162: Can use single splice estimate if Ribbon fiber is being used. Calcs assume no ribbon | J162: 0 | K162: 0 | L162: 0
A163: 133 | B163: Testing, OTDR, Uni-Directional, Power Meter Testing | C163: =_xlfn.SWITCH($D$8,"Lateral",K163,"PON",L163,J163) -> 312 | D163: EA | E163: =INDEX('UNIT PRICE TABLE'!$A$1:$G$58,MATCH(B163,'UNIT PRICE TABLE'!$A$1:$A$58,0),MATCH($D$12,Region,0)+1)*$J$2 -> 7.5 | F163: 2340 | G163: *Get updated pricing from Clayton first* None for BB, Laterals 24 per panel, PON one test per cabinet port | J163: 0 | K163: =$N$218 -> 108 | L163: =L179*(288+24) -> 312
A164: 134 | B164: Testing, OTDR, Bi-Directional, Power Meter Testing | C164: =_xlfn.SWITCH($D$8,"Lateral",K164,"PON",L164,J164) -> 216 | D164: EA | E164: =INDEX('UNIT PRICE TABLE'!$A$1:$G$58,MATCH(B164,'UNIT PRICE TABLE'!$A$1:$A$58,0),MATCH($D$12,Region,0)+1)*$J$2 -> 10 | F164: 2160 | G164: *Get updated pricing from Clayton first* None for Laterals, BB and PON assume Panels * 432 | J164: =$N$218*J181 -> 216 | K164: 0 | L164: =$N$218*L181 -> 216
A165: 135 | B165: Testing existing cables Bi-Directional | C165: 0 | D165: EA | E165: =$J$2*20 -> 20 | F165: 0
A166: 136 | B166: Document existing splicing | C166: 0 | D166: EA | E166: =$J$2*27 -> 27 | F166: 0
A167: 137 | B167: Reel testing | C167: =_xlfn.SWITCH($D$8,"Lateral",K167,"PON",L167,J167) -> 432 | D167: EA | E167: =E160 -> 26 | F167: 11232 | G167: Assumes 10,000ft reels and uses breakdown of fiber counds in material below. Fully tests all fibers in reels | J167: =P218 -> 432 | K167: =Q218 -> 432 | L167: =R218 -> 432
A168: 138 | C168: 0 | F168: 0
A169: 139 | C169: 0 | F169: 0
A170: 140 | C170: 0 | F170: 0
A171: 141 | C171: 0 | F171: 0
A172: 142 | C172: 0 | F172: 0
A173: 143 | C173: 0 | F173: 0
A174: 144 | C174: 0 | F174: 0
B175: =B156 & " LABOR TOTAL" -> SPLICING LABOR TOTAL | F175: =SUM(F157:F174) -> 43424
B177: PATCH PANELS AND CABINETS
A178: =A174+1 -> 145 | B178: Install Outdoor Powered Cabinet + Site prep and Concrete Pad | C178: 0 | D178: EA | E178: =$J$2*6000 -> 6000 | F178: =ROUND(IFERROR(C178*E178,0),2) -> 0 | G178: Only added for PON deployments, assumes 1 small active cabinet per 3000 HHP | J178: 0 | K178: 0 | L178: =ROUNDDOWN($F$8/3000,0)+1 -> 1
A179: =A178+1 -> 146 | B179: Install Pad mounted FDH Splitter Cabinet + Site prep and Prefab Vault | C179: 1 | D179: EA | E179: 2500 | F179: 2500 | G179: None for BB and Lateral, PON assume one per 200 Customers | J179: 0 | K179: 0 | L179: =ROUNDUP(SUM(F9:F11)/200,0) -> 1
A180: =A179+1 -> 147 | B180: Install Pole mounted FDH Splitter Cabinet | C180: =_xlfn.SWITCH($D$8,"Lateral",K180,"PON",L180,J180) -> 0 | D180: EA | E180: 2500 | F180: 0 | G180: Can match regular if using pole mount cabinets | J180: 0 | K180: 0 | L180: 0
A181: 148 | B181: Install rack mounted patch panel (Any Size) and tails | C181: 0 | D181: EA | E181: =$J$2*500 -> 500 | F181: 0 | G181: Assumes (2) pannels per 25miles on BB, (1) pannel customer on Lateral, and (2) pannels per 10,000 customers on PON | J181: =ROUNDUP(($D$10+$D$11)/132000,0)*2 -> 2 | K181: =$F$8 -> 107 | L181: =ROUNDUP($F$8/10000,0)*2 -> 2
A182: 149 | B182: Install Wall Mount Fiber Enclosure | C182: =_xlfn.SWITCH($D$8,"Lateral",K182,"PON",L182,J182) -> 0 | D182: EA | E182: =$J$2*500 -> 500 | F182: 0 | G182: Get qtys from design | J182: 0 | K182: 0 | L182: 0
A183: 150 | B183: Install 7ft Rack for patch panels | C183: =_xlfn.SWITCH($D$8,"Lateral",K183,"PON",L183,J183) -> 0 | D183: EA | E183: =$J$2*1000 -> 1000 | F183: 0 | G183: Get qtys from design | J183: 0 | K183: 0 | L183: 0
A184: 151 | C184: 0 | F184: 0
A185: 152 | C185: 0 | F185: 0
A186: 153 | C186: 0 | F186: 0
A187: 154 | C187: 0 | F187: 0
A188: 155 | C188: 0 | F188: 0
A189: 156 | C189: 0 | F189: 0
A190: 157 | C190: 0 | F190: 0
A191: 158 | C191: 0 | F191: 0
A192: 159 | C192: 0 | F192: 0
A193: 160 | C193: 0 | F193: 0
B194: =B177 & " LABOR TOTAL" -> PATCH PANELS AND CABINETS LABOR TOTAL | F194: =SUM(F178:F193) -> 2500
B196: GENERAL
A197: =A193+1 -> 161 | B197: Pull fiber through building | C197: =_xlfn.SWITCH($D$8,"Lateral",K197,"PON",L197,J197) -> 0 | D197: FT | E197: =$J$2*2.5 -> 2.5 | F197: =IFERROR(C197*E197,0) -> 0 | G197: Ft of fiber that needs to be pulled into a building. Qtys from design | K197: =$F$8*100 -> 10700
A198: =A197+1 -> 162 | B198: Install 2" Electric Metal Tubing (EMT) | C198: =_xlfn.SWITCH($D$8,"Lateral",K198,"PON",L198,J198) -> 0 | D198: LF | E198: =$J$2*2.5 -> 2.5 | F198: =ROUND(IFERROR(C198*E198,0),2) -> 0 | G198: Used if any Electrical conduit needs to be installed
A199: =A198+1 -> 163 | B199: 4" Core Bore | C199: =_xlfn.SWITCH($D$8,"Lateral",K199,"PON",L199,J199) -> 0 | D199: EA | E199: =$J$2*450 -> 450 | F199: 0 | G199: If any buildings need to be drilled to for fiber/conduit entrance | K199: =$F$8 -> 107
A200: 164 | B200: 2" Building Riser with LB - Up to 10' | C200: =_xlfn.SWITCH($D$8,"Lateral",K200,"PON",L200,J200) -> 0 | D200: EA | E200: =$J$2*1000 -> 1000 | F200: 0 | G200: If any building entracnes needed | K200: =$F$8 -> 107
A201: 165 | B201: Install Nema Enclosure | C201: =_xlfn.SWITCH($D$8,"Lateral",K201,"PON",L201,J201) -> 0 | D201: EA | E201: =$J$2*600 -> 600 | F201: 0 | G201: If any generic enclosures are needed to be installed | K201: =$F$8 -> 107
A202: 166 | C202: 0 | F202: 0
A203: 167 | C203: 0 | F203: 0
A204: 168 | C204: 0 | F204: 0
A205: 169 | C205: 0 | F205: 0
A206: 170 | C206: 0 | F206: 0
... 285 more rows

Sheet DIST-004
A1: [CLIENT NAME] - FIBER CONSTRUCTION PROJECT - ATTACHMENT X: PRICING PROPOSAL FORM | I1: =MID(CELL("filename",A1),FIND("]",CELL("filename",A1))+1,256) -> DIST-004
B2: Contractor: | I2: =IFERROR(IF(D14>=0,D14,0),0) -> 0 | J2: =1+(L2) -> 1 | L2: =IF(I2<10,I2,0) -> 0
B3: Contact Name/Position: | I3: 0.3 | J3: =IF($D$14="Urban",$K$3,0.01) -> 0.01 | K3: 0.15 | L3: =IF($F$14="Prevailing Wage",I3,0) -> 0
B4: Email:
B5: Phone: | I5: ADSS | J5: =IFERROR(IF($F$14="ADSS",1,0),0) -> 0
I6: Strand/Lash | J6: =IF($J$5=0,1,0) -> 1
A7: Items with listed quantities are included in the current design, but [CLIENT NAME] requests costs for all the items should the item be needed due to design alterations. All proposed unit costs must be guaranteed for the term of the project unless expressly agreed upon by [CLIENT NAME].
C8: BB, Lateral, PON (This is for HLD estimates, this does not matter for LLD): | D8: PON | E8: Mileage | F8: =SUM(F9:F11) -> 20 | G8: Total Passings
C9: Total Design with underground overbuild % (F12) Footage/Miles: | D9: =D11+(D10*(1+F12)) ->  | E9: =ROUND(D9/5280,2) ->  | F9: =INDEX(Summary!$B$1:$BA$15,4,MATCH($I$1,Summary!$1:$1,0)-1) -> 20 | G9: Residential
C10: Buried: | D10: =INDEX(Summary!$B$1:$BA$15,2,MATCH($I$1,Summary!$1:$1,0)-1) -> 13393 | E10: =ROUND(D10/5280,2) -> 2.54 | F10: =INDEX(Summary!$B$1:$BA$15,5,MATCH($I$1,Summary!$1:$1,0)-1) -> - | G10: Business
C11: Aerial: | D11: =INDEX(Summary!$B$1:$BA$15,3,MATCH($I$1,Summary!$1:$1,0)-1) -> - | E11: =ROUND(D11/5280,2) ->  | F11: =INDEX(Summary!$B$1:$BA$15,6,MATCH($I$1,Summary!$1:$1,0)-1) -> - | G11: Anchor
C12: Region for unit pricing | D12: MidWest | E12: Actual Buried | F12: 0.05 | G12: Underground overbuild percentage (If using centerline for PON assume 75%)
C13: Use MST's? (Only changes PON estimates) | D13: No MST | E13: =D10*(1+F12) -> 14062.65 | F13: 0 | G13: Rock Percentage
C14: Labor Rate Adjustment (Use this if you want to add additional costs to wage i.e. prevailing wage ~30%) | D14: 0 | E14: =ROUND(E13/5280,2) -> 2.66 | F14: Strand and Lash | G14: Aerial (Strand and Lash or ADSS)
A15: UNIT PRICING | J15: HLD estimates
A16: LABOR PRICING. All work includes traffic control plans, setup, maintenance and breakdown, compacted backfill, stormwater and erosion control setup, maintenance and breakdown, safety compliance and soft surface restoration. All cells shown in green shall be completed by the Contractor. All other cells are protected in this form. | I16: Percentage | J16: BB | K16: Lateral | L16: GPON
A17: Item # | B17: Description | C17: Estimated Quantity | D17: Unit | E17: Unit Price | F17: Total | G17: Notes | N17: micro | O17: 1" | P17: 1.25" | Q17: 2" | R17: 4" | S17: 6" | T17: 8" | V17: =CONCATENATE(N17," len") -> micro len | W17: =CONCATENATE(O17," len") -> 1" len | X17: 1.25" len | Y17: 2" len | Z17: 4" len | AA17: 6" len | AB17: 8" len
B18: UNDERGROUND - BURIED | V18: =SUM(V19:V50) -> 0 | W18: =SUM(W19:W50) -> 17579 | X18: 0 | Y18: 14063 | Z18: 0 | AA18: 8 | AB18: 8
A19: 1 | B19: Directional Bore (1) 1" | C19: =_xlfn.SWITCH($D$8,"Lateral",K19,"PON",L19,J19) -> 0 | D19: LF | E19: =INDEX('UNIT PRICE TABLE'!$A$1:$G$58,MATCH(B19,'UNIT PRICE TABLE'!$A$1:$A$58,0),MATCH($D$12,Region,0)+1)*$J$2 -> 10.25 | F19: =ROUND(IFERROR(C19*E19,0),2) -> 0 | G19: *Get updated pricing from Clayton first* Total Underground lengths. BB and Lateral add 5% for variance, PON may need to update variance in cell F12 | I19: 0 | J19: =ROUNDUP($D$10*(1+$F$12)*$I19,0) -> 0 | K19: =$J19 -> 0 | L19: =$J19 -> 0 | N19: 0 | O19: 1 | P19: 0 | Q19: 0 | R19: 0 | S19: 0 | T19: 0 | V19: =N19*$J19 -> 0 | W19: =O19*$J19 -> 0 | X19: 0 | Y19: 0 | Z19: 0 | AA19: 0 | AB19: 0
A20: =A19+1 -> 2 | B20: Directional Bore (2) 1" | C20: =_xlfn.SWITCH($D$8,"Lateral",K20,"PON",L20,J20) -> 0 | D20: LF | E20: =INDEX('UNIT PRICE TABLE'!$A$1:$G$58,MATCH(B20,'UNIT PRICE TABLE'!$A$1:$A$58,0),MATCH($D$12,Region,0)+1)*$J$2 -> 10.25 | F20: 0 | G20: *Get updated pricing from Clayton first* Total Underground lengths. BB and Lateral add 5% for variance, PON may need to update variance in cell F12 | I20: 0 | J20: =ROUNDUP($D$10*(1+$F$12)*$I20,0) -> 0 | K20: =$J20 -> 0 | L20: 0 | N20: 0 | O20: 2 | P20: 0 | Q20: 0 | R20: 0 | S20: 0 | T20: 0 | V20: =N20*$J20 -> 0 | W20: 0 | X20: 0 | Y20: 0 | Z20: 0 | AA20: 0 | AB20: 0
A21: =A20+1 -> 3 | B21: Directional Bore (1) 2" | C21: =_xlfn.SWITCH($D$8,"Lateral",K21,"PON",L21,J21) -> 0 | D21: LF | E21: =INDEX('UNIT PRICE TABLE'!$A$1:$G$58,MATCH(B21,'UNIT PRICE TABLE'!$A$1:$A$58,0),MATCH($D$12,Region,0)+1)*$J$2 -> 11.75 | F21: 0 | G21: *Get updated pricing from Clayton first* Total Underground lengths. BB and Lateral add 5% for variance, PON may need to update variance in cell F12 | I21: 0 | J21: 0 | K21: 0 | L21: 0 | N21: 0 | O21: 0 | P21: 0 | Q21: 1 | R21: 0 | S21: 0 | T21: 0 | V21: 0 | W21: 0 | X21: 0 | Y21: 0 | Z21: 0 | AA21: 0 | AB21: 0
A22: 4 | B22: Directional Bore (1) 2" and (1) 1" | C22: =_xlfn.SWITCH($D$8,"Lateral",K22,"PON",L22,J22) -> 10547 | D22: LF | E22: =INDEX('UNIT PRICE TABLE'!$A$1:$G$58,MATCH(B22,'UNIT PRICE TABLE'!$A$1:$A$58,0),MATCH($D$12,Region,0)+1)*$J$2 -> 11.75 | F22: 123927.25 | G22: *Get updated pricing from Clayton first* Total Underground lengths. BB and Lateral add 5% for variance, PON may need to update variance in cell F12 | I22: 0.75 | J22: 10547 | K22: 10547 | L22: 10547 | N22: 0 | O22: 1 | P22: 0 | Q22: 1 | R22: 0 | S22: 0 | T22: 0 | V22: 0 | W22: 10547 | X22: 0 | Y22: 10547 | Z22: 0 | AA22: 0 | AB22: 0
A23: 5 | B23: Directional Bore (1) 2" and (2) 1" | C23: =_xlfn.SWITCH($D$8,"Lateral",K23,"PON",L23,J23) -> 3516 | D23: LF | E23: =INDEX('UNIT PRICE TABLE'!$A$1:$G$58,MATCH(B23,'UNIT PRICE TABLE'!$A$1:$A$58,0),MATCH($D$12,Region,0)+1)*$J$2 -> 16.94 | F23: 59561.04 | G23: *Get updated pricing from Clayton first* Total Underground lengths. BB and Lateral add 5% for variance, PON may need to update variance in cell F12 | I23: 0.25 | J23: 3516 | K23: 3516 | L23: 3516 | N23: 0 | O23: 2 | P23: 0 | Q23: 1 | R23: 0 | S23: 0 | T23: 0 | V23: 0 | W23: 7032 | X23: 0 | Y23: 3516 | Z23: 0 | AA23: 0 | AB23: 0
A24: 6 | B24: Directional Bore (2) 2" | C24: =_xlfn.SWITCH($D$8,"Lateral",K24,"PON",L24,J24) -> 0 | D24: LF | E24: =INDEX('UNIT PRICE TABLE'!$A$1:$G$58,MATCH(B24,'UNIT PRICE TABLE'!$A$1:$A$58,0),MATCH($D$12,Region,0)+1)*$J$2 -> 16.94 | F24: 0 | G24: *Get updated pricing from Clayton first* Total Underground lengths. BB and Lateral add 5% for variance, PON may need to update variance in cell F12 | I24: 0 | J24: 0 | K24: 0 | L24: 0 | N24: 0 | O24: 0 | P24: 0 | Q24: 2 | R24: 0 | S24: 0 | T24: 0 | V24: 0 | W24: 0 | X24: 0 | Y24: 0 | Z24: 0 | AA24: 0 | AB24: 0
A25: 7 | B25: Directional Bore (2) 2" and (1) 1" | C25: =_xlfn.SWITCH($D$8,"Lateral",K25,"PON",L25,J25) -> 0 | D25: LF | E25: =INDEX('UNIT PRICE TABLE'!$A$1:$G$58,MATCH(B25,'UNIT PRICE TABLE'!$A$1:$A$58,0),MATCH($D$12,Region,0)+1)*$J$2 -> 18.66 | F25: 0 | G25: *Get updated pricing from Clayton first* Total Underground lengths. BB and Lateral add 5% for variance, PON may need to update variance in cell F12 | I25: 0 | J25: 0 | K25: 0 | L25: 0 | N25: 0 | O25: 1 | P25: 0 | Q25: 2 | R25: 0 | S25: 0 | T25: 0 | V25: 0 | W25: 0 | X25: 0 | Y25: 0 | Z25: 0 | AA25: 0 | AB25: 0
A26: 8 | B26: Directional Bore (3) 2" | C26: =_xlfn.SWITCH($D$8,"Lateral",K26,"PON",L26,J26) -> 0 | D26: LF | E26: =INDEX('UNIT PRICE TABLE'!$A$1:$G$58,MATCH(B26,'UNIT PRICE TABLE'!$A$1:$A$58,0),MATCH($D$12,Region,0)+1)*$J$2 -> 21.4 | F26: 0 | G26: *Get updated pricing from Clayton first* Total Underground lengths. BB and Lateral add 5% for variance, PON may need to update variance in cell F12 | I26: 0 | J26: 0 | K26: 0 | L26: 0 | N26: 0 | O26: 0 | P26: 0 | Q26: 3 | R26: 0 | S26: 0 | T26: 0 | V26: 0 | W26: 0 | X26: 0 | Y26: 0 | Z26: 0 | AA26: 0 | AB26: 0
A27: 9 | B27: Directional Bore (3) 2" and (1) 1" | C27: =_xlfn.SWITCH($D$8,"Lateral",K27,"PON",L27,J27) -> 0 | D27: LF | E27: =INDEX('UNIT PRICE TABLE'!$A$1:$G$58,MATCH(B27,'UNIT PRICE TABLE'!$A$1:$A$58,0),MATCH($D$12,Region,0)+1)*$J$2 -> 24.39 | F27: 0 | G27: *Get updated pricing from Clayton first* Total Underground lengths. BB and Lateral add 5% for variance, PON may need to update variance in cell F12 | I27: 0 | J27: 0 | K27: 0 | L27: 0 | N27: 0 | O27: 1 | P27: 0 | Q27: 3 | R27: 0 | S27: 0 | T27: 0 | V27: 0 | W27: 0 | X27: 0 | Y27: 0 | Z27: 0 | AA27: 0 | AB27: 0
A28: 10 | B28: Directional Bore (3) 2" and (2) 1" | C28: =_xlfn.SWITCH($D$8,"Lateral",K28,"PON",L28,J28) -> 0 | D28: LF | E28: =INDEX('UNIT PRICE TABLE'!$A$1:$G$58,MATCH(B28,'UNIT PRICE TABLE'!$A$1:$A$58,0),MATCH($D$12,Region,0)+1)*$J$2 -> 26.7 | F28: 0 | G28: *Get updated pricing from Clayton first* Total Underground lengths. BB and Lateral add 5% for variance, PON may need to update variance in cell F12 | I28: 0 | J28: 0 | K28: 0 | L28: 0 | N28: 0 | O28: 2 | P28: 0 | Q28: 3 | R28: 0 | S28: 0 | T28: 0 | V28: 0 | W28: 0 | X28: 0 | Y28: 0 | Z28: 0 | AA28: 0 | AB28: 0
A29: 11 | B29: Directional Bore (4) 2" | C29: =_xlfn.SWITCH($D$8,"Lateral",K29,"PON",L29,J29) -> 0 | D29: LF | E29: =INDEX('UNIT PRICE TABLE'!$A$1:$G$58,MATCH(B29,'UNIT PRICE TABLE'!$A$1:$A$58,0),MATCH($D$12,Region,0)+1)*$J$2 -> 28.93 | F29: 0 | G29: *Get updated pricing from Clayton first* Total Underground lengths. BB and Lateral add 5% for variance, PON may need to update variance in cell F12 | I29: 0 | J29: 0 | K29: 0 | L29: 0 | N29: 0 | O29: 0 | P29: 0 | Q29: 4 | R29: 0 | S29: 0 | T29: 0 | V29: 0 | W29: 0 | X29: 0 | Y29: 0 | Z29: 0 | AA29: 0 | AB29: 0
A30: 12 | B30: Directional Bore (1) 4" | C30: =_xlfn.SWITCH($D$8,"Lateral",K30,"PON",L30,J30) -> 0 | D30: LF | E30: =INDEX('UNIT PRICE TABLE'!$A$1:$G$58,MATCH(B30,'UNIT PRICE TABLE'!$A$1:$A$58,0),MATCH($D$12,Region,0)+1)*$J$2 -> 12 | F30: 0 | G30: *Get updated pricing from Clayton first* Total Underground lengths. BB and Lateral add 5% for variance, PON may need to update variance in cell F12 | I30: 0 | J30: 0 | K30: 0 | L30: 0 | N30: 0 | O30: 0 | P30: 0 | Q30: 0 | R30: 1 | S30: 0 | T30: 0 | V30: 0 | W30: 0 | X30: 0 | Y30: 0 | Z30: 0 | AA30: 0 | AB30: 0
A31: 13 | B31: Directional Bore (1) 1 1/4" | C31: =_xlfn.SWITCH($D$8,"Lateral",K31,"PON",L31,J31) -> 0 | D31: LF | E31: =INDEX('UNIT PRICE TABLE'!$A$1:$G$58,MATCH(B31,'UNIT PRICE TABLE'!$A$1:$A$58,0),MATCH($D$12,Region,0)+1)*$J$2 -> 12 | F31: 0 | G31: *Get updated pricing from Clayton first* Total Underground lengths. BB and Lateral add 5% for variance, PON may need to update variance in cell F12 | I31: 0 | J31: 0 | K31: 0 | L31: 0 | N31: 0 | O31: 0 | P31: 1 | Q31: 0 | R31: 0 | S31: 0 | T31: 0 | V31: 0 | W31: 0 | X31: 0 | Y31: 0 | Z31: 0 | AA31: 0 | AB31: 0
A32: 14 | B32: Directional Bore (2) 1 1/4" | C32: =_xlfn.SWITCH($D$8,"Lateral",K32,"PON",L32,J32) -> 0 | D32: LF | E32: =INDEX('UNIT PRICE TABLE'!$A$1:$G$58,MATCH(B32,'UNIT PRICE TABLE'!$A$1:$A$58,0),MATCH($D$12,Region,0)+1)*$J$2 -> 16 | F32: 0 | G32: *Get updated pricing from Clayton first* Total Underground lengths. BB and Lateral add 5% for variance, PON may need to update variance in cell F12 | I32: 0 | J32: 0 | K32: 0 | L32: 0 | N32: 0 | O32: 0 | P32: 2 | Q32: 0 | R32: 0 | S32: 0 | T32: 0 | V32: 0 | W32: 0 | X32: 0 | Y32: 0 | Z32: 0 | AA32: 0 | AB32: 0
A33: 15 | B33: Directional Bore (3) 1 1/4" | C33: =_xlfn.SWITCH($D$8,"Lateral",K33,"PON",L33,J33) -> 0 | D33: LF | E33: =INDEX('UNIT PRICE TABLE'!$A$1:$G$58,MATCH(B33,'UNIT PRICE TABLE'!$A$1:$A$58,0),MATCH($D$12,Region,0)+1)*$J$2 -> 18 | F33: 0 | G33: *Get updated pricing from Clayton first* Total Underground lengths. BB and Lateral add 5% for variance, PON may need to update variance in cell F12 | I33: 0 | J33: 0 | K33: 0 | L33: 0 | N33: 0 | O33: 0 | P33: 3 | Q33: 0 | R33: 0 | S33: 0 | T33: 0 | V33: 0 | W33: 0 | X33: 0 | Y33: 0 | Z33: 0 | AA33: 0 | AB33: 0
A34: 16 | B34: Directional Bore (4) 1 1/4" | C34: =_xlfn.SWITCH($D$8,"Lateral",K34,"PON",L34,J34) -> 0 | D34: LF | E34: =INDEX('UNIT PRICE TABLE'!$A$1:$G$58,MATCH(B34,'UNIT PRICE TABLE'!$A$1:$A$58,0),MATCH($D$12,Region,0)+1)*$J$2 -> 24 | F34: 0 | G34: *Get updated pricing from Clayton first* Total Underground lengths. BB and Lateral add 5% for variance, PON may need to update variance in cell F12 | I34: 0 | J34: 0 | K34: 0 | L34: 0 | N34: 0 | O34: 0 | P34: 4 | Q34: 0 | R34: 0 | S34: 0 | T34: 0 | V34: 0 | W34: 0 | X34: 0 | Y34: 0 | Z34: 0 | AA34: 0 | AB34: 0
A35: 17 | B35: Microtrenching (Narrow Band Trenching) upto 12" deep | C35: =_xlfn.SWITCH($D$8,"Lateral",K35,"PON",L35,J35) -> 0 | D35: LF | E35: =$J$2*11.54 -> 11.54 | F35: 0 | G35: Add 5% for variance | I35: 0 | J35: 0 | K35: 0 | L35: 0 | N35: 1 | O35: 0 | P35: 0 | Q35: 0 | R35: 0 | S35: 0 | T35: 0 | V35: 0 | W35: 0 | X35: 0 | Y35: 0 | Z35: 0 | AA35: 0 | AB35: 0
A36: 18 | B36: Microtrenching (Narrow Band Trenching) upto 18" deep | C36: =_xlfn.SWITCH($D$8,"Lateral",K36,"PON",L36,J36) -> 0 | D36: LF | E36: =$J$2*13.85 -> 13.85 | F36: 0 | G36: Add 5% for variance | I36: 0 | J36: 0 | K36: 0 | L36: 0 | N36: 1 | O36: 0 | P36: 0 | Q36: 0 | R36: 0 | S36: 0 | T36: 0 | V36: 0 | W36: 0 | X36: 0 | Y36: 0 | Z36: 0 | AA36: 0 | AB36: 0
A37: 19 | B37: Microtrenching (Narrow Band Trenching) upto 24" deep | C37: =_xlfn.SWITCH($D$8,"Lateral",K37,"PON",L37,J37) -> 0 | D37: LF | E37: =$J$2*18.46 -> 18.46 | F37: 0 | G37: Add 5% for variance | I37: 0 | J37: 0 | K37: 0 | L37: 0 | N37: 1 | O37: 0 | P37: 0 | Q37: 0 | R37: 0 | S37: 0 | T37: 0 | V37: 0 | W37: 0 | X37: 0 | Y37: 0 | Z37: 0 | AA37: 0 | AB37: 0
A38: 20 | B38: Vibratory Plow 4' deep (1) 2" | C38: =_xlfn.SWITCH($D$8,"Lateral",K38,"PON",L38,J38) -> 0 | D38: LF | E38: =$J$2*75 -> 75 | F38: 0 | G38: Add 5% for variance | I38: 0 | J38: 0 | K38: 0 | L38: 0 | N38: 0 | O38: 0 | P38: 0 | Q38: 1 | R38: 0 | S38: 0 | T38: 0 | V38: 0 | W38: 0 | X38: 0 | Y38: 0 | Z38: 0 | AA38: 0 | AB38: 0
A39: 21 | B39: Vibratory Plow 4' deep (2) 2" | C39: =_xlfn.SWITCH($D$8,"Lateral",K39,"PON",L39,J39) -> 0 | D39: LF | E39: =$J$2*75 -> 75 | F39: 0 | G39: Add 5% for variance | I39: 0 | J39: 0 | K39: 0 | L39: 0 | N39: 0 | O39: 0 | P39: 0 | Q39: 2 | R39: 0 | S39: 0 | T39: 0 | V39: 0 | W39: 0 | X39: 0 | Y39: 0 | Z39: 0 | AA39: 0 | AB39: 0
A40: 22 | B40: Open Cut & Trench (1) 2" at 30" Minimum Depth of Cover | C40: =_xlfn.SWITCH($D$8,"Lateral",K40,"PON",L40,J40) -> 0 | D40: LF | E40: =$J$2*60 -> 60 | F40: 0 | G40: Add 5% for variance | I40: 0 | J40: 0 | K40: 0 | L40: 0 | N40: 0 | O40: 0 | P40: 0 | Q40: 1 | R40: 0 | S40: 0 | T40: 0 | V40: 0 | W40: 0 | X40: 0 | Y40: 0 | Z40: 0 | AA40: 0 | AB40: 0
A41: 23 | B41: Open Cut & Trench (2) 2" at 30" Minimum Depth of Cover | C41: =_xlfn.SWITCH($D$8,"Lateral",K41,"PON",L41,J41) -> 0 | D41: LF | E41: =$J$2*65 -> 65 | F41: 0 | G41: Add 5% for variance | I41: 0 | J41: 0 | K41: 0 | L41: 0 | N41: 0 | O41: 0 | P41: 0 | Q41: 2 | R41: 0 | S41: 0 | T41: 0 | V41: 0 | W41: 0 | X41: 0 | Y41: 0 | Z41: 0 | AA41: 0 | AB41: 0
A42: 24 | B42: Open Cut & Trench (3) 2" at 30" Minimum Depth of Cover | C42: =_xlfn.SWITCH($D$8,"Lateral",K42,"PON",L42,J42) -> 0 | D42: LF | E42: =$J$2*70 -> 70 | F42: 0 | G42: Add 5% for variance | I42: 0 | J42: 0 | K42: 0 | L42: 0 | N42: 0 | O42: 0 | P42: 0 | Q42: 3 | R42: 0 | S42: 0 | T42: 0 | V42: 0 | W42: 0 | X42: 0 | Y42: 0 | Z42: 0 | AA42: 0 | AB42: 0
A43: 25 | B43: Open Cut & Trench (4) 2" at 30" Minimum Depth of Cover | C43: =_xlfn.SWITCH($D$8,"Lateral",K43,"PON",L43,J43) -> 0 | D43: LF | E43: =$J$2*75 -> 75 | F43: 0 | G43: Add 5% for variance | I43: 0 | J43: 0 | K43: 0 | L43: 0 | N43: 0 | O43: 0 | P43: 0 | Q43: 4 | R43: 0 | S43: 0 | T43: 0 | V43: 0 | W43: 0 | X43: 0 | Y43: 0 | Z43: 0 | AA43: 0 | AB43: 0
A44: 26 | B44: Sleeve existing 4" conduit (3) 1 1/4" | C44: =_xlfn.SWITCH($D$8,"Lateral",K44,"PON",L44,J44) -> 0 | D44: LF | E44: =$J$2*11.96 -> 11.96 | F44: 0 | G44: Dependent on build | I44: 0 | J44: 0 | K44: 0 | L44: 0 | N44: 0 | O44: 0 | P44: 3 | Q44: 0 | R44: 0 | S44: 0 | T44: 0 | V44: 0 | W44: 0 | X44: 0 | Y44: 0 | Z44: 0 | AA44: 0 | AB44: 0
A45: 27 | B45: Pull (4) 2" sdr 11 conduits in 8" casing | C45: =_xlfn.SWITCH($D$8,"Lateral",K45,"PON",L45,J45) -> 0 | D45: FT | E45: =$J$2*15 -> 15 | F45: 0 | G45: Dependent on build (Some RR, DOT, and water crossings need steel casings) | I45: 0 | J45: 0 | K45: 0 | L45: 0 | N45: 0 | O45: 0 | P45: 0 | Q45: 4 | R45: 0 | S45: 0 | T45: 0 | V45: 0 | W45: 0 | X45: 0 | Y45: 0 | Z45: 0 | AA45: 0 | AB45: 0
A46: 28 | B46: Bore 6” Casing (Steel) | C46: =_xlfn.SWITCH($D$8,"Lateral",K46,"PON",L46,J46) -> 4 | D46: LF | E46: =$J$2*125 -> 125 | F46: =ROUND(IFERROR(C46*E46,0),2) -> 500 | G46: This would be for RR, DOT, Waterway or other crossing. Estimate is 0.025% of Buried total. | J46: =ROUNDUP(0.00025*$D$10,0) -> 4 | K46: =ROUNDUP(0.00025*$D$10,0) -> 4 | L46: 4 | N46: 0 | O46: 0 | P46: 0 | Q46: 0 | R46: 0 | S46: 0 | T46: 1 | V46: 0 | W46: 0 | X46: 0 | Y46: 0 | Z46: 0 | AA46: 0 | AB46: 4
A47: 29 | B47: Bore 6” Casing (PVC) | C47: =_xlfn.SWITCH($D$8,"Lateral",K47,"PON",L47,J47) -> 4 | D47: LF | E47: =$J$2*100 -> 100 | F47: =ROUND(IFERROR(C47*E47,0),2) -> 400 | G47: This would be for RR, DOT, Waterway or other crossing. Estimate is 0.025% of Buried total. | J47: =ROUNDUP(0.00025*$D$10,0) -> 4 | K47: 4 | L47: 4 | N47: 0 | O47: 0 | P47: 0 | Q47: 0 | R47: 0 | S47: 1 | T47: 0 | V47: =N47*$J47 -> 0 | W47: 0 | X47: 0 | Y47: 0 | Z47: 0 | AA47: 4 | AB47: 0
A48: 30 | B48: Bore 8” Casing (Steel) | C48: =_xlfn.SWITCH($D$8,"Lateral",K48,"PON",L48,J48) -> 4 | D48: LF | E48: =$J$2*125 -> 125 | F48: =ROUND(IFERROR(C48*E48,0),2) -> 500 | G48: This would be for RR, DOT, Waterway or other crossing. Estimate is 0.025% of Buried total. | J48: 4 | K48: 4 | L48: 4 | N48: 0 | O48: 0 | P48: 0 | Q48: 0 | R48: 0 | S48: 0 | T48: 1 | V48: 0 | W48: 0 | X48: 0 | Y48: 0 | Z48: 0 | AA48: 0 | AB48: 4
A49: 31 | B49: Bore 8” Casing (PVC) | C49: =_xlfn.SWITCH($D$8,"Lateral",K49,"PON",L49,J49) -> 4 | D49: LF | E49: =$J$2*100 -> 100 | F49: =ROUND(IFERROR(C49*E49,0),2) -> 400 | G49: This would be for RR, DOT, Waterway or other crossing. Estimate is 0.025% of Buried total. | J49: 4 | K49: 4 | L49: 4 | N49: 0 | O49: 0 | P49: 0 | Q49: 0 | R49: 0 | S49: 1 | T49: 0 | V49: 0 | W49: 0 | X49: 0 | Y49: 0 | Z49: 0 | AA49: 4 | AB49: 0
A50: 32 | B50: Deep Bore - Water Crossing | C50: =_xlfn.SWITCH($D$8,"Lateral",K50,"PON",L50,J50) -> 0 | D50: LF | E50: =$J$2*350 -> 350 | F50: =ROUND(IFERROR(C50*E50,0),2) -> 0 | G50: Dependent on build | J50: 0 | K50: 0 | L50: 0 | N50: 0 | O50: 0 | P50: 0 | Q50: 0 | R50: 0 | S50: 0 | T50: 0 | V50: 0 | W50: 0 | X50: 0 | Y50: 0 | Z50: 0 | AA50: 0 | AB50: 0
A51: 33 | B51: Install Muletape in New Conduit | C51: =_xlfn.SWITCH($D$8,"Lateral",K51,"PON",L51,J51) -> 31658 | D51: FT | E51: =$J$2*0.33 -> 0.33 | F51: =ROUND(IFERROR(C51*E51,0),2) -> 10447.14 | G51: Should match length of empty conduits (BB and PON twice as much as URD footage) | J51: =SUM($V$18:$AB$18) -> 31658 | K51: =SUM($V$18:$AB$18) -> 31658 | L51: =SUM($V$18:$AB$18) -> 31658
A52: 34 | B52: Bore Rock Adder | C52: =_xlfn.SWITCH($D$8,"Lateral",K52,"PON",L52,J52) -> 0 | D52: LF | E52: =INDEX('UNIT PRICE TABLE'!$A$1:$G$58,MATCH(B52,'UNIT PRICE TABLE'!$A$1:$A$58,0),MATCH($D$12,Region,0)+1)*$J$2 -> 58.5 | F52: 0 | G52: *Get updated pricing from Clayton first* Dependent on build, Question for customer in data collection | J52: =ROUNDUP($F$13*$D$10,0) -> 0 | K52: =ROUNDUP($F$13*$D$10,0) -> 0 | L52: =ROUNDUP($F$13*$D$10,0) -> 0
A53: 35 | B53: Trench Rock Adder | C53: =_xlfn.SWITCH($D$8,"Lateral",K53,"PON",L53,J53) -> 0 | D53: LF | E53: =$J$2*53.85 -> 53.85 | F53: 0 | G53: Dependent on build, Question for customer in data collection | J53: 0 | K53: 0 | L53: 0
A54: 36 | B54: Install #12 AWG Insulated Tracer Wire | C54: =_xlfn.SWITCH($D$8,"Lateral",K54,"PON",L54,J54) -> 14063 | D54: LF | E54: =INDEX('UNIT PRICE TABLE'!$A$1:$G$58,MATCH(B54,'UNIT PRICE TABLE'!$A$1:$A$58,0),MATCH($D$12,Region,0)+1)*$J$2 -> 0.33 | F54: 4640.79 | G54: should equal underground footage | J54: =ROUNDUP($D$10*(1+$F$12),0) -> 14063 | K54: =ROUNDUP($D$10*(1+$F$12),0) -> 14063 | L54: =ROUNDUP($D$10*(1+$F$12),0) -> 14063
A55: 37 | B55: Install 5/8"x8' Copper Clad Ground Rod | C55: =_xlfn.SWITCH($D$8,"Lateral",K55,"PON",L55,J55) -> 8 | D55: EA | E55: =$J$2*25 -> 25 | F55: 200 | G55: Get qtys from design, if not specified assume 1 ever 2,000ft | J55: =ROUNDUP(($D$10*(1+$F$12))/2000,0) -> 8 | K55: =ROUNDUP(($D$10*(1+$F$12))/2000,0) -> 8 | L55: =ROUNDUP(($D$10*(1+$F$12))/2000,0) -> 8
A56: 38 | B56: Install 3.5" Dia PVC Round Marker Posts with Orange Dome Top | C56: =_xlfn.SWITCH($D$8,"Lateral",K56,"PON",L56,J56) -> 43 | D56: EA | E56: =INDEX('UNIT PRICE TABLE'!$A$1:$G$58,MATCH(B56,'UNIT PRICE TABLE'!$A$1:$A$58,0),MATCH($D$12,Region,0)+1)*$J$2 -> 45 | F56: 1935 | G56: Get qtys from design, can estimate 75% of handholes | J56: =ROUNDUP(J70*0.75,0) -> 18 | K56: =ROUNDUP(K69*0.75,0) -> 26 | L56: =ROUNDUP(L69*0.75,0) -> 43
A57: 39 | B57: Install 3.5" Dia PVC Round Marker Posts with Orange Dome Top with Test Station | C57: =_xlfn.SWITCH($D$8,"Lateral",K57,"PON",L57,J57) -> 15 | D57: EA | E57: =INDEX('UNIT PRICE TABLE'!$A$1:$G$58,MATCH(B57,'UNIT PRICE TABLE'!$A$1:$A$58,0),MATCH($D$12,Region,0)+1)*$J$2 -> 65 | F57: 975 | G57: Get qtys from design, can estimate 25% of handholes | J57: =ROUNDUP(J70*0.25,0) -> 6 | K57: =ROUNDUP(K69*0.25,0) -> 9 | L57: =ROUNDUP(L69*0.25,0) -> 15
A58: 40 | B58: Install RFID Ball/Peg Markers | C58: =_xlfn.SWITCH($D$8,"Lateral",K58,"PON",L58,J58) -> 0 | D58: EA | E58: =$J$2*30 -> 30 | F58: 0 | G58: Dependent on build, Question for customer in data collection | J58: 0 | K58: 0 | L58: 0
A59: 41 | B59: Install RFID Rope | C59: =_xlfn.SWITCH($D$8,"Lateral",K59,"PON",L59,J59) -> 0 | D59: LF | E59: =$J$2*1.5 -> 1.5 | F59: 0 | G59: Dependent on build, Question for customer in data collection | J59: 0 | K59: 0 | L59: 0
A60: 42 | B60: Proof Existing Conduit - any size | C60: =_xlfn.SWITCH($D$8,"Lateral",K60,"PON",L60,J60) -> 0 | D60: LF | E60: =$J$2*1.54 -> 1.54 | F60: 0 | G60: Dependent on build, Question for customer in data collection | J60: 0 | K60: 0 | L60: 0
A61: 43 | B61: Rod Existing Conduit and Install Pull Tape | C61: =_xlfn.SWITCH($D$8,"Lateral",K61,"PON",L61,J61) -> 0 | D61: LF | E61: =$J$2*1.15 -> 1.15 | F61: 0 | G61: Dependent on build, Question for customer in data collection | J61: 0 | K61: 0 | L61: 0
A62: 44 | B62: Remove existing cable - i.e. coax/twisted pair in street light conduits to replace with fiber | C62: =_xlfn.SWITCH($D$8,"Lateral",K62,"PON",L62,J62) -> 0 | D62: LF | E62: =$J$2*1.92 -> 1.92 | F62: 0 | G62: Dependent on build, Question for customer in data collection | J62: 0 | K62: 0 | L62: 0
A63: 45 | B63: Installation, Underground Fiber Cable - Including Slack (2ct Fiber) | C63: =_xlfn.SWITCH($D$8,"Lateral",K63,"PON",L63,J63) -> 0 | D63: LF | E63: =$J$2*1 -> 1 | F63: 0 | G63: Add 5% for variance | J63: 0 | K63: 0 | L63: 0
A64: 46 | B64: Installation, Underground Fiber Cable - Including Slack (All other fiber) | C64: =_xlfn.SWITCH($D$8,"Lateral",K64,"PON",L64,J64) -> 18338 | D64: LF | E64: =INDEX('UNIT PRICE TABLE'!$A$1:$G$58,MATCH(B64,'UNIT PRICE TABLE'!$A$1:$A$58,0),MATCH($D$12,Region,0)+1)*$J$2 -> 1.25 | F64: 22922.5 | G64: *Get updated pricing from Clayton first* underground footage & 100' slack from Ring Cuts and 55' for Butt splices (Estimated as URD footage + 75' per HH) | J64: =ROUNDUP(($D$10*(1+$F$12))+(J70*75),0) -> 15788 | K64: =ROUNDUP(($D$10*(1+$F$12))+(K69*75),0) -> 16613 | L64: =ROUNDUP(($D$10*(1+$F$12))+(L69*75),0) -> 18338
A65: 47 | B65: Installation, MST in Pedestal | C65: =_xlfn.SWITCH($D$8,"Lateral",K65,"PON",L65,J65) -> 0 | D65: EA | E65: =$J$2*50 -> 50 | F65: 0 | G65: Get qtys from design | J65: 0 | K65: 0 | L65: =$L$303 -> 0
A66: 48 | B66: Installation, Pedestal | C66: =_xlfn.SWITCH($D$8,"Lateral",K66,"PON",L66,J66) -> 0 | D66: EA | E66: =$J$2*60 -> 60 | F66: 0 | G66: Get qtys from design | J66: 0 | K66: 0 | L66: =$L$303 -> 0
A67: 49 | B67: Installation, Drop Vault, 12" X 12" | C67: =_xlfn.SWITCH($D$8,"Lateral",K67,"PON",L67,J67) -> 0 | D67: EA | E67: =ROUNDUP($E$69*0.75,0) -> 263 | F67: 0 | G67: Get qtys from design (AKA "Flowerpots") | J67: 0 | K67: 0 | L67: =IFERROR(ROUNDUP((($D$10/($D$10+$D$11))*$F$8)/4,0),0) -> 0
A68: 50 | B68: Installation, Small Vault, 17” x 30” | C68: =_xlfn.SWITCH($D$8,"Lateral",K68,"PON",L68,J68) -> 0 | D68: EA | E68: =$E$69 -> 350 | F68: 0 | G68: Get qtys from design | J68: 0 | K68: 0 | L68: 0
A69: 51 | B69: Installation, Vault 24" x 36" | C69: =_xlfn.SWITCH($D$8,"Lateral",K69,"PON",L69,J69) -> 57 | D69: EA | E69: =INDEX('UNIT PRICE TABLE'!$A$1:$G$58,MATCH(B69,'UNIT PRICE TABLE'!$A$1:$A$58,0),MATCH($D$12,Region,0)+1)*$J$2 -> 350 | F69: 19950 | G69: *Get updated pricing from Clayton first* BB every 600', Lateral every 400', PON every 250' | J69: 0 | K69: =ROUNDUP($D$10/400,0) -> 34 | L69: =ROUNDUP(($D$10*(1+$F$12))/250,0) -> 57
A70: 52 | B70: Installation, Large Vault 30" x 48" | C70: =_xlfn.SWITCH($D$8,"Lateral",K70,"PON",L70,J70) -> 0 | D70: EA | E70: =INDEX('UNIT PRICE TABLE'!$A$1:$G$58,MATCH(B70,'UNIT PRICE TABLE'!$A$1:$A$58,0),MATCH($D$12,Region,0)+1)*$J$2 -> 500 | F70: 0 | G70: *Get updated pricing from Clayton first* Get qtys from design | J70: =ROUNDUP($D$10/600,0) -> 23 | K70: 0 | L70: 0
A71: 53 | B71: Installation, Extra Large Vault 48" x 60" | C71: =_xlfn.SWITCH($D$8,"Lateral",K71,"PON",L71,J71) -> 0 | D71: EA | E71: =$J$2*1750 -> 1750 | F71: 0 | G71: Get qtys from design | J71: 0 | K71: 0 | L71: 0
A72: 54 | B72: Install 4'x4'x4' Split Concrete Manhole | C72: =_xlfn.SWITCH($D$8,"Lateral",K72,"PON",L72,J72) -> 0 | D72: EA | E72: =$J$2*6500 -> 6500 | F72: 0 | G72: Get qtys from design | J72: 0 | K72: 0 | L72: 0
A73: 55 | B73: Remove and Replace Handhole - including fixing sweeps into HH | C73: =_xlfn.SWITCH($D$8,"Lateral",K73,"PON",L73,J73) -> 0 | D73: EA | E73: =$J$2*3461.54 -> 3461.54 | G73: Get qtys from design
A74: 56 | B74: Prep and Pour Concrete Pad for POP Site | C74: =_xlfn.SWITCH($D$8,"Lateral",K74,"PON",L74,J74) -> 0 | D74: EA | E74: =$J$2*10000 -> 10000 | F74: =ROUND(IFERROR(C74*E74,0),2) -> 0 | G74: Get qtys from design | J74: 0 | K74: 0 | L74: 0
A75: 57 | B75: Sawcut, Remove and Replace Asphalt 6" Thick | C75: =_xlfn.SWITCH($D$8,"Lateral",K75,"PON",L75,J75) -> 704 | D75: SqrFt | E75: =$J$2*23.08 -> 23.08 | F75: =ROUND(IFERROR(C75*E75,0),2) -> 16248.32 | G75: Use Col I to adjust percentage. 15% for Urban areas and 1% for rural are good high level estimates | I75: 0.05 | J75: =ROUNDUP(($D$10*(1+$F$12))*$I$75,0) -> 704 | K75: =ROUNDUP(($D$10*(1+$F$12))*$I$75,0) -> 704 | L75: 704
A76: 58 | B76: Sawcut, Remove and Replace Concrete 6" Thick | C76: =_xlfn.SWITCH($D$8,"Lateral",K76,"PON",L76,J76) -> 704 | D76: SqrFt | E76: =$J$2*26.69 -> 26.69 | F76: =ROUND(IFERROR(C76*E76,0),2) -> 18789.76 | G76: Use Col I to adjust percentage. 25% for Urban areas and 1% for rural are good high level estimates | I76: 0.05 | J76: =ROUNDUP(($D$10*(1+$F$12))*$I$76,0) -> 704 | K76: =ROUNDUP(($D$10*(1+$F$12))*$I$76,0) -> 704 | L76: =ROUNDUP(($D$10*(1+$F$12))*$I$76,0) -> 704
A77: 59 | B77: Remove and Replace Brick Pavers | C77: =_xlfn.SWITCH($D$8,"Lateral",K77,"PON",L77,J77) -> 0 | D77: SqrFt | E77: =$J$2*38.46 -> 38.46 | F77: 0 | G77: Get qtys from design | J77: 0 | K77: 0 | L77: 0
A78: 60 | C78: 0 | F78: 0
A79: 61 | C79: 0 | F79: 0
A80: 62 | C80: 0 | F80: 0
A81: 63 | C81: 0 | F81: 0
A82: 64 | C82: 0 | F82: 0
A83: 65 | C83: 0 | F83: 0
A84: 66 | C84: 0 | F84: 0
A85: =A84+1 -> 67 | C85: 0 | F85: 0
B86: =B18 & " LABOR TOTAL" -> UNDERGROUND - BURIED LABOR TOTAL | F86: =SUM(F19:F85) -> 281396.8
B88: AERIAL -STRAND/LASH
A89: =A85+1 -> 68 | B89: Lash/Mount Closure | C89: =_xlfn.SWITCH($D$8,"Lateral",K89,"PON",L89,J89) -> 0 | D89: EA | E89: =$J$2*175 -> 175 | F89: =ROUND(IFERROR(C89*E89,0),2) -> 0 | G89: One per closure | J89: =IFERROR(ROUNDUP(J$157*($D$11/($D$10+$D$11)),0),0) -> 0 | K89: =IFERROR(ROUNDUP(K$157*($D$11/($D$10+$D$11)),0),0) -> 0 | L89: 0
A90: =A89+1 -> 69 | B90: Bond Strand/Guy to pole ground + materials | C90: =_xlfn.SWITCH($D$8,"Lateral",K90,"PON",L90,J90) ->  | D90: EA | E90: =$J$2*250 -> 250 | F90: 0 | G90: Bonding will be done at the first, every 5th, last poles, and all poles with a vertical. (Unless power company uses other standard). Estimated as total aerial footage / 180 / 4 | J90: =ROUNDUP(($D$11/180)/4,0)*$J$6 ->  | K90: =ROUNDUP(($D$11/180)/4,0)*$J$6 ->  | L90: =ROUNDUP(($D$11/180)/4,0)*$J$6 -> 
A91: 70 | B91: Install Strand | C91: =_xlfn.SWITCH($D$8,"Lateral",K91,"PON",L91,J91) ->  | D91: FT | E91: =INDEX('UNIT PRICE TABLE'!$A$1:$G$58,MATCH(B91,'UNIT PRICE TABLE'!$A$1:$A$58,0),MATCH($D$12,Region,0)+1)*$J$2 -> 1.8 | F91: 0 | G91: *Get updated pricing from Clayton first* Match aerial footage - quote from contractor shall include attachement hardware | J91: =$D$11*$J$6 ->  | K91: =$D$11*$J$6 ->  | L91: =$D$11*$J$6 -> 
A92: 71 | B92: Install Snow Shoes | C92: =_xlfn.SWITCH($D$8,"Lateral",K92,"PON",L92,J92) ->  | D92: EA | E92: =$J$2*160 -> 160 | F92: 0 | G92: formula is for 2 for every slack location | J92: =ROUNDUP((J93/100)*2,0) ->  | K92: =ROUNDUP((K93/100)*2,0) ->  | L92: =ROUNDUP((L93/100)*2,0) -> 
A93: 72 | B93: Install Aerial Slack | C93: =_xlfn.SWITCH($D$8,"Lateral",K93,"PON",L93,J93) ->  | D93: EA | E93: =$E$94 -> 2.34 | F93: 0 | G93: in this model - it assumes 100' of slack for every 1000' of aerial installation | J93: =ROUNDUP(($D$11/1000)*100,0) ->  | K93: =ROUNDUP(($D$11/1000)*100,0) ->  | L93: =ROUNDUP(($D$11/1000)*100,0) -> 
A94: 73 | B94: Install / Lash Aerial Cable | C94: =_xlfn.SWITCH($D$8,"Lateral",K94,"PON",L94,J94) ->  | D94: FT | E94: =INDEX('UNIT PRICE TABLE'!$A$1:$G$58,MATCH(B94,'UNIT PRICE TABLE'!$A$1:$A$58,0),MATCH($D$12,Region,0)+1)*$J$2 -> 2.34 | F94: 0 | G94: *Get updated pricing from Clayton first* Match aerial footage | J94: =$D$11*$J$6 ->  | K94: =$D$11*$J$6 ->  | L94: =$D$11*$J$6 -> 
A95: 74 | B95: Tree Trimming | C95: =_xlfn.SWITCH($D$8,"Lateral",K95,"PON",L95,J95) ->  | D95: FT | E95: =INDEX('UNIT PRICE TABLE'!$A$1:$G$58,MATCH(B95,'UNIT PRICE TABLE'!$A$1:$A$58,0),MATCH($D$12,Region,0)+1)*$J$2 -> 4.75 | F95: 0 | G95: *Get updated pricing from Clayton first* Try and ID percentage. If unknown assume 10% of route needs tree trimming | J95: =ROUNDUP($D$11*0.1,0) ->  | K95: =ROUNDUP($D$11*0.1,0) ->  | L95: =ROUNDUP($D$11*0.1,0) -> 
A96: 75 | B96: Install Pole Risers | C96: =_xlfn.SWITCH($D$8,"Lateral",K96,"PON",L96,J96) ->  | D96: EA | E96: =$J$2*308 -> 308 | F96: 0 | G96: assume 5% of poles - adjust as needed | J96: =ROUNDUP(($D$11/180)*0.05,0) ->  | K96: =ROUNDUP(($D$11/180)*0.05,0) ->  | L96: =ROUNDUP(($D$11/180)*0.05,0) -> 
A97: 76 | B97: Install Down Guy & Anchors | C97: =_xlfn.SWITCH($D$8,"Lateral",K97,"PON",L97,J97) ->  | D97: EA | E97: =$J$2*385 -> 385 | F97: 0 | G97: assume 15% of poles - adjust as needed | J97: =ROUNDUP(($D$11/180)*0.15,0) ->  | K97: =ROUNDUP(($D$11/180)*0.15,0) ->  | L97: =ROUNDUP(($D$11/180)*0.15,0) -> 
A98: 77 | B98: Pole Transfer / Make Ready (Straight Through) | C98: =_xlfn.SWITCH($D$8,"Lateral",K98,"PON",L98,J98) ->  | D98: EA | E98: =$J$2*193 -> 193 | F98: 0 | G98: assume 3% of poles - adjust as needed - This would be cost from MRE to move existing Comm. Price will vary depending on who is doing transfers/moves | J98: =ROUNDUP(($D$11/180)*0.033,0) -> 
A99: 78 | B99: Pole Transfer / Make Ready (Dead-end) | C99: =_xlfn.SWITCH($D$8,"Lateral",K99,"PON",L99,J99) ->  | D99: EA | E99: =$J$2*170 -> 170 | F99: 0 | G99: assume 3% of poles - adjust as needed - This would be cost from MRE to move existing Comm. Price will vary depending on who is doing transfers/moves
A100: 79 | B100: Pole Transfer / Make Ready (Double Dead-end) | C100: =_xlfn.SWITCH($D$8,"Lateral",K100,"PON",L100,J100) ->  | D100: EA | E100: =$J$2*461 -> 461 | F100: 0 | G100: assume 3% of poles - adjust as needed - This would be cost from MRE to move existing Comm. Price will vary depending on who is doing transfers/moves
A101: 80 | C101: 0 | F101: 0
A102: 81 | C102: 0 | F102: 0
A103: 82 | C103: 0 | F103: 0
A104: 83 | C104: 0 | F104: 0
A105: 84 | C105: 0 | F105: 0
A106: 85 | C106: 0 | F106: 0
A107: 86 | C107: 0 | F107: 0
A108: 87 | C108: 0 | F108: 0
A109: 88 | C109: 0 | F109: 0
A110: 89 | C110: 0 | F110: 0
B111: =B88 & " LABOR TOTAL" -> AERIAL -STRAND/LASH LABOR TOTAL | F111: =SUM(F89:F110) -> 0
B113: AERIAL - ADSS
A114: =A110+1 -> 90 | B114: Install Fiber (ADSS) | C114: =_xlfn.SWITCH($D$8,"Lateral",K114,"PON",L114,J114) ->  | D114: FT | E114: =INDEX('UNIT PRICE TABLE'!$A$1:$G$58,MATCH(B114,'UNIT PRICE TABLE'!$A$1:$A$58,0),MATCH($D$12,Region,0)+1)*$J$2 -> 3.8 | F114: =ROUND(IFERROR(C114*E114,0),2) -> 0 | G114: *Get updated pricing from Clayton first* Get qtys from design | J114: =$D$11*$J$5 ->  | K114: =$D$11*$J$5 ->  | L114: =$D$11*1.25*$J$5 -> 
A115: =A114+1 -> 91 | B115: Pole attachment hardware (H bracket) | C115: =_xlfn.SWITCH($D$8,"Lateral",K115,"PON",L115,J115) -> 0 | D115: EA | E115: =$J$2*104 -> 104 | F115: 0 | G115: Assumes one per Closure | J115: =IFERROR(ROUNDUP(J$157*($D$11/($D$10+$D$11)),0)*$J$5,0) -> 0 | K115: =IFERROR(ROUNDUP(K$157*($D$11/($D$10+$D$11)),0)*$J$5,0) -> 0 | L115: =IFERROR(ROUNDUP(L$157*($D$11/($D$10+$D$11)),0)*$J$5,0) -> 0
A116: =A115+1 -> 92 | B116: Pole attachment hardware (Dead-end) | C116: =_xlfn.SWITCH($D$8,"Lateral",K116,"PON",L116,J116) ->  | D116: EA | E116: =$J$2*104 -> 104 | F116: 0 | G116: BB&Lat Assumes 25% poles with a 20% extra, PON Assumes 40% with 36% extra | J116: =ROUNDUP(((($D$11/300)*0.25)*1.2)*2,0)*$J$5 ->  | K116: =ROUNDUP(((($D$11/300)*0.25)*1.2)*2,0)*$J$5 ->  | L116: =ROUNDUP(((($D$11/300)*0.4)*1.36)*2,0)*$J$5 -> 
A117: 93 | B117: Pole attachment hardware (Tangent) | C117: =_xlfn.SWITCH($D$8,"Lateral",K117,"PON",L117,J117) ->  | D117: EA | E117: =$J$2*104 -> 104 | F117: 0 | G117: BB&Lat Assumes 75% poles with a 20% extra, PON Assumes 60% with 36% extra | J117: =ROUNDUP(((($D$11/300)*0.75)*1.2),0)*$J$5 ->  | K117: =ROUNDUP(((($D$11/300)*0.75)*1.2),0)*$J$5 ->  | L117: =ROUNDUP(((($D$11/300)*0.6)*1.36),0)*$J$5 -> 
A118: 94 | B118: Install U-guard for pole mounted enclosure | C118: =_xlfn.SWITCH($D$8,"Lateral",K118,"PON",L118,J118) -> 0 | D118: EA | E118: =$J$2*50 -> 50 | F118: 0 | G118: Assumes one per Closure | J118: =IFERROR(ROUNDUP(J$157*($D$11/($D$10+$D$11)),0)*$J$5,0) -> 0 | K118: =IFERROR(ROUNDUP(K$157*($D$11/($D$10+$D$11)),0)*$J$5,0) -> 0 | L118: =IFERROR(ROUNDUP(L$157*($D$11/($D$10+$D$11)),0)*$J$5,0) -> 0
A119: 95 | C119: 0 | F119: 0
A120: 96 | C120: 0 | F120: 0
A121: 97 | C121: 0 | F121: 0
A122: 98 | C122: 0 | F122: 0
A123: 99 | C123: 0 | F123: 0
A124: 100 | C124: 0 | F124: 0
A125: 101 | C125: 0 | F125: 0
A126: 102 | C126: 0 | F126: 0
A127: 103 | C127: 0 | F127: 0
A128: 104 | C128: 0 | F128: 0
B129: =B113 & " LABOR TOTAL" -> AERIAL - ADSS LABOR TOTAL | F129: =SUM(F114:F128) -> 0
B131: WIRELESS
A132: =A128+1 -> 105 | C132: 0 | D132: EA | F132: =ROUND(IFERROR(C132*E132,0),2) -> 0
A133: =A132+1 -> 106 | C133: 0 | D133: EA | F133: 0
A134: =A133+1 -> 107 | C134: 0 | D134: EA | F134: 0
A135: 108 | C135: 0 | D135: EA | F135: 0
A136: 109 | C136: 0 | D136: EA | F136: 0
A137: 110 | C137: 0 | D137: EA | F137: 0
A138: 111 | C138: 0 | D138: EA | F138: 0
A139: 112 | C139: 0 | D139: EA | F139: 0
A140: 113 | C140: 0 | D140: EA | F140: 0
A141: 114 | C141: 0 | D141: EA | F141: 0
A142: 115 | C142: 0 | D142: EA | F142: 0
A143: 116 | C143: 0 | D143: EA | F143: 0
A144: 117 | C144: 0 | F144: 0
A145: 118 | C145: 0 | F145: 0
A146: 119 | C146: 0 | F146: 0
A147: 120 | C147: 0 | F147: 0
A148: 121 | C148: 0 | F148: 0
A149: 122 | C149: 0 | F149: 0
A150: 123 | C150: 0 | F150: 0
A151: 124 | C151: 0 | F151: 0
A152: 125 | C152: 0 | F152: 0
A153: 126 | C153: 0 | F153: 0
B154: =B131 & " LABOR TOTAL" -> WIRELESS LABOR TOTAL | F154: =SUM(F132:F153) -> 0
B156: SPLICING
A157: =A153+1 -> 127 | B157: Install New Splice Case & Prep Cable | C157: =_xlfn.SWITCH($D$8,"Lateral",K157,"PON",L157,J157) -> 3 | D157: EA | E157: =INDEX('UNIT PRICE TABLE'!$A$1:$G$58,MATCH(B157,'UNIT PRICE TABLE'!$A$1:$A$58,0),MATCH($D$12,Region,0)+1)*$J$2 -> 550 | F157: =ROUND(IFERROR(C157*E157,0),2) -> 1650 | G157: *Get updated pricing from Clayton first* BB and Laterals estimate one every 5000', PON one every 8 customers | J157: =ROUNDUP((($D$10*(1+$F$12))+$D$11+J$93)/5000,0) ->  | K157: =ROUNDUP((($D$10*(1+$F$12))+$D$11+K$93)/5000,0) ->  | L157: =ROUNDUP($F$8/8,0) -> 3
A158: =A157+1 -> 128 | B158: Re-enter splice closure | C158: =_xlfn.SWITCH($D$8,"Lateral",K158,"PON",L158,J158) -> 0 | D158: EA | E158: =$J$2*200 -> 200 | F158: 0 | G158: Get qtys from design | J158: 0 | K158: 0 | L158: 0
A159: =A158+1 -> 129 | B159: Ground Splice Case + Materials | C159: =_xlfn.SWITCH($D$8,"Lateral",K159,"PON",L159,J159) -> 3 | D159: EA | E159: =$J$2*50 -> 50 | F159: 150 | G159: If using armored cable all splice cases must be grounded. Dielectric no need grounding. For HLD estimates assume each needs grounding | J159: =J157 ->  | K159: =K157 ->  | L159: =L157 -> 3
A160: 130 | B160: Splicing, Fusion, Single Fiber | C160: =_xlfn.SWITCH($D$8,"Lateral",K160,"PON",L160,J160) -> 352 | D160: EA | E160: =INDEX('UNIT PRICE TABLE'!$A$1:$G$58,MATCH(B160,'UNIT PRICE TABLE'!$A$1:$A$58,0),MATCH($D$12,Region,0)+1)*$J$2 -> 26 | F160: 9152 | G160: *Get updated pricing from Clayton first* BB/Lateral assume butt splice per closure using AVG cable size, PON 2x number of premise + cabinets fully spliced + MST splices. | I160: 1 | J160: =(J159*$N$218)*I160 ->  | K160: =(K159*$N$218)*I160 ->  | L160: =($F$8*2)+(L179*(288+24))+($L$302*$F$8) -> 352
A161: 131 | B161: Splicing Fusion, Single fiber Pigtail at panel | C161: =_xlfn.SWITCH($D$8,"Lateral",K161,"PON",L161,J161) -> 216 | D161: EA | E161: =E160 -> 26 | F161: 5616 | G161: Assume Patch Panels fully spliced. Laterals assume 2 splices per panel | J161: =(J181*$N$218) ->  | K161: =$F$8*2 -> 40 | L161: =(L181*$N$218) -> 216
A162: 132 | B162: Splicing, Mass Fusion, 12 Fiber Ribbon | C162: =_xlfn.SWITCH($D$8,"Lateral",K162,"PON",L162,J162) -> 0 | D162: RIBBON | E162: =$J$2*200 -> 200 | F162: 0 | G162: Can use single splice estimate if Ribbon fiber is being used. Calcs assume no ribbon | J162: 0 | K162: 0 | L162: 0
A163: 133 | B163: Testing, OTDR, Uni-Directional, Power Meter Testing | C163: =_xlfn.SWITCH($D$8,"Lateral",K163,"PON",L163,J163) -> 312 | D163: EA | E163: =INDEX('UNIT PRICE TABLE'!$A$1:$G$58,MATCH(B163,'UNIT PRICE TABLE'!$A$1:$A$58,0),MATCH($D$12,Region,0)+1)*$J$2 -> 7.5 | F163: 2340 | G163: *Get updated pricing from Clayton first* None for BB, Laterals 24 per panel, PON one test per cabinet port | J163: 0 | K163: =$N$218 -> 108 | L163: =L179*(288+24) -> 312
A164: 134 | B164: Testing, OTDR, Bi-Directional, Power Meter Testing | C164: =_xlfn.SWITCH($D$8,"Lateral",K164,"PON",L164,J164) -> 216 | D164: EA | E164: =INDEX('UNIT PRICE TABLE'!$A$1:$G$58,MATCH(B164,'UNIT PRICE TABLE'!$A$1:$A$58,0),MATCH($D$12,Region,0)+1)*$J$2 -> 10 | F164: 2160 | G164: *Get updated pricing from Clayton first* None for Laterals, BB and PON assume Panels * 432 | J164: =$N$218*J181 ->  | K164: 0 | L164: =$N$218*L181 -> 216
A165: 135 | B165: Testing existing cables Bi-Directional | C165: 0 | D165: EA | E165: =$J$2*20 -> 20 | F165: 0
A166: 136 | B166: Document existing splicing | C166: 0 | D166: EA | E166: =$J$2*27 -> 27 | F166: 0
A167: 137 | B167: Reel testing | C167: =_xlfn.SWITCH($D$8,"Lateral",K167,"PON",L167,J167) ->  | D167: EA | E167: =E160 -> 26 | F167: 0 | G167: Assumes 10,000ft reels and uses breakdown of fiber counds in material below. Fully tests all fibers in reels | J167: =P218 ->  | K167: =Q218 ->  | L167: =R218 -> 
A168: 138 | C168: 0 | F168: 0
A169: 139 | C169: 0 | F169: 0
A170: 140 | C170: 0 | F170: 0
A171: 141 | C171: 0 | F171: 0
A172: 142 | C172: 0 | F172: 0
A173: 143 | C173: 0 | F173: 0
A174: 144 | C174: 0 | F174: 0
B175: =B156 & " LABOR TOTAL" -> SPLICING LABOR TOTAL | F175: =SUM(F157:F174) -> 21068
B177: PATCH PANELS AND CABINETS
A178: =A174+1 -> 145 | B178: Install Outdoor Powered Cabinet + Site prep and Concrete Pad | C178: 0 | D178: EA | E178: =$J$2*6000 -> 6000 | F178: =ROUND(IFERROR(C178*E178,0),2) -> 0 | G178: Only added for PON deployments, assumes 1 small active cabinet per 3000 HHP | J178: 0 | K178: 0 | L178: =ROUNDDOWN($F$8/3000,0)+1 -> 1
A179: =A178+1 -> 146 | B179: Install Pad mounted FDH Splitter Cabinet + Site prep and Prefab Vault | C179: 1 | D179: EA | E179: 2500 | F179: 2500 | G179: None for BB and Lateral, PON assume one per 200 Customers | J179: 0 | K179: 0 | L179: =ROUNDUP(SUM(F9:F11)/200,0) -> 1
A180: =A179+1 -> 147 | B180: Install Pole mounted FDH Splitter Cabinet | C180: =_xlfn.SWITCH($D$8,"Lateral",K180,"PON",L180,J180) -> 0 | D180: EA | E180: 2500 | F180: 0 | G180: Can match regular if using pole mount cabinets | J180: 0 | K180: 0 | L180: 0
A181: 148 | B181: Install rack mounted patch panel (Any Size) and tails | C181: 0 | D181: EA | E181: =$J$2*500 -> 500 | F181: 0 | G181: Assumes (2) pannels per 25miles on BB, (1) pannel customer on Lateral, and (2) pannels per 10,000 customers on PON | J181: =ROUNDUP(($D$10+$D$11)/132000,0)*2 ->  | K181: =$F$8 -> 20 | L181: =ROUNDUP($F$8/10000,0)*2 -> 2
A182: 149 | B182: Install Wall Mount Fiber Enclosure | C182: =_xlfn.SWITCH($D$8,"Lateral",K182,"PON",L182,J182) -> 0 | D182: EA | E182: =$J$2*500 -> 500 | F182: 0 | G182: Get qtys from design | J182: 0 | K182: 0 | L182: 0
A183: 150 | B183: Install 7ft Rack for patch panels | C183: =_xlfn.SWITCH($D$8,"Lateral",K183,"PON",L183,J183) -> 0 | D183: EA | E183: =$J$2*1000 -> 1000 | F183: 0 | G183: Get qtys from design | J183: 0 | K183: 0 | L183: 0
A184: 151 | C184: 0 | F184: 0
A185: 152 | C185: 0 | F185: 0
A186: 153 | C186: 0 | F186: 0
A187: 154 | C187: 0 | F187: 0
A188: 155 | C188: 0 | F188: 0
A189: 156 | C189: 0 | F189: 0
A190: 157 | C190: 0 | F190: 0
A191: 158 | C191: 0 | F191: 0
A192: 159 | C192: 0 | F192: 0
A193: 160 | C193: 0 | F193: 0
B194: =B177 & " LABOR TOTAL" -> PATCH PANELS AND CABINETS LABOR TOTAL | F194: =SUM(F178:F193) -> 2500
B196: GENERAL
A197: =A193+1 -> 161 | B197: Pull fiber through building | C197: =_xlfn.SWITCH($D$8,"Lateral",K197,"PON",L197,J197) -> 0 | D197: FT | E197: =$J$2*2.5 -> 2.5 | F197: =IFERROR(C197*E197,0) -> 0 | G197: Ft of fiber that needs to be pulled into a building. Qtys from design | K197: =$F$8*100 -> 2000
A198: =A197+1 -> 162 | B198: Install 2" Electric Metal Tubing (EMT) | C198: =_xlfn.SWITCH($D$8,"Lateral",K198,"PON",L198,J198) -> 0 | D198: LF | E198: =$J$2*2.5 -> 2.5 | F198: =ROUND(IFERROR(C198*E198,0),2) -> 0 | G198: Used if any Electrical conduit needs to be installed
A199: =A198+1 -> 163 | B199: 4" Core Bore | C199: =_xlfn.SWITCH($D$8,"Lateral",K199,"PON",L199,J199) -> 0 | D199: EA | E199: =$J$2*450 -> 450 | F199: 0 | G199: If any buildings need to be drilled to for fiber/conduit entrance | K199: =$F$8 -> 20
A200: 164 | B200: 2" Building Riser with LB - Up to 10' | C200: =_xlfn.SWITCH($D$8,"Lateral",K200,"PON",L200,J200) -> 0 | D200: EA | E200: =$J$2*1000 -> 1000 | F200: 0 | G200: If any building entracnes needed | K200: =$F$8 -> 20
A201: 165 | B201: Install Nema Enclosure | C201: =_xlfn.SWITCH($D$8,"Lateral",K201,"PON",L201,J201) -> 0 | D201: EA | E201: =$J$2*600 -> 600 | F201: 0 | G201: If any generic enclosures are needed to be installed | K201: =$F$8 -> 20
A202: 166 | C202: 0 | F202: 0
A203: 167 | C203: 0 | F203: 0
A204: 168 | C204: 0 | F204: 0
A205: 169 | C205: 0 | F205: 0
A206: 170 | C206: 0 | F206: 0
... 285 more rows

Sheet DIST-005
A1: [CLIENT NAME] - FIBER CONSTRUCTION PROJECT - ATTACHMENT X: PRICING PROPOSAL FORM | I1: =MID(CELL("filename",A1),FIND("]",CELL("filename",A1))+1,256) -> DIST-005
B2: Contractor: | I2: =IFERROR(IF(D14>=0,D14,0),0) -> 0 | J2: =1+(L2) -> 1 | L2: =IF(I2<10,I2,0) -> 0
B3: Contact Name/Position: | I3: 0.3 | J3: =IF($D$14="Urban",$K$3,0.01) -> 0.01 | K3: 0.15 | L3: =IF($F$14="Prevailing Wage",I3,0) -> 0
B4: Email:
B5: Phone: | I5: ADSS | J5: =IFERROR(IF($F$14="ADSS",1,0),0) -> 0
I6: Strand/Lash | J6: =IF($J$5=0,1,0) -> 1
A7: Items with listed quantities are included in the current design, but [CLIENT NAME] requests costs for all the items should the item be needed due to design alterations. All proposed unit costs must be guaranteed for the term of the project unless expressly agreed upon by [CLIENT NAME].
C8: BB, Lateral, PON (This is for HLD estimates, this does not matter for LLD): | D8: PON | E8: Mileage | F8: =SUM(F9:F11) ->  | G8: Total Passings
C9: Total Design with underground overbuild % (F12) Footage/Miles: | D9: =D11+(D10*(1+F12)) ->  | E9: =ROUND(D9/5280,2) ->  | F9: =INDEX(Summary!$B$1:$BA$15,4,MATCH($I$1,Summary!$1:$1,0)-1) ->  | G9: Residential
C10: Buried: | D10: =INDEX(Summary!$B$1:$BA$15,2,MATCH($I$1,Summary!$1:$1,0)-1) ->  | E10: =ROUND(D10/5280,2) ->  | F10: =INDEX(Summary!$B$1:$BA$15,5,MATCH($I$1,Summary!$1:$1,0)-1) ->  | G10: Business
C11: Aerial: | D11: =INDEX(Summary!$B$1:$BA$15,3,MATCH($I$1,Summary!$1:$1,0)-1) ->  | E11: =ROUND(D11/5280,2) ->  | F11: =INDEX(Summary!$B$1:$BA$15,6,MATCH($I$1,Summary!$1:$1,0)-1) ->  | G11: Anchor
C12: Region for unit pricing | D12: MidWest | E12: Actual Buried | F12: 0.05 | G12: Underground overbuild percentage (If using centerline for PON assume 75%)
C13: Use MST's? (Only changes PON estimates) | D13: No MST | E13: =D10*(1+F12) ->  | F13: 0 | G13: Rock Percentage
C14: Labor Rate Adjustment (Use this if you want to add additional costs to wage i.e. prevailing wage ~30%) | D14: 0 | E14: =ROUND(E13/5280,2) ->  | F14: Strand and Lash | G14: Aerial (Strand and Lash or ADSS)
A15: UNIT PRICING | J15: HLD estimates
A16: LABOR PRICING. All work includes traffic control plans, setup, maintenance and breakdown, compacted backfill, stormwater and erosion control setup, maintenance and breakdown, safety compliance and soft surface restoration. All cells shown in green shall be completed by the Contractor. All other cells are protected in this form. | I16: Percentage | J16: BB | K16: Lateral | L16: GPON
A17: Item # | B17: Description | C17: Estimated Quantity | D17: Unit | E17: Unit Price | F17: Total | G17: Notes | N17: micro | O17: 1" | P17: 1.25" | Q17: 2" | R17: 4" | S17: 6" | T17: 8" | V17: =CONCATENATE(N17," len") -> micro len | W17: =CONCATENATE(O17," len") -> 1" len | X17: 1.25" len | Y17: 2" len | Z17: 4" len | AA17: 6" len | AB17: 8" len
B18: UNDERGROUND - BURIED | V18: =SUM(V19:V50) ->  | W18: =SUM(W19:W50) -> 
A19: 1 | B19: Directional Bore (1) 1" | C19: =_xlfn.SWITCH($D$8,"Lateral",K19,"PON",L19,J19) ->  | D19: LF | E19: =INDEX('UNIT PRICE TABLE'!$A$1:$G$58,MATCH(B19,'UNIT PRICE TABLE'!$A$1:$A$58,0),MATCH($D$12,Region,0)+1)*$J$2 -> 10.25 | F19: =ROUND(IFERROR(C19*E19,0),2) -> 0 | G19: *Get updated pricing from Clayton first* Total Underground lengths. BB and Lateral add 5% for variance, PON may need to update variance in cell F12 | I19: 0 | J19: =ROUNDUP($D$10*(1+$F$12)*$I19,0) ->  | K19: =$J19 ->  | L19: =$J19 ->  | N19: 0 | O19: 1 | P19: 0 | Q19: 0 | R19: 0 | S19: 0 | T19: 0 | V19: =N19*$J19 ->  | W19: =O19*$J19 -> 
A20: =A19+1 -> 2 | B20: Directional Bore (2) 1" | C20: =_xlfn.SWITCH($D$8,"Lateral",K20,"PON",L20,J20) ->  | D20: LF | E20: =INDEX('UNIT PRICE TABLE'!$A$1:$G$58,MATCH(B20,'UNIT PRICE TABLE'!$A$1:$A$58,0),MATCH($D$12,Region,0)+1)*$J$2 -> 10.25 | F20: 0 | G20: *Get updated pricing from Clayton first* Total Underground lengths. BB and Lateral add 5% for variance, PON may need to update variance in cell F12 | I20: 0 | J20: =ROUNDUP($D$10*(1+$F$12)*$I20,0) ->  | K20: =$J20 ->  | N20: 0 | O20: 2 | P20: 0 | Q20: 0 | R20: 0 | S20: 0 | T20: 0 | V20: =N20*$J20 -> 
A21: =A20+1 -> 3 | B21: Directional Bore (1) 2" | C21: =_xlfn.SWITCH($D$8,"Lateral",K21,"PON",L21,J21) ->  | D21: LF | E21: =INDEX('UNIT PRICE TABLE'!$A$1:$G$58,MATCH(B21,'UNIT PRICE TABLE'!$A$1:$A$58,0),MATCH($D$12,Region,0)+1)*$J$2 -> 11.75 | F21: 0 | G21: *Get updated pricing from Clayton first* Total Underground lengths. BB and Lateral add 5% for variance, PON may need to update variance in cell F12 | I21: 0 | N21: 0 | O21: 0 | P21: 0 | Q21: 1 | R21: 0 | S21: 0 | T21: 0
A22: 4 | B22: Directional Bore (1) 2" and (1) 1" | C22: =_xlfn.SWITCH($D$8,"Lateral",K22,"PON",L22,J22) ->  | D22: LF | E22: =INDEX('UNIT PRICE TABLE'!$A$1:$G$58,MATCH(B22,'UNIT PRICE TABLE'!$A$1:$A$58,0),MATCH($D$12,Region,0)+1)*$J$2 -> 11.75 | F22: 0 | G22: *Get updated pricing from Clayton first* Total Underground lengths. BB and Lateral add 5% for variance, PON may need to update variance in cell F12 | I22: 0.75 | N22: 0 | O22: 1 | P22: 0 | Q22: 1 | R22: 0 | S22: 0 | T22: 0
A23: 5 | B23: Directional Bore (1) 2" and (2) 1" | C23: =_xlfn.SWITCH($D$8,"Lateral",K23,"PON",L23,J23) ->  | D23: LF | E23: =INDEX('UNIT PRICE TABLE'!$A$1:$G$58,MATCH(B23,'UNIT PRICE TABLE'!$A$1:$A$58,0),MATCH($D$12,Region,0)+1)*$J$2 -> 16.94 | F23: 0 | G23: *Get updated pricing from Clayton first* Total Underground lengths. BB and Lateral add 5% for variance, PON may need to update variance in cell F12 | I23: 0.25 | N23: 0 | O23: 2 | P23: 0 | Q23: 1 | R23: 0 | S23: 0 | T23: 0
A24: 6 | B24: Directional Bore (2) 2" | C24: =_xlfn.SWITCH($D$8,"Lateral",K24,"PON",L24,J24) ->  | D24: LF | E24: =INDEX('UNIT PRICE TABLE'!$A$1:$G$58,MATCH(B24,'UNIT PRICE TABLE'!$A$1:$A$58,0),MATCH($D$12,Region,0)+1)*$J$2 -> 16.94 | F24: 0 | G24: *Get updated pricing from Clayton first* Total Underground lengths. BB and Lateral add 5% for variance, PON may need to update variance in cell F12 | I24: 0 | N24: 0 | O24: 0 | P24: 0 | Q24: 2 | R24: 0 | S24: 0 | T24: 0
A25: 7 | B25: Directional Bore (2) 2" and (1) 1" | C25: =_xlfn.SWITCH($D$8,"Lateral",K25,"PON",L25,J25) ->  | D25: LF | E25: =INDEX('UNIT PRICE TABLE'!$A$1:$G$58,MATCH(B25,'UNIT PRICE TABLE'!$A$1:$A$58,0),MATCH($D$12,Region,0)+1)*$J$2 -> 18.66 | F25: 0 | G25: *Get updated pricing from Clayton first* Total Underground lengths. BB and Lateral add 5% for variance, PON may need to update variance in cell F12 | I25: 0 | N25: 0 | O25: 1 | P25: 0 | Q25: 2 | R25: 0 | S25: 0 | T25: 0
A26: 8 | B26: Directional Bore (3) 2" | C26: =_xlfn.SWITCH($D$8,"Lateral",K26,"PON",L26,J26) ->  | D26: LF | E26: =INDEX('UNIT PRICE TABLE'!$A$1:$G$58,MATCH(B26,'UNIT PRICE TABLE'!$A$1:$A$58,0),MATCH($D$12,Region,0)+1)*$J$2 -> 21.4 | F26: 0 | G26: *Get updated pricing from Clayton first* Total Underground lengths. BB and Lateral add 5% for variance, PON may need to update variance in cell F12 | I26: 0 | N26: 0 | O26: 0 | P26: 0 | Q26: 3 | R26: 0 | S26: 0 | T26: 0
A27: 9 | B27: Directional Bore (3) 2" and (1) 1" | C27: =_xlfn.SWITCH($D$8,"Lateral",K27,"PON",L27,J27) ->  | D27: LF | E27: =INDEX('UNIT PRICE TABLE'!$A$1:$G$58,MATCH(B27,'UNIT PRICE TABLE'!$A$1:$A$58,0),MATCH($D$12,Region,0)+1)*$J$2 -> 24.39 | F27: 0 | G27: *Get updated pricing from Clayton first* Total Underground lengths. BB and Lateral add 5% for variance, PON may need to update variance in cell F12 | I27: 0 | N27: 0 | O27: 1 | P27: 0 | Q27: 3 | R27: 0 | S27: 0 | T27: 0
A28: 10 | B28: Directional Bore (3) 2" and (2) 1" | C28: =_xlfn.SWITCH($D$8,"Lateral",K28,"PON",L28,J28) ->  | D28: LF | E28: =INDEX('UNIT PRICE TABLE'!$A$1:$G$58,MATCH(B28,'UNIT PRICE TABLE'!$A$1:$A$58,0),MATCH($D$12,Region,0)+1)*$J$2 -> 26.7 | F28: 0 | G28: *Get updated pricing from Clayton first* Total Underground lengths. BB and Lateral add 5% for variance, PON may need to update variance in cell F12 | I28: 0 | N28: 0 | O28: 2 | P28: 0 | Q28: 3 | R28: 0 | S28: 0 | T28: 0
A29: 11 | B29: Directional Bore (4) 2" | C29: =_xlfn.SWITCH($D$8,"Lateral",K29,"PON",L29,J29) ->  | D29: LF | E29: =INDEX('UNIT PRICE TABLE'!$A$1:$G$58,MATCH(B29,'UNIT PRICE TABLE'!$A$1:$A$58,0),MATCH($D$12,Region,0)+1)*$J$2 -> 28.93 | F29: 0 | G29: *Get updated pricing from Clayton first* Total Underground lengths. BB and Lateral add 5% for variance, PON may need to update variance in cell F12 | I29: 0 | N29: 0 | O29: 0 | P29: 0 | Q29: 4 | R29: 0 | S29: 0 | T29: 0
A30: 12 | B30: Directional Bore (1) 4" | C30: =_xlfn.SWITCH($D$8,"Lateral",K30,"PON",L30,J30) ->  | D30: LF | E30: =INDEX('UNIT PRICE TABLE'!$A$1:$G$58,MATCH(B30,'UNIT PRICE TABLE'!$A$1:$A$58,0),MATCH($D$12,Region,0)+1)*$J$2 -> 12 | F30: 0 | G30: *Get updated pricing from Clayton first* Total Underground lengths. BB and Lateral add 5% for variance, PON may need to update variance in cell F12 | I30: 0 | N30: 0 | O30: 0 | P30: 0 | Q30: 0 | R30: 1 | S30: 0 | T30: 0
A31: 13 | B31: Directional Bore (1) 1 1/4" | C31: =_xlfn.SWITCH($D$8,"Lateral",K31,"PON",L31,J31) ->  | D31: LF | E31: =INDEX('UNIT PRICE TABLE'!$A$1:$G$58,MATCH(B31,'UNIT PRICE TABLE'!$A$1:$A$58,0),MATCH($D$12,Region,0)+1)*$J$2 -> 12 | F31: 0 | G31: *Get updated pricing from Clayton first* Total Underground lengths. BB and Lateral add 5% for variance, PON may need to update variance in cell F12 | I31: 0 | N31: 0 | O31: 0 | P31: 1 | Q31: 0 | R31: 0 | S31: 0 | T31: 0
A32: 14 | B32: Directional Bore (2) 1 1/4" | C32: =_xlfn.SWITCH($D$8,"Lateral",K32,"PON",L32,J32) ->  | D32: LF | E32: =INDEX('UNIT PRICE TABLE'!$A$1:$G$58,MATCH(B32,'UNIT PRICE TABLE'!$A$1:$A$58,0),MATCH($D$12,Region,0)+1)*$J$2 -> 16 | F32: 0 | G32: *Get updated pricing from Clayton first* Total Underground lengths. BB and Lateral add 5% for variance, PON may need to update variance in cell F12 | I32: 0 | N32: 0 | O32: 0 | P32: 2 | Q32: 0 | R32: 0 | S32: 0 | T32: 0
A33: 15 | B33: Directional Bore (3) 1 1/4" | C33: =_xlfn.SWITCH($D$8,"Lateral",K33,"PON",L33,J33) ->  | D33: LF | E33: =INDEX('UNIT PRICE TABLE'!$A$1:$G$58,MATCH(B33,'UNIT PRICE TABLE'!$A$1:$A$58,0),MATCH($D$12,Region,0)+1)*$J$2 -> 18 | F33: 0 | G33: *Get updated pricing from Clayton first* Total Underground lengths. BB and Lateral add 5% for variance, PON may need to update variance in cell F12 | I33: 0 | N33: 0 | O33: 0 | P33: 3 | Q33: 0 | R33: 0 | S33: 0 | T33: 0
A34: 16 | B34: Directional Bore (4) 1 1/4" | C34: =_xlfn.SWITCH($D$8,"Lateral",K34,"PON",L34,J34) ->  | D34: LF | E34: =INDEX('UNIT PRICE TABLE'!$A$1:$G$58,MATCH(B34,'UNIT PRICE TABLE'!$A$1:$A$58,0),MATCH($D$12,Region,0)+1)*$J$2 -> 24 | F34: 0 | G34: *Get updated pricing from Clayton first* Total Underground lengths. BB and Lateral add 5% for variance, PON may need to update variance in cell F12 | I34: 0 | N34: 0 | O34: 0 | P34: 4 | Q34: 0 | R34: 0 | S34: 0 | T34: 0
A35: 17 | B35: Microtrenching (Narrow Band Trenching) upto 12" deep | C35: =_xlfn.SWITCH($D$8,"Lateral",K35,"PON",L35,J35) ->  | D35: LF | E35: =$J$2*11.54 -> 11.54 | F35: 0 | G35: Add 5% for variance | I35: 0 | N35: 1 | O35: 0 | P35: 0 | Q35: 0 | R35: 0 | S35: 0 | T35: 0
A36: 18 | B36: Microtrenching (Narrow Band Trenching) upto 18" deep | C36: =_xlfn.SWITCH($D$8,"Lateral",K36,"PON",L36,J36) ->  | D36: LF | E36: =$J$2*13.85 -> 13.85 | F36: 0 | G36: Add 5% for variance | I36: 0 | N36: 1 | O36: 0 | P36: 0 | Q36: 0 | R36: 0 | S36: 0 | T36: 0
A37: 19 | B37: Microtrenching (Narrow Band Trenching) upto 24" deep | C37: =_xlfn.SWITCH($D$8,"Lateral",K37,"PON",L37,J37) ->  | D37: LF | E37: =$J$2*18.46 -> 18.46 | F37: 0 | G37: Add 5% for variance | I37: 0 | N37: 1 | O37: 0 | P37: 0 | Q37: 0 | R37: 0 | S37: 0 | T37: 0
A38: 20 | B38: Vibratory Plow 4' deep (1) 2" | C38: =_xlfn.SWITCH($D$8,"Lateral",K38,"PON",L38,J38) ->  | D38: LF | E38: =$J$2*75 -> 75 | F38: 0 | G38: Add 5% for variance | I38: 0 | N38: 0 | O38: 0 | P38: 0 | Q38: 1 | R38: 0 | S38: 0 | T38: 0
A39: 21 | B39: Vibratory Plow 4' deep (2) 2" | C39: =_xlfn.SWITCH($D$8,"Lateral",K39,"PON",L39,J39) ->  | D39: LF | E39: =$J$2*75 -> 75 | F39: 0 | G39: Add 5% for variance | I39: 0 | N39: 0 | O39: 0 | P39: 0 | Q39: 2 | R39: 0 | S39: 0 | T39: 0
A40: 22 | B40: Open Cut & Trench (1) 2" at 30" Minimum Depth of Cover | C40: =_xlfn.SWITCH($D$8,"Lateral",K40,"PON",L40,J40) ->  | D40: LF | E40: =$J$2*60 -> 60 | F40: 0 | G40: Add 5% for variance | I40: 0 | N40: 0 | O40: 0 | P40: 0 | Q40: 1 | R40: 0 | S40: 0 | T40: 0
A41: 23 | B41: Open Cut & Trench (2) 2" at 30" Minimum Depth of Cover | C41: =_xlfn.SWITCH($D$8,"Lateral",K41,"PON",L41,J41) ->  | D41: LF | E41: =$J$2*65 -> 65 | F41: 0 | G41: Add 5% for variance | I41: 0 | N41: 0 | O41: 0 | P41: 0 | Q41: 2 | R41: 0 | S41: 0 | T41: 0
A42: 24 | B42: Open Cut & Trench (3) 2" at 30" Minimum Depth of Cover | C42: =_xlfn.SWITCH($D$8,"Lateral",K42,"PON",L42,J42) ->  | D42: LF | E42: =$J$2*70 -> 70 | F42: 0 | G42: Add 5% for variance | I42: 0 | N42: 0 | O42: 0 | P42: 0 | Q42: 3 | R42: 0 | S42: 0 | T42: 0
A43: 25 | B43: Open Cut & Trench (4) 2" at 30" Minimum Depth of Cover | C43: =_xlfn.SWITCH($D$8,"Lateral",K43,"PON",L43,J43) ->  | D43: LF | E43: =$J$2*75 -> 75 | F43: 0 | G43: Add 5% for variance | I43: 0 | N43: 0 | O43: 0 | P43: 0 | Q43: 4 | R43: 0 | S43: 0 | T43: 0
A44: 26 | B44: Sleeve existing 4" conduit (3) 1 1/4" | C44: =_xlfn.SWITCH($D$8,"Lateral",K44,"PON",L44,J44) ->  | D44: LF | E44: =$J$2*11.96 -> 11.96 | F44: 0 | G44: Dependent on build | I44: 0 | N44: 0 | O44: 0 | P44: 3 | Q44: 0 | R44: 0 | S44: 0 | T44: 0
A45: 27 | B45: Pull (4) 2" sdr 11 conduits in 8" casing | C45: =_xlfn.SWITCH($D$8,"Lateral",K45,"PON",L45,J45) ->  | D45: FT | E45: =$J$2*15 -> 15 | F45: 0 | G45: Dependent on build (Some RR, DOT, and water crossings need steel casings) | I45: 0 | N45: 0 | O45: 0 | P45: 0 | Q45: 4 | R45: 0 | S45: 0 | T45: 0
A46: 28 | B46: Bore 6” Casing (Steel) | C46: =_xlfn.SWITCH($D$8,"Lateral",K46,"PON",L46,J46) ->  | D46: LF | E46: =$J$2*125 -> 125 | F46: =ROUND(IFERROR(C46*E46,0),2) -> 0 | G46: This would be for RR, DOT, Waterway or other crossing. Estimate is 0.025% of Buried total. | J46: =ROUNDUP(0.00025*$D$10,0) ->  | K46: =ROUNDUP(0.00025*$D$10,0) ->  | N46: 0 | O46: 0 | P46: 0 | Q46: 0 | R46: 0 | S46: 0 | T46: 1
A47: 29 | B47: Bore 6” Casing (PVC) | C47: =_xlfn.SWITCH($D$8,"Lateral",K47,"PON",L47,J47) ->  | D47: LF | E47: =$J$2*100 -> 100 | F47: =ROUND(IFERROR(C47*E47,0),2) -> 0 | G47: This would be for RR, DOT, Waterway or other crossing. Estimate is 0.025% of Buried total. | J47: =ROUNDUP(0.00025*$D$10,0) ->  | N47: 0 | O47: 0 | P47: 0 | Q47: 0 | R47: 0 | S47: 1 | T47: 0 | V47: =N47*$J47 -> 
A48: 30 | B48: Bore 8” Casing (Steel) | C48: =_xlfn.SWITCH($D$8,"Lateral",K48,"PON",L48,J48) ->  | D48: LF | E48: =$J$2*125 -> 125 | F48: =ROUND(IFERROR(C48*E48,0),2) -> 0 | G48: This would be for RR, DOT, Waterway or other crossing. Estimate is 0.025% of Buried total. | N48: 0 | O48: 0 | P48: 0 | Q48: 0 | R48: 0 | S48: 0 | T48: 1
A49: 31 | B49: Bore 8” Casing (PVC) | C49: =_xlfn.SWITCH($D$8,"Lateral",K49,"PON",L49,J49) ->  | D49: LF | E49: =$J$2*100 -> 100 | F49: =ROUND(IFERROR(C49*E49,0),2) -> 0 | G49: This would be for RR, DOT, Waterway or other crossing. Estimate is 0.025% of Buried total. | N49: 0 | O49: 0 | P49: 0 | Q49: 0 | R49: 0 | S49: 1 | T49: 0
A50: 32 | B50: Deep Bore - Water Crossing | C50: =_xlfn.SWITCH($D$8,"Lateral",K50,"PON",L50,J50) -> 0 | D50: LF | E50: =$J$2*350 -> 350 | F50: =ROUND(IFERROR(C50*E50,0),2) -> 0 | G50: Dependent on build | J50: 0 | K50: 0 | L50: 0 | N50: 0 | O50: 0 | P50: 0 | Q50: 0 | R50: 0 | S50: 0 | T50: 0 | V50: 0 | W50: 0 | X50: 0 | Y50: 0 | Z50: 0 | AA50: 0 | AB50: 0
A51: 33 | B51: Install Muletape in New Conduit | C51: =_xlfn.SWITCH($D$8,"Lateral",K51,"PON",L51,J51) ->  | D51: FT | E51: =$J$2*0.33 -> 0.33 | F51: =ROUND(IFERROR(C51*E51,0),2) -> 0 | G51: Should match length of empty conduits (BB and PON twice as much as URD footage) | J51: =SUM($V$18:$AB$18) ->  | K51: =SUM($V$18:$AB$18) ->  | L51: =SUM($V$18:$AB$18) -> 
A52: 34 | B52: Bore Rock Adder | C52: =_xlfn.SWITCH($D$8,"Lateral",K52,"PON",L52,J52) ->  | D52: LF | E52: =INDEX('UNIT PRICE TABLE'!$A$1:$G$58,MATCH(B52,'UNIT PRICE TABLE'!$A$1:$A$58,0),MATCH($D$12,Region,0)+1)*$J$2 -> 58.5 | F52: 0 | G52: *Get updated pricing from Clayton first* Dependent on build, Question for customer in data collection | J52: =ROUNDUP($F$13*$D$10,0) ->  | K52: =ROUNDUP($F$13*$D$10,0) ->  | L52: =ROUNDUP($F$13*$D$10,0) -> 
A53: 35 | B53: Trench Rock Adder | C53: =_xlfn.SWITCH($D$8,"Lateral",K53,"PON",L53,J53) -> 0 | D53: LF | E53: =$J$2*53.85 -> 53.85 | F53: 0 | G53: Dependent on build, Question for customer in data collection | J53: 0 | K53: 0 | L53: 0
A54: 36 | B54: Install #12 AWG Insulated Tracer Wire | C54: =_xlfn.SWITCH($D$8,"Lateral",K54,"PON",L54,J54) ->  | D54: LF | E54: =INDEX('UNIT PRICE TABLE'!$A$1:$G$58,MATCH(B54,'UNIT PRICE TABLE'!$A$1:$A$58,0),MATCH($D$12,Region,0)+1)*$J$2 -> 0.33 | F54: 0 | G54: should equal underground footage | J54: =ROUNDUP($D$10*(1+$F$12),0) ->  | K54: =ROUNDUP($D$10*(1+$F$12),0) ->  | L54: =ROUNDUP($D$10*(1+$F$12),0) -> 
A55: 37 | B55: Install 5/8"x8' Copper Clad Ground Rod | C55: =_xlfn.SWITCH($D$8,"Lateral",K55,"PON",L55,J55) ->  | D55: EA | E55: =$J$2*25 -> 25 | F55: 0 | G55: Get qtys from design, if not specified assume 1 ever 2,000ft | J55: =ROUNDUP(($D$10*(1+$F$12))/2000,0) ->  | K55: =ROUNDUP(($D$10*(1+$F$12))/2000,0) ->  | L55: =ROUNDUP(($D$10*(1+$F$12))/2000,0) -> 
A56: 38 | B56: Install 3.5" Dia PVC Round Marker Posts with Orange Dome Top | C56: =_xlfn.SWITCH($D$8,"Lateral",K56,"PON",L56,J56) ->  | D56: EA | E56: =INDEX('UNIT PRICE TABLE'!$A$1:$G$58,MATCH(B56,'UNIT PRICE TABLE'!$A$1:$A$58,0),MATCH($D$12,Region,0)+1)*$J$2 -> 45 | F56: 0 | G56: Get qtys from design, can estimate 75% of handholes | J56: =ROUNDUP(J70*0.75,0) ->  | K56: =ROUNDUP(K69*0.75,0) ->  | L56: =ROUNDUP(L69*0.75,0) -> 
A57: 39 | B57: Install 3.5" Dia PVC Round Marker Posts with Orange Dome Top with Test Station | C57: =_xlfn.SWITCH($D$8,"Lateral",K57,"PON",L57,J57) ->  | D57: EA | E57: =INDEX('UNIT PRICE TABLE'!$A$1:$G$58,MATCH(B57,'UNIT PRICE TABLE'!$A$1:$A$58,0),MATCH($D$12,Region,0)+1)*$J$2 -> 65 | F57: 0 | G57: Get qtys from design, can estimate 25% of handholes | J57: =ROUNDUP(J70*0.25,0) ->  | K57: =ROUNDUP(K69*0.25,0) ->  | L57: =ROUNDUP(L69*0.25,0) -> 
A58: 40 | B58: Install RFID Ball/Peg Markers | C58: =_xlfn.SWITCH($D$8,"Lateral",K58,"PON",L58,J58) -> 0 | D58: EA | E58: =$J$2*30 -> 30 | F58: 0 | G58: Dependent on build, Question for customer in data collection | J58: 0 | K58: 0 | L58: 0
A59: 41 | B59: Install RFID Rope | C59: =_xlfn.SWITCH($D$8,"Lateral",K59,"PON",L59,J59) -> 0 | D59: LF | E59: =$J$2*1.5 -> 1.5 | F59: 0 | G59: Dependent on build, Question for customer in data collection | J59: 0 | K59: 0 | L59: 0
A60: 42 | B60: Proof Existing Conduit - any size | C60: =_xlfn.SWITCH($D$8,"Lateral",K60,"PON",L60,J60) -> 0 | D60: LF | E60: =$J$2*1.54 -> 1.54 | F60: 0 | G60: Dependent on build, Question for customer in data collection | J60: 0 | K60: 0 | L60: 0
A61: 43 | B61: Rod Existing Conduit and Install Pull Tape | C61: =_xlfn.SWITCH($D$8,"Lateral",K61,"PON",L61,J61) -> 0 | D61: LF | E61: =$J$2*1.15 -> 1.15 | F61: 0 | G61: Dependent on build, Question for customer in data collection | J61: 0 | K61: 0 | L61: 0
A62: 44 | B62: Remove existing cable - i.e. coax/twisted pair in street light conduits to replace with fiber | C62: =_xlfn.SWITCH($D$8,"Lateral",K62,"PON",L62,J62) -> 0 | D62: LF | E62: =$J$2*1.92 -> 1.92 | F62: 0 | G62: Dependent on build, Question for customer in data collection | J62: 0 | K62: 0 | L62: 0
A63: 45 | B63: Installation, Underground Fiber Cable - Including Slack (2ct Fiber) | C63: =_xlfn.SWITCH($D$8,"Lateral",K63,"PON",L63,J63) -> 0 | D63: LF | E63: =$J$2*1 -> 1 | F63: 0 | G63: Add 5% for variance | J63: 0 | K63: 0 | L63: 0
A64: 46 | B64: Installation, Underground Fiber Cable - Including Slack (All other fiber) | C64: =_xlfn.SWITCH($D$8,"Lateral",K64,"PON",L64,J64) ->  | D64: LF | E64: =INDEX('UNIT PRICE TABLE'!$A$1:$G$58,MATCH(B64,'UNIT PRICE TABLE'!$A$1:$A$58,0),MATCH($D$12,Region,0)+1)*$J$2 -> 1.25 | F64: 0 | G64: *Get updated pricing from Clayton first* underground footage & 100' slack from Ring Cuts and 55' for Butt splices (Estimated as URD footage + 75' per HH) | J64: =ROUNDUP(($D$10*(1+$F$12))+(J70*75),0) ->  | K64: =ROUNDUP(($D$10*(1+$F$12))+(K69*75),0) ->  | L64: =ROUNDUP(($D$10*(1+$F$12))+(L69*75),0) -> 
A65: 47 | B65: Installation, MST in Pedestal | C65: =_xlfn.SWITCH($D$8,"Lateral",K65,"PON",L65,J65) ->  | D65: EA | E65: =$J$2*50 -> 50 | F65: 0 | G65: Get qtys from design | J65: 0 | K65: 0 | L65: =$L$303 -> 
A66: 48 | B66: Installation, Pedestal | C66: =_xlfn.SWITCH($D$8,"Lateral",K66,"PON",L66,J66) ->  | D66: EA | E66: =$J$2*60 -> 60 | F66: 0 | G66: Get qtys from design | J66: 0 | K66: 0 | L66: =$L$303 -> 
A67: 49 | B67: Installation, Drop Vault, 12" X 12" | C67: =_xlfn.SWITCH($D$8,"Lateral",K67,"PON",L67,J67) -> 0 | D67: EA | E67: =ROUNDUP($E$69*0.75,0) -> 263 | F67: 0 | G67: Get qtys from design (AKA "Flowerpots") | J67: 0 | K67: 0 | L67: =IFERROR(ROUNDUP((($D$10/($D$10+$D$11))*$F$8)/4,0),0) -> 0
A68: 50 | B68: Installation, Small Vault, 17” x 30” | C68: =_xlfn.SWITCH($D$8,"Lateral",K68,"PON",L68,J68) -> 0 | D68: EA | E68: =$E$69 -> 350 | F68: 0 | G68: Get qtys from design | J68: 0 | K68: 0 | L68: 0
A69: 51 | B69: Installation, Vault 24" x 36" | C69: =_xlfn.SWITCH($D$8,"Lateral",K69,"PON",L69,J69) ->  | D69: EA | E69: =INDEX('UNIT PRICE TABLE'!$A$1:$G$58,MATCH(B69,'UNIT PRICE TABLE'!$A$1:$A$58,0),MATCH($D$12,Region,0)+1)*$J$2 -> 350 | F69: 0 | G69: *Get updated pricing from Clayton first* BB every 600', Lateral every 400', PON every 250' | J69: 0 | K69: =ROUNDUP($D$10/400,0) ->  | L69: =ROUNDUP(($D$10*(1+$F$12))/250,0) -> 
A70: 52 | B70: Installation, Large Vault 30" x 48" | C70: =_xlfn.SWITCH($D$8,"Lateral",K70,"PON",L70,J70) -> 0 | D70: EA | E70: =INDEX('UNIT PRICE TABLE'!$A$1:$G$58,MATCH(B70,'UNIT PRICE TABLE'!$A$1:$A$58,0),MATCH($D$12,Region,0)+1)*$J$2 -> 500 | F70: 0 | G70: *Get updated pricing from Clayton first* Get qtys from design | J70: =ROUNDUP($D$10/600,0) ->  | K70: 0 | L70: 0
A71: 53 | B71: Installation, Extra Large Vault 48" x 60" | C71: =_xlfn.SWITCH($D$8,"Lateral",K71,"PON",L71,J71) -> 0 | D71: EA | E71: =$J$2*1750 -> 1750 | F71: 0 | G71: Get qtys from design | J71: 0 | K71: 0 | L71: 0
A72: 54 | B72: Install 4'x4'x4' Split Concrete Manhole | C72: =_xlfn.SWITCH($D$8,"Lateral",K72,"PON",L72,J72) -> 0 | D72: EA | E72: =$J$2*6500 -> 6500 | F72: 0 | G72: Get qtys from design | J72: 0 | K72: 0 | L72: 0
A73: 55 | B73: Remove and Replace Handhole - including fixing sweeps into HH | C73: =_xlfn.SWITCH($D$8,"Lateral",K73,"PON",L73,J73) -> 0 | D73: EA | E73: =$J$2*3461.54 -> 3461.54 | G73: Get qtys from design
A74: 56 | B74: Prep and Pour Concrete Pad for POP Site | C74: =_xlfn.SWITCH($D$8,"Lateral",K74,"PON",L74,J74) -> 0 | D74: EA | E74: =$J$2*10000 -> 10000 | F74: =ROUND(IFERROR(C74*E74,0),2) -> 0 | G74: Get qtys from design | J74: 0 | K74: 0 | L74: 0
A75: 57 | B75: Sawcut, Remove and Replace Asphalt 6" Thick | C75: =_xlfn.SWITCH($D$8,"Lateral",K75,"PON",L75,J75) ->  | D75: SqrFt | E75: =$J$2*23.08 -> 23.08 | F75: =ROUND(IFERROR(C75*E75,0),2) -> 0 | G75: Use Col I to adjust percentage. 15% for Urban areas and 1% for rural are good high level estimates | I75: 0.05 | J75: =ROUNDUP(($D$10*(1+$F$12))*$I$75,0) ->  | K75: =ROUNDUP(($D$10*(1+$F$12))*$I$75,0) -> 
A76: 58 | B76: Sawcut, Remove and Replace Concrete 6" Thick | C76: =_xlfn.SWITCH($D$8,"Lateral",K76,"PON",L76,J76) ->  | D76: SqrFt | E76: =$J$2*26.69 -> 26.69 | F76: =ROUND(IFERROR(C76*E76,0),2) -> 0 | G76: Use Col I to adjust percentage. 25% for Urban areas and 1% for rural are good high level estimates | I76: 0.05 | J76: =ROUNDUP(($D$10*(1+$F$12))*$I$76,0) ->  | K76: =ROUNDUP(($D$10*(1+$F$12))*$I$76,0) ->  | L76: =ROUNDUP(($D$10*(1+$F$12))*$I$76,0) -> 
A77: 59 | B77: Remove and Replace Brick Pavers | C77: =_xlfn.SWITCH($D$8,"Lateral",K77,"PON",L77,J77) -> 0 | D77: SqrFt | E77: =$J$2*38.46 -> 38.46 | F77: 0 | G77: Get qtys from design | J77: 0 | K77: 0 | L77: 0
A78: 60 | C78: 0 | F78: 0
A79: 61 | C79: 0 | F79: 0
A80: 62 | C80: 0 | F80: 0
A81: 63 | C81: 0 | F81: 0
A82: 64 | C82: 0 | F82: 0
A83: 65 | C83: 0 | F83: 0
A84: 66 | C84: 0 | F84: 0
A85: =A84+1 -> 67 | C85: 0 | F85: 0
B86: =B18 & " LABOR TOTAL" -> UNDERGROUND - BURIED LABOR TOTAL | F86: =SUM(F19:F85) -> 0
B88: AERIAL -STRAND/LASH
A89: =A85+1 -> 68 | B89: Lash/Mount Closure | C89: =_xlfn.SWITCH($D$8,"Lateral",K89,"PON",L89,J89) -> 0 | D89: EA | E89: =$J$2*175 -> 175 | F89: =ROUND(IFERROR(C89*E89,0),2) -> 0 | G89: One per closure | J89: =IFERROR(ROUNDUP(J$157*($D$11/($D$10+$D$11)),0),0) -> 0 | K89: =IFERROR(ROUNDUP(K$157*($D$11/($D$10+$D$11)),0),0) -> 0 | L89: 0
A90: =A89+1 -> 69 | B90: Bond Strand/Guy to pole ground + materials | C90: =_xlfn.SWITCH($D$8,"Lateral",K90,"PON",L90,J90) ->  | D90: EA | E90: =$J$2*250 -> 250 | F90: 0 | G90: Bonding will be done at the first, every 5th, last poles, and all poles with a vertical. (Unless power company uses other standard). Estimated as total aerial footage / 180 / 4 | J90: =ROUNDUP(($D$11/180)/4,0)*$J$6 ->  | K90: =ROUNDUP(($D$11/180)/4,0)*$J$6 ->  | L90: =ROUNDUP(($D$11/180)/4,0)*$J$6 -> 
A91: 70 | B91: Install Strand | C91: =_xlfn.SWITCH($D$8,"Lateral",K91,"PON",L91,J91) ->  | D91: FT | E91: =INDEX('UNIT PRICE TABLE'!$A$1:$G$58,MATCH(B91,'UNIT PRICE TABLE'!$A$1:$A$58,0),MATCH($D$12,Region,0)+1)*$J$2 -> 1.8 | F91: 0 | G91: *Get updated pricing from Clayton first* Match aerial footage - quote from contractor shall include attachement hardware | J91: =$D$11*$J$6 ->  | K91: =$D$11*$J$6 ->  | L91: =$D$11*$J$6 -> 
A92: 71 | B92: Install Snow Shoes | C92: =_xlfn.SWITCH($D$8,"Lateral",K92,"PON",L92,J92) ->  | D92: EA | E92: =$J$2*160 -> 160 | F92: 0 | G92: formula is for 2 for every slack location | J92: =ROUNDUP((J93/100)*2,0) ->  | K92: =ROUNDUP((K93/100)*2,0) ->  | L92: =ROUNDUP((L93/100)*2,0) -> 
A93: 72 | B93: Install Aerial Slack | C93: =_xlfn.SWITCH($D$8,"Lateral",K93,"PON",L93,J93) ->  | D93: EA | E93: =$E$94 -> 2.34 | F93: 0 | G93: in this model - it assumes 100' of slack for every 1000' of aerial installation | J93: =ROUNDUP(($D$11/1000)*100,0) ->  | K93: =ROUNDUP(($D$11/1000)*100,0) ->  | L93: =ROUNDUP(($D$11/1000)*100,0) -> 
A94: 73 | B94: Install / Lash Aerial Cable | C94: =_xlfn.SWITCH($D$8,"Lateral",K94,"PON",L94,J94) ->  | D94: FT | E94: =INDEX('UNIT PRICE TABLE'!$A$1:$G$58,MATCH(B94,'UNIT PRICE TABLE'!$A$1:$A$58,0),MATCH($D$12,Region,0)+1)*$J$2 -> 2.34 | F94: 0 | G94: *Get updated pricing from Clayton first* Match aerial footage | J94: =$D$11*$J$6 ->  | K94: =$D$11*$J$6 ->  | L94: =$D$11*$J$6 -> 
A95: 74 | B95: Tree Trimming | C95: =_xlfn.SWITCH($D$8,"Lateral",K95,"PON",L95,J95) ->  | D95: FT | E95: =INDEX('UNIT PRICE TABLE'!$A$1:$G$58,MATCH(B95,'UNIT PRICE TABLE'!$A$1:$A$58,0),MATCH($D$12,Region,0)+1)*$J$2 -> 4.75 | F95: 0 | G95: *Get updated pricing from Clayton first* Try and ID percentage. If unknown assume 10% of route needs tree trimming | J95: =ROUNDUP($D$11*0.1,0) ->  | K95: =ROUNDUP($D$11*0.1,0) ->  | L95: =ROUNDUP($D$11*0.1,0) -> 
A96: 75 | B96: Install Pole Risers | C96: =_xlfn.SWITCH($D$8,"Lateral",K96,"PON",L96,J96) ->  | D96: EA | E96: =$J$2*308 -> 308 | F96: 0 | G96: assume 5% of poles - adjust as needed | J96: =ROUNDUP(($D$11/180)*0.05,0) ->  | K96: =ROUNDUP(($D$11/180)*0.05,0) ->  | L96: =ROUNDUP(($D$11/180)*0.05,0) -> 
A97: 76 | B97: Install Down Guy & Anchors | C97: =_xlfn.SWITCH($D$8,"Lateral",K97,"PON",L97,J97) ->  | D97: EA | E97: =$J$2*385 -> 385 | F97: 0 | G97: assume 15% of poles - adjust as needed | J97: =ROUNDUP(($D$11/180)*0.15,0) ->  | K97: =ROUNDUP(($D$11/180)*0.15,0) ->  | L97: =ROUNDUP(($D$11/180)*0.15,0) -> 
A98: 77 | B98: Pole Transfer / Make Ready (Straight Through) | C98: =_xlfn.SWITCH($D$8,"Lateral",K98,"PON",L98,J98) ->  | D98: EA | E98: =$J$2*193 -> 193 | F98: 0 | G98: assume 3% of poles - adjust as needed - This would be cost from MRE to move existing Comm. Price will vary depending on who is doing transfers/moves | J98: =ROUNDUP(($D$11/180)*0.033,0) -> 
A99: 78 | B99: Pole Transfer / Make Ready (Dead-end) | C99: =_xlfn.SWITCH($D$8,"Lateral",K99,"PON",L99,J99) ->  | D99: EA | E99: =$J$2*170 -> 170 | F99: 0 | G99: assume 3% of poles - adjust as needed - This would be cost from MRE to move existing Comm. Price will vary depending on who is doing transfers/moves
A100: 79 | B100: Pole Transfer / Make Ready (Double Dead-end) | C100: =_xlfn.SWITCH($D$8,"Lateral",K100,"PON",L100,J100) ->  | D100: EA | E100: =$J$2*461 -> 461 | F100: 0 | G100: assume 3% of poles - adjust as needed - This would be cost from MRE to move existing Comm. Price will vary depending on who is doing transfers/moves
A101: 80 | C101: 0 | F101: 0
A102: 81 | C102: 0 | F102: 0
A103: 82 | C103: 0 | F103: 0
A104: 83 | C104: 0 | F104: 0
A105: 84 | C105: 0 | F105: 0
A106: 85 | C106: 0 | F106: 0
A107: 86 | C107: 0 | F107: 0
A108: 87 | C108: 0 | F108: 0
A109: 88 | C109: 0 | F109: 0
A110: 89 | C110: 0 | F110: 0
B111: =B88 & " LABOR TOTAL" -> AERIAL -STRAND/LASH LABOR TOTAL | F111: =SUM(F89:F110) -> 0
B113: AERIAL - ADSS
A114: =A110+1 -> 90 | B114: Install Fiber (ADSS) | C114: =_xlfn.SWITCH($D$8,"Lateral",K114,"PON",L114,J114) ->  | D114: FT | E114: =INDEX('UNIT PRICE TABLE'!$A$1:$G$58,MATCH(B114,'UNIT PRICE TABLE'!$A$1:$A$58,0),MATCH($D$12,Region,0)+1)*$J$2 -> 3.8 | F114: =ROUND(IFERROR(C114*E114,0),2) -> 0 | G114: *Get updated pricing from Clayton first* Get qtys from design | J114: =$D$11*$J$5 ->  | K114: =$D$11*$J$5 ->  | L114: =$D$11*1.25*$J$5 -> 
A115: =A114+1 -> 91 | B115: Pole attachment hardware (H bracket) | C115: =_xlfn.SWITCH($D$8,"Lateral",K115,"PON",L115,J115) -> 0 | D115: EA | E115: =$J$2*104 -> 104 | F115: 0 | G115: Assumes one per Closure | J115: =IFERROR(ROUNDUP(J$157*($D$11/($D$10+$D$11)),0)*$J$5,0) -> 0 | K115: =IFERROR(ROUNDUP(K$157*($D$11/($D$10+$D$11)),0)*$J$5,0) -> 0 | L115: =IFERROR(ROUNDUP(L$157*($D$11/($D$10+$D$11)),0)*$J$5,0) -> 0
A116: =A115+1 -> 92 | B116: Pole attachment hardware (Dead-end) | C116: =_xlfn.SWITCH($D$8,"Lateral",K116,"PON",L116,J116) ->  | D116: EA | E116: =$J$2*104 -> 104 | F116: 0 | G116: BB&Lat Assumes 25% poles with a 20% extra, PON Assumes 40% with 36% extra | J116: =ROUNDUP(((($D$11/300)*0.25)*1.2)*2,0)*$J$5 ->  | K116: =ROUNDUP(((($D$11/300)*0.25)*1.2)*2,0)*$J$5 ->  | L116: =ROUNDUP(((($D$11/300)*0.4)*1.36)*2,0)*$J$5 -> 
A117: 93 | B117: Pole attachment hardware (Tangent) | C117: =_xlfn.SWITCH($D$8,"Lateral",K117,"PON",L117,J117) ->  | D117: EA | E117: =$J$2*104 -> 104 | F117: 0 | G117: BB&Lat Assumes 75% poles with a 20% extra, PON Assumes 60% with 36% extra | J117: =ROUNDUP(((($D$11/300)*0.75)*1.2),0)*$J$5 ->  | K117: =ROUNDUP(((($D$11/300)*0.75)*1.2),0)*$J$5 ->  | L117: =ROUNDUP(((($D$11/300)*0.6)*1.36),0)*$J$5 -> 
A118: 94 | B118: Install U-guard for pole mounted enclosure | C118: =_xlfn.SWITCH($D$8,"Lateral",K118,"PON",L118,J118) -> 0 | D118: EA | E118: =$J$2*50 -> 50 | F118: 0 | G118: Assumes one per Closure | J118: =IFERROR(ROUNDUP(J$157*($D$11/($D$10+$D$11)),0)*$J$5,0) -> 0 | K118: =IFERROR(ROUNDUP(K$157*($D$11/($D$10+$D$11)),0)*$J$5,0) -> 0 | L118: =IFERROR(ROUNDUP(L$157*($D$11/($D$10+$D$11)),0)*$J$5,0) -> 0
A119: 95 | C119: 0 | F119: 0
A120: 96 | C120: 0 | F120: 0
A121: 97 | C121: 0 | F121: 0
A122: 98 | C122: 0 | F122: 0
A123: 99 | C123: 0 | F123: 0
A124: 100 | C124: 0 | F124: 0
A125: 101 | C125: 0 | F125: 0
A126: 102 | C126: 0 | F126: 0
A127: 103 | C127: 0 | F127: 0
A128: 104 | C128: 0 | F128: 0
B129: =B113 & " LABOR TOTAL" -> AERIAL - ADSS LABOR TOTAL | F129: =SUM(F114:F128) -> 0
B131: WIRELESS
A132: =A128+1 -> 105 | C132: 0 | D132: EA | F132: =ROUND(IFERROR(C132*E132,0),2) -> 0
A133: =A132+1 -> 106 | C133: 0 | D133: EA | F133: 0
A134: =A133+1 -> 107 | C134: 0 | D134: EA | F134: 0
A135: 108 | C135: 0 | D135: EA | F135: 0
A136: 109 | C136: 0 | D136: EA | F136: 0
A137: 110 | C137: 0 | D137: EA | F137: 0
A138: 111 | C138: 0 | D138: EA | F138: 0
A139: 112 | C139: 0 | D139: EA | F139: 0
A140: 113 | C140: 0 | D140: EA | F140: 0
A141: 114 | C141: 0 | D141: EA | F141: 0
A142: 115 | C142: 0 | D142: EA | F142: 0
A143: 116 | C143: 0 | D143: EA | F143: 0
A144: 117 | C144: 0 | F144: 0
A145: 118 | C145: 0 | F145: 0
A146: 119 | C146: 0 | F146: 0
A147: 120 | C147: 0 | F147: 0
A148: 121 | C148: 0 | F148: 0
A149: 122 | C149: 0 | F149: 0
A150: 123 | C150: 0 | F150: 0
A151: 124 | C151: 0 | F151: 0
A152: 125 | C152: 0 | F152: 0
A153: 126 | C153: 0 | F153: 0
B154: =B131 & " LABOR TOTAL" -> WIRELESS LABOR TOTAL | F154: =SUM(F132:F153) -> 0
B156: SPLICING
A157: =A153+1 -> 127 | B157: Install New Splice Case & Prep Cable | C157: =_xlfn.SWITCH($D$8,"Lateral",K157,"PON",L157,J157) ->  | D157: EA | E157: =INDEX('UNIT PRICE TABLE'!$A$1:$G$58,MATCH(B157,'UNIT PRICE TABLE'!$A$1:$A$58,0),MATCH($D$12,Region,0)+1)*$J$2 -> 550 | F157: =ROUND(IFERROR(C157*E157,0),2) -> 0 | G157: *Get updated pricing from Clayton first* BB and Laterals estimate one every 5000', PON one every 8 customers | J157: =ROUNDUP((($D$10*(1+$F$12))+$D$11+J$93)/5000,0) ->  | K157: =ROUNDUP((($D$10*(1+$F$12))+$D$11+K$93)/5000,0) ->  | L157: =ROUNDUP($F$8/8,0) -> 
A158: =A157+1 -> 128 | B158: Re-enter splice closure | C158: =_xlfn.SWITCH($D$8,"Lateral",K158,"PON",L158,J158) -> 0 | D158: EA | E158: =$J$2*200 -> 200 | F158: 0 | G158: Get qtys from design | J158: 0 | K158: 0 | L158: 0
A159: =A158+1 -> 129 | B159: Ground Splice Case + Materials | C159: =_xlfn.SWITCH($D$8,"Lateral",K159,"PON",L159,J159) ->  | D159: EA | E159: =$J$2*50 -> 50 | F159: 0 | G159: If using armored cable all splice cases must be grounded. Dielectric no need grounding. For HLD estimates assume each needs grounding | J159: =J157 ->  | K159: =K157 ->  | L159: =L157 -> 
A160: 130 | B160: Splicing, Fusion, Single Fiber | C160: =_xlfn.SWITCH($D$8,"Lateral",K160,"PON",L160,J160) ->  | D160: EA | E160: =INDEX('UNIT PRICE TABLE'!$A$1:$G$58,MATCH(B160,'UNIT PRICE TABLE'!$A$1:$A$58,0),MATCH($D$12,Region,0)+1)*$J$2 -> 26 | F160: 0 | G160: *Get updated pricing from Clayton first* BB/Lateral assume butt splice per closure using AVG cable size, PON 2x number of premise + cabinets fully spliced + MST splices. | I160: 1 | J160: =(J159*$N$218)*I160 ->  | K160: =(K159*$N$218)*I160 ->  | L160: =($F$8*2)+(L179*(288+24))+($L$302*$F$8) -> 
A161: 131 | B161: Splicing Fusion, Single fiber Pigtail at panel | C161: =_xlfn.SWITCH($D$8,"Lateral",K161,"PON",L161,J161) ->  | D161: EA | E161: =E160 -> 26 | F161: 0 | G161: Assume Patch Panels fully spliced. Laterals assume 2 splices per panel | J161: =(J181*$N$218) ->  | K161: =$F$8*2 ->  | L161: =(L181*$N$218) -> 
A162: 132 | B162: Splicing, Mass Fusion, 12 Fiber Ribbon | C162: =_xlfn.SWITCH($D$8,"Lateral",K162,"PON",L162,J162) -> 0 | D162: RIBBON | E162: =$J$2*200 -> 200 | F162: 0 | G162: Can use single splice estimate if Ribbon fiber is being used. Calcs assume no ribbon | J162: 0 | K162: 0 | L162: 0
A163: 133 | B163: Testing, OTDR, Uni-Directional, Power Meter Testing | C163: =_xlfn.SWITCH($D$8,"Lateral",K163,"PON",L163,J163) ->  | D163: EA | E163: =INDEX('UNIT PRICE TABLE'!$A$1:$G$58,MATCH(B163,'UNIT PRICE TABLE'!$A$1:$A$58,0),MATCH($D$12,Region,0)+1)*$J$2 -> 7.5 | F163: 0 | G163: *Get updated pricing from Clayton first* None for BB, Laterals 24 per panel, PON one test per cabinet port | J163: 0 | K163: =$N$218 -> 108 | L163: =L179*(288+24) -> 
A164: 134 | B164: Testing, OTDR, Bi-Directional, Power Meter Testing | C164: =_xlfn.SWITCH($D$8,"Lateral",K164,"PON",L164,J164) ->  | D164: EA | E164: =INDEX('UNIT PRICE TABLE'!$A$1:$G$58,MATCH(B164,'UNIT PRICE TABLE'!$A$1:$A$58,0),MATCH($D$12,Region,0)+1)*$J$2 -> 10 | F164: 0 | G164: *Get updated pricing from Clayton first* None for Laterals, BB and PON assume Panels * 432 | J164: =$N$218*J181 ->  | K164: 0 | L164: =$N$218*L181 -> 
A165: 135 | B165: Testing existing cables Bi-Directional | C165: 0 | D165: EA | E165: =$J$2*20 -> 20 | F165: 0
A166: 136 | B166: Document existing splicing | C166: 0 | D166: EA | E166: =$J$2*27 -> 27 | F166: 0
A167: 137 | B167: Reel testing | C167: =_xlfn.SWITCH($D$8,"Lateral",K167,"PON",L167,J167) ->  | D167: EA | E167: =E160 -> 26 | F167: 0 | G167: Assumes 10,000ft reels and uses breakdown of fiber counds in material below. Fully tests all fibers in reels | J167: =P218 ->  | K167: =Q218 ->  | L167: =R218 -> 
A168: 138 | C168: 0 | F168: 0
A169: 139 | C169: 0 | F169: 0
A170: 140 | C170: 0 | F170: 0
A171: 141 | C171: 0 | F171: 0
A172: 142 | C172: 0 | F172: 0
A173: 143 | C173: 0 | F173: 0
A174: 144 | C174: 0 | F174: 0
B175: =B156 & " LABOR TOTAL" -> SPLICING LABOR TOTAL | F175: =SUM(F157:F174) -> 0
B177: PATCH PANELS AND CABINETS
A178: =A174+1 -> 145 | B178: Install Outdoor Powered Cabinet + Site prep and Concrete Pad | C178: 0 | D178: EA | E178: =$J$2*6000 -> 6000 | F178: =ROUND(IFERROR(C178*E178,0),2) -> 0 | G178: Only added for PON deployments, assumes 1 small active cabinet per 3000 HHP | J178: 0 | K178: 0 | L178: =ROUNDDOWN($F$8/3000,0)+1 -> 
A179: =A178+1 -> 146 | B179: Install Pad mounted FDH Splitter Cabinet + Site prep and Prefab Vault | C179: 1 | D179: EA | E179: 2500 | F179: 2500 | G179: None for BB and Lateral, PON assume one per 200 Customers | J179: 0 | K179: 0 | L179: =ROUNDUP(SUM(F9:F11)/200,0) -> 
A180: =A179+1 -> 147 | B180: Install Pole mounted FDH Splitter Cabinet | C180: =_xlfn.SWITCH($D$8,"Lateral",K180,"PON",L180,J180) -> 0 | D180: EA | E180: 2500 | F180: 0 | G180: Can match regular if using pole mount cabinets | J180: 0 | K180: 0 | L180: 0
A181: 148 | B181: Install rack mounted patch panel (Any Size) and tails | C181: 0 | D181: EA | E181: =$J$2*500 -> 500 | F181: 0 | G181: Assumes (2) pannels per 25miles on BB, (1) pannel customer on Lateral, and (2) pannels per 10,000 customers on PON | J181: =ROUNDUP(($D$10+$D$11)/132000,0)*2 ->  | K181: =$F$8 ->  | L181: =ROUNDUP($F$8/10000,0)*2 -> 
A182: 149 | B182: Install Wall Mount Fiber Enclosure | C182: =_xlfn.SWITCH($D$8,"Lateral",K182,"PON",L182,J182) -> 0 | D182: EA | E182: =$J$2*500 -> 500 | F182: 0 | G182: Get qtys from design | J182: 0 | K182: 0 | L182: 0
A183: 150 | B183: Install 7ft Rack for patch panels | C183: =_xlfn.SWITCH($D$8,"Lateral",K183,"PON",L183,J183) -> 0 | D183: EA | E183: =$J$2*1000 -> 1000 | F183: 0 | G183: Get qtys from design | J183: 0 | K183: 0 | L183: 0
A184: 151 | C184: 0 | F184: 0
A185: 152 | C185: 0 | F185: 0
A186: 153 | C186: 0 | F186: 0
A187: 154 | C187: 0 | F187: 0
A188: 155 | C188: 0 | F188: 0
A189: 156 | C189: 0 | F189: 0
A190: 157 | C190: 0 | F190: 0
A191: 158 | C191: 0 | F191: 0
A192: 159 | C192: 0 | F192: 0
A193: 160 | C193: 0 | F193: 0
B194: =B177 & " LABOR TOTAL" -> PATCH PANELS AND CABINETS LABOR TOTAL | F194: =SUM(F178:F193) -> 2500
B196: GENERAL
A197: =A193+1 -> 161 | B197: Pull fiber through building | C197: =_xlfn.SWITCH($D$8,"Lateral",K197,"PON",L197,J197) -> 0 | D197: FT | E197: =$J$2*2.5 -> 2.5 | F197: =IFERROR(C197*E197,0) -> 0 | G197: Ft of fiber that needs to be pulled into a building. Qtys from design | K197: =$F$8*100 -> 
A198: =A197+1 -> 162 | B198: Install 2" Electric Metal Tubing (EMT) | C198: =_xlfn.SWITCH($D$8,"Lateral",K198,"PON",L198,J198) -> 0 | D198: LF | E198: =$J$2*2.5 -> 2.5 | F198: =ROUND(IFERROR(C198*E198,0),2) -> 0 | G198: Used if any Electrical conduit needs to be installed
A199: =A198+1 -> 163 | B199: 4" Core Bore | C199: =_xlfn.SWITCH($D$8,"Lateral",K199,"PON",L199,J199) -> 0 | D199: EA | E199: =$J$2*450 -> 450 | F199: 0 | G199: If any buildings need to be drilled to for fiber/conduit entrance | K199: =$F$8 -> 
A200: 164 | B200: 2" Building Riser with LB - Up to 10' | C200: =_xlfn.SWITCH($D$8,"Lateral",K200,"PON",L200,J200) -> 0 | D200: EA | E200: =$J$2*1000 -> 1000 | F200: 0 | G200: If any building entracnes needed | K200: =$F$8 -> 
A201: 165 | B201: Install Nema Enclosure | C201: =_xlfn.SWITCH($D$8,"Lateral",K201,"PON",L201,J201) -> 0 | D201: EA | E201: =$J$2*600 -> 600 | F201: 0 | G201: If any generic enclosures are needed to be installed | K201: =$F$8 -> 
A202: 166 | C202: 0 | F202: 0
A203: 167 | C203: 0 | F203: 0
A204: 168 | C204: 0 | F204: 0
A205: 169 | C205: 0 | F205: 0
A206: 170 | C206: 0 | F206: 0
... 285 more rows

Sheet DIST-006
A1: [CLIENT NAME] - FIBER CONSTRUCTION PROJECT - ATTACHMENT X: PRICING PROPOSAL FORM | I1: =MID(CELL("filename",A1),FIND("]",CELL("filename",A1))+1,256) -> DIST-006
B2: Contractor: | I2: =IFERROR(IF(D14>=0,D14,0),0) -> 0 | J2: =1+(L2) -> 1 | L2: =IF(I2<10,I2,0) -> 0
B3: Contact Name/Position: | I3: 0.3 | J3: =IF($D$14="Urban",$K$3,0.01) -> 0.01 | K3: 0.15 | L3: =IF($F$14="Prevailing Wage",I3,0) -> 0
B4: Email:
B5: Phone: | I5: ADSS | J5: =IFERROR(IF($F$14="ADSS",1,0),0) -> 0
I6: Strand/Lash | J6: =IF($J$5=0,1,0) -> 1
A7: Items with listed quantities are included in the current design, but [CLIENT NAME] requests costs for all the items should the item be needed due to design alterations. All proposed unit costs must be guaranteed for the term of the project unless expressly agreed upon by [CLIENT NAME].
C8: BB, Lateral, PON (This is for HLD estimates, this does not matter for LLD): | D8: PON | E8: Mileage | F8: =SUM(F9:F11) -> 239 | G8: Total Passings
C9: Total Design with underground overbuild % (F12) Footage/Miles: | D9: =D11+(D10*(1+F12)) -> 21656.25 | E9: =ROUND(D9/5280,2) -> 4.1 | F9: =INDEX(Summary!$B$1:$BA$15,4,MATCH($I$1,Summary!$1:$1,0)-1) -> 239 | G9: Residential
C10: Buried: | D10: =INDEX(Summary!$B$1:$BA$15,2,MATCH($I$1,Summary!$1:$1,0)-1) -> 20625 | E10: =ROUND(D10/5280,2) -> 3.91 | F10: =INDEX(Summary!$B$1:$BA$15,5,MATCH($I$1,Summary!$1:$1,0)-1) -> - | G10: Business
C11: Aerial: | D11: =INDEX(Summary!$B$1:$BA$15,3,MATCH($I$1,Summary!$1:$1,0)-1) -> 0 | E11: =ROUND(D11/5280,2) -> 0 | F11: =INDEX(Summary!$B$1:$BA$15,6,MATCH($I$1,Summary!$1:$1,0)-1) -> - | G11: Anchor
C12: Region for unit pricing | D12: MidWest | E12: Actual Buried | F12: 0.05 | G12: Underground overbuild percentage (If using centerline for PON assume 75%)
C13: Use MST's? (Only changes PON estimates) | D13: No MST | E13: =D10*(1+F12) -> 21656.25 | F13: 0 | G13: Rock Percentage
C14: Labor Rate Adjustment (Use this if you want to add additional costs to wage i.e. prevailing wage ~30%) | D14: 0 | E14: =ROUND(E13/5280,2) -> 4.1 | F14: Strand and Lash | G14: Aerial (Strand and Lash or ADSS)
A15: UNIT PRICING | J15: HLD estimates
A16: LABOR PRICING. All work includes traffic control plans, setup, maintenance and breakdown, compacted backfill, stormwater and erosion control setup, maintenance and breakdown, safety compliance and soft surface restoration. All cells shown in green shall be completed by the Contractor. All other cells are protected in this form. | I16: Percentage | J16: BB | K16: Lateral | L16: GPON
A17: Item # | B17: Description | C17: Estimated Quantity | D17: Unit | E17: Unit Price | F17: Total | G17: Notes | N17: micro | O17: 1" | P17: 1.25" | Q17: 2" | R17: 4" | S17: 6" | T17: 8" | V17: =CONCATENATE(N17," len") -> micro len | W17: =CONCATENATE(O17," len") -> 1" len | X17: 1.25" len | Y17: 2" len | Z17: 4" len | AA17: 6" len | AB17: 8" len
B18: UNDERGROUND - BURIED | V18: =SUM(V19:V50) -> 0 | W18: =SUM(W19:W50) -> 27073 | X18: 0 | Y18: 21658 | Z18: 0 | AA18: 12 | AB18: 12
A19: 1 | B19: Directional Bore (1) 1" | C19: =_xlfn.SWITCH($D$8,"Lateral",K19,"PON",L19,J19) -> 0 | D19: LF | E19: =INDEX('UNIT PRICE TABLE'!$A$1:$G$58,MATCH(B19,'UNIT PRICE TABLE'!$A$1:$A$58,0),MATCH($D$12,Region,0)+1)*$J$2 -> 10.25 | F19: =ROUND(IFERROR(C19*E19,0),2) -> 0 | G19: *Get updated pricing from Clayton first* Total Underground lengths. BB and Lateral add 5% for variance, PON may need to update variance in cell F12 | I19: 0 | J19: =ROUNDUP($D$10*(1+$F$12)*$I19,0) -> 0 | K19: =$J19 -> 0 | L19: =$J19 -> 0 | N19: 0 | O19: 1 | P19: 0 | Q19: 0 | R19: 0 | S19: 0 | T19: 0 | V19: =N19*$J19 -> 0 | W19: =O19*$J19 -> 0 | X19: 0 | Y19: 0 | Z19: 0 | AA19: 0 | AB19: 0
A20: =A19+1 -> 2 | B20: Directional Bore (2) 1" | C20: =_xlfn.SWITCH($D$8,"Lateral",K20,"PON",L20,J20) -> 0 | D20: LF | E20: =INDEX('UNIT PRICE TABLE'!$A$1:$G$58,MATCH(B20,'UNIT PRICE TABLE'!$A$1:$A$58,0),MATCH($D$12,Region,0)+1)*$J$2 -> 10.25 | F20: 0 | G20: *Get updated pricing from Clayton first* Total Underground lengths. BB and Lateral add 5% for variance, PON may need to update variance in cell F12 | I20: 0 | J20: =ROUNDUP($D$10*(1+$F$12)*$I20,0) -> 0 | K20: =$J20 -> 0 | L20: 0 | N20: 0 | O20: 2 | P20: 0 | Q20: 0 | R20: 0 | S20: 0 | T20: 0 | V20: =N20*$J20 -> 0 | W20: 0 | X20: 0 | Y20: 0 | Z20: 0 | AA20: 0 | AB20: 0
A21: =A20+1 -> 3 | B21: Directional Bore (1) 2" | C21: =_xlfn.SWITCH($D$8,"Lateral",K21,"PON",L21,J21) -> 0 | D21: LF | E21: =INDEX('UNIT PRICE TABLE'!$A$1:$G$58,MATCH(B21,'UNIT PRICE TABLE'!$A$1:$A$58,0),MATCH($D$12,Region,0)+1)*$J$2 -> 11.75 | F21: 0 | G21: *Get updated pricing from Clayton first* Total Underground lengths. BB and Lateral add 5% for variance, PON may need to update variance in cell F12 | I21: 0 | J21: 0 | K21: 0 | L21: 0 | N21: 0 | O21: 0 | P21: 0 | Q21: 1 | R21: 0 | S21: 0 | T21: 0 | V21: 0 | W21: 0 | X21: 0 | Y21: 0 | Z21: 0 | AA21: 0 | AB21: 0
A22: 4 | B22: Directional Bore (1) 2" and (1) 1" | C22: =_xlfn.SWITCH($D$8,"Lateral",K22,"PON",L22,J22) -> 16243 | D22: LF | E22: =INDEX('UNIT PRICE TABLE'!$A$1:$G$58,MATCH(B22,'UNIT PRICE TABLE'!$A$1:$A$58,0),MATCH($D$12,Region,0)+1)*$J$2 -> 11.75 | F22: 190855.25 | G22: *Get updated pricing from Clayton first* Total Underground lengths. BB and Lateral add 5% for variance, PON may need to update variance in cell F12 | I22: 0.75 | J22: 16243 | K22: 16243 | L22: 16243 | N22: 0 | O22: 1 | P22: 0 | Q22: 1 | R22: 0 | S22: 0 | T22: 0 | V22: 0 | W22: 16243 | X22: 0 | Y22: 16243 | Z22: 0 | AA22: 0 | AB22: 0
A23: 5 | B23: Directional Bore (1) 2" and (2) 1" | C23: =_xlfn.SWITCH($D$8,"Lateral",K23,"PON",L23,J23) -> 5415 | D23: LF | E23: =INDEX('UNIT PRICE TABLE'!$A$1:$G$58,MATCH(B23,'UNIT PRICE TABLE'!$A$1:$A$58,0),MATCH($D$12,Region,0)+1)*$J$2 -> 16.94 | F23: 91730.1 | G23: *Get updated pricing from Clayton first* Total Underground lengths. BB and Lateral add 5% for variance, PON may need to update variance in cell F12 | I23: 0.25 | J23: 5415 | K23: 5415 | L23: 5415 | N23: 0 | O23: 2 | P23: 0 | Q23: 1 | R23: 0 | S23: 0 | T23: 0 | V23: 0 | W23: 10830 | X23: 0 | Y23: 5415 | Z23: 0 | AA23: 0 | AB23: 0
A24: 6 | B24: Directional Bore (2) 2" | C24: =_xlfn.SWITCH($D$8,"Lateral",K24,"PON",L24,J24) -> 0 | D24: LF | E24: =INDEX('UNIT PRICE TABLE'!$A$1:$G$58,MATCH(B24,'UNIT PRICE TABLE'!$A$1:$A$58,0),MATCH($D$12,Region,0)+1)*$J$2 -> 16.94 | F24: 0 | G24: *Get updated pricing from Clayton first* Total Underground lengths. BB and Lateral add 5% for variance, PON may need to update variance in cell F12 | I24: 0 | J24: 0 | K24: 0 | L24: 0 | N24: 0 | O24: 0 | P24: 0 | Q24: 2 | R24: 0 | S24: 0 | T24: 0 | V24: 0 | W24: 0 | X24: 0 | Y24: 0 | Z24: 0 | AA24: 0 | AB24: 0
A25: 7 | B25: Directional Bore (2) 2" and (1) 1" | C25: =_xlfn.SWITCH($D$8,"Lateral",K25,"PON",L25,J25) -> 0 | D25: LF | E25: =INDEX('UNIT PRICE TABLE'!$A$1:$G$58,MATCH(B25,'UNIT PRICE TABLE'!$A$1:$A$58,0),MATCH($D$12,Region,0)+1)*$J$2 -> 18.66 | F25: 0 | G25: *Get updated pricing from Clayton first* Total Underground lengths. BB and Lateral add 5% for variance, PON may need to update variance in cell F12 | I25: 0 | J25: 0 | K25: 0 | L25: 0 | N25: 0 | O25: 1 | P25: 0 | Q25: 2 | R25: 0 | S25: 0 | T25: 0 | V25: 0 | W25: 0 | X25: 0 | Y25: 0 | Z25: 0 | AA25: 0 | AB25: 0
A26: 8 | B26: Directional Bore (3) 2" | C26: =_xlfn.SWITCH($D$8,"Lateral",K26,"PON",L26,J26) -> 0 | D26: LF | E26: =INDEX('UNIT PRICE TABLE'!$A$1:$G$58,MATCH(B26,'UNIT PRICE TABLE'!$A$1:$A$58,0),MATCH($D$12,Region,0)+1)*$J$2 -> 21.4 | F26: 0 | G26: *Get updated pricing from Clayton first* Total Underground lengths. BB and Lateral add 5% for variance, PON may need to update variance in cell F12 | I26: 0 | J26: 0 | K26: 0 | L26: 0 | N26: 0 | O26: 0 | P26: 0 | Q26: 3 | R26: 0 | S26: 0 | T26: 0 | V26: 0 | W26: 0 | X26: 0 | Y26: 0 | Z26: 0 | AA26: 0 | AB26: 0
A27: 9 | B27: Directional Bore (3) 2" and (1) 1" | C27: =_xlfn.SWITCH($D$8,"Lateral",K27,"PON",L27,J27) -> 0 | D27: LF | E27: =INDEX('UNIT PRICE TABLE'!$A$1:$G$58,MATCH(B27,'UNIT PRICE TABLE'!$A$1:$A$58,0),MATCH($D$12,Region,0)+1)*$J$2 -> 24.39 | F27: 0 | G27: *Get updated pricing from Clayton first* Total Underground lengths. BB and Lateral add 5% for variance, PON may need to update variance in cell F12 | I27: 0 | J27: 0 | K27: 0 | L27: 0 | N27: 0 | O27: 1 | P27: 0 | Q27: 3 | R27: 0 | S27: 0 | T27: 0 | V27: 0 | W27: 0 | X27: 0 | Y27: 0 | Z27: 0 | AA27: 0 | AB27: 0
A28: 10 | B28: Directional Bore (3) 2" and (2) 1" | C28: =_xlfn.SWITCH($D$8,"Lateral",K28,"PON",L28,J28) -> 0 | D28: LF | E28: =INDEX('UNIT PRICE TABLE'!$A$1:$G$58,MATCH(B28,'UNIT PRICE TABLE'!$A$1:$A$58,0),MATCH($D$12,Region,0)+1)*$J$2 -> 26.7 | F28: 0 | G28: *Get updated pricing from Clayton first* Total Underground lengths. BB and Lateral add 5% for variance, PON may need to update variance in cell F12 | I28: 0 | J28: 0 | K28: 0 | L28: 0 | N28: 0 | O28: 2 | P28: 0 | Q28: 3 | R28: 0 | S28: 0 | T28: 0 | V28: 0 | W28: 0 | X28: 0 | Y28: 0 | Z28: 0 | AA28: 0 | AB28: 0
A29: 11 | B29: Directional Bore (4) 2" | C29: =_xlfn.SWITCH($D$8,"Lateral",K29,"PON",L29,J29) -> 0 | D29: LF | E29: =INDEX('UNIT PRICE TABLE'!$A$1:$G$58,MATCH(B29,'UNIT PRICE TABLE'!$A$1:$A$58,0),MATCH($D$12,Region,0)+1)*$J$2 -> 28.93 | F29: 0 | G29: *Get updated pricing from Clayton first* Total Underground lengths. BB and Lateral add 5% for variance, PON may need to update variance in cell F12 | I29: 0 | J29: 0 | K29: 0 | L29: 0 | N29: 0 | O29: 0 | P29: 0 | Q29: 4 | R29: 0 | S29: 0 | T29: 0 | V29: 0 | W29: 0 | X29: 0 | Y29: 0 | Z29: 0 | AA29: 0 | AB29: 0
A30: 12 | B30: Directional Bore (1) 4" | C30: =_xlfn.SWITCH($D$8,"Lateral",K30,"PON",L30,J30) -> 0 | D30: LF | E30: =INDEX('UNIT PRICE TABLE'!$A$1:$G$58,MATCH(B30,'UNIT PRICE TABLE'!$A$1:$A$58,0),MATCH($D$12,Region,0)+1)*$J$2 -> 12 | F30: 0 | G30: *Get updated pricing from Clayton first* Total Underground lengths. BB and Lateral add 5% for variance, PON may need to update variance in cell F12 | I30: 0 | J30: 0 | K30: 0 | L30: 0 | N30: 0 | O30: 0 | P30: 0 | Q30: 0 | R30: 1 | S30: 0 | T30: 0 | V30: 0 | W30: 0 | X30: 0 | Y30: 0 | Z30: 0 | AA30: 0 | AB30: 0
A31: 13 | B31: Directional Bore (1) 1 1/4" | C31: =_xlfn.SWITCH($D$8,"Lateral",K31,"PON",L31,J31) -> 0 | D31: LF | E31: =INDEX('UNIT PRICE TABLE'!$A$1:$G$58,MATCH(B31,'UNIT PRICE TABLE'!$A$1:$A$58,0),MATCH($D$12,Region,0)+1)*$J$2 -> 12 | F31: 0 | G31: *Get updated pricing from Clayton first* Total Underground lengths. BB and Lateral add 5% for variance, PON may need to update variance in cell F12 | I31: 0 | J31: 0 | K31: 0 | L31: 0 | N31: 0 | O31: 0 | P31: 1 | Q31: 0 | R31: 0 | S31: 0 | T31: 0 | V31: 0 | W31: 0 | X31: 0 | Y31: 0 | Z31: 0 | AA31: 0 | AB31: 0
A32: 14 | B32: Directional Bore (2) 1 1/4" | C32: =_xlfn.SWITCH($D$8,"Lateral",K32,"PON",L32,J32) -> 0 | D32: LF | E32: =INDEX('UNIT PRICE TABLE'!$A$1:$G$58,MATCH(B32,'UNIT PRICE TABLE'!$A$1:$A$58,0),MATCH($D$12,Region,0)+1)*$J$2 -> 16 | F32: 0 | G32: *Get updated pricing from Clayton first* Total Underground lengths. BB and Lateral add 5% for variance, PON may need to update variance in cell F12 | I32: 0 | J32: 0 | K32: 0 | L32: 0 | N32: 0 | O32: 0 | P32: 2 | Q32: 0 | R32: 0 | S32: 0 | T32: 0 | V32: 0 | W32: 0 | X32: 0 | Y32: 0 | Z32: 0 | AA32: 0 | AB32: 0
A33: 15 | B33: Directional Bore (3) 1 1/4" | C33: =_xlfn.SWITCH($D$8,"Lateral",K33,"PON",L33,J33) -> 0 | D33: LF | E33: =INDEX('UNIT PRICE TABLE'!$A$1:$G$58,MATCH(B33,'UNIT PRICE TABLE'!$A$1:$A$58,0),MATCH($D$12,Region,0)+1)*$J$2 -> 18 | F33: 0 | G33: *Get updated pricing from Clayton first* Total Underground lengths. BB and Lateral add 5% for variance, PON may need to update variance in cell F12 | I33: 0 | J33: 0 | K33: 0 | L33: 0 | N33: 0 | O33: 0 | P33: 3 | Q33: 0 | R33: 0 | S33: 0 | T33: 0 | V33: 0 | W33: 0 | X33: 0 | Y33: 0 | Z33: 0 | AA33: 0 | AB33: 0
A34: 16 | B34: Directional Bore (4) 1 1/4" | C34: =_xlfn.SWITCH($D$8,"Lateral",K34,"PON",L34,J34) -> 0 | D34: LF | E34: =INDEX('UNIT PRICE TABLE'!$A$1:$G$58,MATCH(B34,'UNIT PRICE TABLE'!$A$1:$A$58,0),MATCH($D$12,Region,0)+1)*$J$2 -> 24 | F34: 0 | G34: *Get updated pricing from Clayton first* Total Underground lengths. BB and Lateral add 5% for variance, PON may need to update variance in cell F12 | I34: 0 | J34: 0 | K34: 0 | L34: 0 | N34: 0 | O34: 0 | P34: 4 | Q34: 0 | R34: 0 | S34: 0 | T34: 0 | V34: 0 | W34: 0 | X34: 0 | Y34: 0 | Z34: 0 | AA34: 0 | AB34: 0
A35: 17 | B35: Microtrenching (Narrow Band Trenching) upto 12" deep | C35: =_xlfn.SWITCH($D$8,"Lateral",K35,"PON",L35,J35) -> 0 | D35: LF | E35: =$J$2*11.54 -> 11.54 | F35: 0 | G35: Add 5% for variance | I35: 0 | J35: 0 | K35: 0 | L35: 0 | N35: 1 | O35: 0 | P35: 0 | Q35: 0 | R35: 0 | S35: 0 | T35: 0 | V35: 0 | W35: 0 | X35: 0 | Y35: 0 | Z35: 0 | AA35: 0 | AB35: 0
A36: 18 | B36: Microtrenching (Narrow Band Trenching) upto 18" deep | C36: =_xlfn.SWITCH($D$8,"Lateral",K36,"PON",L36,J36) -> 0 | D36: LF | E36: =$J$2*13.85 -> 13.85 | F36: 0 | G36: Add 5% for variance | I36: 0 | J36: 0 | K36: 0 | L36: 0 | N36: 1 | O36: 0 | P36: 0 | Q36: 0 | R36: 0 | S36: 0 | T36: 0 | V36: 0 | W36: 0 | X36: 0 | Y36: 0 | Z36: 0 | AA36: 0 | AB36: 0
A37: 19 | B37: Microtrenching (Narrow Band Trenching) upto 24" deep | C37: =_xlfn.SWITCH($D$8,"Lateral",K37,"PON",L37,J37) -> 0 | D37: LF | E37: =$J$2*18.46 -> 18.46 | F37: 0 | G37: Add 5% for variance | I37: 0 | J37: 0 | K37: 0 | L37: 0 | N37: 1 | O37: 0 | P37: 0 | Q37: 0 | R37: 0 | S37: 0 | T37: 0 | V37: 0 | W37: 0 | X37: 0 | Y37: 0 | Z37: 0 | AA37: 0 | AB37: 0
A38: 20 | B38: Vibratory Plow 4' deep (1) 2" | C38: =_xlfn.SWITCH($D$8,"Lateral",K38,"PON",L38,J38) -> 0 | D38: LF | E38: =$J$2*75 -> 75 | F38: 0 | G38: Add 5% for variance | I38: 0 | J38: 0 | K38: 0 | L38: 0 | N38: 0 | O38: 0 | P38: 0 | Q38: 1 | R38: 0 | S38: 0 | T38: 0 | V38: 0 | W38: 0 | X38: 0 | Y38: 0 | Z38: 0 | AA38: 0 | AB38: 0
A39: 21 | B39: Vibratory Plow 4' deep (2) 2" | C39: =_xlfn.SWITCH($D$8,"Lateral",K39,"PON",L39,J39) -> 0 | D39: LF | E39: =$J$2*75 -> 75 | F39: 0 | G39: Add 5% for variance | I39: 0 | J39: 0 | K39: 0 | L39: 0 | N39: 0 | O39: 0 | P39: 0 | Q39: 2 | R39: 0 | S39: 0 | T39: 0 | V39: 0 | W39: 0 | X39: 0 | Y39: 0 | Z39: 0 | AA39: 0 | AB39: 0
A40: 22 | B40: Open Cut & Trench (1) 2" at 30" Minimum Depth of Cover | C40: =_xlfn.SWITCH($D$8,"Lateral",K40,"PON",L40,J40) -> 0 | D40: LF | E40: =$J$2*60 -> 60 | F40: 0 | G40: Add 5% for variance | I40: 0 | J40: 0 | K40: 0 | L40: 0 | N40: 0 | O40: 0 | P40: 0 | Q40: 1 | R40: 0 | S40: 0 | T40: 0 | V40: 0 | W40: 0 | X40: 0 | Y40: 0 | Z40: 0 | AA40: 0 | AB40: 0
A41: 23 | B41: Open Cut & Trench (2) 2" at 30" Minimum Depth of Cover | C41: =_xlfn.SWITCH($D$8,"Lateral",K41,"PON",L41,J41) -> 0 | D41: LF | E41: =$J$2*65 -> 65 | F41: 0 | G41: Add 5% for variance | I41: 0 | J41: 0 | K41: 0 | L41: 0 | N41: 0 | O41: 0 | P41: 0 | Q41: 2 | R41: 0 | S41: 0 | T41: 0 | V41: 0 | W41: 0 | X41: 0 | Y41: 0 | Z41: 0 | AA41: 0 | AB41: 0
A42: 24 | B42: Open Cut & Trench (3) 2" at 30" Minimum Depth of Cover | C42: =_xlfn.SWITCH($D$8,"Lateral",K42,"PON",L42,J42) -> 0 | D42: LF | E42: =$J$2*70 -> 70 | F42: 0 | G42: Add 5% for variance | I42: 0 | J42: 0 | K42: 0 | L42: 0 | N42: 0 | O42: 0 | P42: 0 | Q42: 3 | R42: 0 | S42: 0 | T42: 0 | V42: 0 | W42: 0 | X42: 0 | Y42: 0 | Z42: 0 | AA42: 0 | AB42: 0
A43: 25 | B43: Open Cut & Trench (4) 2" at 30" Minimum Depth of Cover | C43: =_xlfn.SWITCH($D$8,"Lateral",K43,"PON",L43,J43) -> 0 | D43: LF | E43: =$J$2*75 -> 75 | F43: 0 | G43: Add 5% for variance | I43: 0 | J43: 0 | K43: 0 | L43: 0 | N43: 0 | O43: 0 | P43: 0 | Q43: 4 | R43: 0 | S43: 0 | T43: 0 | V43: 0 | W43: 0 | X43: 0 | Y43: 0 | Z43: 0 | AA43: 0 | AB43: 0
A44: 26 | B44: Sleeve existing 4" conduit (3) 1 1/4" | C44: =_xlfn.SWITCH($D$8,"Lateral",K44,"PON",L44,J44) -> 0 | D44: LF | E44: =$J$2*11.96 -> 11.96 | F44: 0 | G44: Dependent on build | I44: 0 | J44: 0 | K44: 0 | L44: 0 | N44: 0 | O44: 0 | P44: 3 | Q44: 0 | R44: 0 | S44: 0 | T44: 0 | V44: 0 | W44: 0 | X44: 0 | Y44: 0 | Z44: 0 | AA44: 0 | AB44: 0
A45: 27 | B45: Pull (4) 2" sdr 11 conduits in 8" casing | C45: =_xlfn.SWITCH($D$8,"Lateral",K45,"PON",L45,J45) -> 0 | D45: FT | E45: =$J$2*15 -> 15 | F45: 0 | G45: Dependent on build (Some RR, DOT, and water crossings need steel casings) | I45: 0 | J45: 0 | K45: 0 | L45: 0 | N45: 0 | O45: 0 | P45: 0 | Q45: 4 | R45: 0 | S45: 0 | T45: 0 | V45: 0 | W45: 0 | X45: 0 | Y45: 0 | Z45: 0 | AA45: 0 | AB45: 0
A46: 28 | B46: Bore 6” Casing (Steel) | C46: =_xlfn.SWITCH($D$8,"Lateral",K46,"PON",L46,J46) -> 6 | D46: LF | E46: =$J$2*125 -> 125 | F46: =ROUND(IFERROR(C46*E46,0),2) -> 750 | G46: This would be for RR, DOT, Waterway or other crossing. Estimate is 0.025% of Buried total. | J46: =ROUNDUP(0.00025*$D$10,0) -> 6 | K46: =ROUNDUP(0.00025*$D$10,0) -> 6 | L46: 6 | N46: 0 | O46: 0 | P46: 0 | Q46: 0 | R46: 0 | S46: 0 | T46: 1 | V46: 0 | W46: 0 | X46: 0 | Y46: 0 | Z46: 0 | AA46: 0 | AB46: 6
A47: 29 | B47: Bore 6” Casing (PVC) | C47: =_xlfn.SWITCH($D$8,"Lateral",K47,"PON",L47,J47) -> 6 | D47: LF | E47: =$J$2*100 -> 100 | F47: =ROUND(IFERROR(C47*E47,0),2) -> 600 | G47: This would be for RR, DOT, Waterway or other crossing. Estimate is 0.025% of Buried total. | J47: =ROUNDUP(0.00025*$D$10,0) -> 6 | K47: 6 | L47: 6 | N47: 0 | O47: 0 | P47: 0 | Q47: 0 | R47: 0 | S47: 1 | T47: 0 | V47: =N47*$J47 -> 0 | W47: 0 | X47: 0 | Y47: 0 | Z47: 0 | AA47: 6 | AB47: 0
A48: 30 | B48: Bore 8” Casing (Steel) | C48: =_xlfn.SWITCH($D$8,"Lateral",K48,"PON",L48,J48) -> 6 | D48: LF | E48: =$J$2*125 -> 125 | F48: =ROUND(IFERROR(C48*E48,0),2) -> 750 | G48: This would be for RR, DOT, Waterway or other crossing. Estimate is 0.025% of Buried total. | J48: 6 | K48: 6 | L48: 6 | N48: 0 | O48: 0 | P48: 0 | Q48: 0 | R48: 0 | S48: 0 | T48: 1 | V48: 0 | W48: 0 | X48: 0 | Y48: 0 | Z48: 0 | AA48: 0 | AB48: 6
A49: 31 | B49: Bore 8” Casing (PVC) | C49: =_xlfn.SWITCH($D$8,"Lateral",K49,"PON",L49,J49) -> 6 | D49: LF | E49: =$J$2*100 -> 100 | F49: =ROUND(IFERROR(C49*E49,0),2) -> 600 | G49: This would be for RR, DOT, Waterway or other crossing. Estimate is 0.025% of Buried total. | J49: 6 | K49: 6 | L49: 6 | N49: 0 | O49: 0 | P49: 0 | Q49: 0 | R49: 0 | S49: 1 | T49: 0 | V49: 0 | W49: 0 | X49: 0 | Y49: 0 | Z49: 0 | AA49: 6 | AB49: 0
A50: 32 | B50: Deep Bore - Water Crossing | C50: =_xlfn.SWITCH($D$8,"Lateral",K50,"PON",L50,J50) -> 0 | D50: LF | E50: =$J$2*350 -> 350 | F50: =ROUND(IFERROR(C50*E50,0),2) -> 0 | G50: Dependent on build | J50: 0 | K50: 0 | L50: 0 | N50: 0 | O50: 0 | P50: 0 | Q50: 0 | R50: 0 | S50: 0 | T50: 0 | V50: 0 | W50: 0 | X50: 0 | Y50: 0 | Z50: 0 | AA50: 0 | AB50: 0
A51: 33 | B51: Install Muletape in New Conduit | C51: =_xlfn.SWITCH($D$8,"Lateral",K51,"PON",L51,J51) -> 48755 | D51: FT | E51: =$J$2*0.33 -> 0.33 | F51: =ROUND(IFERROR(C51*E51,0),2) -> 16089.15 | G51: Should match length of empty conduits (BB and PON twice as much as URD footage) | J51: =SUM($V$18:$AB$18) -> 48755 | K51: =SUM($V$18:$AB$18) -> 48755 | L51: =SUM($V$18:$AB$18) -> 48755
A52: 34 | B52: Bore Rock Adder | C52: =_xlfn.SWITCH($D$8,"Lateral",K52,"PON",L52,J52) -> 0 | D52: LF | E52: =INDEX('UNIT PRICE TABLE'!$A$1:$G$58,MATCH(B52,'UNIT PRICE TABLE'!$A$1:$A$58,0),MATCH($D$12,Region,0)+1)*$J$2 -> 58.5 | F52: 0 | G52: *Get updated pricing from Clayton first* Dependent on build, Question for customer in data collection | J52: =ROUNDUP($F$13*$D$10,0) -> 0 | K52: =ROUNDUP($F$13*$D$10,0) -> 0 | L52: =ROUNDUP($F$13*$D$10,0) -> 0
A53: 35 | B53: Trench Rock Adder | C53: =_xlfn.SWITCH($D$8,"Lateral",K53,"PON",L53,J53) -> 0 | D53: LF | E53: =$J$2*53.85 -> 53.85 | F53: 0 | G53: Dependent on build, Question for customer in data collection | J53: 0 | K53: 0 | L53: 0
A54: 36 | B54: Install #12 AWG Insulated Tracer Wire | C54: =_xlfn.SWITCH($D$8,"Lateral",K54,"PON",L54,J54) -> 21657 | D54: LF | E54: =INDEX('UNIT PRICE TABLE'!$A$1:$G$58,MATCH(B54,'UNIT PRICE TABLE'!$A$1:$A$58,0),MATCH($D$12,Region,0)+1)*$J$2 -> 0.33 | F54: 7146.81 | G54: should equal underground footage | J54: =ROUNDUP($D$10*(1+$F$12),0) -> 21657 | K54: =ROUNDUP($D$10*(1+$F$12),0) -> 21657 | L54: =ROUNDUP($D$10*(1+$F$12),0) -> 21657
A55: 37 | B55: Install 5/8"x8' Copper Clad Ground Rod | C55: =_xlfn.SWITCH($D$8,"Lateral",K55,"PON",L55,J55) -> 11 | D55: EA | E55: =$J$2*25 -> 25 | F55: 275 | G55: Get qtys from design, if not specified assume 1 ever 2,000ft | J55: =ROUNDUP(($D$10*(1+$F$12))/2000,0) -> 11 | K55: =ROUNDUP(($D$10*(1+$F$12))/2000,0) -> 11 | L55: =ROUNDUP(($D$10*(1+$F$12))/2000,0) -> 11
A56: 38 | B56: Install 3.5" Dia PVC Round Marker Posts with Orange Dome Top | C56: =_xlfn.SWITCH($D$8,"Lateral",K56,"PON",L56,J56) -> 66 | D56: EA | E56: =INDEX('UNIT PRICE TABLE'!$A$1:$G$58,MATCH(B56,'UNIT PRICE TABLE'!$A$1:$A$58,0),MATCH($D$12,Region,0)+1)*$J$2 -> 45 | F56: 2970 | G56: Get qtys from design, can estimate 75% of handholes | J56: =ROUNDUP(J70*0.75,0) -> 27 | K56: =ROUNDUP(K69*0.75,0) -> 39 | L56: =ROUNDUP(L69*0.75,0) -> 66
A57: 39 | B57: Install 3.5" Dia PVC Round Marker Posts with Orange Dome Top with Test Station | C57: =_xlfn.SWITCH($D$8,"Lateral",K57,"PON",L57,J57) -> 22 | D57: EA | E57: =INDEX('UNIT PRICE TABLE'!$A$1:$G$58,MATCH(B57,'UNIT PRICE TABLE'!$A$1:$A$58,0),MATCH($D$12,Region,0)+1)*$J$2 -> 65 | F57: 1430 | G57: Get qtys from design, can estimate 25% of handholes | J57: =ROUNDUP(J70*0.25,0) -> 9 | K57: =ROUNDUP(K69*0.25,0) -> 13 | L57: =ROUNDUP(L69*0.25,0) -> 22
A58: 40 | B58: Install RFID Ball/Peg Markers | C58: =_xlfn.SWITCH($D$8,"Lateral",K58,"PON",L58,J58) -> 0 | D58: EA | E58: =$J$2*30 -> 30 | F58: 0 | G58: Dependent on build, Question for customer in data collection | J58: 0 | K58: 0 | L58: 0
A59: 41 | B59: Install RFID Rope | C59: =_xlfn.SWITCH($D$8,"Lateral",K59,"PON",L59,J59) -> 0 | D59: LF | E59: =$J$2*1.5 -> 1.5 | F59: 0 | G59: Dependent on build, Question for customer in data collection | J59: 0 | K59: 0 | L59: 0
A60: 42 | B60: Proof Existing Conduit - any size | C60: =_xlfn.SWITCH($D$8,"Lateral",K60,"PON",L60,J60) -> 0 | D60: LF | E60: =$J$2*1.54 -> 1.54 | F60: 0 | G60: Dependent on build, Question for customer in data collection | J60: 0 | K60: 0 | L60: 0
A61: 43 | B61: Rod Existing Conduit and Install Pull Tape | C61: =_xlfn.SWITCH($D$8,"Lateral",K61,"PON",L61,J61) -> 0 | D61: LF | E61: =$J$2*1.15 -> 1.15 | F61: 0 | G61: Dependent on build, Question for customer in data collection | J61: 0 | K61: 0 | L61: 0
A62: 44 | B62: Remove existing cable - i.e. coax/twisted pair in street light conduits to replace with fiber | C62: =_xlfn.SWITCH($D$8,"Lateral",K62,"PON",L62,J62) -> 0 | D62: LF | E62: =$J$2*1.92 -> 1.92 | F62: 0 | G62: Dependent on build, Question for customer in data collection | J62: 0 | K62: 0 | L62: 0
A63: 45 | B63: Installation, Underground Fiber Cable - Including Slack (2ct Fiber) | C63: =_xlfn.SWITCH($D$8,"Lateral",K63,"PON",L63,J63) -> 0 | D63: LF | E63: =$J$2*1 -> 1 | F63: 0 | G63: Add 5% for variance | J63: 0 | K63: 0 | L63: 0
A64: 46 | B64: Installation, Underground Fiber Cable - Including Slack (All other fiber) | C64: =_xlfn.SWITCH($D$8,"Lateral",K64,"PON",L64,J64) -> 28182 | D64: LF | E64: =INDEX('UNIT PRICE TABLE'!$A$1:$G$58,MATCH(B64,'UNIT PRICE TABLE'!$A$1:$A$58,0),MATCH($D$12,Region,0)+1)*$J$2 -> 1.25 | F64: 35227.5 | G64: *Get updated pricing from Clayton first* underground footage & 100' slack from Ring Cuts and 55' for Butt splices (Estimated as URD footage + 75' per HH) | J64: =ROUNDUP(($D$10*(1+$F$12))+(J70*75),0) -> 24282 | K64: =ROUNDUP(($D$10*(1+$F$12))+(K69*75),0) -> 25557 | L64: =ROUNDUP(($D$10*(1+$F$12))+(L69*75),0) -> 28182
A65: 47 | B65: Installation, MST in Pedestal | C65: =_xlfn.SWITCH($D$8,"Lateral",K65,"PON",L65,J65) -> 0 | D65: EA | E65: =$J$2*50 -> 50 | F65: 0 | G65: Get qtys from design | J65: 0 | K65: 0 | L65: =$L$303 -> 0
A66: 48 | B66: Installation, Pedestal | C66: =_xlfn.SWITCH($D$8,"Lateral",K66,"PON",L66,J66) -> 0 | D66: EA | E66: =$J$2*60 -> 60 | F66: 0 | G66: Get qtys from design | J66: 0 | K66: 0 | L66: =$L$303 -> 0
A67: 49 | B67: Installation, Drop Vault, 12" X 12" | C67: =_xlfn.SWITCH($D$8,"Lateral",K67,"PON",L67,J67) -> 60 | D67: EA | E67: =ROUNDUP($E$69*0.75,0) -> 263 | F67: 15780 | G67: Get qtys from design (AKA "Flowerpots") | J67: 0 | K67: 0 | L67: =IFERROR(ROUNDUP((($D$10/($D$10+$D$11))*$F$8)/4,0),0) -> 60
A68: 50 | B68: Installation, Small Vault, 17” x 30” | C68: =_xlfn.SWITCH($D$8,"Lateral",K68,"PON",L68,J68) -> 0 | D68: EA | E68: =$E$69 -> 350 | F68: 0 | G68: Get qtys from design | J68: 0 | K68: 0 | L68: 0
A69: 51 | B69: Installation, Vault 24" x 36" | C69: =_xlfn.SWITCH($D$8,"Lateral",K69,"PON",L69,J69) -> 87 | D69: EA | E69: =INDEX('UNIT PRICE TABLE'!$A$1:$G$58,MATCH(B69,'UNIT PRICE TABLE'!$A$1:$A$58,0),MATCH($D$12,Region,0)+1)*$J$2 -> 350 | F69: 30450 | G69: *Get updated pricing from Clayton first* BB every 600', Lateral every 400', PON every 250' | J69: 0 | K69: =ROUNDUP($D$10/400,0) -> 52 | L69: =ROUNDUP(($D$10*(1+$F$12))/250,0) -> 87
A70: 52 | B70: Installation, Large Vault 30" x 48" | C70: =_xlfn.SWITCH($D$8,"Lateral",K70,"PON",L70,J70) -> 0 | D70: EA | E70: =INDEX('UNIT PRICE TABLE'!$A$1:$G$58,MATCH(B70,'UNIT PRICE TABLE'!$A$1:$A$58,0),MATCH($D$12,Region,0)+1)*$J$2 -> 500 | F70: 0 | G70: *Get updated pricing from Clayton first* Get qtys from design | J70: =ROUNDUP($D$10/600,0) -> 35 | K70: 0 | L70: 0
A71: 53 | B71: Installation, Extra Large Vault 48" x 60" | C71: =_xlfn.SWITCH($D$8,"Lateral",K71,"PON",L71,J71) -> 0 | D71: EA | E71: =$J$2*1750 -> 1750 | F71: 0 | G71: Get qtys from design | J71: 0 | K71: 0 | L71: 0
A72: 54 | B72: Install 4'x4'x4' Split Concrete Manhole | C72: =_xlfn.SWITCH($D$8,"Lateral",K72,"PON",L72,J72) -> 0 | D72: EA | E72: =$J$2*6500 -> 6500 | F72: 0 | G72: Get qtys from design | J72: 0 | K72: 0 | L72: 0
A73: 55 | B73: Remove and Replace Handhole - including fixing sweeps into HH | C73: =_xlfn.SWITCH($D$8,"Lateral",K73,"PON",L73,J73) -> 0 | D73: EA | E73: =$J$2*3461.54 -> 3461.54 | G73: Get qtys from design
A74: 56 | B74: Prep and Pour Concrete Pad for POP Site | C74: =_xlfn.SWITCH($D$8,"Lateral",K74,"PON",L74,J74) -> 0 | D74: EA | E74: =$J$2*10000 -> 10000 | F74: =ROUND(IFERROR(C74*E74,0),2) -> 0 | G74: Get qtys from design | J74: 0 | K74: 0 | L74: 0
A75: 57 | B75: Sawcut, Remove and Replace Asphalt 6" Thick | C75: =_xlfn.SWITCH($D$8,"Lateral",K75,"PON",L75,J75) -> 1083 | D75: SqrFt | E75: =$J$2*23.08 -> 23.08 | F75: =ROUND(IFERROR(C75*E75,0),2) -> 24995.64 | G75: Use Col I to adjust percentage. 15% for Urban areas and 1% for rural are good high level estimates | I75: 0.05 | J75: =ROUNDUP(($D$10*(1+$F$12))*$I$75,0) -> 1083 | K75: =ROUNDUP(($D$10*(1+$F$12))*$I$75,0) -> 1083 | L75: 1083
A76: 58 | B76: Sawcut, Remove and Replace Concrete 6" Thick | C76: =_xlfn.SWITCH($D$8,"Lateral",K76,"PON",L76,J76) -> 1083 | D76: SqrFt | E76: =$J$2*26.69 -> 26.69 | F76: =ROUND(IFERROR(C76*E76,0),2) -> 28905.27 | G76: Use Col I to adjust percentage. 25% for Urban areas and 1% for rural are good high level estimates | I76: 0.05 | J76: =ROUNDUP(($D$10*(1+$F$12))*$I$76,0) -> 1083 | K76: =ROUNDUP(($D$10*(1+$F$12))*$I$76,0) -> 1083 | L76: =ROUNDUP(($D$10*(1+$F$12))*$I$76,0) -> 1083
A77: 59 | B77: Remove and Replace Brick Pavers | C77: =_xlfn.SWITCH($D$8,"Lateral",K77,"PON",L77,J77) -> 0 | D77: SqrFt | E77: =$J$2*38.46 -> 38.46 | F77: 0 | G77: Get qtys from design | J77: 0 | K77: 0 | L77: 0
A78: 60 | C78: 0 | F78: 0
A79: 61 | C79: 0 | F79: 0
A80: 62 | C80: 0 | F80: 0
A81: 63 | C81: 0 | F81: 0
A82: 64 | C82: 0 | F82: 0
A83: 65 | C83: 0 | F83: 0
A84: 66 | C84: 0 | F84: 0
A85: =A84+1 -> 67 | C85: 0 | F85: 0
B86: =B18 & " LABOR TOTAL" -> UNDERGROUND - BURIED LABOR TOTAL | F86: =SUM(F19:F85) -> 448554.72
B88: AERIAL -STRAND/LASH
A89: =A85+1 -> 68 | B89: Lash/Mount Closure | C89: =_xlfn.SWITCH($D$8,"Lateral",K89,"PON",L89,J89) -> 0 | D89: EA | E89: =$J$2*175 -> 175 | F89: =ROUND(IFERROR(C89*E89,0),2) -> 0 | G89: One per closure | J89: =IFERROR(ROUNDUP(J$157*($D$11/($D$10+$D$11)),0),0) -> 0 | K89: =IFERROR(ROUNDUP(K$157*($D$11/($D$10+$D$11)),0),0) -> 0 | L89: 0
A90: =A89+1 -> 69 | B90: Bond Strand/Guy to pole ground + materials | C90: =_xlfn.SWITCH($D$8,"Lateral",K90,"PON",L90,J90) -> 0 | D90: EA | E90: =$J$2*250 -> 250 | F90: 0 | G90: Bonding will be done at the first, every 5th, last poles, and all poles with a vertical. (Unless power company uses other standard). Estimated as total aerial footage / 180 / 4 | J90: =ROUNDUP(($D$11/180)/4,0)*$J$6 -> 0 | K90: =ROUNDUP(($D$11/180)/4,0)*$J$6 -> 0 | L90: =ROUNDUP(($D$11/180)/4,0)*$J$6 -> 0
A91: 70 | B91: Install Strand | C91: =_xlfn.SWITCH($D$8,"Lateral",K91,"PON",L91,J91) -> 0 | D91: FT | E91: =INDEX('UNIT PRICE TABLE'!$A$1:$G$58,MATCH(B91,'UNIT PRICE TABLE'!$A$1:$A$58,0),MATCH($D$12,Region,0)+1)*$J$2 -> 1.8 | F91: 0 | G91: *Get updated pricing from Clayton first* Match aerial footage - quote from contractor shall include attachement hardware | J91: =$D$11*$J$6 -> 0 | K91: =$D$11*$J$6 -> 0 | L91: =$D$11*$J$6 -> 0
A92: 71 | B92: Install Snow Shoes | C92: =_xlfn.SWITCH($D$8,"Lateral",K92,"PON",L92,J92) -> 0 | D92: EA | E92: =$J$2*160 -> 160 | F92: 0 | G92: formula is for 2 for every slack location | J92: =ROUNDUP((J93/100)*2,0) -> 0 | K92: =ROUNDUP((K93/100)*2,0) -> 0 | L92: =ROUNDUP((L93/100)*2,0) -> 0
A93: 72 | B93: Install Aerial Slack | C93: =_xlfn.SWITCH($D$8,"Lateral",K93,"PON",L93,J93) -> 0 | D93: EA | E93: =$E$94 -> 2.34 | F93: 0 | G93: in this model - it assumes 100' of slack for every 1000' of aerial installation | J93: =ROUNDUP(($D$11/1000)*100,0) -> 0 | K93: =ROUNDUP(($D$11/1000)*100,0) -> 0 | L93: =ROUNDUP(($D$11/1000)*100,0) -> 0
A94: 73 | B94: Install / Lash Aerial Cable | C94: =_xlfn.SWITCH($D$8,"Lateral",K94,"PON",L94,J94) -> 0 | D94: FT | E94: =INDEX('UNIT PRICE TABLE'!$A$1:$G$58,MATCH(B94,'UNIT PRICE TABLE'!$A$1:$A$58,0),MATCH($D$12,Region,0)+1)*$J$2 -> 2.34 | F94: 0 | G94: *Get updated pricing from Clayton first* Match aerial footage | J94: =$D$11*$J$6 -> 0 | K94: =$D$11*$J$6 -> 0 | L94: =$D$11*$J$6 -> 0
A95: 74 | B95: Tree Trimming | C95: =_xlfn.SWITCH($D$8,"Lateral",K95,"PON",L95,J95) -> 0 | D95: FT | E95: =INDEX('UNIT PRICE TABLE'!$A$1:$G$58,MATCH(B95,'UNIT PRICE TABLE'!$A$1:$A$58,0),MATCH($D$12,Region,0)+1)*$J$2 -> 4.75 | F95: 0 | G95: *Get updated pricing from Clayton first* Try and ID percentage. If unknown assume 10% of route needs tree trimming | J95: =ROUNDUP($D$11*0.1,0) -> 0 | K95: =ROUNDUP($D$11*0.1,0) -> 0 | L95: =ROUNDUP($D$11*0.1,0) -> 0
A96: 75 | B96: Install Pole Risers | C96: =_xlfn.SWITCH($D$8,"Lateral",K96,"PON",L96,J96) -> 0 | D96: EA | E96: =$J$2*308 -> 308 | F96: 0 | G96: assume 5% of poles - adjust as needed | J96: =ROUNDUP(($D$11/180)*0.05,0) -> 0 | K96: =ROUNDUP(($D$11/180)*0.05,0) -> 0 | L96: =ROUNDUP(($D$11/180)*0.05,0) -> 0
A97: 76 | B97: Install Down Guy & Anchors | C97: =_xlfn.SWITCH($D$8,"Lateral",K97,"PON",L97,J97) -> 0 | D97: EA | E97: =$J$2*385 -> 385 | F97: 0 | G97: assume 15% of poles - adjust as needed | J97: =ROUNDUP(($D$11/180)*0.15,0) -> 0 | K97: =ROUNDUP(($D$11/180)*0.15,0) -> 0 | L97: =ROUNDUP(($D$11/180)*0.15,0) -> 0
A98: 77 | B98: Pole Transfer / Make Ready (Straight Through) | C98: =_xlfn.SWITCH($D$8,"Lateral",K98,"PON",L98,J98) -> 0 | D98: EA | E98: =$J$2*193 -> 193 | F98: 0 | G98: assume 3% of poles - adjust as needed - This would be cost from MRE to move existing Comm. Price will vary depending on who is doing transfers/moves | J98: =ROUNDUP(($D$11/180)*0.033,0) -> 0 | K98: 0 | L98: 0
A99: 78 | B99: Pole Transfer / Make Ready (Dead-end) | C99: =_xlfn.SWITCH($D$8,"Lateral",K99,"PON",L99,J99) -> 0 | D99: EA | E99: =$J$2*170 -> 170 | F99: 0 | G99: assume 3% of poles - adjust as needed - This would be cost from MRE to move existing Comm. Price will vary depending on who is doing transfers/moves | J99: 0 | K99: 0 | L99: 0
A100: 79 | B100: Pole Transfer / Make Ready (Double Dead-end) | C100: =_xlfn.SWITCH($D$8,"Lateral",K100,"PON",L100,J100) -> 0 | D100: EA | E100: =$J$2*461 -> 461 | F100: 0 | G100: assume 3% of poles - adjust as needed - This would be cost from MRE to move existing Comm. Price will vary depending on who is doing transfers/moves | J100: 0 | K100: 0 | L100: 0
A101: 80 | C101: 0 | F101: 0
A102: 81 | C102: 0 | F102: 0
A103: 82 | C103: 0 | F103: 0
A104: 83 | C104: 0 | F104: 0
A105: 84 | C105: 0 | F105: 0
A106: 85 | C106: 0 | F106: 0
A107: 86 | C107: 0 | F107: 0
A108: 87 | C108: 0 | F108: 0
A109: 88 | C109: 0 | F109: 0
A110: 89 | C110: 0 | F110: 0
B111: =B88 & " LABOR TOTAL" -> AERIAL -STRAND/LASH LABOR TOTAL | F111: =SUM(F89:F110) -> 0
B113: AERIAL - ADSS
A114: =A110+1 -> 90 | B114: Install Fiber (ADSS) | C114: =_xlfn.SWITCH($D$8,"Lateral",K114,"PON",L114,J114) -> 0 | D114: FT | E114: =INDEX('UNIT PRICE TABLE'!$A$1:$G$58,MATCH(B114,'UNIT PRICE TABLE'!$A$1:$A$58,0),MATCH($D$12,Region,0)+1)*$J$2 -> 3.8 | F114: =ROUND(IFERROR(C114*E114,0),2) -> 0 | G114: *Get updated pricing from Clayton first* Get qtys from design | J114: =$D$11*$J$5 -> 0 | K114: =$D$11*$J$5 -> 0 | L114: =$D$11*1.25*$J$5 -> 0
A115: =A114+1 -> 91 | B115: Pole attachment hardware (H bracket) | C115: =_xlfn.SWITCH($D$8,"Lateral",K115,"PON",L115,J115) -> 0 | D115: EA | E115: =$J$2*104 -> 104 | F115: 0 | G115: Assumes one per Closure | J115: =IFERROR(ROUNDUP(J$157*($D$11/($D$10+$D$11)),0)*$J$5,0) -> 0 | K115: =IFERROR(ROUNDUP(K$157*($D$11/($D$10+$D$11)),0)*$J$5,0) -> 0 | L115: =IFERROR(ROUNDUP(L$157*($D$11/($D$10+$D$11)),0)*$J$5,0) -> 0
A116: =A115+1 -> 92 | B116: Pole attachment hardware (Dead-end) | C116: =_xlfn.SWITCH($D$8,"Lateral",K116,"PON",L116,J116) -> 0 | D116: EA | E116: =$J$2*104 -> 104 | F116: 0 | G116: BB&Lat Assumes 25% poles with a 20% extra, PON Assumes 40% with 36% extra | J116: =ROUNDUP(((($D$11/300)*0.25)*1.2)*2,0)*$J$5 -> 0 | K116: =ROUNDUP(((($D$11/300)*0.25)*1.2)*2,0)*$J$5 -> 0 | L116: =ROUNDUP(((($D$11/300)*0.4)*1.36)*2,0)*$J$5 -> 0
A117: 93 | B117: Pole attachment hardware (Tangent) | C117: =_xlfn.SWITCH($D$8,"Lateral",K117,"PON",L117,J117) -> 0 | D117: EA | E117: =$J$2*104 -> 104 | F117: 0 | G117: BB&Lat Assumes 75% poles with a 20% extra, PON Assumes 60% with 36% extra | J117: =ROUNDUP(((($D$11/300)*0.75)*1.2),0)*$J$5 -> 0 | K117: =ROUNDUP(((($D$11/300)*0.75)*1.2),0)*$J$5 -> 0 | L117: =ROUNDUP(((($D$11/300)*0.6)*1.36),0)*$J$5 -> 0
A118: 94 | B118: Install U-guard for pole mounted enclosure | C118: =_xlfn.SWITCH($D$8,"Lateral",K118,"PON",L118,J118) -> 0 | D118: EA | E118: =$J$2*50 -> 50 | F118: 0 | G118: Assumes one per Closure | J118: =IFERROR(ROUNDUP(J$157*($D$11/($D$10+$D$11)),0)*$J$5,0) -> 0 | K118: =IFERROR(ROUNDUP(K$157*($D$11/($D$10+$D$11)),0)*$J$5,0) -> 0 | L118: =IFERROR(ROUNDUP(L$157*($D$11/($D$10+$D$11)),0)*$J$5,0) -> 0
A119: 95 | C119: 0 | F119: 0
A120: 96 | C120: 0 | F120: 0
A121: 97 | C121: 0 | F121: 0
A122: 98 | C122: 0 | F122: 0
A123: 99 | C123: 0 | F123: 0
A124: 100 | C124: 0 | F124: 0
A125: 101 | C125: 0 | F125: 0
A126: 102 | C126: 0 | F126: 0
A127: 103 | C127: 0 | F127: 0
A128: 104 | C128: 0 | F128: 0
B129: =B113 & " LABOR TOTAL" -> AERIAL - ADSS LABOR TOTAL | F129: =SUM(F114:F128) -> 0
B131: WIRELESS
A132: =A128+1 -> 105 | C132: 0 | D132: EA | F132: =ROUND(IFERROR(C132*E132,0),2) -> 0
A133: =A132+1 -> 106 | C133: 0 | D133: EA | F133: 0
A134: =A133+1 -> 107 | C134: 0 | D134: EA | F134: 0
A135: 108 | C135: 0 | D135: EA | F135: 0
A136: 109 | C136: 0 | D136: EA | F136: 0
A137: 110 | C137: 0 | D137: EA | F137: 0
A138: 111 | C138: 0 | D138: EA | F138: 0
A139: 112 | C139: 0 | D139: EA | F139: 0
A140: 113 | C140: 0 | D140: EA | F140: 0
A141: 114 | C141: 0 | D141: EA | F141: 0
A142: 115 | C142: 0 | D142: EA | F142: 0
A143: 116 | C143: 0 | D143: EA | F143: 0
A144: 117 | C144: 0 | F144: 0
A145: 118 | C145: 0 | F145: 0
A146: 119 | C146: 0 | F146: 0
A147: 120 | C147: 0 | F147: 0
A148: 121 | C148: 0 | F148: 0
A149: 122 | C149: 0 | F149: 0
A150: 123 | C150: 0 | F150: 0
A151: 124 | C151: 0 | F151: 0
A152: 125 | C152: 0 | F152: 0
A153: 126 | C153: 0 | F153: 0
B154: =B131 & " LABOR TOTAL" -> WIRELESS LABOR TOTAL | F154: =SUM(F132:F153) -> 0
B156: SPLICING
A157: =A153+1 -> 127 | B157: Install New Splice Case & Prep Cable | C157: =_xlfn.SWITCH($D$8,"Lateral",K157,"PON",L157,J157) -> 30 | D157: EA | E157: =INDEX('UNIT PRICE TABLE'!$A$1:$G$58,MATCH(B157,'UNIT PRICE TABLE'!$A$1:$A$58,0),MATCH($D$12,Region,0)+1)*$J$2 -> 550 | F157: =ROUND(IFERROR(C157*E157,0),2) -> 16500 | G157: *Get updated pricing from Clayton first* BB and Laterals estimate one every 5000', PON one every 8 customers | J157: =ROUNDUP((($D$10*(1+$F$12))+$D$11+J$93)/5000,0) -> 5 | K157: =ROUNDUP((($D$10*(1+$F$12))+$D$11+K$93)/5000,0) -> 5 | L157: =ROUNDUP($F$8/8,0) -> 30
A158: =A157+1 -> 128 | B158: Re-enter splice closure | C158: =_xlfn.SWITCH($D$8,"Lateral",K158,"PON",L158,J158) -> 0 | D158: EA | E158: =$J$2*200 -> 200 | F158: 0 | G158: Get qtys from design | J158: 0 | K158: 0 | L158: 0
A159: =A158+1 -> 129 | B159: Ground Splice Case + Materials | C159: =_xlfn.SWITCH($D$8,"Lateral",K159,"PON",L159,J159) -> 30 | D159: EA | E159: =$J$2*50 -> 50 | F159: 1500 | G159: If using armored cable all splice cases must be grounded. Dielectric no need grounding. For HLD estimates assume each needs grounding | J159: =J157 -> 5 | K159: =K157 -> 5 | L159: =L157 -> 30
